{"text_format":"1","workbook":"xlsx","n_sheets":14,"sheets":["User Instructions","NCM act and schedules","Activity database","Restaurant and cafes calculator","Cineman and Theatres","Leisure centres","Office calculator","Retail calculator","Industrial calculator","Education calculator","Multi-residential calculator","Other building type calculator","Average flow rate calculator","Schedule of changes"],"not_rendered":{"charts":0,"images":3,"macros":1,"external_links":5,"defined_names":85,"comments":7,"pivot_tables":0},"unopened":[],"bounds":{"document_bytes":16777216,"sheet_cells":100000,"rows_first":2000,"rows_last":500,"rows_between":2000,"halvings":0,"cell_chars":16384,"cell_head_chars":4096},"cells_cut":0,"cells_raw":0,"read":"whole","date_system":"1900"}

{"sheet":"User Instructions","index":0,"n_rows":28,"n_cols":17,"rows_kept":28,"cut":false,"hidden":false,"merged":[[20,2,20,10],[19,2,19,10],[9,1,9,2],[7,1,7,2],[7,3,7,5],[9,3,9,5],[15,1,15,10],[12,1,13,10]]}
[]
[null,"BREEAM-NOR 6.1 Wat 01 Water consumption: User instructions"]
[]
[null,"Building Details",null,null,null,null,null,null,null,null,null,null,null,null,null,null,""]
[]
[null,"Building type","Please select",null,null,null,{"$f":"IF(UI_BT=\"Please select\",\"Note: the appropriate building type must be selected to enable the relevant calculator tool.\",\"\")","v":"Note: the appropriate building type must be selected to enable the relevant calculator tool."}]
[]
[null,"Building name"]
[]
[null,"BREEAM assessment reference no."]
[]
[null,"Important information"]
[null,"This version of the BREEAM 2018 Wat 01 calculator is the second release of this calculator tool. This version includes calculators for the following building types:\n\n1) Offices\n2) Retail\n3) Industrial\n4) Education\n5) Other buildings*\n\nSelect the applicable building type above and the appropriate calculator tab will become available at the bottom of the screen. (Macros must be enabled)\n\nThe BREEAM 2018 Wat01 calculator tool is compatible with Microsoft Excel versions 2010, 2013 and 2016 for Windows. This tool is also compatible with Microsoft Excel version 2016 for Mac. This calculator tool has been designed to be intuitive and as user-friendly as possible. However, if you need help or if you have any suggestions on how we can improve, please email: BREEAM@bre.co.uk\n"]
[]
[null,"User Instructions"]
[null,"The BREEAM 2018 Wat 01 calculates the number of credits using the standard Wat 01 method.\n\nThe standard BREEAM water efficiency method determines water efficiency (measured in l/person/day and m3/person/yr) for a building based on the buildings actual component specification and default usage patterns for the building type and its activity areas. This output is compared with the same output for a baseline component specification and the percentage improvement used to determine the number of BREEAM credits achieved.\n\nThe standard approach is the default method for calculating water efficiency of a BREEAM assessed building and is that used for most of the common building types, where usage data is available, including:\n\n1) Offices\n2) Retail\n3) Industrial\n4) Education\n\nWhere it is not possible to use the standard approach to determine the buildings water consumption total, and therefore a percentage improvement on the baseline specification, the assessment can be completed using the alternative method. The alternative method is used for any building type not listed above under the standard method.\n\n*Other buildings cover all building types not listed 1-4 and does not correspond to the other building types defined in the manual. The alternative calculation method is required for these building types.\n\n \n"]
[null,"Key"]
[null,null,"Cells that are white with a black border require user input (data entry/option selection)"]
[null,null,"Cells that are light grey contain fixed data or a formula and do not require any user input"]
[null,null,"Cells that are dark grey are user input cells which are not applicable due to either building type or user input/option selection or default setting. Note these cells can change to ones requiring user input depending on the users option selection in other cells."]
[null,">","A red arrow indicates that option selection or mandatory data entry is required in one of the cells on the row where this arrow appears. Without appropriate selection/data the calculator will not be able to determine the number of BREEAM credits. Where the term \"Requires building information\" appears check to make sure there are no red arrows indicating an absence of option selection or data entry."]
[]
[null,"Please select"]
[null,"Office"]
[null,"Retail"]
[null,"Industrial"]
[null,"Education"]
[null,"Other Building*"]

{"sheet":"NCM act and schedules","index":1,"n_rows":359,"n_cols":30,"rows_kept":359,"cut":false,"hidden":true,"merged":[]}
["List of activities and daily schedules per week type"]
[]
["These are the daily schedules for the Activities listed in the activities Database as per 11/08/10."]
["They correspond to the daily schedule for Mondays."]
["The Week Type identifies potential differences in Monday schedules for different weeks of the year with different patterns of occupancy (e.g. schools full time and schools summer periods)."]
["Week 1 (WK1) normally identifies standard operation (working weeks)"]
[]
["Activity ID","Activity Name","Building Type","OCCUPANCY_DENS","WEEKLY_SCHEDULE","Week Type","h00","h01","h02","h03","h04","h05","h06","h07","h08","h09","h10","h11","h12","h13","h14","h15","h16","h17","h18","h19","h20","h21","h22","h23"]
[1000,"Cupboard","B1 Offices and Workshop businesses",0.11,"Office_Store_Occ_WK1",{"$f":"RIGHT(E9,3)","v":"WK1"},0,0,0,0,0,0,0,0,1,1,1,1,1,1,1,1,1,1,0,0,0,0,0,0]
[1001,"Circulation area (corridors and stairways)","B1 Offices and Workshop businesses",0.11733333333333337,"Office_Circulation_Occ_WK1",{"$f":"RIGHT(E10,3)","v":"WK1"},0,0,0,0,0,0,0,0.25,0.5,1,1,1,0.75,0.75,1,1,1,0.5,0.25,0,0,0,0,0]
[1002,"Toilet","B1 Offices and Workshop businesses",0.11244444444444444,"Office_Toilet_Occ_WK1","WK1",0,0,0,0,0,0,0,0.25,0.5,1,1,1,0.75,0.75,1,1,1,0.5,0.25,0,0,0,0,0]
[1003,"Reception","B1 Offices and Workshop businesses",0.10083333333333333,"Office_Reception_Occ_WK1","WK1",0,0,0,0,0,0,0,0.25,0.5,1,1,1,0.75,0.75,1,1,1,0.5,0.25,0,0,0,0,0]
[1004,"Light plant room","B1 Offices and Workshop businesses",0.11,"Office_Plant_Occ_WK1","WK1",0,0,0,0,0,0,0,0,0,0,0,0,0,0,0,0,0,0,0,0,0,0,0,0]
[1005,"Generic Office Area","B1 Offices and Workshop businesses",0.111,"Office_OpenOff_Occ_WK1","WK1",0,0,0,0,0,0,0,0.25,0.5,1,1,1,0.75,0.75,1,1,1,0.5,0.25,0,0,0,0,0]
[1006,"Fitness suite/gym","B1 Offices and Workshop businesses",0.16484848484848486,"Office_FitGym_Occ_Wk1","Wk1",0,0,0,0,0,0,0.25,1,1,0.25,0,0.25,1,1,0.5,0,0,0.5,1,1,0.5,0,0,0]
[1007,"Changing facilities with showers","B1 Offices and Workshop businesses",0.1,"Office_Changing_Occ_WK1","WK1",0,0,0,0,0,0,0,1,1,1,1,1,1,1,1,1,1,1,1,1,0,0,0,0]
[1008,"Food preparation area","B1 Offices and Workshop businesses",0.10803571428571428,"Office_FoodPrep_Occ_WK1","WK1",0,0,0,0,0,0,0.25,0.75,1,1,1,1,1,1,0.75,0.25,0.25,0.75,1,1,1,1,0.75,0.25]
[1009,"Eating/drinking area","B1 Offices and Workshop businesses",0.28888888886666669,"Office_EatDrink_Occ_WK1","WK1",0,0,0,0,0,0,0,0,0,0,0,0.25,1,1,0.75,0,0,0,0,0,0,0,0,0]
[1010,"Workshop - small scale","B1 Offices and Workshop businesses",6.8055555555555564E-2,"Office_WkshpSS_Occ_Wk1","Wk1",0,0,0,0,0,0,0,0.25,0.5,1,1,1,0.75,0.75,1,1,1,0.5,0.25,0,0,0,0,0]
[1012,"Laundry","A1/A2 Retail and Financial/Professional services",0.12466666666666666,"Office_Laund_Occ_Wk1","Wk1",0,0,0,0,0,0,0,0.25,0.5,1,1,1,0.75,0.75,1,1,1,0.5,0.25,0,0,0,0,0]
[1013,"Assembly areas / halls","C1 Hotels",0.18333333333333329,"Hotel_Lecture_Occ_WK1","WK1",0,0,0,0,0,0,0,0,0,1,1,1,1,1,1,1,1,1,1,1,1,0,0,0]
[1014,"Bedroom unit","C1 Hotels",9.4432653061224503E-2,"Hotel_Bed_Occ_WK1","WK1",1,1,1,1,1,1,1,0.5,0.25,0,0,0,0,0,0,0,0,0,0,0,0,0,0.25,0.75]
[1015,"Changing facilities with showers","C1 Hotels",0.11905263157894741,"Hotel_Changing_Occ_WK1","WK1",0,0,0,0,0,0,0,0,0,1,1,1,1,1,1,1,1,1,1,1,1,0,0,0]
[1016,"Circulation area (corridors and stairways)","C1 Hotels",0.11472392638036813,"Hotel_Circulation_Occ_WK1","WK1",0,0,0,0,0,0,0,1,1,1,1,1,1,1,1,1,1,1,1,1,1,1,1,0.3]
[1017,"Food preparation area","C1 Hotels",0.10803571428571428,"Hotel_FoodPrep_Occ_WK1","WK1",0,0,0,0,0,0,0.25,0.75,1,1,1,1,1,1,0.75,0.25,0.25,0.75,1,1,1,1,0.75,0.25]
[1018,"Eating/drinking area","C1 Hotels",0.18738738737297292,"Hotel_EatDrink_Occ_WK1","WK1",0,0,0,0,0,0,0,0.25,0.25,0.5,0.5,0.5,1,1,0.5,0.25,0.25,0.25,0.5,1,1,1,0.5,0]
[1019,"Fitness suite/gym","C1 Hotels",0.14017543861960524,"Hotel_FitGym_Occ_Wk1","Wk1",0,0,0,0,0,0,0,0,0,1,1,1,1,1,1,1,1,1,1,1,1,0,0,0]
[1020,"Laundry","C1 Hotels",0.12100000000000005,"Hotel_Laund_Occ_Wk1","Wk1",0,0,0,0,0,0,0,0,1,1,1,1,1,1,1,1,1,1,0,0,0,0,0,0]
[1021,"Light plant room","C1 Hotels",0.11,"Hotel_Plant_Occ_WK1","WK1",0,0,0,0,0,0,0,0,0,0,0,0,0,0,0,0,0,0,0,0,0,0,0,0]
[1022,"Reception","C1 Hotels",0.10460122699386505,"Hotel_Reception_Occ_WK1","WK1",0,0,0,0,0,0,0,1,1,1,1,1,1,1,1,1,1,1,1,1,1,1,1,0.3]
[1023,"Toilet","C1 Hotels",0.11785714285714285,"Hotel_Toilet_Occ_WK1","WK1",0,0,0,0,0,0,0,1,1,1,1,1,1,1,1,1,1,1,1,1,1,0,0,0]
[1024,"Swimming pool","C1 Hotels",0.13954166666666665,"Hotel_Swim_Occ_WK1","WK1",0,0,0,0,0,0,0,0,0,1,1,1,1,1,1,1,1,1,1,1,1,0,0,0]
[1025,"Dry sports hall","C1 Hotels",4.1228070182236828E-2,"Hotel_DrySptHall_Occ_WK1","WK1",0,0,0,0,0,0,0,0,0,1,1,1,1,1,1,1,1,1,1,1,1,0,0,0]
[1026,"Cupboard","C1 Hotels",0.11,"Hotel_Store_Occ_WK1","WK1",0,0,0,0,0,0,0,1,1,1,1,1,1,1,1,1,1,1,1,1,1,0,0,0]
[1028,"Generic Office Area","C1 Hotels",0.10606666666666666,"Hotel_CellOff_Occ_WK1","WK1",0,0,0,0,0,0,0,0.25,0.5,1,1,1,0.75,0.75,1,1,1,0.5,0.25,0,0,0,0,0]
[1029,"Circulation area (corridors and stairways) - non public","A3/A4/A5 Restaurant and Cafes/Drinking Establishments and Hot Food takeaways",0.12763963964756755,"RestPub_Circulation_Occ_WK1","WK1",0,0,0,0,0,0,0,0.25,0.25,0.5,0.5,0.5,1,1,0.5,0.25,0.25,0.25,0.5,1,1,1,0.5,0]
[1030,"Eating/drinking area","A3/A4/A5 Restaurant and Cafes/Drinking Establishments and Hot Food takeaways",0.2,"RestPub_EatDrink_Occ_WK1","WK1",0,0,0,0,0,0,0,0.25,0.25,0.5,0.5,0.5,1,1,0.5,0.25,0.25,0.25,0.5,1,1,1,0.5,0]
[1031,"Food preparation area","A3/A4/A5 Restaurant and Cafes/Drinking Establishments and Hot Food takeaways",0.11,"RestPub_FoodPrep_Occ_WK1","WK1",0,0,0,0,0,0,0.25,0.75,1,1,1,1,1,1,0.75,0.25,0.25,0.75,1,1,1,1,0.75,0.25]
[1032,"Cupboard","A3/A4/A5 Restaurant and Cafes/Drinking Establishments and Hot Food takeaways",0.12375,"RestPub_Store_Occ_WK1","WK1",0,0,0,0,0,0,0,0,0,0.75,1,1,0.75,0.75,1,1,1,0.75,0,0,0,0,0,0]
[1033,"Performance area (stage)","A3/A4/A5 Restaurant and Cafes/Drinking Establishments and Hot Food takeaways",3.5924369747899157E-2,"RestPub_Stage_Occ_WK1","WK1",0,0,0,0,0,0,0,0,0,0,0,0,0,0,0,0,0.5,0.5,1,1,1,1,0.66666666699999999,0]
[1034,"Light plant room","A3/A4/A5 Restaurant and Cafes/Drinking Establishments and Hot Food takeaways",0.11,"RestPub_Plant_Occ_WK1","WK1",0,0,0,0,0,0,0,0,0,0,0,0,0,0,0,0,0,0,0,0,0,0,0,0]
[1036,"Toilet","A3/A4/A5 Restaurant and Cafes/Drinking Establishments and Hot Food takeaways",8.8404907975460148E-2,"RestPub_Toilet_Occ_WK1","WK1",0,0,0,0,0,0,0,1,1,1,1,1,1,1,1,1,1,1,1,1,1,1,1,0.3]
[1038,"Generic Office Area","A3/A4/A5 Restaurant and Cafes/Drinking Establishments and Hot Food takeaways",0.10943661971830985,"RestPub_CellOff_Occ_WK1","WK1",0,0,0,0,0,0,0,0.1,0.25,0.75,1,1,0.5,0.5,1,1,0.5,0.5,0,0,0,0,0,0]
[1039,"Circulation area (corridors and stairways)","B2 to B7 General Industrial and Special Industrial Groups",0.12375,"Indust_Circulation_Occ_WK1","WK1",0,0,0,0,0,0,0,0,0,1,1,1,1,1,1,1,1,0,0,0,0,0,0,0]
[1040,"Eating/drinking area","B2 to B7 General Industrial and Special Industrial Groups",0.17777777773333334,"Indust_EatDrink_Occ_WK1","WK1",0,0,0,0,0,0,0,0,0,0,0,0.25,1,1,0.75,0,0,0,0,0,0,0,0,0]
[1041,"Food preparation area","B2 to B7 General Industrial and Special Industrial Groups",0.2126666666666667,"Indust_FoodPrep_Occ_WK1","WK1",0,0,0,0,0,0,0,0,0,0,0,0.25,1,1,0.75,0,0,0,0,0,0,0,0,0]
[1042,"Industrial process area","B2 to B7 General Industrial and Special Industrial Groups",2.2459016393442617E-2,"Indust_IndProcess_Occ_Wk1","Wk1",0,0,0,0,0,0,0,0.25,0.5,1,1,1,0.75,0.75,1,1,1,0.5,0.25,0,0,0,0,0]
[1043,"Laboratory","B2 to B7 General Industrial and Special Industrial Groups",0.10694444444444444,"Indust_Lab_Occ_WK1","WK1",0,0,0,0,0,0,0,0.25,0.5,1,1,1,0.75,0.75,1,1,1,0.5,0.25,0,0,0,0,0]
[1044,"Light plant room","B2 to B7 General Industrial and Special Industrial Groups",0.11,"Indust_Plant_Occ_WK1","WK1",0,0,0,0,0,0,0,0,0,0,0,0,0,0,0,0,0,0,0,0,0,0,0,0]
[1045,"Reception","B2 to B7 General Industrial and Special Industrial Groups",0.11,"Indust_Reception_Occ_WK1","WK1",0,0,0,0,0,0,0,0,0,1,1,1,1,1,1,1,1,0,0,0,0,0,0,0]
[1046,"Cupboard","B2 to B7 General Industrial and Special Industrial Groups",0.12375,"Indust_Store_Occ_WK1","WK1",0,0,0,0,0,0,0,0,0,1,1,1,1,1,1,1,1,0,0,0,0,0,0,0]
[1049,"Toilet","B2 to B7 General Industrial and Special Industrial Groups",0.12375,"Indust_Toilet_Occ_WK1","WK1",0,0,0,0,0,0,0,0,0,1,1,1,1,1,1,1,1,0,0,0,0,0,0,0]
[1050,"Warehouse storage","B2 to B7 General Industrial and Special Industrial Groups",9.0123456790123443E-3,"Indust_WareStore_Occ_Wk1","Wk1",0,0,0,0,0,0,0,1,1,1,1,1,1,1,1,1,1,1,1,1,0,0,0,0]
[1052,"Generic Office Area","B2 to B7 General Industrial and Special Industrial Groups",0.10791666666666665,"Indust_CellOff_Occ_WK1","WK1",0,0,0,0,0,0,0,0.25,0.5,1,1,1,0.75,0.75,1,1,1,0.5,0.25,0,0,0,0,0]
[1053,"Circulation area (corridors and stairways)","B8 Storage or Distribution",9.428571428571432E-2,"Ware_Circulation_Occ_Wk1","Wk1",0,0,0,0,0,0,0,0,1,1,1,1,1,1,1,1,1,1,0,0,0,0,0,0]
[1054,"Food preparation area","B8 Storage or Distribution",0.12400306748466261,"Ware_FoodPrep_Occ_Wk1","Wk1",0,0,0,0,0,0,0,0,0,0.5,1,1,1,0.75,1,0.75,0,0,0,0,0,0,0,0]
[1055,"Eating/drinking area","B8 Storage or Distribution",0.3579661016135593,"Ware_EatDrink_Occ_Wk1\nWare_EatDrink_Wk1","Wk1",0,0,0,0,0,0,0,0,0,0,0,0.25,1,1,0.75,0,0,0,0,0,0,0,0,0]
[1056,"Light plant room","B8 Storage or Distribution",0.10607142857142859,"Ware_Plant_Occ_Wk1","Wk1",0,0,0,0,0,0,0,0,0,0,0,0,0,0,0,0,0,0,0,0,0,0,0,0]
[1057,"Reception","B8 Storage or Distribution",0.1128139534883721,"Ware_Reception_Occ_WK1","WK1",0,0,0,0,0,0,0,0,0,1,1,1,1,1,1,1,1,0,0,0,0,0,0,0]
[1059,"Cupboard","B8 Storage or Distribution",0.10371428571428574,"Ware_Store_Occ_Wk1","Wk1",0,0,0,0,0,0,0,0,1,1,1,1,1,1,1,1,1,1,0,0,0,0,0,0]
[1060,"Toilet","B8 Storage or Distribution",0.10371428571428574,"Ware_Toilet_Occ_Wk1","Wk1",0,0,0,0,0,0,0,0,1,1,1,1,1,1,1,1,1,1,0,0,0,0,0,0]
[1063,"Warehouse storage","B8 Storage or Distribution",1.0857142857714287E-2,"Ware_WareStore_Occ_Wk1","Wk1",0,0,0,0,0,0,0,0,1,1,1,1,1,1,1,1,1,1,0,0,0,0,0,0]
[1064,"Changing facilities with showers","B8 Storage or Distribution",0.32500000000000001,"Ware_Changing_Occ_WK1","WK1",0,0,0,0,0,0,0,0,0,0.25,0.25,0.25,0.25,0.25,0.25,0.25,0.25,0,0,0,0,0,0,0]
[1066,"Generic Office Area","B8 Storage or Distribution",9.5142857142857168E-2,"Ware_CellOff_Occ_Wk1","Wk1",0,0,0,0,0,0,0,0,1,1,1,1,1,1,1,1,1,1,0,0,0,0,0,0]
[1067,"Circulation area (corridors and stairways) - non public","A1/A2 Retail and Financial/Professional services",0.10371428571428574,"Ret_Circulation_Occ_Wk1","Wk1",0,0,0,0,0,0,0,0,1,1,1,1,1,1,1,1,1,1,0,0,0,0,0,0]
[1068,"Food preparation area","A1/A2 Retail and Financial/Professional services",0.108,"Ret_FoodPrep_Occ_Wk1","Wk1",0,0,0,0,0,0,0,0,0,0.5,1,1,1,0.75,1,0.75,0,0,0,0,0,0,0,0]
[1069,"Eating/drinking area","A1/A2 Retail and Financial/Professional services",0.33050847457627125,"Ret_EatDrink_Occ_Wk1\nRet_EatDrink_Wk1","Wk1",0,0,0,0,0,0,0,0,0,0,0,0.25,1,1,0.75,0,0,0,0,0,0,0,0,0]
[1070,"Light plant room","A1/A2 Retail and Financial/Professional services",0.10607142857142859,"Ret_Plant_Occ_Wk1","Wk1",0,0,0,0,0,0,0,0,0,0,0,0,0,0,0,0,0,0,0,0,0,0,0,0]
[1071,"Small Shop Unit Sales area - general","A1/A2 Retail and Financial/Professional services",0.11687500000000001,"Ret_Sales_Occ_Wk1","Wk1",0,0,0,0,0,0,0,0,0,0.75,1,1,0.75,0.75,1,1,1,0.75,0,0,0,0,0,0]
[1072,"Small Shop Unit Sales area - chilled","A1/A2 Retail and Financial/Professional services",0.11687500000000001,"Ret_SalesChill_Occ_Wk1","Wk1",0,0,0,0,0,0,0,0,0,0.75,1,1,0.75,0.75,1,1,1,0.75,0,0,0,0,0,0]
[1073,"Small Shop Unit Sales area - electrical","A1/A2 Retail and Financial/Professional services",0.11687500000000001,"Ret_SalesElectric_Occ_Wk1","Wk1",0,0,0,0,0,0,0,0,0,0.75,1,1,0.75,0.75,1,1,1,0.75,0,0,0,0,0,0]
[1074,"Cupboard","A1/A2 Retail and Financial/Professional services",0.10371428571428574,"Ret_Store_Occ_Wk1","Wk1",0,0,0,0,0,0,0,0,1,1,1,1,1,1,1,1,1,1,0,0,0,0,0,0]
[1077,"Toilet","A1/A2 Retail and Financial/Professional services",0.10371428571428574,"Ret_Toilet_Occ_Wk1","Wk1",0,0,0,0,0,0,0,0,1,1,1,1,1,1,1,1,1,1,0,0,0,0,0,0]
[1078,"Generic Office Area","A1/A2 Retail and Financial/Professional services",9.5142857142857168E-2,"Ret_CellOff_Occ_Wk1",{"$f":"RIGHT(E74,3)","v":"Wk1"},0,0,0,0,0,0,0,0,1,1,1,1,1,1,1,1,1,1,0,0,0,0,0,0]
[1079,"Domestic Lounge","Residential spaces",1.87563025194958E-2,"Dwell_DomLounge_Occ_Wk1","Wk1",0,0,0,0,0,0,0,0,0,0,0,0,0,0,0,0,0.5,0.5,1,1,1,1,0.66666666699999999,0]
[1080,"Domestic Bedroom","Residential spaces",2.2938775510204085E-2,"Dwell_DomBed_Occ_Wk1","Wk1",1,1,1,1,1,1,1,0.5,0.25,0,0,0,0,0,0,0,0,0,0,0,0,0,0.25,0.75]
[1081,"Domestic Dining room","Residential spaces",1.6916299559471371E-2,"Dwell_DomDining_Occ_Wk1","Wk1",0,0,0,0,0,0,0.25,1,1,0.25,0,0,0,0,0,0,0,0,0.5,1,1,0.3,0,0]
[1082,"Domestic Toilet","Residential spaces",2.4317180616740097E-2,"Dwell_DomToilet_Occ_Wk1","Wk1",0,0,0,0,0,0,0.25,1,1,0.25,0,0,0,0,0,0,0,0,0.5,1,1,0.3,0,0]
[1083,"Domestic Kitchen","Residential spaces",2.3703703703703706E-2,"Dwell_DomKitchen_Occ_Wk1","Wk1",0,0,0,0,0,0,0,1,1,1,0,0,0,0,0,0,0,0,0,0.2,0.2,0.2,0.2,0]
[1084,"Domestic Circulation","Residential spaces",1.5503875968992243E-2,"Dwell_DomCirculation_Occ_Wk1","Wk1",0,0,0,0,0,0,0,1,1,1,0,0,0,0,0,0,0,0,0,0.2,0.2,0.2,0.2,0]
[1085,"Domestic Bathroom","Residential spaces",1.8736842105263163E-2,"Dwell_DomBath_Occ_Wk1","Wk1",0,0,0,0,0,0,0,1,1,1,0,0,0,0,0,0,0,0,0,0.2,0.2,0.2,0.2,0]
[1086,"Common circulation areas","Residential spaces",1.9646017699115035E-2,"Dwell_DomCommonAreas_Occ_Wk1","Wk1",0,0,0,0,0,0,0,0.5,1,0.5,0,0,0,0,0,0,0,0.25,0.5,0.75,1,1,0.75,0.25]
[1087,"Cupboard","C2 Residential Institutions - Hospitals and Care Homes",0.10153846153846156,"Hosp_Store_Occ_WK1","WK1",0,0,0,0,0,0,0,1,1,1,1,1,1,1,1,1,1,1,1,1,0,0,0,0]
[1088,"Circulation area (corridors and stairways) - non-public/restricted","C2 Residential Institutions - Hospitals and Care Homes",0.11354838709677421,"Hosp_Circulation_Occ_WK1","WK1",0,0,0,0,0,0,0,1,1,1,1,1,1,1,1,1,1,1,1,1,0,0,0,0]
[1089,"Toilet","C2 Residential Institutions - Hospitals and Care Homes",0.11770000000000003,"Hosp_Toilet_Occ_WK1","WK1",0,0,0,0,0,0,0,0,1,1,1,1,1,1,1,1,1,1,0,0,0,0,0,0]
[1090,"Reception","C2 Residential Institutions - Hospitals and Care Homes",0.15166666666666673,"Hosp_Reception_Occ_WK1","WK1",0,0,0,0,0,0,0,0.25,0.5,1,1,1,0.75,0.75,1,1,1,0.5,0.25,0,0,0,0,0]
[1093,"Post Mortem Facility","C2 Residential Institutions - Hospitals and Care Homes",0.05,"Hosp_PostMortem_Occ_WK1","WK1",0,0,0,0,0,0,0,1,1,1,1,1,1,1,1,1,1,1,1,1,1,0,0,0]
[1094,"Eating/drinking area","C2 Residential Institutions - Hospitals and Care Homes",0.35,"Hosp_EatDrink_Occ_WK1","WK1",0,0,0,0,0,0,0.25,1,1,0.25,0,0.25,1,1,0.5,0,0,0.5,1,1,0.5,0,0,0]
[1095,"Food preparation area","C2 Residential Institutions - Hospitals and Care Homes",0.16100000000000006,"Hosp_FoodPrep_Occ_WK1","WK1",0,0,0,0,0,0,0,0,1,1,1,1,1,1,1,1,1,1,0,0,0,0,0,0]
[1096,"Light plant room","C2 Residential Institutions - Hospitals and Care Homes",0.10153846153846156,"Hosp_Plant_Occ_WK1","WK1",0,0,0,0,0,0,0,0,0,0,0,0,0,0,0,0,0,0,0,0,0,0,0,0]
[1097,"Physiotherapy Studio","C2 Residential Institutions - Hospitals and Care Homes",0.2,"Hosp_Physiotherapy_Occ_Wk1","Wk1",0,0,0,0,0,0,0,0,0,0.75,1,1,0.75,0.75,1,1,1,0.75,0,0,0,0,0,0]
[1098,"Bedroom Unit","C2 Residential Institutions - Hospitals and Care Homes",0.10468571428571431,"Hosp_Bed_Occ_WK1","WK1",1,1,1,1,1,1,1,0.5,0.25,0,0,0,0,0,0,0,0,0,0,0,0,0,0.25,0.75]
[1099,"Laundry","C2 Residential Institutions - Hospitals and Care Homes",0.11733333333333335,"Hosp_Laund_Occ_Wk1","Wk1",0,0,0,0,0,0,0,0.25,0.5,1,1,1,0.75,0.75,1,1,1,0.5,0.25,0,0,0,0,0]
[1100,"24 hrs Consulting/treatment areas","C2 Residential Institutions - Hospitals and Care Homes",0,"Hosp_AEConsRm_Occ_WK1","WK1",1,1,1,1,1,1,1,1,1,1,1,1,1,1,1,1,1,1,1,1,1,1,1,1]
[1101,"Assembly areas / halls","C2 Residential Institutions - Hospitals and Care Homes",1,"Hosp_Lecture_Occ_WK1","WK1",0,0,0,0,0,0,0,0,0,1,1,1,1,1,1,1,1,0,0,0,0,0,0,0]
[1102,"Hydrotherapy pool hall","C2 Residential Institutions - Hospitals and Care Homes",0.1,"Hosp_Hydrotherapy_Occ_WK1","WK1",0,0,0,0,0,0,0,0,0,1,1,1,1,1,1,1,1,0,0,0,0,0,0,0]
[1103,"Industrial process area","C2 Residential Institutions - Hospitals and Care Homes",0.12352459016393443,"Hosp_IndProcess_Occ_Wk1","Wk1",0,0,0,0,0,0,0,0.25,0.5,1,1,1,0.75,0.75,1,1,1,0.5,0.25,0,0,0,0,0]
[1104,"Laboratory","C2 Residential Institutions - Hospitals and Care Homes",0.08,"Hosp_Lab_Occ_WK1","WK1",0,0,0,0,0,0,0,0.25,0.5,1,1,1,0.75,0.75,1,1,1,0.5,0.25,0,0,0,0,0]
[1105,"Operating theatre","C2 Residential Institutions - Hospitals and Care Homes",0.125,"Hosp_OpTheatre_Occ_WK1","WK1",null,null,null,null,null,null,null,1,1,1,1,1,1,1,1,1,1,1,1,1,1]
[1106,"Changing facilities with showers","C2 Residential Institutions - Hospitals and Care Homes",0.5,"Hosp_Changing_Occ_WK1","WK1",0,0,0,0,0,0,0,0,1,1,1,1,1,1,1,1,1,1,0,0,0,0,0,0]
[1107,"Classroom","C2 Residential Institutions - Hospitals and Care Homes",1,"Hosp_ClassRm_Occ_Wk1","Wk1",0,0,0,0,0,0,0,0,0,1,1,1,1,1,1,1,1,0,0,0,0,0,0,0]
[1108,"Diagnostic Imaging","C2 Residential Institutions - Hospitals and Care Homes",0.1,"Hosp_Diagnostic_Occ_WK1","WK1",0,0,0,0,0,0,0,1,1,1,1,1,1,1,1,1,1,1,1,1,1,0,0,0]
[1109,"Bathroom","C2 Residential Institutions - Hospitals and Care Homes",0.23411628784905672,"Hosp_Bath_Occ_WK1","WK1",0,0,0,0,0,0,0.25,1,1,0.25,0,0,0,0,0,0,0,0,0.5,1,1,0.3,0,0]
[1110,"Generic Ward","C2 Residential Institutions - Hospitals and Care Homes",0.17515384615384624,"Hosp_WardPatients_Occ_WK1","WK1",0,0,0,0,0,0,0,1,1,1,1,1,1,1,1,1,1,1,1,1,0,0,0,0]
[1111,"Office and consulting areas","C2 Residential Institutions - Hospitals and Care Homes",0.19500000000000001,"Hosp_CellOff_Occ_WK1","WK1",0,0,0,0,0,0,0,0.25,0.5,1,1,1,0.75,0.75,1,1,1,0.5,0.25,0,0,0,0,0]
[1112,"Circulation area (corridors and stairways) - non public","Others - Passenger terminals",0.11611111111111111,"Terminal_Circulation_Occ_WK1","WK1",0,0,0,0,0,0,0,0.25,0.5,1,1,1,0.75,0.75,1,1,1,0.5,0.25,0,0,0,0,0]
[1113,"Light plant room","Others - Passenger terminals",0.11,"Terminal_Plant_Occ_WK1","WK1",0,0,0,0,0,0,0,0,0,0,0,0,0,0,0,0,0,0,0,0,0,0,0,0]
[1114,"Reception","Others - Passenger terminals",0.12100000000000005,"Terminal_Reception_Occ_WK1","WK1",0,0,0,0,0,0,0,0,1,1,1,1,1,1,1,1,1,1,0,0,0,0,0,0]
[1115,"Cupboard","Others - Passenger terminals",0.11846153846153853,"Terminal_Store_Occ_WK1","WK1",0,0,0,0,0,0,0,1,1,1,1,1,1,1,1,1,1,1,1,1,0,0,0,0]
[1118,"Toilet","Others - Passenger terminals",0.11888888888148146,"Terminal_Toilet_Occ_WK1","WK1",0,0,0,0,0,0,0,0.25,0.5,1,1,1,0.75,0.75,1,1,1,0.5,0.25,0,0,0,0,0]
[1118,"Toilet","Others - Passenger terminals",0.11888888888148146,"Terminal_Toilet_Occ_Wk2","Wk2",0,0,0,0,0,0,0,0.25,0.5,1,1,1,0.75,0.75,1,1,1,0.5,0.25,0,0,0,0,0]
[1119,"Waiting Rooms","Others - Passenger terminals",0.18461538461538468,"Terminal_WaitRm_Occ_WK1","WK1",0,0,0,0,0,0,0,1,1,1,1,1,1,1,1,1,1,1,1,1,0,0,0,0]
[1120,"Lounges","Others - Passenger terminals",0.2049319727945578,"Terminal_Lounge_Occ_Wk1","Wk1",0,0,0,0,0,0,0,1,1,1,1,1,1,1,1,1,1,1,1,1,1,0,0,0]
[1120,"Lounges","Others - Passenger terminals",0.2049319727945578,"Terminal_Lounge_Occ_Wk2","Wk2",0,0,0,0,0,0,0,1,1,1,1,1,1,1,1,1,1,1,1,1,1,0,0,0]
[1121,"Food preparation area","Others - Passenger terminals",0.11846153846153853,"Terminal_FoodPrep_Occ_WK1","WK1",0,0,0,0,0,0,0,1,1,1,1,1,1,1,1,1,1,1,1,1,0,0,0,0]
[1122,"Eating/drinking area","Others - Passenger terminals",0.21428571428571427,"Terminal_EatDrink_Occ_WK1","WK1",0,0,0,0,0,0,0,1,1,1,1,1,1,1,1,1,1,1,1,1,1,0,0,0]
[1123,"Generic Office Area","Others - Passenger terminals",0.12264814814266667,"Terminal_CellOff_Occ_WK1","WK1",0,0,0,0,0,0,0,0.25,0.5,1,1,1,0.75,0.75,1,1,1,0.5,0.25,0,0,0,0,0]
[1124,"Generic Checkin areas","Others - Passenger terminals",0.34143518515517246,"Terminal_Check_Occ_Wk1","Wk1",0,0,0,0,0,0,0,0,0,0.25,0.25,0.25,0.25,0.25,0.25,0.25,0.25,0,0,0,0,0,0,0]
[1124,"Generic Checkin areas","Others - Passenger terminals",0.34143518515517246,"Terminal_Check_Occ_Wk2","Wk2",0,0,0,0,0,0,0,1,1,1,1,1,1,1,1,1,1,1,1,1,1,0,0,0]
[1125,"Cupboard","Others - Emergency services",0.12100000000000005,"EmgcySvc_Store_Occ_WK1","WK1",0,0,0,0,0,0,0,0,1,1,1,1,1,1,1,1,1,1,0,0,0,0,0,0]
[1126,"Circulation area (corridors and stairways)","Others - Emergency services",0.12100000000000005,"EmgcySvc_Circulation_Occ_WK1","WK1",0,0,0,0,0,0,0,0,1,1,1,1,1,1,1,1,1,1,0,0,0,0,0,0]
[1127,"Toilet","Others - Emergency services",0.12100000000000005,"EmgcySvc_Toilet_Occ_WK1","WK1",0,0,0,0,0,0,0,0,1,1,1,1,1,1,1,1,1,1,0,0,0,0,0,0]
[1128,"Reception","Others - Emergency services",0.1201851851811111,"EmgcySvc_Reception_Occ_WK1","WK1",0,0,0,0,0,0,0,0.25,0.5,1,1,1,0.75,0.75,1,1,1,0.5,0.25,0,0,0,0,0]
[1129,"Changing facilities with showers","Others - Emergency services",0.13,"EmgcySvc_Changing_Occ_WK1","WK1",0,0,0,0,0,0,0,1,1,1,1,1,1,1,1,1,1,1,1,1,0,0,0,0]
[1130,"Food preparation area","Others - Emergency services",0.21533898305084739,"EmgcySvc_FoodPrep_Occ_WK1","WK1",0,0,0,0,0,0,0,0,0,0,0,0.25,1,1,0.75,0,0,0,0,0,0,0,0,0]
[1131,"Dry sports hall","Others - Emergency services",0.05,"EmgcySvc_DrySpt_Occ_WK1","WK1",0,0,0,0,0,0,0,0,0,1,1,1,1,1,1,1,1,1,1,1,1,0,0,0]
[1132,"Eating/drinking area","Others - Emergency services",0.41288135586101687,"EmgcySvc_EatDrink_Occ_WK1","WK1",0,0,0,0,0,0,0,0,0,0,0,0.25,1,1,0.75,0,0,0,0,0,0,0,0,0]
[1133,"Light plant room","Others - Emergency services",0.11,"EmgcySvc_Plant_Occ_WK1","WK1",0,0,0,0,0,0,0,0,0,0,0,0,0,0,0,0,0,0,0,0,0,0,0,0]
[1134,"Cell (police/prison)","Others - Emergency services",0.22285714285714284,"EmgcySvc_Cell_Occ_WK1","WK1",1,1,1,1,1,1,1,0.5,0.25,0,0,0,0,0,0,0,0,0,0,0,0,0,0.25,0.75]
[1135,"Bedroom","Others - Emergency services",9.1428571428571428E-2,"EmgcySvc_Bed_Occ_WK1","WK1",1,1,1,1,1,1,1,0.5,0.25,0,0,0,0,0,0,0,0,0,0,0,0,0,0.25,0.75]
[1136,"Bathroom","Others - Emergency services",0.16603773584905662,"EmgcySvc_Bath_Occ_WK1","WK1",0,0,0,0,0,0,0.25,1,1,0.25,0,0,0,0,0,0,0,0,0.5,1,1,0.3,0,0]
[1137,"Fitness suite/gym","Others - Emergency services",0.17,"EmgcySvc_DrySpt_Occ_WK1","WK1",0,0,0,0,0,0,0,0,0,1,1,1,1,1,1,1,1,1,1,1,1,0,0,0]
[1138,"Generic Office Area","Others - Emergency services",0.12765000000000001,"EmgcySvc_CellOff_Occ_WK1","WK1",0,0,0,0,0,0,0,0.25,0.5,1,1,1,0.75,0.75,1,1,1,0.5,0.25,0,0,0,0,0]
[1139,"Circulation area (corridors and stairways)","Others -Telephone exchanges",0.10679611650485436,"TelExchg_Circulation_Occ_WK1","WK1",0,0,0,0,0,0,0,0.1,0.25,0.75,1,1,0.5,0.5,1,1,0.5,0.5,0,0,0,0,0,0]
[1140,"Toilet","Others -Telephone exchanges",0.20058823529411765,"TelExchg_Toilet_Occ_WK1","WK1",0,0,0,0,0,0,0,0,0,0,0,0.25,1,1,0.75,0,0,0,0,0,0,0,0,0]
[1141,"Reception","Others -Telephone exchanges",0.12375,"TelExchg_Reception_Occ_WK1","WK1",0,0,0,0,0,0,0,0,0,1,1,1,1,1,1,1,1,0,0,0,0,0,0,0]
[1142,"Light plant room","Others -Telephone exchanges",0.11,"TelExchg_Plant_Occ_WK1","WK1",0,0,0,0,0,0,0,0,0,0,0,0,0,0,0,0,0,0,0,0,0,0,0,0]
[1143,"Cupboard","Others -Telephone exchanges",9.3333333333333338E-2,"TelExchg_Store_Occ_WK1",{"$f":"RIGHT(E138,3)","v":"WK1"},0,0,0,0,0,0,0,0,1,1,1,1,1,1,1,1,1,1,0,0,0,0,0,0]
[1144,"Generic Office Area","Others -Telephone exchanges",9.9627049180327887E-2,"TelExchg_CellOff_Occ_WK1","WK1",0,0,0,0,0,0,0,0.25,0.5,1,1,1,0.75,0.75,1,1,1,0.5,0.25,0,0,0,0,0]
[1145,"Data Centre","Others - Miscellaneous 24hr activities",9.6250000000000002E-2,"Misc24Hr_DataCentre_Occ_Wk1","Wk1",0,0,0,0,0,0,0,0,0,1,1,1,1,1,1,1,1,0,0,0,0,0,0,0]
[1146,"Server Room","Others - Miscellaneous 24hr activities",9.6250000000000002E-2,"Misc24Hr_ServerRoom_Occ_Wk1","Wk1",0,0,0,0,0,0,0,0,0,1,1,1,1,1,1,1,1,0,0,0,0,0,0,0]
[1147,"Cupboard","D1 Non-residential Institutions - Libraries Museums and Galleries",0.12375,"LibMusGall_Store_Occ_WK1","WK1",0,0,0,0,0,0,0,0,0,1,1,1,1,1,1,1,1,0,0,0,0,0,0,0]
[1148,"Circulation area (corridors and stairways) - non public","D1 Non-residential Institutions - Libraries Museums and Galleries",0.12375,"LibMusGall_Circulation_Occ_WK1","WK1",0,0,0,0,0,0,0,0,0,1,1,1,1,1,1,1,1,0,0,0,0,0,0,0]
[1149,"Toilet","D1 Non-residential Institutions - Libraries Museums and Galleries",0.12375,"LibMusGall_Toilet_Occ_WK1","WK1",0,0,0,0,0,0,0,0,0,1,1,1,1,1,1,1,1,0,0,0,0,0,0,0]
[1150,"Reception","D1 Non-residential Institutions - Libraries Museums and Galleries",9.4722222222222208E-2,"LibMusGall_Reception_Occ_WK1","WK1",0,0,0,0,0,0,0,0.25,0.5,1,1,1,0.75,0.75,1,1,1,0.5,0.25,0,0,0,0,0]
[1151,"Food preparation area","D1 Non-residential Institutions - Libraries Museums and Galleries",0.17599999992666671,"LibMusGall_FoodPrep_Occ_WK1","WK1",0,0,0,0,0,0,0,0,0,0,0,0.25,1,1,0.75,0,0,0,0,0,0,0,0,0]
[1152,"Hall/lecture theatre/assembly area","D1 Non-residential Institutions - Libraries Museums and Galleries",0.15,"LibMusGall_Lecture_Occ_WK1","WK1",0,0,0,0,0,0,0,0,0,1,1,1,1,1,1,1,1,0,0,0,0,0,0,0]
[1153,"Laboratory","D1 Non-residential Institutions - Libraries Museums and Galleries",9.7777777777777741E-2,"LibMusGall_Lab_Occ_WK1","WK1",0,0,0,0,0,0,0,0.25,0.5,1,1,1,0.75,0.75,1,1,1,0.5,0.25,0,0,0,0,0]
[1154,"Eating/drinking area","D1 Non-residential Institutions - Libraries Museums and Galleries",0.31999999986666666,"LibMusGall_EatDrink_Occ_WK1","WK1",0,0,0,0,0,0,0,0,0,0,0,0.25,1,1,0.75,0,0,0,0,0,0,0,0,0]
[1155,"Light plant room","D1 Non-residential Institutions - Libraries Museums and Galleries",0.11,"LibMusGall_Plant_Occ_WK1","WK1",0,0,0,0,0,0,0,0,0,0,0,0,0,0,0,0,0,0,0,0,0,0,0,0]
[1156,"Workshop - small scale","D1 Non-residential Institutions - Libraries Museums and Galleries",6.222222222222222E-2,"LibMusGall_WkshpSS_Occ_WK1","WK1",0,0,0,0,0,0,0,0.25,0.5,1,1,1,0.75,0.75,1,1,1,0.5,0.25,0,0,0,0,0]
[1157,"Display and Public areas","D1 Non-residential Institutions - Libraries Museums and Galleries",0.14970231532524805,"LibMusGall_CirculationPub_Occ_Wk1","Wk1",0,0,0,0,0,0,0,0.25,0.5,1,1,1,0.75,0.75,1,1,1,0.5,0.25,0,0,0,0,0]
[1158,"Generic Office Area","D1 Non-residential Institutions - Libraries Museums and Galleries",9.8666666666666666E-2,"LibMusGall_CellOff_Occ_WK1","WK1",0,0,0,0,0,0,0,0.25,0.5,1,1,1,0.75,0.75,1,1,1,0.5,0.25,0,0,0,0,0]
[1159,"Cupboard","D1 Non-residential Institutions - Community/Day Centre",0.11,"DayCtr_Store_Occ_WK1","WK1",0,0,0,0,0,0,0,0,1,1,1,1,1,1,1,1,1,1,0,0,0,0,0,0]
[1160,"Circulation area (corridors and stairways)","D1 Non-residential Institutions - Community/Day Centre",0.11,"DayCtr_Circulation_Occ_WK1","WK1",0,0,0,0,0,0,0,0,1,1,1,1,1,1,1,1,1,1,0,0,0,0,0,0]
[1161,"Toilet","D1 Non-residential Institutions - Community/Day Centre",0.11,"DayCtr_Toilet_Occ_WK1","WK1",0,0,0,0,0,0,0,0,1,1,1,1,1,1,1,1,1,1,0,0,0,0,0,0]
[1162,"Reception","D1 Non-residential Institutions - Community/Day Centre",0.10845070422535211,"DayCtr_Reception_Occ_WK1","WK1",0,0,0,0,0,0,0,0.1,0.25,0.75,1,1,0.5,0.5,1,1,0.5,0.5,0,0,0,0,0,0]
[1163,"Dry sports hall","D1 Non-residential Institutions - Community/Day Centre",4.6875E-2,"DayCtr_DrySptHall_Occ_WK1","WK1",0,0,0,0,0,0,0,0,0,0.75,1,1,0.75,0.75,1,1,1,0.75,0,0,0,0,0,0]
[1164,"Food preparation area","D1 Non-residential Institutions - Community/Day Centre",0.14299999999999999,"DayCtr_FoodPrep_Occ_WK1","WK1",0,0,0,0,0,0,0,0,0,0,0,0.25,1,1,0.75,0,0,0,0,0,0,0,0,0]
[1165,"Eating/drinking area","D1 Non-residential Institutions - Community/Day Centre",0.3,"DayCtr_EatDrink_Occ_WK1","WK1",0,0,0,0,0,0,0,0,0,0,0,0.25,1,1,0.75,0,0,0,0,0,0,0,0,0]
[1166,"Light plant room","D1 Non-residential Institutions - Community/Day Centre",0.11,"DayCtr_Plant_Occ_WK1","WK1",0,0,0,0,0,0,0,0,0,0,0,0,0,0,0,0,0,0,0,0,0,0,0,0]
[1167,"Changing facilities with showers","D1 Non-residential Institutions - Community/Day Centre",0.11375,"DayCtr_Changing_Occ_WK1","WK1",0,0,0,0,0,0,0,0,0,0.75,1,1,0.75,0.75,1,1,1,0.75,0,0,0,0,0,0]
[1168,"Workshop - small scale","D1 Non-residential Institutions - Community/Day Centre",6.4166666666666691E-2,"DayCtr_WkshpSS_Occ_Wk1","Wk1",0,0,0,0,0,0,0,0,0,1,1,1,1,1,1,1,1,1,1,1,1,0,0,0]
[1169,"Hall/lecture theatre/assembly area","D1 Non-residential Institutions - Community/Day Centre",0.16901408450704225,"DayCtr_Lecture_Occ_WK1","WK1",0,0,0,0,0,0,0,0.1,0.25,0.75,1,1,0.5,0.5,1,1,0.5,0.5,0,0,0,0,0,0]
[1170,"Office and consulting areas","D1 Non-residential Institutions - Community/Day Centre",0.10588028169014085,"DayCtr_CellOff_Occ_WK1","WK1",0,0,0,0,0,0,0,0.1,0.25,0.75,1,1,0.5,0.5,1,1,0.5,0.5,0,0,0,0,0,0]
[1171,"Cupboard","D1 Non-residential Institutions - Primary Health Care Building",0.12100000000000001,"PrmHlthCare_Store_Occ_WK1","WK1",0,0,0,0,0,0,0,0,1,1,1,1,1,1,1,1,1,1,0,0,0,0,0,0]
[1172,"Circulation area (corridors and stairways)","D1 Non-residential Institutions - Primary Health Care Building",0.12100000000000001,"PrmHlthCare_Circulation_Occ_WK1","WK1",0,0,0,0,0,0,0,0,1,1,1,1,1,1,1,1,1,1,0,0,0,0,0,0]
[1173,"Toilet","D1 Non-residential Institutions - Primary Health Care Building",0.12100000000000001,"PrmHlthCare_Toilet_Occ_WK1","WK1",0,0,0,0,0,0,0,0,1,1,1,1,1,1,1,1,1,1,0,0,0,0,0,0]
[1174,"Reception","D1 Non-residential Institutions - Primary Health Care Building",0.11,"PrmHlthCare_Reception_Occ_WK1","WK1",0,0,0,0,0,0,0,0.25,0.5,1,1,1,0.75,0.75,1,1,1,0.5,0.25,0,0,0,0,0]
[1175,"Light plant room","D1 Non-residential Institutions - Primary Health Care Building",0.11,"PrmHlthCare_Plant_Occ_WK1","WK1",0,0,0,0,0,0,0,0,0,0,0,0,0,0,0,0,0,0,0,0,0,0,0,0]
[1176,"Office and consulting areas","D1 Non-residential Institutions - Primary Health Care Building",8.199999999999999E-2,"PrmHlthCare_CellOff_Occ_WK1","WK1",0,0,0,0,0,0,0,0.25,0.5,1,1,1,0.75,0.75,1,1,1,0.5,0.25,0,0,0,0,0]
[1177,"Cupboard","D1 Non-residential Institutions - Crown and County Courts",0.12375,"Court_Store_Occ_WK1","WK1",0,0,0,0,0,0,0,0,0,0.75,1,1,0.75,0.75,1,1,1,0.75,0,0,0,0,0,0]
[1178,"Circulation area (corridors and stairways)","D1 Non-residential Institutions - Crown and County Courts",0.11244444444444444,"Court_Circulation_Occ_WK1","WK1",0,0,0,0,0,0,0,0.25,0.5,1,1,1,0.75,0.75,1,1,1,0.5,0.25,0,0,0,0,0]
[1179,"Toilet","D1 Non-residential Institutions - Crown and County Courts",0.11244444444444444,"Court_Toilet_Occ_WK1","WK1",0,0,0,0,0,0,0,0.25,0.5,1,1,1,0.75,0.75,1,1,1,0.5,0.25,0,0,0,0,0]
[1180,"Reception","D1 Non-residential Institutions - Crown and County Courts",0.10388888888888888,"Court_Reception_Occ_WK1","WK1",0,0,0,0,0,0,0,0.25,0.5,1,1,1,0.75,0.75,1,1,1,0.5,0.25,0,0,0,0,0]
[1181,"Food preparation area","D1 Non-residential Institutions - Crown and County Courts",0.18333333333333335,"Court_FoodPrep_Occ_WK1","WK1",0,0,0,0,0,0,0,0,0,0,0,0.25,1,1,0.75,0,0,0,0,0,0,0,0,0]
[1182,"Hall/lecture theatre/assembly area","D1 Non-residential Institutions - Crown and County Courts",0.16250000000000001,"Court_Lecture_Occ_WK1","WK1",0,0,0,0,0,0,0,0,0,0.75,1,1,0.75,0.75,1,1,1,0.75,0,0,0,0,0,0]
[1183,"Eating/drinking area","D1 Non-residential Institutions - Crown and County Courts",0.2577777776666666,"Court_EatDrink_Occ_WK1","WK1",0,0,0,0,0,0,0,0,0,0,0,0.25,1,1,0.75,0,0,0,0,0,0,0,0,0]
[1184,"Light plant room","D1 Non-residential Institutions - Crown and County Courts",0.11,"Court_Plant_Occ_WK1","WK1",0,0,0,0,0,0,0,0,0,0,0,0,0,0,0,0,0,0,0,0,0,0,0,0]
[1185,"Cell (police/prison)","D1 Non-residential Institutions - Crown and County Courts",0.14299999999999999,"Court_Cell_Occ_WK1","WK1",0,0,0,0,0,0,0,0,1,1,1,1,1,1,1,1,1,1,0,0,0,0,0,0]
[1186,"Generic Office Area","D1 Non-residential Institutions - Crown and County Courts",0.12116197183098593,"DayCtr_CellOff_Occ_WK1","WK1",0,0,0,0,0,0,0,0.1,0.25,0.75,1,1,0.5,0.5,1,1,0.5,0.5,0,0,0,0,0,0]
[1187,"Changing facilities with showers","D2 General Assembly and Leisure plus Night Clubs and Theatres",0.12587301587250002,"D2_Changing_Occ_WK1","WK1",0,0,0,0,0,0,0,0,0,1,1,1,1,1,1,1,1,1,1,1,1,0,0,0]
[1188,"Circulation area (corridors and stairways) - non public","D2 General Assembly and Leisure plus Night Clubs and Theatres",0.10083333333333336,"D2_Circulation_Occ_WK1","WK1",0,0,0,0,0,0,0,0,0,1,1,1,1,1,1,1,1,1,1,1,1,0,0,0]
[1189,"Dry sports hall","D2 General Assembly and Leisure plus Night Clubs and Theatres",4.6710526315131569E-2,"D2_DrySptHall_Occ_WK1","WK1",0,0,0,0,0,0,0,0,0,1,1,1,1,1,1,1,1,1,1,1,1,0,0,0]
[1190,"Eating/drinking area","D2 General Assembly and Leisure plus Night Clubs and Theatres",0.21830508462711862,"D2_EatDrink_Occ_WK1","WK1",0,0,0,0,0,0,0,0,0,0,0,0.25,1,1,0.75,0,0,0,0,0,0,0,0,0]
[1191,"Fitness Studio","D2 General Assembly and Leisure plus Night Clubs and Theatres",0.13222222224583333,"D2_FitStud_Occ_Wk1","Wk1",0,0,0,0,0,0,0,0,0,1,1,1,1,1,1,1,1,1,1,1,1,0,0,0]
[1192,"Fitness suite/gym","D2 General Assembly and Leisure plus Night Clubs and Theatres",0.17,"D2_FitGym_Occ_Wk1","Wk1",0,0,0,0,0,0,0.25,1,1,0.25,0,0.25,1,1,0.5,0,0,0.5,1,1,0.5,0,0,0]
[1193,"Food preparation area","D2 General Assembly and Leisure plus Night Clubs and Theatres",0.13050847448491526,"D2_FoodPrep_Occ_WK1","WK1",0,0,0,0,0,0,0,0,0,0,0,0.25,1,1,0.75,0,0,0,0,0,0,0,0,0]
[1194,"Hall/lecture theatre/assembly area","D2 General Assembly and Leisure plus Night Clubs and Theatres",0.17499999999999999,"D2_Lecture_Occ_WK1","WK1",0,0,0,0,0,0,0,0,0,0.75,1,1,0.75,0.75,1,1,1,0.75,0,0,0,0,0,0]
[1195,"Auditoria","D2 General Assembly and Leisure plus Night Clubs and Theatres",0.34117647049411759,"D2_Auditoria_Occ_WK1","WK1",0,0,0,0,0,0,0,0,0,0,0,0,0,0,0,0,0.5,0.5,1,1,1,1,0.66666666699999999,0]
[1196,"Ice rink","D2 General Assembly and Leisure plus Night Clubs and Theatres",0.22500000000000001,"D2_IceRink_Occ_WK1","WK1",0,0,0,0,0,0,0,0,0,0.75,1,1,0.75,0.75,1,1,1,0.75,0,0,0,0,0,0]
[1197,"Laundry","D2 General Assembly and Leisure plus Night Clubs and Theatres",9.6250000000000002E-2,"D2_Laund_Occ_Wk1","Wk1",0,0,0,0,0,0,0,0,0,1,1,1,1,1,1,1,1,0,0,0,0,0,0,0]
[1198,"Performance area (stage)","D2 General Assembly and Leisure plus Night Clubs and Theatres",4.9411764705882349E-2,"D2_Stage_Occ_WK1","WK1",0,0,0,0,0,0,0,0,0,0,0,0,0,0,0,0,0.5,0.5,1,1,1,1,0.66666666699999999,0]
[1199,"Light plant room","D2 General Assembly and Leisure plus Night Clubs and Theatres",0.11,"D2_Plant_Occ_WK1","WK1",0,0,0,0,0,0,0,0,0,0,0,0,0,0,0,0,0,0,0,0,0,0,0,0]
[1200,"Public circulation areas","D2 General Assembly and Leisure plus Night Clubs and Theatres",0.24117647058151262,"D2_CirculationPub_Occ_Wk1","Wk1",0,0,0,0,0,0,0,0,0,0,0,0,0,0,0,0,0.5,0.5,1,1,1,1,0.66666666699999999,0]
[1201,"Reception","D2 General Assembly and Leisure plus Night Clubs and Theatres",0.12558333332875005,"D2_Reception_Occ_WK1","WK1",0,0,0,0,0,0,0,0,0,0.75,1,1,0.75,0.75,1,1,1,0.75,0,0,0,0,0,0]
[1202,"Sales area - general","D2 General Assembly and Leisure plus Night Clubs and Theatres",0.10225352112676059,"D2_Sales_Occ_WK1","WK1",0,0,0,0,0,0,0,0.1,0.25,0.75,1,1,0.5,0.5,1,1,0.5,0.5,0,0,0,0,0,0]
[1203,"Cupboard","D2 General Assembly and Leisure plus Night Clubs and Theatres",0.11,"D2_Store_Occ_WK1","WK1",0,0,0,0,0,0,0,1,1,1,1,1,1,1,1,1,1,1,1,1,0,0,0,0]
[1204,"Swimming pool","D2 General Assembly and Leisure plus Night Clubs and Theatres",0.16305341055297301,"D2_Swim_Occ_WK1","WK1",0,0,0,0,0,0,0,0,0,1,1,1,1,1,1,1,1,1,1,1,1,0,0,0]
[1204,"Swimming pool","D2 General Assembly and Leisure plus Night Clubs and Theatres",0.16305341055297301,"D2_Swim_Occ_Wk2","Wk2",0,0,0,0,0,0,0,1,1,1,1,1,1,1,1,1,1,1,1,1,0,0,0,0]
[1205,"Toilet","D2 General Assembly and Leisure plus Night Clubs and Theatres",0.10083333333333336,"D2_Toilet_Occ_WK1","WK1",0,0,0,0,0,0,0,0,0,1,1,1,1,1,1,1,1,1,1,1,1,0,0,0]
[1206,"Workshop - small scale","D2 General Assembly and Leisure plus Night Clubs and Theatres",6.7083333336250009E-2,"D2_WkshpSS_Occ_WK1",{"$f":"RIGHT(E202,3)","v":"WK1"},0,0,0,0,0,0,0,0,0,0.75,1,1,0.75,0.75,1,1,1,0.75,0,0,0,0,0,0]
[1207,"Generic Office Area","D2 General Assembly and Leisure plus Night Clubs and Theatres",0.11647183098591547,"D2_CellOff_Occ_WK1","WK1",0,0,0,0,0,0,0,0.1,0.25,0.75,1,1,0.5,0.5,1,1,0.5,0.5,0,0,0,0,0,0]
[1208,"Changing facilities with showers","D1 Non-residential Institutions - Education",0.14138686131386857,"D1_Edu_Changing_Occ_WK1","WK1",0,0,0,0,0,0,0,0.1,0.25,0.75,1,1,0.5,0.5,1,1,0.5,0.5,0,0,0,0,0,0]
[1208,"Changing facilities with showers","D1 Non-residential Institutions - Education",0.14138686131386857,"D1_Edu_Changing_Occ_Wk2","Wk2",0,0,0,0,0,0,0,0,0,0.5,1,1,1,0.75,1,0.75,0,0,0,0,0,0,0,0]
[1209,"Circulation area (corridors and stairways)","D1 Non-residential Institutions - Education",0.11,"D1_Edu_Circulation_Occ_WK1","WK1",0,0,0,0,0,0,0,0.25,0.5,1,1,1,0.75,0.75,1,1,1,0.5,0.25,0,0,0,0,0]
[1209,"Circulation area (corridors and stairways)","D1 Non-residential Institutions - Education",0.11,"D1_Edu_Circulation_Occ_Wk2","Wk2",0,0,0,0,0,0,0,0,0,0,0,0,0,0,0,0,0,0,0,0,0,0,0,0]
[1210,"Dry sports hall","D1 Non-residential Institutions - Education",5.2724358974358988E-2,"D1_Edu_DrySptHall_Occ_WK1","WK1",0,0,0,0,0,0,0,0.25,0.5,1,1,1,0.75,0.75,1,1,1,0.5,0.25,0,0,0,0,0]
[1210,"Dry sports hall","D1 Non-residential Institutions - Education",5.2724358974358988E-2,"D1_Edu_DrySptHall_Occ_Wk2","Wk2",0,0,0,0,0,0,0,0,0,0.5,1,1,1,0.75,1,0.75,0,0,0,0,0,0,0,0]
[1211,"Eating/drinking area","D1 Non-residential Institutions - Education",0.2,"D1_Edu_EatDrink_Occ_WK1","WK1",0,0,0,0,0,0,0,0,0,0,0,0.25,1,1,0.75,0,0,0,0,0,0,0,0,0]
[1211,"Eating/drinking area","D1 Non-residential Institutions - Education",0.2,"D1_Edu_EatDrink_Occ_Wk2","Wk2",0,0,0,0,0,0,0,0,0,0,0,0,0,0,0,0,0,0,0,0,0,0,0,0]
[1212,"Food preparation area","D1 Non-residential Institutions - Education",0.18149999999999999,"D1_Edu_FoodPrep_Occ_WK1","WK1",0,0,0,0,0,0,0,0,0,0,0,0.25,1,1,0.75,0,0,0,0,0,0,0,0,0]
[1212,"Food preparation area","D1 Non-residential Institutions - Education",0.18149999999999999,"D1_Edu_FoodPrep_Occ_Wk2","Wk2",0,0,0,0,0,0,0,0,0,0,0,0,0,0,0,0,0,0,0,0,0,0,0,0]
[1213,"Hall/lecture theatre/assembly area","D1 Non-residential Institutions - Education",0.21830985915492959,"D1_Edu_Lecture_Occ_WK1","WK1",0,0,0,0,0,0,0,0.1,0.25,0.75,1,1,0.5,0.5,1,1,0.5,0.5,0,0,0,0,0,0]
[1213,"Hall/lecture theatre/assembly area","D1 Non-residential Institutions - Education",0.21830985915492959,"D1_Edu_Lecture_Occ_Wk2","Wk2",0,0,0,0,0,0,0,0,0,0,0,0,0,0,0,0,0,0,0,0,0,0,0,0]
[1214,"Computer lab","D1 Non-residential Institutions - Education",0.21830985915492959,"D1_Edu_HighDensIT_Occ_Wk2","Wk2",0,0,0,0,0,0,0,0,0,0,0,0,0,0,0,0,0,0,0,0,0,0,0,0]
[1214,"Computer lab","D1 Non-residential Institutions - Education",0.21830985915492959,"D1_Edu_HighDensIT_Occ_Wk1","Wk1",0,0,0,0,0,0,0,0.1,0.25,0.75,1,1,0.5,0.5,1,1,0.5,0.5,0,0,0,0,0,0]
[1215,"Laboratory","D1 Non-residential Institutions - Education",0.20985915492957746,"D1_Edu_Lab_Occ_WK1","WK1",0,0,0,0,0,0,0,0.1,0.25,0.75,1,1,0.5,0.5,1,1,0.5,0.5,0,0,0,0,0,0]
[1215,"Laboratory","D1 Non-residential Institutions - Education",0.20985915492957746,"D1_Edu_Lab_Occ_Wk2","Wk2",0,0,0,0,0,0,0,0,0,0,0,0,0,0,0,0,0,0,0,0,0,0,0,0]
[1216,"Light plant room","D1 Non-residential Institutions - Education",0.11,"D1_Edu_Plant_Occ_WK1","WK1",0,0,0,0,0,0,0,0,0,0,0,0,0,0,0,0,0,0,0,0,0,0,0,0]
[1216,"Light plant room","D1 Non-residential Institutions - Education",0.11,"D1_Edu_Plant_Occ_Wk2","Wk2",0,0,0,0,0,0,0,0,0,0,0,0,0,0,0,0,0,0,0,0,0,0,0,0]
[1217,"Reception","D1 Non-residential Institutions - Education",0.11550000000000001,"D1_Edu_Reception_Occ_WK1","WK1",0,0,0,0,0,0,0,0,0,1,1,1,1,1,1,1,1,0,0,0,0,0,0,0]
[1217,"Reception","D1 Non-residential Institutions - Education",0.11550000000000001,"D1_Edu_Reception_Occ_Wk2","Wk2",0,0,0,0,0,0,0,0,0,0,0,0,0,0,0,0,0,0,0,0,0,0,0,0]
[1218,"Cupboard","D1 Non-residential Institutions - Education",0.12100000000000001,"D1_Edu_Store_Occ_WK1","WK1",0,0,0,0,0,0,0,0,1,1,1,1,1,1,1,1,1,1,0,0,0,0,0,0]
[1218,"Cupboard","D1 Non-residential Institutions - Education",0.12100000000000001,"D1_Edu_Store_Occ_Wk2","Wk2",0,0,0,0,0,0,0,0,0,0,0,0,0,0,0,0,0,0,0,0,0,0,0,0]
[1219,"Swimming pool","D1 Non-residential Institutions - Education",0.14577956989247309,"D1_Edu_Swim_Occ_WK1","WK1",0,0,0,0,0,0,0,0,0,1,1,1,1,1,1,1,1,1,1,1,1,0,0,0]
[1219,"Swimming pool","D1 Non-residential Institutions - Education",0.14577956989247309,"D1_Edu_Swim_Occ_Wk2","Wk2",0,0,0,0,0,0,0,0,0,0.5,1,1,1,0.75,1,0.75,0,0,0,0,0,0,0,0]
[1220,"Toilet","D1 Non-residential Institutions - Education",0.11,"D1_Edu_Toilet_Occ_WK1","WK1",0,0,0,0,0,0,0,0.25,0.5,1,1,1,0.75,0.75,1,1,1,0.5,0.25,0,0,0,0,0]
[1220,"Toilet","D1 Non-residential Institutions - Education",0.11,"D1_Edu_Toilet_Occ_Wk2","Wk2",0,0,0,0,0,0,0,0,0,0,0,0,0,0,0,0,0,0,0,0,0,0,0,0]
[1221,"Workshop - small scale","D1 Non-residential Institutions - Education",6.3259259264444451E-2,"D1_Edu_WkshpSS_Occ_Wk1","Wk1",0,0,0,0,0,0,0,0.25,0.5,1,1,1,0.75,0.75,1,1,1,0.5,0.25,0,0,0,0,0]
[1221,"Workshop - small scale","D1 Non-residential Institutions - Education",6.3259259264444451E-2,"D1_Edu_WkshpSS_Occ_Wk2","Wk2",0,0,0,0,0,0,0,0,0,0,0,0,0,0,0,0,0,0,0,0,0,0,0,0]
[1222,"Teaching Areas","D1 Non-residential Institutions - Education",0.55232394366197191,"D1_Edu_ClassRm_Occ_Wk2","Wk2",0,0,0,0,0,0,0,0,0,0,0,0,0,0,0,0,0,0,0,0,0,0,0,0]
[1222,"Teaching Areas","D1 Non-residential Institutions - Education",0.55232394366197191,"D1_Edu_ClassRm_Occ_WK1","WK1",0,0,0,0,0,0,0,0.1,0.25,0.75,1,1,0.5,0.5,1,1,0.5,0.5,0,0,0,0,0,0]
[1223,"Office and consulting areas","D1 Non-residential Institutions - Education",0.10299999999999999,"D1_Edu_CellOff_Occ_WK1","WK1",0,0,0,0,0,0,0,0.1,0.25,0.75,1,1,0.5,0.5,1,1,0.5,0.5,0,0,0,0,0,0]
[1223,"Office and consulting areas","D1 Non-residential Institutions - Education",0.10299999999999999,"D1_Edu_CellOff_Occ_Wk2","Wk2",0,0,0,0,0,0,0,0,0,0,0,0,0,0,0,0,0,0,0,0,0,0,0,0]
[1224,"Cell (police/prison)","C2A Secure Residential Institutions",0.18984126984457136,"Prison_Cell_Occ_WK1","WK1",1,1,1,1,1,1,1,0.5,0.25,0,0,0,0,0,0,0,0,0,0,0,0,0,0.25,0.75]
[1225,"Cupboard","C2A Secure Residential Institutions",0.12583025830258301,"Prison_Store_Occ_WK1","WK1",0,0,0,0,0,0,0,0,0,1,1,1,1,1,1,1,1,0,0,0,0,0,0,0]
[1226,"Circulation area (corridors and stairways)","C2A Secure Residential Institutions",0.11365313653136529,"Prison_Circulation_Occ_WK1","WK1",0,0,0,0,0,0,0,0,0,1,1,1,1,1,1,1,1,0,0,0,0,0,0,0]
[1227,"Toilet","C2A Secure Residential Institutions",0.11365313653136529,"Prison_Toilet_Occ_WK1","WK1",0,0,0,0,0,0,0,0,0,1,1,1,1,1,1,1,1,0,0,0,0,0,0,0]
[1228,"Reception","C2A Secure Residential Institutions",0.12100000000000001,"Prison_Reception_Occ_WK1","WK1",0,0,0,0,0,0,0,0,0,1,1,1,1,1,1,1,1,0,0,0,0,0,0,0]
[1229,"Dry sports hall","C2A Secure Residential Institutions",0.05,"Prison_DrySptHall_Occ_WK1","WK1",0,0,0,0,0,0,0,0,0,1,1,1,1,1,1,1,1,0,0,0,0,0,0,0]
[1230,"Changing facilities with showers","C2A Secure Residential Institutions",0.13,"Prison_Changing_Occ_WK1","WK1",0,0,0,0,0,0,0,0,0,1,1,1,1,1,1,1,1,0,0,0,0,0,0,0]
[1231,"Hall/lecture theatre/assembly area","C2A Secure Residential Institutions",0.18309859154929581,"Prison_Lecture_Occ_WK1","WK1",0,0,0,0,0,0,0,0.1,0.25,0.75,1,1,0.5,0.5,1,1,0.5,0.5,0,0,0,0,0,0]
[1232,"Eating/drinking area","C2A Secure Residential Institutions",0.1406060606060606,"Prison_EatDrink_Occ_WK1","WK1",0,0,0,0,0,0,0.25,1,1,0.25,0,0.25,1,1,0.5,0,0,0.5,1,1,0.5,0,0,0]
[1233,"Bathroom","C2A Secure Residential Institutions",0.20848484848484858,"Prison_Bath_Occ_WK1","WK1",0,0,0,0,0,0,0.25,1,1,0.25,0,0.25,1,1,0.5,0,0,0.5,1,1,0.5,0,0,0]
[1234,"Light plant room","C2A Secure Residential Institutions",0.11,"Prison_Plant_Occ_WK1","WK1",0,0,0,0,0,0,0,0,0,0,0,0,0,0,0,0,0,0,0,0,0,0,0,0]
[1235,"Workshop - small scale","C2A Secure Residential Institutions",4.8125000000000001E-2,"Prison_WkshpSS_Occ_WK1","WK1",0,0,0,0,0,0,0,0,0,0.75,1,1,0.75,0.75,1,1,1,0.75,0,0,0,0,0,0]
[1237,"Laundry","C2A Secure Residential Institutions",8.5555555555555551E-2,"Prison_Laund_Occ_Wk1","Wk1",0,0,0,0,0,0,0,0.25,0.5,1,1,1,0.75,0.75,1,1,1,0.5,0.25,0,0,0,0,0]
[1238,"Fitness suite/gym","C2A Secure Residential Institutions",0.17,"Prison_FitGym_Occ_Wk1","Wk1",0,0,0,0,0,0,0,0,0,1,1,1,1,1,1,1,1,0,0,0,0,0,0,0]
[1239,"Classroom","C2A Secure Residential Institutions",0.18309859154929581,"Prison_ClassRm_Occ_WK1","WK1",0,0,0,0,0,0,0,0.1,0.25,0.75,1,1,0.5,0.5,1,1,0.5,0.5,0,0,0,0,0,0]
[1240,"Office and consulting areas","C2A Secure Residential Institutions",9.3144444444444432E-2,"Prison_CellOff_Occ_WK1","WK1",0,0,0,0,0,0,0,0.25,0.5,1,1,1,0.75,0.75,1,1,1,0.5,0.25,0,0,0,0,0]
[1241,"Food preparation area","C2A Secure Residential Institutions",0.11111111109333333,"Prison_FoodPrep_Occ_WK1","WK1",0,0,0,0,0,0,0.25,1,1,0.25,0,0.25,1,1,0.5,0,0,0.5,1,1,0.5,0,0,0]
[1242,"Changing facilities with showers","C2 Residential Institutions - Residential schools",0.14138686131386857,"D1_Edu_Changing_Occ_WK1","WK1",0,0,0,0,0,0,0,0.1,0.25,0.75,1,1,0.5,0.5,1,1,0.5,0.5,0,0,0,0,0,0]
[1242,"Changing facilities with showers","C2 Residential Institutions - Residential schools",0.14138686131386857,"D1_Edu_Changing_Occ_Wk2","Wk2",0,0,0,0,0,0,0,0,0,0.5,1,1,1,0.75,1,0.75,0,0,0,0,0,0,0,0]
[1243,"Circulation area (corridors and stairways)","C2 Residential Institutions - Residential schools",0.11,"D1_Edu_Circulation_Occ_WK1","WK1",0,0,0,0,0,0,0,0.25,0.5,1,1,1,0.75,0.75,1,1,1,0.5,0.25,0,0,0,0,0]
[1243,"Circulation area (corridors and stairways)","C2 Residential Institutions - Residential schools",0.11,"D1_Edu_Circulation_Occ_Wk2","Wk2",0,0,0,0,0,0,0,0,0,0,0,0,0,0,0,0,0,0,0,0,0,0,0,0]
[1244,"Dry sports hall","C2 Residential Institutions - Residential schools",5.2724358974358988E-2,"D1_Edu_DrySptHall_Occ_WK1","WK1",0,0,0,0,0,0,0,0.25,0.5,1,1,1,0.75,0.75,1,1,1,0.5,0.25,0,0,0,0,0]
[1244,"Dry sports hall","C2 Residential Institutions - Residential schools",5.2724358974358988E-2,"D1_Edu_DrySptHall_Occ_Wk2","Wk2",0,0,0,0,0,0,0,0,0,0.5,1,1,1,0.75,1,0.75,0,0,0,0,0,0,0,0]
[1245,"Eating/drinking area","C2 Residential Institutions - Residential schools",0.16228130597492771,"C2_Schools_EatDrink_Occ_WK1","WK1",0,0,0,0,0,0,0.25,1,1,0.25,0,0.25,1,1,0.5,0,0,0.5,1,1,0.5,0,0,0]
[1245,"Eating/drinking area","C2 Residential Institutions - Residential schools",0.16228130597492771,"C2_Schools_EatDrink_Occ_Wk2","Wk2",0,0,0,0,0,0,0,0,0,0,0,0,0,0,0,0,0,0,0,0,0,0,0,0]
[1246,"Food preparation area","C2 Residential Institutions - Residential schools",9.4300867888138892E-2,"C2_Schools_FoodPrep_Occ_WK1","WK1",0,0,0,0,0,0,0.25,1,1,0.25,0,0.25,1,1,0.5,0,0,0.5,1,1,0.5,0,0,0]
[1246,"Food preparation area","C2 Residential Institutions - Residential schools",9.4300867888138892E-2,"C2_Schools_FoodPrep_Occ_Wk2","Wk2",0,0,0,0,0,0,0,0,0,0,0,0,0,0,0,0,0,0,0,0,0,0,0,0]
[1247,"Hall/lecture theatre/assembly area","C2 Residential Institutions - Residential schools",0.21830985915492959,"D1_Edu_Lecture_Occ_WK1","WK1",0,0,0,0,0,0,0,0.1,0.25,0.75,1,1,0.5,0.5,1,1,0.5,0.5,0,0,0,0,0,0]
[1247,"Hall/lecture theatre/assembly area","C2 Residential Institutions - Residential schools",0.21830985915492959,"D1_Edu_Lecture_Occ_Wk2","Wk2",0,0,0,0,0,0,0,0,0,0,0,0,0,0,0,0,0,0,0,0,0,0,0,0]
[1248,"Computer lab","C2 Residential Institutions - Residential schools",0.21830985915492959,"D1_Edu_HighDensIT_Occ_Wk2","Wk2",0,0,0,0,0,0,0,0,0,0,0,0,0,0,0,0,0,0,0,0,0,0,0,0]
[1248,"Computer lab","C2 Residential Institutions - Residential schools",0.21830985915492959,"D1_Edu_HighDensIT_Occ_Wk1",{"$f":"RIGHT(E266,3)","v":"Wk1"},0,0,0,0,0,0,0,0.1,0.25,0.75,1,1,0.5,0.5,1,1,0.5,0.5,0,0,0,0,0,0]
[1249,"Laboratory","C2 Residential Institutions - Residential schools",0.20985915492957746,"D1_Edu_Lab_Occ_WK1","WK1",0,0,0,0,0,0,0,0.1,0.25,0.75,1,1,0.5,0.5,1,1,0.5,0.5,0,0,0,0,0,0]
[1249,"Laboratory","C2 Residential Institutions - Residential schools",0.20985915492957746,"D1_Edu_Lab_Occ_Wk2","Wk2",0,0,0,0,0,0,0,0,0,0,0,0,0,0,0,0,0,0,0,0,0,0,0,0]
[1250,"Light plant room","C2 Residential Institutions - Residential schools",0.11,"D1_Edu_Plant_Occ_WK1","WK1",0,0,0,0,0,0,0,0,0,0,0,0,0,0,0,0,0,0,0,0,0,0,0,0]
[1250,"Light plant room","C2 Residential Institutions - Residential schools",0.11,"D1_Edu_Plant_Occ_Wk2","Wk2",0,0,0,0,0,0,0,0,0,0,0,0,0,0,0,0,0,0,0,0,0,0,0,0]
[1251,"Reception","C2 Residential Institutions - Residential schools",0.11550000000000001,"D1_Edu_Reception_Occ_WK1","WK1",0,0,0,0,0,0,0,0,0,1,1,1,1,1,1,1,1,0,0,0,0,0,0,0]
[1251,"Reception","C2 Residential Institutions - Residential schools",0.11550000000000001,"D1_Edu_Reception_Occ_Wk2","Wk2",0,0,0,0,0,0,0,0,0,0,0,0,0,0,0,0,0,0,0,0,0,0,0,0]
[1252,"Cupboard","C2 Residential Institutions - Residential schools",0.12100000000000001,"D1_Edu_Store_Occ_WK1","WK1",0,0,0,0,0,0,0,0,1,1,1,1,1,1,1,1,1,1,0,0,0,0,0,0]
[1252,"Cupboard","C2 Residential Institutions - Residential schools",0.12100000000000001,"D1_Edu_Store_Occ_Wk2","Wk2",0,0,0,0,0,0,0,0,0,0,0,0,0,0,0,0,0,0,0,0,0,0,0,0]
[1253,"Swimming pool","C2 Residential Institutions - Residential schools",0.14577956989247309,"D1_Edu_Swim_Occ_WK1","WK1",0,0,0,0,0,0,0,0,0,1,1,1,1,1,1,1,1,1,1,1,1,0,0,0]
[1253,"Swimming pool","C2 Residential Institutions - Residential schools",0.14577956989247309,"D1_Edu_Swim_Occ_Wk2","Wk2",0,0,0,0,0,0,0,0,0,0.5,1,1,1,0.75,1,0.75,0,0,0,0,0,0,0,0]
[1254,"Toilet","C2 Residential Institutions - Residential schools",0.11,"D1_Edu_Toilet_Occ_WK1","WK1",0,0,0,0,0,0,0,0.25,0.5,1,1,1,0.75,0.75,1,1,1,0.5,0.25,0,0,0,0,0]
[1254,"Toilet","C2 Residential Institutions - Residential schools",0.11,"D1_Edu_Toilet_Occ_Wk2","Wk2",0,0,0,0,0,0,0,0,0,0,0,0,0,0,0,0,0,0,0,0,0,0,0,0]
[1255,"Workshop - small scale","C2 Residential Institutions - Residential schools",6.3259259264444451E-2,"D1_Edu_WkshpSS_Occ_Wk1","Wk1",0,0,0,0,0,0,0,0.25,0.5,1,1,1,0.75,0.75,1,1,1,0.5,0.25,0,0,0,0,0]
[1255,"Workshop - small scale","C2 Residential Institutions - Residential schools",6.3259259264444451E-2,"D1_Edu_WkshpSS_Occ_Wk2","Wk2",0,0,0,0,0,0,0,0,0,0,0,0,0,0,0,0,0,0,0,0,0,0,0,0]
[1256,"Teaching Areas","C2 Residential Institutions - Residential schools",0.55232394366197191,"D1_Edu_ClassRm_Occ_Wk2","Wk2",0,0,0,0,0,0,0,0,0,0,0,0,0,0,0,0,0,0,0,0,0,0,0,0]
[1256,"Teaching Areas","C2 Residential Institutions - Residential schools",0.55232394366197191,"D1_Edu_ClassRm_Occ_WK1","WK1",0,0,0,0,0,0,0,0.1,0.25,0.75,1,1,0.5,0.5,1,1,0.5,0.5,0,0,0,0,0,0]
[1257,"Office and consulting areas","C2 Residential Institutions - Residential schools",0.10100000000000001,"D1_Edu_CellOff_Occ_WK1","WK1",0,0,0,0,0,0,0,0.1,0.25,0.75,1,1,0.5,0.5,1,1,0.5,0.5,0,0,0,0,0,0]
[1257,"Office and consulting areas","C2 Residential Institutions - Residential schools",0.10100000000000001,"D1_Edu_CellOff_Occ_Wk2","Wk2",0,0,0,0,0,0,0,0,0,0,0,0,0,0,0,0,0,0,0,0,0,0,0,0]
[1258,"Bedroom","C2 Residential Institutions - Residential schools",9.6304761904761921E-2,"C2_Schools_Bed_Occ_Wk2","Wk2",1,1,1,1,1,1,1,0.5,0.25,0,0,0,0,0,0,0,0,0,0,0,0,0,0.25,0.75]
[1258,"Bedroom","C2 Residential Institutions - Residential schools",9.6304761904761921E-2,"C2_Schools_Bed_Occ_Wk1","Wk1",1,1,1,1,1,1,1,0.5,0.25,0,0,0,0,0,0,0,0,0,0,0,0,0,0.25,0.75]
[1259,"Bathroom","C2 Residential Institutions - Residential schools",0.23157894736842108,"C2_Schools_Bath_Occ_Wk1","Wk1",0,0,0,0,0,0,0,1,1,1,0,0,0,0,0,0,0,0,0,0.2,0.2,0.2,0.2,0]
[1259,"Bathroom","C2 Residential Institutions - Residential schools",0.23157894736842108,"C2_Schools_Bath_Occ_Wk2","Wk2",0,0,0,0,0,0,0,1,1,1,0,0,0,0,0,0,0,0,0,0.2,0.2,0.2,0.2,0]
[1260,"Residents common rooms","C2 Residential Institutions - Residential schools",0.1141621621621622,"C2_Schools_CommunalArea_Occ_Wk1","Wk1",0,0,0,0,0,0,0,0.25,0.25,0.5,0.5,0.5,1,1,0.5,0.25,0.25,0.25,0.5,1,1,1,0.5,0]
[1260,"Residents common rooms","C2 Residential Institutions - Residential schools",0.1141621621621622,"C2_Schools_CommunalArea_Occ_Wk2","Wk2",0,0,0,0,0,0,0,0,0,0,0,0,0,0,0,0,0,0,0,0,0,0,0,0]
[1261,"Laundry","C2 Residential Institutions - Residential schools",0.12100000000000001,"C2_Schools_Laund_Occ_WK1","WK1",0,0,0,0,0,0,0,0,1,1,1,1,1,1,1,1,1,1,0,0,0,0,0,0]
[1261,"Laundry","C2 Residential Institutions - Residential schools",0.12100000000000001,"C2_Schools_Laund_Occ_Wk2","Wk2",0,0,0,0,0,0,0,0,0,0,0,0,0,0,0,0,0,0,0,0,0,0,0,0]
[1262,"Bathroom","C2 Residential Institutions - Universities and colleges",0.23157894736842108,"Uni_Bath_Occ_Wk1","Wk1",0,0,0,0,0,0,0,1,1,1,0,0,0,0,0,0,0,0,0,0.2,0.2,0.2,0.2,0]
[1262,"Bathroom","C2 Residential Institutions - Universities and colleges",0.23157894736842108,"Uni_Bath_Occ_Wk2","Wk2",0,0,0,0,0,0,0,1,1,1,0,0,0,0,0,0,0,0,0,0.2,0.2,0.2,0.2,0]
[1263,"Bedroom","C2 Residential Institutions - Universities and colleges",0.12038095238095242,"Uni_Bed_Occ_Wk2","Wk2",1,1,1,1,1,1,1,0.5,0.25,0,0,0,0,0,0,0,0,0,0,0,0,0,0.25,0.75]
[1263,"Bedroom","C2 Residential Institutions - Universities and colleges",0.12038095238095242,"Uni_Bed_Occ_Wk1","Wk1",1,1,1,1,1,1,1,0.5,0.25,0,0,0,0,0,0,0,0,0,0,0,0,0,0.25,0.75]
[1264,"Changing facilities with showers","C2 Residential Institutions - Universities and colleges",0.13386904761904769,"Uni_Changing_Occ_Wk1","Wk1",0,0,0,0,0,0,0,0,0,0.75,1,1,0.75,0.75,1,1,1,0.75,0,0,0,0,0,0]
[1264,"Changing facilities with showers","C2 Residential Institutions - Universities and colleges",0.13386904761904769,"Uni_Changing_Occ_Wk2","Wk2",0,0,0,0,0,0,0,0,0,0.75,1,1,0.75,0.75,1,1,1,0.75,0,0,0,0,0,0]
[1265,"Circulation area (corridors and stairways)","C2 Residential Institutions - Universities and colleges",0.10647435897435899,"Uni_Circulation_Occ_Wk1","Wk1",0,0,0,0,0,0,0,0,1,1,1,1,1,1,1,1,1,1,0,0,0,0,0,0]
[1265,"Circulation area (corridors and stairways)","C2 Residential Institutions - Universities and colleges",0.10647435897435899,"Uni_Circulation_Occ_Wk2","Wk2",0,0,0,0,0,0,0,0,0,1,1,1,1,1,1,1,1,0,0,0,0,0,0,0]
[1266,"Classroom","C2 Residential Institutions - Universities and colleges",0.2034246575342466,"Uni_ClassRm_Occ_Wk2","Wk2",0,0,0,0,0,0,0,0,0,1,1,1,1,1,1,1,1,0,0,0,0,0,0,0]
[1266,"Classroom","C2 Residential Institutions - Universities and colleges",0.2034246575342466,"Uni_ClassRm_Occ_Wk1","Wk1",0,0,0,0,0,0,0,0.25,0.5,1,1,1,0.75,0.75,1,1,1,0.5,0.25,0,0,0,0,0]
[1267,"Residents common rooms","C2 Residential Institutions - Universities and colleges",0.1141621621621622,"Uni_CommunalArea_Occ_Wk1","Wk1",0,0,0,0,0,0,0,0.25,0.25,0.5,0.5,0.5,1,1,0.5,0.25,0.25,0.25,0.5,1,1,1,0.5,0]
[1267,"Residents common rooms","C2 Residential Institutions - Universities and colleges",0.1141621621621622,"Uni_CommunalArea_Occ_Wk2","Wk2",0,0,0,0,0,0,0,0,0,0,0,0,0,0,0,0,0,0,0,0,0,0,0,0]
[1268,"Dry sports hall","C2 Residential Institutions - Universities and colleges",5.3620218580327859E-2,"Uni_DrySptHall_Occ_Wk1","Wk1",0,0,0,0,0,0,0,0.25,0.5,1,1,1,0.75,0.75,1,1,1,0.5,0.25,0,0,0,0,0]
[1268,"Dry sports hall","C2 Residential Institutions - Universities and colleges",5.3620218580327859E-2,"Uni_DrySptHall_Occ_Wk2","Wk2",0,0,0,0,0,0,0,0,0,0,0,0,0,0,0,0,0,0,0,0,0,0,0,0]
[1269,"Eating/drinking area","C2 Residential Institutions - Universities and colleges",0.2062385321100918,"Uni_EatDrink_Occ_Wk1","Wk1",0,0,0,0,0,0,0,0,0,0.75,1,1,0.75,0.75,1,1,1,0.75,0,0,0,0,0,0]
[1269,"Eating/drinking area","C2 Residential Institutions - Universities and colleges",0.2062385321100918,"Uni_EatDrink_Occ_Wk2","Wk2",0,0,0,0,0,0,0,0,0,0,0,0.25,1,1,0.75,0,0,0,0,0,0,0,0,0]
[1270,"Fitness suite/gym","C2 Residential Institutions - Universities and colleges",0.18230874317311468,"Uni_FitGym_Occ_Wk1","Wk1",0,0,0,0,0,0,0,0.25,0.5,1,1,1,0.75,0.75,1,1,1,0.5,0.25,0,0,0,0,0]
[1270,"Fitness suite/gym","C2 Residential Institutions - Universities and colleges",0.18230874317311468,"Uni_FitGym_Occ_Wk2","Wk2",0,0,0,0,0,0,0,0,0,0,0,0,0,0,0,0,0,0,0,0,0,0,0,0]
[1271,"Food preparation area","C2 Residential Institutions - Universities and colleges",9.5609589041095927E-2,"Uni_FoodPrep_Occ_Wk1","Wk1",0,0,0,0,0,0,0,0,0,0.75,1,1,0.75,0.75,1,1,1,0.75,0,0,0,0,0,0]
[1271,"Food preparation area","C2 Residential Institutions - Universities and colleges",9.5609589041095927E-2,"Uni_FoodPrep_Occ_Wk2","Wk2",0,0,0,0,0,0,0,0,0,0.5,1,1,1,0.75,1,0.75,0,0,0,0,0,0,0,0]
[1272,"Hall/lecture theatre/assembly area","C2 Residential Institutions - Universities and colleges",0.20166666666666669,"Uni_Lecture_Occ_Wk1","Wk1",0,0,0,0,0,0,0,0.25,0.5,1,1,1,0.75,0.75,1,1,1,0.5,0.25,0,0,0,0,0]
[1272,"Hall/lecture theatre/assembly area","C2 Residential Institutions - Universities and colleges",0.20166666666666669,"Uni_Lecture_Occ_Wk2","Wk2",0,0,0,0,0,0,0,0,0,0.5,1,1,1,0.75,1,0.75,0,0,0,0,0,0,0,0]
[1273,"Computer lab","C2 Residential Institutions - Universities and colleges",0.23125000000000001,"Uni_HighDensIT_Occ_Wk1","Wk1",0,0,0,0,0,0,0,0,0,0.75,1,1,0.75,0.75,1,1,1,0.75,0,0,0,0,0,0]
[1273,"Computer lab","C2 Residential Institutions - Universities and colleges",0.23125000000000001,"Uni_HighDensIT_Occ_Wk2","Wk2",0,0,0,0,0,0,0,0,0,0,0,0,0,0,0,0,0,0,0,0,0,0,0,0]
[1275,"Laboratory","C2 Residential Institutions - Universities and colleges",0.10625,"Uni_Lab_Occ_Wk1","Wk1",0,0,0,0,0,0,0,0.25,0.5,1,1,1,0.75,0.75,1,1,1,0.5,0.25,0,0,0,0,0]
[1275,"Laboratory","C2 Residential Institutions - Universities and colleges",0.10625,"Uni_Lab_Occ_Wk2","Wk2",0,0,0,0,0,0,0,0,0,0.5,1,1,1,0.75,1,0.75,0,0,0,0,0,0,0,0]
[1276,"Laundry","C2 Residential Institutions - Universities and colleges",0.10521739130434783,"Uni_Laund_Occ_Wk1","Wk1",0,0,0,0,0,0,0,0,0,0.5,1,1,1,0.75,1,0.75,0,0,0,0,0,0,0,0]
[1277,"Light plant room","C2 Residential Institutions - Universities and colleges",0.11,"Uni_Plant_Occ_Wk1","Wk1",0,0,0,0,0,0,0,0,0,0,0,0,0,0,0,0,0,0,0,0,0,0,0,0]
[1277,"Light plant room","C2 Residential Institutions - Universities and colleges",0.11,"Uni_Plant_Occ_Wk2","Wk2",0,0,0,0,0,0,0,0,0,0,0,0,0,0,0,0,0,0,0,0,0,0,0,0]
[1278,"Reception","C2 Residential Institutions - Universities and colleges",0.11220000000000002,"Uni_Reception_Occ_Wk1","Wk1",0,0,0,0,0,0,0,0,1,1,1,1,1,1,1,1,1,1,0,0,0,0,0,0]
[1278,"Reception","C2 Residential Institutions - Universities and colleges",0.11220000000000002,"Uni_Reception_Occ_Wk2","Wk2",0,0,0,0,0,0,0,0,0,0,0,0,0,0,0,0,0,0,0,0,0,0,0,0]
[1279,"Cupboard","C2 Residential Institutions - Universities and colleges",0.10153846153846158,"Uni_Store_Occ_Wk1","Wk1",0,0,0,0,0,0,0,1,1,1,1,1,1,1,1,1,1,1,1,1,0,0,0,0]
[1279,"Cupboard","C2 Residential Institutions - Universities and colleges",0.10153846153846158,"Uni_Store_Occ_Wk2","Wk2",0,0,0,0,0,0,0,0,0,0,0,0,0,0,0,0,0,0,0,0,0,0,0,0]
[1280,"Swimming pool","C2 Residential Institutions - Universities and colleges",0.18066479401449434,"Uni_Swim_Occ_Wk1","Wk1",0,0,0,0,0,0,0,0.25,0.5,1,1,1,0.75,0.75,1,1,1,0.5,0.25,0,0,0,0,0]
[1280,"Swimming pool","C2 Residential Institutions - Universities and colleges",0.18066479401449434,"Uni_Swim_Occ_Wk2","Wk2",0,0,0,0,0,0,0,0,0,0.75,1,1,0.75,0.75,1,1,1,0.75,0,0,0,0,0,0]
[1281,"Residents kitchen","C2 Residential Institutions - Universities and colleges",0.11220000000000002,"Uni_Tea_Occ_Wk1","Wk1",0,0,0,0,0,0,0,0,1,1,1,1,1,1,1,1,1,1,0,0,0,0,0,0]
[1281,"Residents kitchen","C2 Residential Institutions - Universities and colleges",0.11220000000000002,"Uni_Tea_Occ_Wk2","Wk2",0,0,0,0,0,0,0,0,0,0,0,0,0,0,0,0,0,0,0,0,0,0,0,0]
[1282,"Toilet","C2 Residential Institutions - Universities and colleges",0.10647435897435899,"Uni_Toilet_Occ_Wk1",{"$f":"RIGHT(E330,3)","v":"Wk1"},0,0,0,0,0,0,0,0,1,1,1,1,1,1,1,1,1,1,0,0,0,0,0,0]
[1282,"Toilet","C2 Residential Institutions - Universities and colleges",0.10647435897435899,"Uni_Toilet_Occ_Wk2","Wk2",0,0,0,0,0,0,0,0,0,1,1,1,1,1,1,1,1,0,0,0,0,0,0,0]
[1283,"Workshop - small scale","C2 Residential Institutions - Universities and colleges",6.761363636363639E-2,"Uni_WkshpSS_Occ_Wk1","Wk1",0,0,0,0,0,0,0,0.25,0.5,1,1,1,0.75,0.75,1,1,1,0.5,0.25,0,0,0,0,0]
[1283,"Workshop - small scale","C2 Residential Institutions - Universities and colleges",6.761363636363639E-2,"Uni_WkshpSS_Occ_Wk2","Wk2",0,0,0,0,0,0,0,0,0,0.5,1,1,1,0.75,1,0.75,0,0,0,0,0,0,0,0]
[1284,"Office and consulting areas","C2 Residential Institutions - Universities and colleges",9.7886986301369883E-2,"Uni_CellOff_Occ_Wk1","Wk1",0,0,0,0,0,0,0,0.25,0.5,1,1,1,0.75,0.75,1,1,1,0.5,0.25,0,0,0,0,0]
[1284,"Office and consulting areas","C2 Residential Institutions - Universities and colleges",9.7886986301369883E-2,"Uni_CellOff_Occ_Wk2","Wk2",0,0,0,0,0,0,0,0,0,1,1,1,1,1,1,1,1,0,0,0,0,0,0,0]
[1285,"Warehouse sales area - general","A1/A2 Retail and Financial/Professional services",5.3124999999999999E-2,"Ret_Sales_Occ_Wk1","Wk1",0,0,0,0,0,0,0,0,0,0.75,1,1,0.75,0.75,1,1,1,0.75,0,0,0,0,0,0]
[1286,"Warehouse sales area - chilled","A1/A2 Retail and Financial/Professional services",5.3124999999999999E-2,"Ret_SalesChill_Occ_Wk1","Wk1",0,0,0,0,0,0,0,0,0,0.75,1,1,0.75,0.75,1,1,1,0.75,0,0,0,0,0,0]
[1287,"Warehouse sales area - electrical","A1/A2 Retail and Financial/Professional services",5.3124999999999999E-2,"Ret_SalesElectric_Occ_Wk1","Wk1",0,0,0,0,0,0,0,0,0,0.75,1,1,0.75,0.75,1,1,1,0.75,0,0,0,0,0,0]
[1288,"Bathroom","C1 Hotels",0.2589473684210527,"Hotel_Bath_Occ_WK1","WK1",0,0,0,0,0,0,0,1,1,1,0,0,0,0,0,0,0,0,0,0.2,0.2,0.2,0.2,0]
[1289,"Public circulation areas","C2 Residential Institutions - Hospitals and Care Homes",0.21249999999999999,"Hosp_CirculationPub_Occ_Wk1","Wk1",0,0,0,0,0,0,0,0,0,0.75,1,1,0.75,0.75,1,1,1,0.75,0,0,0,0,0,0]
[1290,"Circulation area (corridors and stairways)","Others - Car Parks 24 hrs",5.856666666666667E-2,"CarPark_Circulation_Occ_WK1","WK1",1.8782014999999999E-2,1.8782014999999999E-2,1.8782014999999999E-2,1.8782014999999999E-2,1.8782014999999999E-2,1.8782014999999999E-2,0.26408651100000002,1,1,0.26408651100000002,1.8782014999999999E-2,0.26408651100000002,1,1,0.50939100699999995,1.8782014999999999E-2,1.8782014999999999E-2,0.50939100699999995,1,1,0.50939100699999995,1.8782014999999999E-2,1.8782014999999999E-2,1.8782014999999999E-2]
[1291,"Light plant room","Others - Car Parks 24 hrs",0.11,"CarPark_Plant_Occ_WK1","WK1",0,0,0,0,0,0,0,0,0,0,0,0,0,0,0,0,0,0,0,0,0,0,0,0]
[1292,"Toilet","Others - Car Parks 24 hrs",6.0500000000000026E-2,"CarPark_Toilet_Occ_WK1","WK1",0,0,0,0,0,0,0,0,1,1,1,1,1,1,1,1,1,1,0,0,0,0,0,0]
[1293,"Car Park","Others - Car Parks 24 hrs",5.3242424242424258E-3,"CarPark_CarPark_Occ_WK1","WK1",1.8782014999999999E-2,1.8782014999999999E-2,1.8782014999999999E-2,1.8782014999999999E-2,1.8782014999999999E-2,1.8782014999999999E-2,0.26408651100000002,1,1,0.26408651100000002,1.8782014999999999E-2,0.26408651100000002,1,1,0.50939100699999995,1.8782014999999999E-2,1.8782014999999999E-2,0.50939100699999995,1,1,0.50939100699999995,1.8782014999999999E-2,1.8782014999999999E-2,1.8782014999999999E-2]
[1294,"Generic Office Area","Others - Car Parks 24 hrs",0.111,"CarPark_Office_Occ_WK1","WK1",1,1,1,1,1,1,1,1,1,1,1,1,1,1,1,1,1,1,1,1,1,1,1,1]
[1295,"Car Park","A1/A2 Retail and Financial/Professional services",4.299465240641712E-3,"Ret_CarPark_Occ_WK1","WK1",0,0,0,0,0,0,0,0.25,0.5,1,1,1,0.75,0.75,1,1,1,0.5,0.25,0,0,0,0,0]
[1296,"Car Park","B1 Offices and Workshop businesses",5.8947368421052634E-3,"Office_CarPark_Occ_WK1","WK1",0,0,0,0,0,0,0.25,1,1,0,0,0.25,1,1,0.25,0,0,0,0,0,0,0,0,0]
[1297,"Display window","A1/A2 Retail and Financial/Professional services",4.3312499999999997E-2,"Ret_Display_Occ_Wk1","Wk1",0,0,0,0,0,0,0,0,0,1,1,1,1,1,1,1,1,0,0,0,0,0,0,0]
[1298,"Display area","D2 General Assembly and Leisure plus Night Clubs and Theatres",1.2375000000000001E-3,"LibMusGall_Display_Occ_WK1","WK1",0,0,0,0,0,0,0,0,0,0.75,1,1,0.75,0.75,1,1,1,0.75,0,0,0,0,0,0]
[1301,"Changing facilities with showers","Others - Stand alone utility block",0.12587301587250002,"D2_Changing_Occ_WK1","WK1",0,0,0,0,0,0,0,0,0,1,1,1,1,1,1,1,1,1,1,1,1,0,0,0]
[1302,"Heavy Plant Room","Others - Miscellaneous 24hr activities",9.6250000000000002E-2,"Misc24Hr_ServerRoom_Occ_Wk1","Wk1",0,0,0,0,0,0,0,0,0,1,1,1,1,1,1,1,1,0,0,0,0,0,0,0]
[1303,"24x7 Warehouse storage","B8 Storage or Distribution",1.0857142857714287E-2,"Ware_24x7WareStore_Occ_Wk1","Wk1",0.5,0.5,0.5,0.5,0.5,0.5,0.5,0.75,1,1,1,1,1,1,1,1,1,1,0.75,0.5,0.5,0.5,0.5,0.5]
[1304,"24x7 Generic Office Area","B8 Storage or Distribution",9.5142857142857168E-2,"Ware_24x7CellOff_Occ_Wk1","Wk1",0.5,0.5,0.5,0.5,0.5,0.5,0.5,0.75,1,1,1,1,1,1,1,1,1,1,0.75,0.5,0.5,0.5,0.5,0.5]
[1305,"Dept Store Sales area - general","A1/A2 Retail and Financial/Professional services",0.11687500000000001,"Ret_DeptStore_Sales_Occ_Wk1","Wk1",0,0,0,0,0,0,0,0,0,0.75,1,1,0.75,0.75,1,1,1,0.75,0,0,0,0,0,0]
[1306,"Dept Store Sales area - chilled","A1/A2 Retail and Financial/Professional services",0.11687500000000001,"Ret_DeptStore_SalesChill_Occ_Wk1","Wk1",0,0,0,0,0,0,0,0,0,0.75,1,1,0.75,0.75,1,1,1,0.75,0,0,0,0,0,0]
[1307,"Dept Store Sales area - electrical","A1/A2 Retail and Financial/Professional services",0.11687500000000001,"Ret_DeptStore_SalesElectric_Occ_Wk1","Wk1",0,0,0,0,0,0,0,0,0,0.75,1,1,0.75,0.75,1,1,1,0.75,0,0,0,0,0,0]
[1308,"Retail Warehouse Sales area - general","A1/A2 Retail and Financial/Professional services",0.11687500000000001,"RetWarehouse_Sales_Occ_Wk1","Wk1",0,0,0,0,0,0,0,0,0,0.75,1,1,0.75,0.75,1,1,1,0.75,0,0,0,0,0,0]
[1309,"Retail Warehouse Sales area - chilled","A1/A2 Retail and Financial/Professional services",0.11687500000000001,"RetWarehouse_SalesChill_Occ_Wk1","Wk1",0,0,0,0,0,0,0,0,0,0.75,1,1,0.75,0.75,1,1,1,0.75,0,0,0,0,0,0]
[1310,"Retail Warehouse Sales area - electrical","A1/A2 Retail and Financial/Professional services",0.11687500000000001,"RetWarehouse_SalesElectric_Occ_Wk1","Wk1",0,0,0,0,0,0,0,0,0,0.75,1,1,0.75,0.75,1,1,1,0.75,0,0,0,0,0,0]

{"sheet":"Activity database","index":2,"n_rows":96,"n_cols":58,"rows_kept":96,"cut":false,"hidden":true,"merged":[[1,6,1,7]]}
[1,2,3,4,5,6,7,8,9,10,11,12,13,14,15,16,17,18,19,20,21,22,23,24,25,26,27,28,29,30,31,32,33,34,35,36,37,38,39,40,41,42,43,44,null,1,2,3,4,5,6,7,8]
[null,null,"Building occupation data",null,null,"User","Gender ratio",null,"Component uses/person/day (unless stated differently for specific uses or activity areas)",null,null,null,null,null,null,null,null,null,null,null,null,null,null,null,null,null,"Usage factors",null,null,null,null,null,null,null,null,null,null,null,null,null,null,null,"Adjustment factors",null,null,"Microcomponent Performance Levels for BREEAM water consumption method benchmarking"]
["Building category and main activity area/function","Description","Occupant density (person/m2)","No. days/yr building occupied","default daily hrs of operation","Type","Ratio male users","Ratio female users","WC - male (urinals installed)","WC - male (no urinals installed)","WC - female","Urinal","Wash hand basin taps","Shower use","Shower use (bath present)","Bath use (no shower present) ","Bath use (shower present)","Kitchen taps - kitchenette","Kitchen taps - pre-rinse nozzle","blank column","Dishwasher","Washing machine","Waste disposal unit","Fixed use - vessel filling","Fixed use - food preparation","Fixed use - kitchen cleaning","WC (factor of use","Urinals (factor of use)","Wash hand basin taps (mins/use)","Showers (no bath present) - mins/use","Showers (bath present) mins/use","Bath (No shower present) ratio","Bath (shower present) ratio","Kitchen taps - kitchenette mins/day","Kitchen taps - pre-rinse nozzle","blank","Dishwasher","Washing machine","Waste dispoal unit","Fixed use - vessel filling","Fixed use - food preparation","Fixed use - kitchen cleaning","Baths","Taps",null,"Component","Baseline","Level 1","Level 2","Level 3","Level 4","Level 5","Unit",null,"BREEAM credit benchmarks",null,null,"Sources of data/information"]
["Office","Offices and workshop business (including those with a basic (category 1) laboratory area)","-",253,10,"Staff",0.5,0.5,1,4,4,3,4,0.03,"N/A","N/A","N/A","-","-","-","-","N/A","-",1.58,"-","-",1,1,0.25,5.6,4.37,1,1,"-","-","-","-","-","-",1,"-","-",0.4,0.67700000000000005,null,"WC - male (urinals installed)",6,4.5,4,3.75,3.5,3,"Effective flush volume (litres)",null,0,"0 credits",null,"SD129: Certification and Listing of Low Flush WC appliances"]
["Office - Office areas","Cellular or open plan office space, including staff kitchen where present/adjacent and reception areas. Exlcude meeting rooms, visitor waiting or circulation areas.",0.111,null,null,null,null,null,null,null,null,null,null,null,null,null,null,1,null,null,0.04,null,null,null,null,null,null,null,null,null,null,null,null,0.67,null,null,1,"N/A",null,null,null,null,null,null,null,"WC - male (no urinals installed)",6,4.5,4,3.75,3.5,3,"Effective flush volume (litres)",null,0.125,"1 credit",null,"Waterwise "]
["Office - Staff canteen dining area","Seated dining areas that accompany a permanently staffed kitchen preparing food for consumption on the premises (excludes small un-staffed kitchen's used by office staff to re-heat food, make tea etc.)",4.3299999999999998E-2,null,null,null,null,null,null,null,null,null,null,null,null,null,null,null,"see usage factor",null,"see usage factor","N/A","see usage factor",null,{"$f":"IF('Office calculator'!F16=\"yes\",'Office calculator'!G16*0.868*2.674,\"see note\")","v":"see note"},{"$f":"IF('Office calculator'!F16=\"yes\",'Office calculator'!G16*6.314*0.868,\"See note\")","v":"See note"},null,null,null,null,null,null,null,null,60,null,0.217,"N/A",30,null,1,1,null,null,null,"WC - female",6,4.5,4,3.75,3.5,3,"Effective flush volume (litres)",null,0.25,"2 credits",null,"Water efficient product labelling scheme"]
["Office - Small workshop / laboratory space","Small scale workshop or category 1 laboratory area",6.8000000000000005E-2,null,null,null,null,null,null,null,null,null,null,null,null,null,null,null,null,null,null,null,null,null,null,null,null,null,null,null,null,null,null,null,null,null,null,null,null,null,null,null,null,null,null,"Wash hand basin taps",10,8,6,5,3.75,3,"Volume (litres/min)",null,0.4,"3 credits",null,"Water Supply (water fittings) Regulations 1999: WC Suite Performance Specifications"]
["Office - Fitness suite/gym (with changing facility and showers)","A fitness suite or gym that is part of the office building/development  and used by the building's employees only. The gym will have its own changing facility with showers.",0,null,null,null,null,null,null,null,null,null,null,0.154,null,null,null,null,null,null,null,null,null,0.05,null,null,null,null,null,null,null,null,null,null,null,null,null,null,null,null,null,null,null,null,null,"Showers",12,10,8,6,4,3.5,"Volume (litres/min)",null,0.5,"4 credits",null,"(Very early) Draft BS8542"]
["Industrial - 24hr x 7 day operation","General and specialist industrail and warehouse and storage units operating 24 hours a day 7 days a week.","-",365,24,"Staff",0.5,0.5,1,4,4,3,4,0.03,"N/A","N/A","N/A","-","-","-","-","N/A","-",1.58,"-","-",1,1,0.25,5.6,4.37,1,1,"-","-","-","-","-","-",1,"-","-",0.4,0.67700000000000005,null,"Baths",200,180,160,140,120,100,"Volume (litres)",null,0.55000000000000004,"5 credits",null,"SD174: Certification and Listing of Water Efficient Terminal Fittings (table 2.0)"]
["Industrial - typical business hours of operation","General and specialist industrial and warehouse and storage units operating 24 hours a day 7 days a week.","-",253,10,"Staff",0.5,0.5,1,4,4,3,4,0.03,"N/A","N/A","N/A","-","-","-","-","N/A","-",1.58,"-","-",1,1,0.25,5.6,4.37,1,1,"-","-","-","-","-","-",1,"-","-",0.4,0.67700000000000005,null,"Urinal (2 or more urinals) - Automatically operated flushing cistern",7.5,6,3,1.5,0.75,0,"Volume (litres/bowl/hour)",null,0.65,"Exemplary level",null,"CLG Water Calculation Method for New Dwelling"]
["Industrial - process area","Main process based operational/manufacturing/workshop area",2.24E-2,null,null,null,null,null,null,null,null,null,null,null,null,null,null,null,null,null,null,null,null,null,null,null,null,null,null,null,null,null,null,null,null,null,null,null,null,null,null,null,null,null,null,"Urinal (1 urinal only) - Automatically operated flushing cistern",10,8,4,2,1,0,"Volume (litres/bowl/hour)",null,0.55000000000000004,"5 credits",null,"Conserving Water in Buildings - Environment Agency"]
["Industrial - Laboratory area","Large or small category 1 laboratory area.",0.1069,null,null,null,null,null,null,null,null,null,null,null,null,null,null,null,null,null,null,null,null,null,null,null,null,null,null,null,null,null,null,null,null,null,null,null,null,null,null,null,null,null,null,"Urinal - Manual/automatic operated pressure flushing valve",1,"-","-","-","-","-","Volume (Litres/flush/bowl)",null,null,null,null,"SD175 Certification and Listing of Water Efficient Baths "]
["Industrial - Warehouse storage","Permanently or intermittently occupied warehouse storage areas.",1.0800000000000001E-2,null,null,null,null,null,null,null,null,null,null,null,null,null,null,null,null,null,null,null,null,null,null,null,null,null,null,null,null,null,null,null,null,null,null,null,null,null,null,null,null,null,null,"Greywater/rainwater system",0,0,0,0.25,0.5,0.75,"% of WC/urinal flushing demand (generated by same level microcomponent specification) met by specified grey/rainwater system",null,null,null,null,"BNWAT07: Baths - water efficiency performance tests Version 2.0"]
["Industrial - Office areas","Cellular or open plan office space, including staff kitchen where present/adjacent and reception areas. Exlcude meeting rooms, visitor waiting or circulation areas.",9.9400000000000002E-2,null,null,null,null,null,null,null,null,null,null,null,null,null,null,1,null,null,0.04,null,null,null,null,null,null,null,null,null,null,null,null,0.67,null,null,1,"N/A",null,null,null,null,null,null,null,"Kitchen taps - kitchenette",10,8,7,6,5,5,"Volume (litres/min)",null,null,null,null,"CLG Research to Assess the Costs and Benefits of Improvements to the Water Efficiency of New Non-household Buildings (BD2683), 2009."]
["Industrial - Staff canteen dining area","Seated dining areas that accompany a permanently staffed kitchen preparing food for consumption on the premises (excludes small un-staffed kitchen's used by office staff to re-heat food, make tea etc.)",{"$f":"0.0402","v":4.02E-2},null,null,null,null,null,null,null,null,null,null,null,null,null,null,null,"see usage factor",null,"see usage factor","N/A","see usage factor",null,{"$f":"IF(AND('Industrial calculator'!F18='Industrial calculator'!Q137,Ind_act='Industrial calculator'!R142,'Industrial calculator'!G20='Industrial calculator'!Q137),'Industrial calculator'!G18*'Industrial calculator'!G12*0.804*2.674,IF('Industrial calculator'!F18=\"yes\",'Industrial calculator'!G18*0.804*2.674,\"see note\"))","v":"see note"},{"$f":"IF('Industrial calculator'!F18=\"yes\",'Industrial calculator'!G18*6.314*0.804,\"See note\")","v":"See note"},null,null,null,null,null,null,null,null,60,null,0.20100000000000001,"N/A",30,null,1,1,null,null,null,"Kitchen taps - pre-rinse nozzle",10.3,9,8.3000000000000007,7.3,6.3,6,"Volume (litres/min)",null,null,null,null,"Waterwise 2007 Dishwasher rankings"]
["Industrial - Fitness suite/gym (with changing facility and showers)","A fitness suite or gym that is part of the office building/development  and used by the building's employees only. The gym will have its own changing facility with showers.",0,null,null,null,null,null,null,null,null,null,null,0.154,null,null,null,null,null,null,null,null,null,0.05,null,null,null,null,null,null,null,null,null,null,null,null,null,null,null,null,null,null,null,null,null,"Domestic sized dishwashers",17,13,13,12,11,10,"Volume (litres/cycle)",null,null,null,null,"Waterwise 2007 Washing machine rankings"]
["Education - pre-school or primary school","Non-residential pre-school and primary schools.","-",195,10,"Pupils/staff",0.5,0.5,0.36,2.1,2.1,1.74,2.1,{"$f":"IF('Education calculator'!F18='Education calculator'!Q136,0.4,0.0014)","v":1.4E-3},"N/A","N/A","N/A",0.05,"-","-","-","N/A","-",1.98,"-","-",1,1,0.25,{"$f":"IF('Education calculator'!F18='Education calculator'!Q136,1.4,5.6)","v":5.6},"N/A",1,1,"-","-","-","-","-","-",1,"-","-",0.4,0.67700000000000005,null,"Domestic sized washing machines",90,60,50,40,35,30,"Volume (litres/use)",null,null,null,null,"Water UK - Macerators, the impact on sewers http://www.water.org.uk/home/policy/positions/waste-macerators-position-paper"]
["Education - secondary school or academy","Non-residential secondary schools, academies and all-age range schools","-",195,10,"Pupils/staff",0.5,0.5,0.37,2.13,2.1,1.76,2.13,{"$f":"IF('Education calculator'!F18='Education calculator'!Q136,0.4,0.002)","v":2E-3},"N/A","N/A","N/A",0.06,"-","-","-","N/A","-",1.97,"-","-",1,1,0.25,{"$f":"IF('Education calculator'!F18='Education calculator'!Q136,1.2,5.6)","v":5.6},1.4,1,1,"-","-","-","-","-","-",1,"-","-",0.4,0.67700000000000005,null,{"$f":"W3","v":"Waste disposal unit"},17,17,0,0,0,0,"Volume (litres/min)",null,null,null,null,"Water Efficient Buildings, water and planning, guidance for planners http://www.water-efficient-buildings.org.uk/"]
["Education - sixth form or further education college","Non-residential sixth form and further education colleges","-",195,10,"Staff/students",0.5,0.5,1,4,4,3,4,{"$f":"IF('Education calculator'!F18='Education calculator'!Q136,'Activity database'!N8,'Activity database'!N4)","v":0.03},"N/A","N/A","N/A",5.0999999999999997E-2,"-","-","-","N/A","-",1.58,"-","-",1,1,0.25,5.6,4.37,1,1,"-","-","-","-","-","-",1,"-","-",0.4,0.67700000000000005,null,"Commercial sized dishwashers",8,7,6,5,4,3,"Volume (litres/rack)",null,null,null,null,"AECB Water Standards vol 2."]
["Education - higher education college","Non-residential higher education learning resource centres/teaching facility only.","-",195,10,"Staff/students",0.5,0.5,1,4,4,3,4,{"$f":"IF('Education calculator'!F18='Education calculator'!Q136,'Activity database'!N8,'Activity database'!N4)","v":0.03},"N/A","N/A","N/A",6.0999999999999999E-2,"-","-","-","N/A","-",1.58,"-","-",1,1,0.25,5.6,4.37,1,1,"-","-","-","-","-","-",1,"-","-",0.4,0.67700000000000005,null,"Commercial/Industrial sized washing machines",14,12,10,7.5,5,4.5,"Volume (litres/kg)",null,null,null,null,"Enahnced Capital Allowance Water Technology List criteria"]
[{"$f":"IF(OR('Education calculator'!B11='Education calculator'!R142,'Education calculator'!B11='Education calculator'!R143),\"Education - Classroom areas\",IF(OR('Education calculator'!B11='Education calculator'!R144,'Education calculator'!B11='Education calculator'!R145),\"Education - Seminar rooms/areas\",\"Requires building type definition in calculator\"))","v":"Requires building type definition in calculator"},{"$f":"IF(OR('Education calculator'!B11='Education calculator'!R142,'Education calculator'!B11='Education calculator'!R143),\"Include basic classroom areas only. Exclude halls, specialist practical classrooms, i.e. ICT, and learning resource/library areas.\",IF(OR('Education calculator'!B11='Education calculator'!R144,'Education calculator'!B11='Education calculator'!R145),\"Include seminar rooms/spaces and write-up rooms/spaces i.e. areas where students and lecturers gather for seminars/write-up. Exclude lecture theatres, labs, workshops and library/learning resource area.\"))","v":false},{"$f":"IF('Education calculator'!B11='Education calculator'!R142,0.524,IF('Education calculator'!B11='Education calculator'!R143,0.532,IF('Education calculator'!B11='Education calculator'!R144,0.391,IF('Education calculator'!B11='Education calculator'!R145,0.395))))","v":false},null,null,null,null,null,null,null,null,null,null,null,null,null,null,null,null,null,null,null,null,null,null,null,null,null,null,null,null,null,null,null,null,null,null,null,null,null,null,null,null,null,null,null,null,null,null,null,null,null,null,null,null,null,null,"BNWAT22: Domestic water consumption in domestic and non-domestic properties"]
["Education - Staff office and adminstration areas","Cellular or open plan office space, including staff rooms and staff kitchen where present/adjacent and reception areas (including library reception desk areas if present). Exlcudes meeting rooms, visitor waiting or circulation areas and other such spaces not permanently occupied.",0.10299999999999999,null,null,null,null,null,null,null,null,null,null,null,null,null,null,null,null,null,{"$f":"IF('Education calculator'!B11='Education calculator'!R142,0.0019,IF('Education calculator'!B11='Education calculator'!R143,0.0026,IF('Education calculator'!B11='Education calculator'!R144,0.002,IF('Education calculator'!B11='Education calculator'!R145,0.0025,\"Requires Building Type Definition\"))))","v":"Requires Building Type Definition"},null,null,null,null,null,null,null,null,null,null,null,null,0.67,null,null,1,"N/A",null,null,null,null,null,null,null,null,null,null,null,null,null,null,null,null,null,null,null,"National Statistics, DfE: School Workforce in England, November 2010 (statistical first release)"]
["Education - Common room","Student common room.",0.10299999999999999,null,null,null,null,null,null,null,null,null,null,null,null,null,null,null,null,null,null,null,null,null,null,null,null,null,null,null,null,null,null,null,null,null,null,null,null,null,null,null,null,null,null,null,null,null,null,null,null,null,null,null,null,null,null,"Building Bulletin 99 (2nd Edition), Briefing Framework for Primary School Projects"]
["Education - dining area","Seated dining areas that accompany a permanently staffed kitchen preparing food for consumption on the premises (excludes small un-staffed kitchen's used by staff to re-heat food, make tea etc.)",{"$f":"IF(OR('Education calculator'!B11='Education calculator'!R144,'Education calculator'!B11='Education calculator'!R145),0.03,\"See note\")","v":"See note"},null,null,null,null,null,null,null,null,null,null,null,null,null,null,null,"see usage factor",null,"see usage factor","N/A","see usage factor",null,{"$f":"IF('Education calculator'!F17='Education calculator'!Q136,IF(AND('Education calculator'!O137<300,OR('Education calculator'!B11='Education calculator'!R142,'Education calculator'!B11='Education calculator'!R143)),'Education calculator'!G17*0.9*2*2.674,IF(AND('Education calculator'!O137>=300,OR('Education calculator'!B11='Education calculator'!R142,'Education calculator'!B11='Education calculator'!R143)),'Education calculator'!G17*0.9*3*2.674,IF(OR('Education calculator'!B11='Education calculator'!R144,'Education calculator'!B11='Education calculator'!R145),'Education calculator'!G17*0.6*2.674,\"Requires building type/area definition\"))))","v":false},{"$f":"IF(OR('Education calculator'!B11='Education calculator'!R144,'Education calculator'!B11='Education calculator'!R145),'Education calculator'!G17*6.314*0.6,IF(OR('Education calculator'!B11='Education calculator'!R142,'Education calculator'!B11='Education calculator'!R143),IF('Education calculator'!O137<300,'Education calculator'!G17*0.9*2*6.314,'Education calculator'!G17*0.9*3*6.314)))","v":false},null,null,null,null,null,null,null,null,60,null,{"$f":"IF(OR('Education calculator'!B11='Education calculator'!R144,'Education calculator'!B11='Education calculator'!R145),0.248,IF('Education calculator'!O149>=300,0.675,IF('Education calculator'!O149<300,0.45,'Education calculator'!Q145)))","v":0.45},"N/A",30,null,1,1,null,null,null,null,null,null,null,null,null,null,null,null,null,null,null,"Building Bulletin 98 (2nd Edition), Briefing Framework for Secondary School Projects"]
[{"$f":"IF(OR('Education calculator'!B11='Education calculator'!R142,'Education calculator'!B11='Education calculator'!R143),\"Education - Changing facilities with showers \",IF(OR('Education calculator'!B11='Education calculator'!R144,'Education calculator'!B11='Education calculator'!R145),\"Sporting facility with changing rooms and showers\",\"Requires building type definition in calculator\"))","v":"Requires building type definition in calculator"},{"$f":"IF(OR('Education calculator'!B11='Education calculator'!R142,'Education calculator'!B11='Education calculator'!R143),\"Changing facility with showers to be used by pupils \",IF(OR('Education calculator'!B11='Education calculator'!R144,'Education calculator'!B11='Education calculator'!R145),\"Changing facility with showers, used by students and/or staff, linked to a sporting/fitness facility e.g. gym, that is part of the assessed building.\"))","v":false},0,null,null,null,null,null,null,null,null,null,null,null,null,null,null,null,null,null,null,null,null,{"$f":"IF(OR('Education calculator'!B11='Education calculator'!R142,'Education calculator'!B11='Education calculator'!R143),0.12,IF(OR('Education calculator'!B11='Education calculator'!R144,'Education calculator'!B11='Education calculator'!R145),0.05,\"Requires building type definition\"))","v":"Requires building type definition"},null,null,null,null,null,null,null,null,null,null,null,null,null,null,null,null,null,null,null,null,null,null,null,null,null,null,null,null,null,null,null,null,null,"The Building Regulations 2000 Approved Document B Fire Safety"]
["Education - Lecture theatre","Lecture theatre with permanent seating and/or stage used by lecturers and/or for staged performances.",0.21830985915493001,null,null,null,null,null,null,null,null,null,null,null,null,null,null,null,null,null,null,null,null,null,null,null,null,null,null,null,null,null,null,null,null,null,null,null,null,null,null,null,null,null,null,null,null,null,null,null,null,null,null,null,null,null,null,"Employment Densities, a full guide, Arup Economics and Planning, 2001 (produced for English Partnerships and Regional Development Agencies)"]
["Education - Study area","Study/write-up area in sixth form, further and/or Higer Education colleges.",0.625]
["Education - Workshop","Small scale workshop type space used for practical/vocational demonstrations/learning.",6.3259259264444506E-2]
["Education - Information Technology space","Laboratory/room containing I.T equipment and used for teaching/research related to information technology",0.23100000000000001]
["Education - Laboratory","Laboratory space for teaching/learning related to science based subjects.",0.10625]
["Retail - Shop / retail unit(s) / retail warehouse","Shops: shop/retail unit(s)/retail warehouse(s). ","-",362,8.5,"-",{"$f":"IF(ISERROR((('Retail calculator'!$P$146/'Retail calculator'!$O$147)*'Activity database'!G32)+(('Retail calculator'!$O$146/'Retail calculator'!$O$147)*'Activity database'!G33)),\"Requires building information\",(('Retail calculator'!$P$146/'Retail calculator'!$O$147)*'Activity database'!G32)+(('Retail calculator'!$O$146/'Retail calculator'!$O$147)*'Activity database'!G33))","v":"Requires building information"},{"$f":"IF(ISERROR((('Retail calculator'!$P$146/'Retail calculator'!$O$147)*'Activity database'!H32)+(('Retail calculator'!$O$146/'Retail calculator'!$O$147)*'Activity database'!H33)),\"Requires building information\",(('Retail calculator'!$P$146/'Retail calculator'!$O$147)*'Activity database'!H32)+(('Retail calculator'!$O$146/'Retail calculator'!$O$147)*'Activity database'!H33))","v":"Requires building information"},{"$f":"IF(ISERROR((('Retail calculator'!$P$146/'Retail calculator'!$O$147)*'Activity database'!I32)+(('Retail calculator'!$O$146/'Retail calculator'!$O$147)*'Activity database'!I33)),\"Requires building information\",(('Retail calculator'!$P$146/'Retail calculator'!$O$147)*'Activity database'!I32)+(('Retail calculator'!$O$146/'Retail calculator'!$O$147)*'Activity database'!I33))","v":"Requires building information"},{"$f":"IF(ISERROR((('Retail calculator'!$P$146/'Retail calculator'!$O$147)*'Activity database'!J32)+(('Retail calculator'!$O$146/'Retail calculator'!$O$147)*'Activity database'!J33)),\"Requires building information\",(('Retail calculator'!$P$146/'Retail calculator'!$O$147)*'Activity database'!J32)+(('Retail calculator'!$O$146/'Retail calculator'!$O$147)*'Activity database'!J33))","v":"Requires building information"},{"$f":"IF(ISERROR((('Retail calculator'!$P$146/'Retail calculator'!$O$147)*'Activity database'!K32)+(('Retail calculator'!$O$146/'Retail calculator'!$O$147)*'Activity database'!K33)),\"Requires building information\",(('Retail calculator'!$P$146/'Retail calculator'!$O$147)*'Activity database'!K32)+(('Retail calculator'!$O$146/'Retail calculator'!$O$147)*'Activity database'!K33))","v":"Requires building information"},{"$f":"IF(ISERROR((('Retail calculator'!$P$146/'Retail calculator'!$O$147)*'Activity database'!L32)+(('Retail calculator'!$O$146/'Retail calculator'!$O$147)*'Activity database'!L33)),\"Requires building information\",(('Retail calculator'!$P$146/'Retail calculator'!$O$147)*'Activity database'!L32)+(('Retail calculator'!$O$146/'Retail calculator'!$O$147)*'Activity database'!L33))","v":"Requires building information"},{"$f":"IF(ISERROR((('Retail calculator'!$P$146/'Retail calculator'!$O$147)*'Activity database'!M32)+(('Retail calculator'!$O$146/'Retail calculator'!$O$147)*'Activity database'!M33)),\"Requires building information\",(('Retail calculator'!$P$146/'Retail calculator'!$O$147)*'Activity database'!M32)+(('Retail calculator'!$O$146/'Retail calculator'!$O$147)*'Activity database'!M33))","v":"Requires building information"},{"$f":"IF(ISERROR('Retail calculator'!$P$146/'Retail calculator'!$O$147)*'Activity database'!N32,\"Requires building information\",('Retail calculator'!$P$146/'Retail calculator'!$O$147)*'Activity database'!N32)","v":"Requires building information"},"N/A","N/A","N/A","-","-","-","-","N/A","-",{"$f":"IF(ISERROR('Retail calculator'!$P$146/'Retail calculator'!$O$147)*'Activity database'!X32,\"Requires building information\",('Retail calculator'!$P$146/'Retail calculator'!$O$147)*'Activity database'!X32)","v":"Requires building information"},"-","-",1,1,0.25,5.6,4.37,1,1,"-","-","-","-","-","-",{"$f":"AN32","v":1},"-","-",0.4,0.67700000000000005]
[null,null,"-","-","-","Staff",0.5,0.5,1,4,4,3,4,0.03,"N/A","N/A","N/A","-","-","-","-","N/A","-",1.58,"-","-","-","-","-","-","-","-","-","-","-","-","-","-","-",1,"-","-","-","-"]
[null,null,"-","-","-","Customer",0.35,0.65,0.1333,0.8,0.8,0.66700000000000004,0.8,"-","N/A","N/A","N/A","-","-","-","-","N/A","-","-","-","-","-","-","-","-","-","-","-","-","-","-","-","-","-","-","-","-","-","-"]
["Retail - Supermarket","Shops: supermarket","-",362,13,"-",{"$f":"IF(ISERROR((('Retail calculator'!$P$146/'Retail calculator'!$O$147)*'Activity database'!G35)+(('Retail calculator'!$O$146/'Retail calculator'!$O$147)*'Activity database'!G36)),\"Requires building information\",(('Retail calculator'!$P$146/'Retail calculator'!$O$147)*'Activity database'!G35)+(('Retail calculator'!$O$146/'Retail calculator'!$O$147)*'Activity database'!G36))","v":"Requires building information"},{"$f":"IF(ISERROR((('Retail calculator'!$P$146/'Retail calculator'!$O$147)*'Activity database'!H35)+(('Retail calculator'!$O$146/'Retail calculator'!$O$147)*'Activity database'!H36)),\"Requires building information\",(('Retail calculator'!$P$146/'Retail calculator'!$O$147)*'Activity database'!H35)+(('Retail calculator'!$O$146/'Retail calculator'!$O$147)*'Activity database'!H36))","v":"Requires building information"},{"$f":"IF(ISERROR((('Retail calculator'!$P$146/'Retail calculator'!$O$147)*'Activity database'!I35)+(('Retail calculator'!$O$146/'Retail calculator'!$O$147)*'Activity database'!I36)),\"Requires building information\",(('Retail calculator'!$P$146/'Retail calculator'!$O$147)*'Activity database'!I35)+(('Retail calculator'!$O$146/'Retail calculator'!$O$147)*'Activity database'!I36))","v":"Requires building information"},{"$f":"IF(ISERROR((('Retail calculator'!$P$146/'Retail calculator'!$O$147)*'Activity database'!J35)+(('Retail calculator'!$O$146/'Retail calculator'!$O$147)*'Activity database'!J36)),\"Requires building information\",(('Retail calculator'!$P$146/'Retail calculator'!$O$147)*'Activity database'!J35)+(('Retail calculator'!$O$146/'Retail calculator'!$O$147)*'Activity database'!J36))","v":"Requires building information"},{"$f":"IF(ISERROR((('Retail calculator'!$P$146/'Retail calculator'!$O$147)*'Activity database'!K35)+(('Retail calculator'!$O$146/'Retail calculator'!$O$147)*'Activity database'!K36)),\"Requires building information\",(('Retail calculator'!$P$146/'Retail calculator'!$O$147)*'Activity database'!K35)+(('Retail calculator'!$O$146/'Retail calculator'!$O$147)*'Activity database'!K36))","v":"Requires building information"},{"$f":"IF(ISERROR((('Retail calculator'!$P$146/'Retail calculator'!$O$147)*'Activity database'!L35)+(('Retail calculator'!$O$146/'Retail calculator'!$O$147)*'Activity database'!L36)),\"Requires building information\",(('Retail calculator'!$P$146/'Retail calculator'!$O$147)*'Activity database'!L35)+(('Retail calculator'!$O$146/'Retail calculator'!$O$147)*'Activity database'!L36))","v":"Requires building information"},{"$f":"IF(ISERROR((('Retail calculator'!$P$146/'Retail calculator'!$O$147)*'Activity database'!M35)+(('Retail calculator'!$O$146/'Retail calculator'!$O$147)*'Activity database'!M36)),\"Requires building information\",(('Retail calculator'!$P$146/'Retail calculator'!$O$147)*'Activity database'!M35)+(('Retail calculator'!$O$146/'Retail calculator'!$O$147)*'Activity database'!M36))","v":"Requires building information"},{"$f":"IF(ISERROR('Retail calculator'!$P$146/'Retail calculator'!$O$147)*'Activity database'!N35,\"Requires building information\",('Retail calculator'!$P$146/'Retail calculator'!$O$147)*'Activity database'!N35)","v":"Requires building information"},"N/A","N/A","N/A","-","-","-","-","N/A","-",{"$f":"IF(ISERROR('Retail calculator'!$P$146/'Retail calculator'!$O$147)*'Activity database'!X35,\"Requires building information\",('Retail calculator'!$P$146/'Retail calculator'!$O$147)*'Activity database'!X35)","v":"Requires building information"},"-","-",1,1,0.25,5.6,4.37,1,1,"-","-","-","-","-","-",{"$f":"AN35","v":1},"-","-",0.4,0.67700000000000005]
[null,null,"-","-","-","Staff",0.5,0.5,1,4,4,3,4,0.03,"N/A","N/A","N/A","-","-","-","-","N/A","-",1.58,"-","-","-","-","-","-","-","-","-","-","-","-","-","-","-",1,"-","-","-","-"]
[null,null,"-","-","-","Customers",0.35,0.65,0.1333,0.8,0.8,0.66700000000000004,0.8,"-","N/A","N/A","N/A","-","-","-","-","N/A","-","-","-","-","-","-","-","-","-","-","-","-","-","-","-","-","-","-","-","-","-","-"]
["Retail - Service provider","Financial and professional services - Financial services such as banks and building societies, professional services (other than health and medical services) including estate and employment agencies and betting offices. \n","-",304,8,"-",{"$f":"IF(ISERROR((('Retail calculator'!$P$146/'Retail calculator'!$O$147)*'Activity database'!G38)+(('Retail calculator'!$O$146/'Retail calculator'!$O$147)*'Activity database'!G39)),\"Requires building information\",(('Retail calculator'!$P$146/'Retail calculator'!$O$147)*'Activity database'!G38)+(('Retail calculator'!$O$146/'Retail calculator'!$O$147)*'Activity database'!G39))","v":"Requires building information"},{"$f":"IF(ISERROR((('Retail calculator'!$P$146/'Retail calculator'!$O$147)*'Activity database'!H38)+(('Retail calculator'!$O$146/'Retail calculator'!$O$147)*'Activity database'!H39)),\"Requires building information\",(('Retail calculator'!$P$146/'Retail calculator'!$O$147)*'Activity database'!H38)+(('Retail calculator'!$O$146/'Retail calculator'!$O$147)*'Activity database'!H39))","v":"Requires building information"},{"$f":"IF(ISERROR((('Retail calculator'!$P$146/'Retail calculator'!$O$147)*'Activity database'!I38)+(('Retail calculator'!$O$146/'Retail calculator'!$O$147)*'Activity database'!I39)),\"Requires building information\",(('Retail calculator'!$P$146/'Retail calculator'!$O$147)*'Activity database'!I38)+(('Retail calculator'!$O$146/'Retail calculator'!$O$147)*'Activity database'!I39))","v":"Requires building information"},{"$f":"IF(ISERROR((('Retail calculator'!$P$146/'Retail calculator'!$O$147)*'Activity database'!J38)+(('Retail calculator'!$O$146/'Retail calculator'!$O$147)*'Activity database'!J39)),\"Requires building information\",(('Retail calculator'!$P$146/'Retail calculator'!$O$147)*'Activity database'!J38)+(('Retail calculator'!$O$146/'Retail calculator'!$O$147)*'Activity database'!J39))","v":"Requires building information"},{"$f":"IF(ISERROR((('Retail calculator'!$P$146/'Retail calculator'!$O$147)*'Activity database'!K38)+(('Retail calculator'!$O$146/'Retail calculator'!$O$147)*'Activity database'!K39)),\"Requires building information\",(('Retail calculator'!$P$146/'Retail calculator'!$O$147)*'Activity database'!K38)+(('Retail calculator'!$O$146/'Retail calculator'!$O$147)*'Activity database'!K39))","v":"Requires building information"},{"$f":"IF(ISERROR((('Retail calculator'!$P$146/'Retail calculator'!$O$147)*'Activity database'!L38)+(('Retail calculator'!$O$146/'Retail calculator'!$O$147)*'Activity database'!L39)),\"Requires building information\",(('Retail calculator'!$P$146/'Retail calculator'!$O$147)*'Activity database'!L38)+(('Retail calculator'!$O$146/'Retail calculator'!$O$147)*'Activity database'!L39))","v":"Requires building information"},{"$f":"IF(ISERROR((('Retail calculator'!$P$146/'Retail calculator'!$O$147)*'Activity database'!M38)+(('Retail calculator'!$O$146/'Retail calculator'!$O$147)*'Activity database'!M39)),\"Requires building information\",(('Retail calculator'!$P$146/'Retail calculator'!$O$147)*'Activity database'!M38)+(('Retail calculator'!$O$146/'Retail calculator'!$O$147)*'Activity database'!M39))","v":"Requires building information"},{"$f":"IF(ISERROR('Retail calculator'!$P$146/'Retail calculator'!$O$147)*'Activity database'!N38,\"Requires building information\",('Retail calculator'!$P$146/'Retail calculator'!$O$147)*'Activity database'!N38)","v":"Requires building information"},"N/A","N/A","N/A","-","-","-","-","N/A","-",{"$f":"IF(ISERROR('Retail calculator'!$P$146/'Retail calculator'!$O$147)*'Activity database'!X38,\"Requires building information\",('Retail calculator'!$P$146/'Retail calculator'!$O$147)*'Activity database'!X38)","v":"Requires building information"},"-","-",1,1,0.25,5.6,4.37,1,1,"-","-","-","-","-","-",{"$f":"AN38","v":1},"-","-",0.4,0.67700000000000005]
[null,null,"-","-","-","Staff",0.5,0.5,1,4,4,3,4,0.03,"N/A","N/A","N/A","-","-","-","-","N/A","-",1.58,"-","-","-","-","-","-","-","-","-","-","-","-","-","-","-",1,"-","-","-","-"]
[null,null,"-","-","-","Customer",0.35,0.65,0.1333,0.8,0.8,0.66700000000000004,0.8,"-","N/A","N/A","N/A","-","-","-","-","N/A","-","-","-","-","-","-","-","-","-","-","-","-","-","-","-","-","-","-","-","-","-","-"]
["Retail - Shopping centre/complex","Mixture of shops, professional services.","-",362,9,"-",{"$f":"IF(ISERROR((('Retail calculator'!$P$146/'Retail calculator'!$O$147)*'Activity database'!G41)+(('Retail calculator'!$O$146/'Retail calculator'!$O$147)*'Activity database'!G42)),\"Requires building information\",(('Retail calculator'!$P$146/'Retail calculator'!$O$147)*'Activity database'!G41)+(('Retail calculator'!$O$146/'Retail calculator'!$O$147)*'Activity database'!G42))","v":"Requires building information"},{"$f":"IF(ISERROR((('Retail calculator'!$P$146/'Retail calculator'!$O$147)*'Activity database'!H41)+(('Retail calculator'!$O$146/'Retail calculator'!$O$147)*'Activity database'!H42)),\"Requires building information\",(('Retail calculator'!$P$146/'Retail calculator'!$O$147)*'Activity database'!H41)+(('Retail calculator'!$O$146/'Retail calculator'!$O$147)*'Activity database'!H42))","v":"Requires building information"},{"$f":"IF(ISERROR((('Retail calculator'!$P$146/'Retail calculator'!$O$147)*'Activity database'!I41)+(('Retail calculator'!$O$146/'Retail calculator'!$O$147)*'Activity database'!I42)),\"Requires building information\",(('Retail calculator'!$P$146/'Retail calculator'!$O$147)*'Activity database'!I41)+(('Retail calculator'!$O$146/'Retail calculator'!$O$147)*'Activity database'!I42))","v":"Requires building information"},{"$f":"IF(ISERROR((('Retail calculator'!$P$146/'Retail calculator'!$O$147)*'Activity database'!J41)+(('Retail calculator'!$O$146/'Retail calculator'!$O$147)*'Activity database'!J42)),\"Requires building information\",(('Retail calculator'!$P$146/'Retail calculator'!$O$147)*'Activity database'!J41)+(('Retail calculator'!$O$146/'Retail calculator'!$O$147)*'Activity database'!J42))","v":"Requires building information"},{"$f":"IF(ISERROR((('Retail calculator'!$P$146/'Retail calculator'!$O$147)*'Activity database'!K41)+(('Retail calculator'!$O$146/'Retail calculator'!$O$147)*'Activity database'!K42)),\"Requires building information\",(('Retail calculator'!$P$146/'Retail calculator'!$O$147)*'Activity database'!K41)+(('Retail calculator'!$O$146/'Retail calculator'!$O$147)*'Activity database'!K42))","v":"Requires building information"},{"$f":"IF(ISERROR((('Retail calculator'!$P$146/'Retail calculator'!$O$147)*'Activity database'!L41)+(('Retail calculator'!$O$146/'Retail calculator'!$O$147)*'Activity database'!L42)),\"Requires building information\",(('Retail calculator'!$P$146/'Retail calculator'!$O$147)*'Activity database'!L41)+(('Retail calculator'!$O$146/'Retail calculator'!$O$147)*'Activity database'!L42))","v":"Requires building information"},{"$f":"IF(ISERROR((('Retail calculator'!$P$146/'Retail calculator'!$O$147)*'Activity database'!M41)+(('Retail calculator'!$O$146/'Retail calculator'!$O$147)*'Activity database'!M42)),\"Requires building information\",(('Retail calculator'!$P$146/'Retail calculator'!$O$147)*'Activity database'!M41)+(('Retail calculator'!$O$146/'Retail calculator'!$O$147)*'Activity database'!M42))","v":"Requires building information"},{"$f":"IF(ISERROR('Retail calculator'!$P$146/'Retail calculator'!$O$147)*'Activity database'!N41,\"Requires building information\",('Retail calculator'!$P$146/'Retail calculator'!$O$147)*'Activity database'!N41)","v":"Requires building information"},"N/A","N/A","N/A","-","-","-","-","N/A","-",{"$f":"IF(ISERROR('Retail calculator'!$P$146/'Retail calculator'!$O$147)*'Activity database'!X41,\"Requires building information\",('Retail calculator'!$P$146/'Retail calculator'!$O$147)*'Activity database'!X41)","v":"Requires building information"},"-","-",1,1,0.25,5.6,4.37,1,1,"-","-","-","-","-","-",{"$f":"AN41","v":1},"-","-",0.4,0.67700000000000005]
[null,null,"-","-","-","Staff",0.5,0.5,1,4,4,3,4,0.03,"N/A","N/A","N/A","-","-","-","-","N/A","-",1.58,"-","-","-","-","-","-","-","-","-","-","-","-","-","-","-",1,"-","-","-","-"]
[null,null,"-","-","-","Customer",0.35,0.65,0.1333,0.8,0.8,0.66700000000000004,0.8,"-","N/A","N/A","N/A","-","-","-","-","N/A","-","-","-","-","-","-","-","-","-","-","-","-","-","-","-","-","-","-","-","-","-","-"]
["Retail - sales areas for display of bulky items","A retail sales/display area trading predominantly in bulky items, e.g. furniture, floor coverings, cycles, prams, large domestic appliances or other bulky goods, or trading on a wholesale self-selection basis.",0.14299999999999999]
["Retail - sales areas for display of non bulky items and/or customer service area.","A general sales/display areas in department stores, supermarkets, shops and/or customer service waiting and/or collection areas e.g. in banks, post office, bookmakers etc.",0.5]
["Retail - concourse/shopping mall","The central (shared) area within a shopping centre used for access by shoppers (typically a covered area containing one or more of benches, cafes, escalators etc.)",1.43]
["Retail - Staff office area and staffroom","Staff office space and staffroom, often located in 'back of house' areas.",9.5142857142857168E-2,null,null,null,null,null,null,null,null,null,null,null,null,null,null,{"$f":"IF(ISERROR('Retail calculator'!$P$146/'Retail calculator'!$O$147)*1,\"Requires building information\",('Retail calculator'!$P$146/'Retail calculator'!$O$147)*1)","v":"Requires building information"},null,null,{"$f":"IF(ISERROR('Retail calculator'!$P$146/'Retail calculator'!$O$147)*0.04,\"Requires building information\",('Retail calculator'!$P$146/'Retail calculator'!$O$147)*0.04)","v":"Requires building information"},null,null,null,null,null,null,null,null,null,null,null,null,0.67,null,null,1,"N/A"]
["Retail - Staff canteen dining area","Seated areas in a staff canteen that accompany a food preparation areas where food and drink is consumed by staff on the premises.",4.9700000000000001E-2,null,null,null,null,null,null,null,null,null,null,null,null,null,null,null,"see usage factor",null,"see usage factor","N/A","see usage factor",null,{"$f":"IF('Retail calculator'!F21=\"yes\",'Retail calculator'!G21*0.993*2.674,\"see note\")","v":"see note"},{"$f":"IF('Retail calculator'!F21=\"yes\",'Retail calculator'!G21*6.314*0.993,\"See note\")","v":"See note"},null,null,null,null,null,null,null,null,60,null,0.248,"N/A",30,null,1,1]
["Retail - Goods-in and storage area","Internal areas for receiving and storing goods.",1.0999999999999999E-2]
["Retail - Workshop","A workshop / vehicle servicing area within a car showroom or general workshop in other type of retail development.",6.8000000000000005E-2]
["Restaurants and cafés","Restaurants and cafés - For the sale of food and drink for consumption on the premises - restaurants, snack bars and cafes. ",null,null,null,null,null,null,null,null,null,null,null,null,null,null,null,null,null,null,null,null,null,null,null,null,null,null,null,null,null,null,null,null,null,null,null,null,null,1]
["Restaurants and cafés - Eating and drinking area","Seated areas that accompany a food preparation areas where food and drink is consumed by customers on the premises (includes customer service/counter areas)",0.2,null,null,null,null,null,null,null,null,null,null,null,null,null,null,null,null,null,null,null,null,null,null,null,null,null,null,null,null,null,null,null,null,null,null,null,null,1]
["Restaurants and cafés - Food preparation area","Kitchen areas in cafes/restaurants contained within the development used to prepare food for customers",0.108,null,null,null,null,null,null,null,null,null,null,null,null,null,null,null,null,null,null,null,null,null,null,null,1,1,null,5.6,4.37,1,1,0.44,null,null,null,null,null,1]
["Restaurants and cafés - Office area","Generic office space used by staff",0.109,null,null,null,null,null,null,null,null,null,null,null,null,null,null,null,null,null,null,null,null,null,null,null,null,null,null,null,null,null,null,null,null,null,null,null,null,1]
[]
["Should we have fixed use in the baseline for waste disposal, showers and pre-rinse taps regardless of whether they're specified in actual building.",null,null,null,null,null,null,null,null,null,null,null,null,null,null,null,null,null,null,null,null,null,null,null,"Should litres/meal be adjusted to account for fact not three courses?"]
[]
["A4 Drinking establishments",null,null,null,null,null,null,null,null,null,null,null,null,null,null,null,null,null,null,null,null,null,null,null,null,null,1,1,null,5.6,4.37,1,1,0.44,null,null,null,null,null,1]
["A5 Hot food takeaways",null,null,null,null,null,null,null,null,null,null,null,null,null,null,null,null,null,null,null,null,null,null,null,null,null,1,1,null,5.6,4.37,1,1,0.44,null,null,null,null,null,1]
["B1 Business - Workshop/light industry"]
[null,null,null,null,null,null,null,null,null,null,null,null,null,null,null,null,null,null,null,null,null,null,null,null,null,null,null,null,null,null,null,null,null,null,null,null,null,null,null,1]
["B2 General industrial - process/manufacturing unit",null,null,null,null,null,null,null,null,null,null,null,null,null,null,null,null,null,null,null,null,null,null,null,null,null,1,1,null,5.6,4.37,1,1,null,null,null,null,null,null,1]
["B8 Storage or distribution - Warehouse unit",null,null,null,null,null,null,null,null,null,null,null,null,null,null,null,null,null,null,null,null,null,null,null,null,null,1,1,null,5.6,4.37,1,1,null,null,null,null,null,null,1]
["Hotels",null,"Occupant density  (person/room)",null,null,null,null,null,null,null,null,null,null,null,null,null,null,null,null,null,null,"kg/ room/ night"]
["Hotel - Bedroom",null,1,null,null,null,null,null,null,null,null,null,null,null,null,null,null,null,null,null,null,3.6]
["Hotel - Staff",null,0.5,null,null,null,null,null,null,null,null,null,null,null,null,null,null,null,null,null,null,0]
["Hotel - restaurant"]
["C1 Boarding and guest houses",null,null,null,null,null,null,null,null,null,null,null,null,null,null,null,null,null,null,null,null,null,null,null,null,null,1,1,null,5.6,4.37,1,1,null,null,null,null,null,null,1]
["Hospital",null,null,null,null,null,null,null,null,null,null,null,null,null,null,null,null,null,null,null,null,null,null,null,null,null,1,1,null,5.6,4.37,1,1,null,null,null,null,null,null,1]
["Care home",null,null,null,null,null,null,null,null,null,null,null,null,null,null,null,null,null,null,null,null,null,null,null,null,null,1,1,null,5.6,4.37,1,1,null,null,null,null,null,null,1]
["Sheltered accommodation",null,null,null,null,null,null,null,null,null,null,null,null,null,null,null,null,null,null,null,null,null,null,null,null,null,1,1,null,5.6,4.37,1,1,null,null,null,null,null,null,1]
["Hall of residence",null,null,null,null,null,null,null,null,null,null,null,null,null,null,null,null,null,null,null,null,null,null,null,null,null,1,1,null,5.6,4.37,1,1,null,null,null,null,null,null,1]
["Prison houseblock",null,null,null,null,null,null,null,null,null,null,null,null,null,null,null,null,null,null,null,null,null,null,null,null,null,1,1,null,5.6,4.37,1,1,null,null,null,null,null,null,1]
["C2A Secure Residential Institution - Secure local authority accommodation",null,null,null,null,null,null,null,null,null,null,null,null,null,null,null,null,null,null,null,null,null,null,null,null,null,1,1,null,5.6,4.37,1,1,null,null,null,null,null,null,1]
["C2A Secure Residential Institution - Military barracks",null,null,null,null,null,null,null,null,null,null,null,null,null,null,null,null,null,null,null,null,null,null,null,null,null,1,1,null,5.6,4.37,1,1,null,null,null,null,null,null,1]
["D1 Non-residential Institutions - Library",null,null,null,null,null,null,null,null,null,null,null,null,null,null,null,null,null,null,null,null,null,null,null,null,null,1,1,null,5.6,4.37,1,1,null,null,null,null,null,null,1]
["D1 Non-residential Institutions - Museum or Gallery",null,null,null,null,null,null,null,null,null,null,null,null,null,null,null,null,null,null,null,null,null,null,null,null,null,1,1,null,5.6,4.37,1,1,null,null,null,null,null,null,1]
["D1 Non-residential Institutions - Community centre, day centre or place of worship",null,null,null,null,null,null,null,null,null,null,null,null,null,null,null,null,null,null,null,null,null,null,null,null,null,1,1,null,5.6,4.37,1,1,null,null,null,null,null,null,1]
["D1 Non-residential Institutions - Primary Health Care Building",null,null,null,null,null,null,null,null,null,null,null,null,null,null,null,null,null,null,null,null,null,null,null,null,null,1,1,null,5.6,4.37,1,1,null,null,null,null,null,null,1]
["D1 Non-residential Institutions - Creche",null,null,null,null,null,null,null,null,null,null,null,null,null,null,null,null,null,null,null,null,null,null,null,null,null,1,1,null,5.6,4.37,1,1,null,null,null,null,null,null,1]
["D1 Non-residential Institutions - Crown and County Courts",null,null,null,null,null,null,null,null,null,null,null,null,null,null,null,null,null,null,null,null,null,null,null,null,null,1,1,null,5.6,4.37,1,1,null,null,null,null,null,null,1]
["D1 Non-residential Institutions - School",null,null,null,null,null,null,null,null,null,null,null,null,null,null,null,null,null,null,null,null,null,null,null,null,null,1,1,null,5.6,4.37,1,1,null,null,null,null,null,null,1]
["D1 Non-residential Institutions - Further/ Higher education building or training centre",null,null,null,null,null,null,null,null,null,null,null,null,null,null,null,null,null,null,null,null,null,null,null,null,null,1,1,null,5.6,4.37,1,1,null,null,null,null,null,null,1]
["D2 General Assembly and Leisure - Theatre or cinema",null,null,null,null,null,null,null,null,null,null,null,null,null,null,null,null,null,null,null,null,null,null,null,null,null,1,1,null,5.6,4.37,1,1,null,null,null,null,null,null,1]
["D2 General Assembly and Leisure - leisure centre/gym",null,null,null,null,null,null,null,null,null,null,null,null,null,null,null,null,null,null,null,null,null,null,null,null,null,1,1,null,5.6,4.37,1,1,null,null,null,null,null,null,1]
["D2 General Assembly and Leisure -Swimming pool",null,null,null,null,null,null,null,null,null,null,null,null,null,null,null,null,null,null,null,null,null,null,null,null,null,1,1,null,5.6,4.37,1,1,null,null,null,null,null,null,1]
["D2 General Assembly and Leisure - Night Club or dance hall",null,null,null,null,null,null,null,null,null,null,null,null,null,null,null,null,null,null,null,null,null,null,null,null,null,1,1,null,5.6,4.37,1,1,null,null,null,null,null,null,1]
["Residential spaces",null,null,null,null,null,null,null,null,null,null,null,null,null,null,null,null,null,null,null,null,null,null,null,null,null,1,1,null,5.6,4.37,1,1,null,null,null,null,null,null,1]
["Other - Bus/train stations",null,null,null,null,null,null,null,null,null,null,null,null,null,null,null,null,null,null,null,null,null,null,null,null,null,1,1,null,5.6,4.37,1,1,null,null,null,null,null,null,1]
["Other - Emergency services",null,null,null,null,null,null,null,null,null,null,null,null,null,null,null,null,null,null,null,null,null,null,null,null,null,1,1,null,5.6,4.37,1,1,null,null,null,null,null,null,1]
["Other - Telephone exchanges",null,null,null,null,null,null,null,null,null,null,null,null,null,null,null,null,null,null,null,null,null,null,null,null,null,1,1,null,5.6,4.37,1,1,null,null,null,null,null,null,1]
["Other - Car Parks 24 hrs",null,null,null,null,null,null,null,null,null,null,null,null,null,null,null,null,null,null,null,null,null,null,null,null,null,1,1,null,5.6,4.37,1,1,null,null,null,null,null,null,1]
["Other - Stand alone utility block",null,null,null,null,null,null,null,null,null,null,null,null,null,null,null,null,null,null,null,null,null,null,null,null,null,1,1,null,5.6,4.37,1,1,null,null,null,null,null,null,1]
["Other - Petrol stations",null,null,null,null,null,null,null,null,null,null,null,null,null,null,null,null,null,null,null,null,null,null,null,null,null,1,1,null,5.6,4.37,1,1,null,null,null,null,null,null,1]
["Other - Hostel",null,null,null,null,null,null,null,null,null,null,null,null,null,null,null,null,null,null,null,null,null,null,null,null,null,1,1,null,5.6,4.37,1,1,null,null,null,null,null,null,1]
["Other - motor vehicle showroom",null,null,null,null,null,null,null,null,null,null,null,null,null,null,null,null,null,null,null,null,null,null,null,null,null,1,1,null,5.6,4.37,1,1,null,null,null,null,null,null,1]
["Other - Launderette",null,null,null,null,null,null,null,null,null,null,null,null,null,null,null,null,null,null,null,null,null,null,null,null,null,1,1,null,5.6,4.37,1,1,null,null,null,null,null,null,1]

{"sheet":"Restaurant and cafes calculator","index":3,"n_rows":0,"n_cols":0,"rows_kept":0,"cut":false,"hidden":true,"merged":[]}

{"sheet":"Cineman and Theatres","index":4,"n_rows":0,"n_cols":0,"rows_kept":0,"cut":false,"hidden":true,"merged":[]}

{"sheet":"Leisure centres","index":5,"n_rows":0,"n_cols":0,"rows_kept":0,"cut":false,"hidden":true,"merged":[]}

{"sheet":"Office calculator","index":6,"n_rows":236,"n_cols":20,"rows_kept":236,"cut":false,"hidden":true,"merged":[[28,1,29,1],[31,1,32,1],[10,2,10,3],[53,7,63,12],[31,7,34,12],[25,1,26,1],[13,2,13,4],[14,2,14,4],[15,2,15,4],[16,2,16,4],[76,7,78,12],[28,7,30,12],[12,7,13,14],[15,7,15,14],[16,7,16,14],[22,7,24,12]]}
[]
[null,"BREEAM-NOR v6.1 Wat 01 Water consumption: Water efficiency calculator for new non domestic office buildings"]
[]
[null,"Building details",null,null,null,null,null,null,"Key"]
[null,null,null,null,null,null,null,null,null,"Cells that are white with a black border require user input (data entry/option selection)"]
[null,"Building name",{"$f":"'User Instructions'!D8:F8","v":{"$error":"#VALUE!"}},null,null,null,null,null,null,"Cells that are light grey contain fixed data or a formula and do not require any user input"]
[null,null,null,null,null,null,null,null,null,"Cells that are dark grey are user input cells which are not applicable due to either building type or user input/option selection or default setting. Note these cells can change to ones requiring user input depending on the users option selection in other cells."]
[null,"BRE assessment reference no.",{"$f":"'User Instructions'!D10:F10","v":{"$error":"#VALUE!"}},null,null,null,null,null,">"]
[]
[null,"Building type","Description of building type",null,"Default occupancy","Default annual days/operation","Default daily hours of operation"]
[null,{"$f":"'Activity database'!A4","v":"Office"},{"$f":"VLOOKUP(B11,'Activity database'!A:B,2,FALSE)","v":"Offices and workshop business (including those with a basic (category 1) laboratory area)"},null,{"$f":"IF(O145=0,Q144,O145)","v":"Requires building information"},{"$f":"VLOOKUP(B11,'Activity database'!A:AN,4,FALSE)","v":253},{"$f":"VLOOKUP(B11,'Activity database'!A:AN,5,FALSE)","v":10}]
[]
[null,"Main building activity areas","Description of activity area",null,null,"Activity area present in building?","Net Floor Area (m2)","Note: the  activity areas defined opposite are used to estimate the assessed building's default occupancy and therefore water consumption benchmark. These areas are chosen as they are deemed, by in large, to represent the permanently occupied spaces in the building and therefore reflect the number of building occupants/users. As a result it is not necessary to include all areas of the building that may be present, as the areas not defined are assumed to be used by the occupants of the building already accounted for by those areas that are listed."]
[{"$f":"IF(F14=$Q$136,\">\",IF(AND(F14=$Q$137,G14=\"\"),\">\",\"\"))","v":">"},{"$f":"'Activity database'!A5","v":"Office - Office areas"},{"$f":"VLOOKUP(B14,'Activity database'!A:B,2,FALSE)","v":"Cellular or open plan office space, including staff kitchen where present/adjacent and reception areas. Exlcude meeting rooms, visitor waiting or circulation areas."},null,null,"Please select"]
[{"$f":"IF(F15=$Q$136,\">\",IF(AND(F15=$Q$137,G15=\"\"),\">\",\"\"))","v":">"},{"$f":"'Activity database'!A7","v":"Office - Small workshop / laboratory space"},{"$f":"VLOOKUP(B15,'Activity database'!A:B,2,FALSE)","v":"Small scale workshop or category 1 laboratory area"},null,null,"Please select"]
[{"$f":"IF(F16=$Q$136,\">\",IF(AND(F16=$Q$137,G16=\"\"),\">\",\"\"))","v":">"},{"$f":"'Activity database'!A6","v":"Office - Staff canteen dining area"},{"$f":"VLOOKUP(B16,'Activity database'!A:B,2,FALSE)","v":"Seated dining areas that accompany a permanently staffed kitchen preparing food for consumption on the premises (excludes small un-staffed kitchen's used by office staff to re-heat food, make tea etc.)"},null,null,"Please select",null,"Note: Only select this activity if there is a permanently staffed kitchen that will prepare hot and cold meals for the building's staff (and visitors). Enter the area of the seated dining area only (not kitchen/servery areas), this is used to estimate the number of covers per day for the restaurant and subsequently the number of kitchen staff and water consumption from food preparation activity area."]
[{"$f":"IF(F17=$Q$136,\">\",\"\")","v":">"},{"$f":"'Activity database'!A8","v":"Office - Fitness suite/gym (with changing facility and showers)"},{"$f":"VLOOKUP(B17,'Activity database'!A:B,2,FALSE)","v":"A fitness suite or gym that is part of the office building/development  and used by the building's employees only. The gym will have its own changing facility with showers."},null,null,"Please select",null,{"$f":"IF(F17=Q137,\"Note: Net floor area is not required for this activity. Its inclusion (or otherwise) simply determines the usage/person/day factor and therefore resulting water consumption from the showers.\",\"\")","v":""}]
[]
[null,"Water consumption - building microcomponent"]
[]
[null,"WC component - all activity areas","units","Specification","Usage/person/day","Usage factor","Consumption (L/person/day)",null,null,null,null,null,null,{"$f":"B21","v":"WC component - all activity areas"},"Baseline \nPerformance Specification","Usage/person/day","Usage factor","Baseline Consumption (L/person/day)"]
[{"$f":"IF(B22=$Q$136,\">\",\"\")","v":">"},"Please select","Effective flush volume (Litres)",null,{"$f":"IF(B22=R136,\"\",IF(B22=R137,VLOOKUP($B$11,'Activity database'!$A:$AN,9,FALSE),IF(B22=R138,VLOOKUP($B$11,'Activity database'!$A:$BM,10,FALSE))))","v":""},{"$f":"VLOOKUP($B$11,'Activity database'!$A:$BM,27,FALSE)","v":1},{"$f":"IF(ISERROR((D22*E22*F22*(VLOOKUP(B11,'Activity database'!A:BA,7,FALSE)))),Q144,(D22*E22*F22*(VLOOKUP(B11,'Activity database'!A:BA,7,FALSE))))","v":"Requires building information"},{"$f":"IF(B22=R136,\"Note: please select the relevant option for WC component opposite\",\"\")","v":"Note: please select the relevant option for WC component opposite"},null,null,null,null,null,{"$f":"B22","v":"Please select"},{"$f":"IF($D$22=\"\",0,VLOOKUP($N$22,'Activity database'!$AT:$BA,2,FALSE))","v":0},{"$f":"E22","v":""},{"$f":"F22","v":1},{"$f":"IF($D$22=\"\",0,O22*$P$22*$Q$22*(VLOOKUP($B$11,'Activity database'!$A:$BA,7,FALSE)))","v":0}]
[null,{"$f":"'Activity database'!K3","v":"WC - female"},"Effective flush volume (Litres)",null,{"$f":"VLOOKUP($B$11,'Activity database'!$A:$BM,11,FALSE)","v":4},{"$f":"VLOOKUP($B$11,'Activity database'!$A:$BM,27,FALSE)","v":1},{"$f":"D23*E23*F23*(VLOOKUP(B11,'Activity database'!A:BA,8,FALSE))","v":0},"Note: Where the WC facilities are non-gender specific, please still enter the WC specification against both WC male and WC female categories i.e. if there are two WCs with a 6 litre effective flush, then enter 6 litres against both male and female categories. The calculation will not double count water consumption in this instance as the consumption figure calculated for each WC component is adjusted by the ratio of male to female users for this building type.",null,null,null,null,null,{"$f":"B23","v":"WC - female"},{"$f":"IF($D$23=\"\",0,VLOOKUP($N$23,'Activity database'!$AT:$BA,2,FALSE))","v":0},{"$f":"E23","v":4},{"$f":"F23","v":1},{"$f":"IF($D$23=\"\",0,O23*$P$23*$Q$23*(VLOOKUP($B$11,'Activity database'!$A:$BA,8,FALSE)))","v":0}]
[]
[null,"Urinal component - all activity areas","units","Specification","No. of cisterns","Flushing frequency (flushes/hour)","Consumption (L/person/day)",null,null,null,null,null,null,"Urinal component - all activity areas","Baseline \nPerformance Specification","Urinal consumption (L/bowl/day)","Urinal consumption (L/day)","Baseline Consumption (L/person/day)"]
[{"$f":"IF(AND(D26>0,OR(E26=\"\",F26=\"\")),\">\",\"\")","v":""},"Automatically operated flushing cistern","Cistern capacity (Litres)",null,null,null,{"$f":"IF(OR(D26=0,E26=0,F26=0,B22=R138),0,(D26*E26*F26*G11)/O145)","v":0},null,null,null,null,null,null,{"$f":"B26","v":"Automatically operated flushing cistern"},{"$f":"IF($D$26=0,0,IF($D$27=1,'Activity database'!$AU$11,'Activity database'!$AU$10))","v":0},{"$f":"O26*$G$11","v":0},{"$f":"P26*$D$27","v":0},{"$f":"IF(B22=R138,0,$Q$26/O145)","v":{"$error":"#DIV/0!"}}]
[{"$f":"IF(AND(D26>0,D27=\"\"),\">\",\"\")","v":""},null,"No. of urinal bowls"]
[null,null,"units","Specification","Usage/person/day","Usage factor","Consumption (L/person/day)",null,null,null,null,null,null,"Urinal component - all activity areas","Baseline \nPerformance Specification","Usage/person/day","Usage factor","Baseline Consumption (L/person/day)"]
[null,"Manual/automatic operated pressure flushing valve (all activity areas)","Flush volume (litres)",null,{"$f":"VLOOKUP($B$11,'Activity database'!$A:$AN,12,FALSE)","v":3},{"$f":"VLOOKUP($B$11,'Activity database'!$A:$AN,28,FALSE)","v":1},{"$f":"IF(OR(D29=0,E29=0,F29=0,B22=R138),0,(D29*E29*F29)*(VLOOKUP(B11,'Activity database'!A:BA,7,FALSE))*(D30/(D27+D30+D33)))","v":0},{"$f":"IF(B22=R138,\"\",N149)","v":"Note: This consumption total accounts for the ratio of male users for this building type i.e. the ratio of building users who will operate the flush. Where more than one type of urinal flushing control is specified in the building, this consumption figure is adjusted by a ratio of use. the ratio is determined according to the proportion of urinals bowls in the building operated using this type of control."},null,null,null,null,null,{"$f":"B29","v":"Manual/automatic operated pressure flushing valve (all activity areas)"},{"$f":"'Activity database'!$AU$12","v":1},{"$f":"E29","v":3},{"$f":"F29","v":1},{"$f":"IF(B22=R138,0,IF($D$29=\"\",0,$O$29*$P$29*$Q$29*(VLOOKUP(B11,'Activity database'!$A:$BA,7,FALSE)))*(D30/(D27+D30+D33)))","v":0}]
[{"$f":"IF(AND(D29>0,D30=\"\"),\">\",\"\")","v":""},null,"No. of urinal bowls"]
[null,null,"units","Specification","Usage/person/day","Usage factor","Consumption (L/person/day)",null,null,null,null,null,null,"Urinal component - all activity areas","Baseline \nPerformance Specification","Usage/person/day","Usage factor","Baseline Consumption (L/person/day)"]
[{"$f":"IF(B22=R138,\"\",IF(D32=$Q$136,\">\",\"\"))","v":">"},"Waterless urinals (all activity areas)","Flush volume (litres)","Please select",{"$f":"VLOOKUP($B$11,'Activity database'!$A:$AN,12,FALSE)","v":3},{"$f":"VLOOKUP($B$11,'Activity database'!$A:$AN,28,FALSE)","v":1},0,{"$f":"IF(OR(B22=R138,B22=R136,D32=P138),\"\",IF(AND(D32=P137,D33>0),N150,IF(OR(D32=R136,D32=P137),N151)))","v":""},null,null,null,null,null,{"$f":"B32","v":"Waterless urinals (all activity areas)"},{"$f":"'Activity database'!$AU$12","v":1},{"$f":"E32","v":3},{"$f":"F32","v":1},{"$f":"IF(B22=R138,0,IF(OR($D$32=\"\",$D$32=P136,$D$32=P138),0,$O$32*$P$32*$Q$32*(VLOOKUP(B11,'Activity database'!A:BA,7,FALSE)))*(D33/(D26+D30+D33)))","v":0}]
[{"$f":"IF(AND(D32=P137,D33=\"\"),\">\",\"\")","v":""},null,"No. of urinal bowls",1]
[]
[null,null,"units","Specification","Usage/person/day","Usage factor","Consumption (L/person/day)"]
[null,"Taps  components (personal hygiene) - all activity areas ",null,null,null,null,null,null,null,null,null,null,null,{"$f":"B36","v":"Taps  components (personal hygiene) - all activity areas "},"Baseline Performance Specification","Usage/person/day","Usage factor","Baseline Consumption (L/person/day)"]
[null,{"$f":"'Activity database'!M3","v":"Wash hand basin taps"},"Flow rate (litres/min)",null,{"$f":"VLOOKUP($B$11,'Activity database'!$A:$AN,13,FALSE)","v":4},{"$f":"VLOOKUP($B$11,'Activity database'!$A:$AN,29,FALSE)","v":0.25},{"$f":"(D37*E37*F37)*VLOOKUP(B11,'Activity database'!A:AR,44,FALSE)","v":0},null,null,null,null,null,null,{"$f":"B37","v":"Wash hand basin taps"},{"$f":"IF($D$37=\"\",0,VLOOKUP($N$37,'Activity database'!$AT:$BA,2,FALSE))","v":0},{"$f":"E37","v":4},0.25,{"$f":"IF($D$37=\"\",0,(O37*$P$37*$Q$37)*(VLOOKUP($B$11,'Activity database'!$A:$AR,44,FALSE)))","v":0}]
[null,{"$f":"'Activity database'!N3","v":"Shower use"},"Flow rate (litres/min)",null,{"$f":"IF(F17=\"no\",VLOOKUP($B$11,'Activity database'!$A:$AN,14,FALSE),VLOOKUP(B17,'Activity database'!A:BC,14,FALSE))","v":0.154},{"$f":"VLOOKUP($B$11,'Activity database'!$A:$AN,30,FALSE)","v":5.6},{"$f":"D38*E38*F38","v":0},null,null,null,null,null,null,"Shower use",{"$f":"IF($D$38=\"\",0,'Activity database'!AU8)","v":0},0.154,5.6,{"$f":"IF($D$38=\"\",0,O38*$P$38*$Q$38)","v":0}]
["Hide rows: N/A for offices",{"$f":"'Activity database'!O3","v":"Shower use (bath present)"},"Flow rate (litres/min)",null,{"$f":"VLOOKUP($B$11,'Activity database'!$A:$AN,15,FALSE)","v":"N/A"},{"$f":"VLOOKUP($B$11,'Activity database'!$A:$AN,31,FALSE)","v":4.37},{"$f":"IF(E39=\"N/A\",0,D39*E39*F39)","v":0},"Hide rows: N/A for offices",null,null,null,null,null,"Shower use (bath present)",{"$f":"IF($D$39=\"\",0,'Activity database'!AU8)","v":0},"N/A",4.37,{"$f":"IF($D$39=\"\",0,O39*$P$39*$Q$39)","v":0}]
["Hide rows: N/A for offices",{"$f":"'Activity database'!P3","v":"Bath use (no shower present) "},"Capacity to overflow (Litres)",null,{"$f":"VLOOKUP($B$11,'Activity database'!$A:$AN,16,FALSE)","v":"N/A"},{"$f":"VLOOKUP($B$11,'Activity database'!$A:$AN,32,FALSE)","v":1},{"$f":"IF(E40=\"n/a\",0,((D40*E40*F40)*'Activity database'!AQ4))","v":0},"Hide rows: N/A for offices",null,null,null,null,null,"Bath use (no shower present) ",{"$f":"IF($D$40=\"\",0,'Activity database'!AU9)","v":0},"N/A",1,{"$f":"IF($D$40=\"\",0,((O40*$P$40*$Q$40)*(VLOOKUP($B$11,'Activity database'!$A:$AR,43,FALSE))))","v":0}]
["Hide rows: N/A for offices",{"$f":"'Activity database'!Q3","v":"Bath use (shower present)"},"Capacity to overflow (Litres)",null,{"$f":"VLOOKUP($B$11,'Activity database'!$A:$AN,17,FALSE)","v":"N/A"},{"$f":"VLOOKUP($B$11,'Activity database'!$A:$AN,33,FALSE)","v":1},{"$f":"IF(E41=\"n/a\",0,((D41*E41*F41)*'Activity database'!AQ4))","v":0},"Hide rows: N/A for offices",null,null,null,null,null,"Bath use (shower present)",{"$f":"IF($D$41=\"\",0,'Activity database'!AU9)","v":0},"N/A",1,{"$f":"IF($D$41=\"\",0,((O41*$P$41*$Q$41)*(VLOOKUP($B$11,'Activity database'!$A:$AR,43,FALSE))))","v":0}]
[null,{"$f":"'Activity database'!X3","v":"Fixed use - vessel filling"},"Litres/person/day","-","-","-",{"$f":"IF(F17=\"yes\",VLOOKUP(B11,'Activity database'!A:BA,24,FALSE)+VLOOKUP(B17,'Activity database'!A:BA,24,FALSE),VLOOKUP(B11,'Activity database'!A:BA,24,FALSE))","v":1.58},null,null,null,null,null,null,"Fixed use - vessel filling","N/A","N/A","N/A",{"$f":"$G$42","v":1.58}]
[null,"Tap components (cleaning) - staff kitchenette",null,null,null,null,null,null,null,null,null,null,null,{"$f":"B43","v":"Tap components (cleaning) - staff kitchenette"}]
[null,{"$f":"'Activity database'!R3","v":"Kitchen taps - kitchenette"},"Flow rate (litres/min)",null,{"$f":"VLOOKUP($B$14,'Activity database'!$A:$AN,18,FALSE)","v":1},{"$f":"VLOOKUP($B$14,'Activity database'!$A:$AN,34,FALSE)","v":0.67},{"$f":"(D44*E44*F44)*(VLOOKUP(B11,'Activity database'!A:AR,44,FALSE))","v":0},null,null,null,null,null,null,{"$f":"B44","v":"Kitchen taps - kitchenette"},{"$f":"IF($D$44=\"\",0,VLOOKUP($N$44,'Activity database'!$AT:$BA,2,FALSE))","v":0},{"$f":"E44","v":1},{"$f":"F44","v":0.67},{"$f":"IF($D$44=\"\",0,(O44*$P$44*$Q$44)*(VLOOKUP($B$11,'Activity database'!$A:$AR,44,FALSE)))","v":0}]
[null,{"$f":"'Activity database'!U3","v":"Dishwasher"},"Litres/cycle",null,{"$f":"VLOOKUP($B$14,'Activity database'!$A:$AN,21,FALSE)","v":0.04},{"$f":"VLOOKUP($B$14,'Activity database'!$A:$AN,37,FALSE)","v":1},{"$f":"D45*E45*F45","v":0},null,null,null,null,null,null,{"$f":"B45","v":"Dishwasher"},{"$f":"IF($D$45=\"\",0,'Activity database'!AU16)","v":0},{"$f":"E45","v":0.04},{"$f":"F45","v":1},{"$f":"O45*$P$45*$Q$45","v":0}]
[null,"Tap components (cleaning and food preparation) - staff canteen food preparation area",null,null,null,null,null,null,null,null,null,null,null,{"$f":"B46","v":"Tap components (cleaning and food preparation) - staff canteen food preparation area"}]
[null,{"$f":"'Activity database'!S3","v":"Kitchen taps - pre-rinse nozzle"},"Flow rate (litres/min)",null,"-",{"$f":"VLOOKUP($B$16,'Activity database'!A:BC,35,FALSE)","v":60},{"$f":"IF(ISERROR((D47*F47)/O145),Q144,((D47*F47)/O145))","v":"Requires building information"},null,null,null,null,null,null,{"$f":"B47","v":"Kitchen taps - pre-rinse nozzle"},{"$f":"IF($D$47=\"\",0,VLOOKUP($N$47,'Activity database'!$AT:$BA,2,FALSE))","v":0},{"$f":"E47","v":"-"},60,{"$f":"IF($D$47=\"\",0,(O47*$Q$47)/$O$145)","v":0}]
[null,{"$f":"'Activity database'!U3","v":"Dishwasher"},"Litres/rack",null,"-",{"$f":"VLOOKUP($B$16,'Activity database'!A:BC,37,FALSE)","v":0.217},{"$f":"IF(ISERROR((F48*G16*D48)/O145),Q144,((F48*G16*D48)/O145))","v":"Requires building information"},null,null,null,null,null,null,"Dishwasher",{"$f":"IF($D$48=\"\",0,'Activity database'!AU19)","v":0},"-",0.217,{"$f":"IF($D$48=\"\",0,($Q$48*$G$16*O48)/$O$145)","v":0}]
[null,{"$f":"'Activity database'!W3","v":"Waste disposal unit"},"Flow rate (litres/min)",null,"-",{"$f":"VLOOKUP($B$16,'Activity database'!A:BC,39,FALSE)","v":30},{"$f":"IF(ISERROR((D49*F49)/O145),Q144,((D49*F49)/O145))","v":"Requires building information"},null,null,null,null,null,null,"Waste disposal unit",{"$f":"IF($D$49=\"\",0,VLOOKUP($N$49,'Activity database'!$AT:$BA,2,FALSE))","v":0},"-",30,{"$f":"IF($D$49=\"\",0,(O49*$Q$49)/$O$145)","v":0}]
["N/A for Offices",{"$f":"'Activity database'!V3","v":"Washing machine"},"Litres/kg dry load",null,{"$f":"VLOOKUP($B$11,'Activity database'!$A:$AN,22,FALSE)","v":"N/A"},{"$f":"VLOOKUP($B$11,'Activity database'!$A:$AN,38,FALSE)","v":"-"},{"$f":"IF(ISERROR(IF(E50=\"N/A\",0,IF(F16=\"Yes\",(D50*E50*F50),0))),Q144,IF(E50=\"N/A\",0,IF(F16=\"Yes\",(D50*E50*F50),0)))","v":0},"N/A for Offices",null,null,null,null,null,"Washing machine",{"$f":"IF($D$50=\"\",0,'Activity database'!AU20)","v":0},"N/A","-",{"$f":"IF($D$50=\"\",0,IF($F$16=\"Yes\",(O50*$P$50*$Q$50)))","v":0}]
[null,{"$f":"'Activity database'!Y3","v":"Fixed use - food preparation"},"Litres/person/day","-","-","-",{"$f":"IF(ISERROR(IF(F16=\"Yes\",(VLOOKUP(B16,'Activity database'!A:BC,25,FALSE)/O145),0)),Q144,IF(F16=\"Yes\",(VLOOKUP(B16,'Activity database'!A:BC,25,FALSE)/O145),0))","v":0},null,null,null,null,null,null,"Fixed use - food preparation","N/A",{"$f":"E51","v":"-"},"N/A",{"$f":"$G$51","v":0}]
[null,{"$f":"'Activity database'!Z3","v":"Fixed use - kitchen cleaning"},"Litres/person/day","-","-","-",{"$f":"IF(ISERROR(IF(F16=\"Yes\",(VLOOKUP(B16,'Activity database'!A:BC,26,FALSE)/O145),0)),Q144,(IF(F16=\"Yes\",(VLOOKUP(B16,'Activity database'!A:BC,26,FALSE)/O145),0)))","v":0},null,null,null,null,null,null,"Fixed use - kitchen cleaning","N/A",{"$f":"E52","v":"-"},"N/A",{"$f":"$G$52","v":0}]
[]
[null,null,null,null,null,null,"Microcomponent consumption \n(L/person/day)","Note: This total includes the contributions from fixed uses, including where applicable vessel filling, kitchen cleaning and food preparation. Default fixed use totals are included with the calculations to provide a more accurate reflection of the buildings total water consumption. The fixed use totals are not however included in the water consumption total used to determine the assessed buildings percentage improvement and the number of BREEAM credits achieved. The percentage improvement is based only on the consumption of water from uses that can be heavily influenced by the microcomponent specification e.g. WC flushing.",null,null,null,null,null,null,null,null,null,"Baseline Consumption (L/person/day) - exluding fixed uses"]
[null,null,null,null,null,"Total",{"$f":"IF(OR(G22=Q144,AND(F14=Q138,F15=Q138,F16=Q138,F17=Q138)),Q144,(SUM(G22:G23)+G26+G29+G32+SUM(G37:G42)+SUM(G44:G45)+SUM(G47:G52)))","v":"Requires building information"},null,null,null,null,null,null,null,null,null,"Total ",{"$f":"SUM(R22+R23)+R26+R29+R32+SUM(R37:R42)+SUM(R44:R45)+SUM(R47:R52)-R65","v":{"$error":"#DIV/0!"}}]
[]
[null,"Minimum requirements according to EU taxonomy for sustainable finance"]
[{"$f":"IF(G58=$Q$136,\">\",\"\")","v":">"},null,null,null,null,"Do all the installed wash hand basin taps and kitchen taps have a maximum water flow of 6 litres/min?","Please select"]
[">",null,null,null,null,"Do all the installed showers have a maximum water flow of 8 litres/min?","Please select"]
[">",null,null,null,null,"Do all WCs, including suites, bowls and flushing cisterns, have a full flush volume of a maximum of 6 litres and a maximum average flush volume of 3,5 litres?","Please select"]
[">",null,null,null,null,"Do all urinals use a maximum of 2 litres/bowl/hour and flushing urinals have a maximum full flush volume of 1 litre? ","Please select"]
[null,null,null,null,null,"Is all the  EU taxonomy requirements for sanitary equipment met?",{"$f":"IF(OR(G58=\"Please select\",G58=\"No\"),\"No\",IF(OR(G59=\"Please Select\",G59=\"No\"),\"No\",IF(OR(G60=\"Please Select\",G60=\"No\"),\"No\",IF(OR(G61=\"Please Select\",G61=\"No\"),\"No\",\"Yes\"))))","v":"No"}]
[]
[null,"Non potable water yield - greywater system",null,null,null,null,null,null,null,null,null,null,null,null,null,null,null,"Total from fixed uses"]
[null,null,null,null,null,null,null,null,null,null,null,null,null,null,null,null,"Total ",{"$f":"R52+R51+R42","v":1.58}]
[{"$f":"IF(G66=$Q$136,\">\",\"\")","v":">"},null,null,null,null,"Has, or will, the greywater system be specified and installed in compliance with BS8525-1:2010 Greywater Systems - Part 1 Code of Practice","Please select"]
[]
[null,null,"Greywater source (building components)",null,"Greywater collected","Proportion of components collected from (%)","Greywater yield \n(L/person/day)"]
[null,{"$f":"IF(D37=\"\",\"\",IF(AND($G$66=$Q$137,E69=\"\"),\">\",IF(AND($G$66=$Q$137,E69=$Q$137,F69=\"\"),\">\",\"\")))","v":""},{"$f":"B37","v":"Wash hand basin taps"},null,null,null,{"$f":"IF(OR(E69=$Q$138,E69=\"\"),0,G37*F69)","v":0}]
[null,{"$f":"IF(AND($G$66=$Q$137,E70=\"\"),\">\",IF(AND($G$66=$Q$137,E70=$Q$137,F70=\"\"),\">\",\"\"))","v":""},"Showers",null,null,null,{"$f":"IF(OR(E70=$Q$138,E70=\"\"),0,(SUM(G38:G39)*F70))","v":0}]
[null,{"$f":"IF(AND($G$66=$Q$137,E71=\"\"),\">\",IF(AND($G$66=$Q$137,E71=$Q$137,F71=\"\"),\">\",\"\"))","v":""},{"$f":"B44","v":"Kitchen taps - kitchenette"},null,null,null,{"$f":"IF(OR(E71=$Q$138,E71=\"\"),0,G44*F71)","v":0}]
[null,{"$f":"IF(AND($G$66=$Q$137,E72=\"\"),\">\",IF(AND($G$66=$Q$137,E72=$Q$137,F72=\"\"),\">\",\"\"))","v":""},"Dishwasher - staff kitchenette",null,null,null,{"$f":"IF(OR(E72=$Q$138,E72=\"\"),0,F72*G45)","v":0}]
[null,{"$f":"IF(AND($G$66=$Q$137,E73=\"\"),\">\",IF(AND($G$66=$Q$137,E73=$Q$137,F73=\"\"),\">\",\"\"))","v":""},{"$f":"B47","v":"Kitchen taps - pre-rinse nozzle"},null,null,null,{"$f":"IF(OR(E73=$Q$138,E73=\"\"),0,G47*F73)","v":0}]
[null,{"$f":"IF(AND($G$66=$Q$137,E74=\"\"),\">\",IF(AND($G$66=$Q$137,E74=$Q$137,F74=\"\"),\">\",\"\"))","v":""},"Dishwasher - food preparation area",null,null,null,{"$f":"IF(OR(E74=$Q$138,E74=\"\"),0,F74*G48)","v":0}]
[null,{"$f":"IF(AND($G$66=Q143,E75=\"\"),\">\",\"\")","v":""},"Bath",null,null,null,{"$f":"IF(OR(E75=Q138,E75=\"\",E40=\"N/A\",E41=\"N/A\"),0,(SUM(G40:G41)*F75))","v":0},"Hide rows: N/A for offices"]
[null,{"$f":"IF(AND($G$66=Q144,E76=\"\"),\">\",\"\")","v":""},{"$f":"B50","v":"Washing machine"},null,null,null,{"$f":"IF(OR(E76=Q139,E76=\"\"),0,F76*G50)","v":0},"Hide rows: N/A for offices"]
[null,null,"Greywater source (other components)","Typical greywater yield (litres)","Frequency of  yield (days)","Greywater yield (litres/day)","Greywater yield \n(L/person/day)",{"$f":"IF(G66=Q137,N148,\"\")","v":""}]
[null,null,"Other source of greywater",null,null,{"$f":"IF(D78=\"\",\"\",D78/E78)","v":""},{"$f":"IF(D78=\"\",0,F78/$O$145)","v":0}]
[]
[null,null,null,null,null,null,"Greywater yield\n(L/person/day)"]
[null,null,null,null,null,"Total",{"$f":"IF(OR(G66=Q139,G66=Q138),0,SUM(G69:G76)+G78)","v":0}]
[]
[null,"Non potable water yield - rainwater system"]
[]
[{"$f":"IF(G85=$Q$136,\">\",\"\")","v":""},null,null,null,null,"Has, or will, the rainwater system be specified and installed in compliance with BS EN 16941-1:2018 Rainwater Harvesting Systems - Code of practice","System not specified"]
[]
[{"$f":"IF(AND($G$85=$Q$137,G87=$Q$136),\">\",\"\")","v":""},null,null,null,null,"How has the storage capacity for the proposed system been calculated?","Please select"]
[null,"Rainwater yield if basic approach:"]
[null,"Collection area (m2)","Rainfall \n(average mm/yr)","Hydraulic filter efficiency (%)","Yield co-efficient (%)","Annual rainwater yield (Litres)","Rainwater yield\n(L/person/day)"]
[{"$f":"IF(AND($G$85=$Q$137,$G$87=$S$137,OR(B90=\"\",C90=\"\",D90=\"\",E90=\"\")),\">\",\"\")","v":""},null,null,null,null,{"$f":"B90*E90*D90*C90","v":0},{"$f":"IF(ISERROR(IF(OR(G85=Q139,G85=Q138,G87=S138),0,(F90/365)/O145)),Q144,IF(OR(G85=Q139,G85=Q138,G87=S138),0,(F90/365)/O145))","v":0}]
[null,null,null,null,null,"Rainwater yield if detailed:"]
[null,null,null,null,null,"Daily rainfall collection (litres)","Rainwater yield \n(L/person/day)"]
[null,null,null,null,{"$f":"IF(AND($G$85=$Q$137,$G$87=$S$138,F93=\"\"),\">\",\"\")","v":""},null,{"$f":"IF(ISERROR(IF(OR(G87=S137,G85=Q139,G85=Q138),0,(F93/O145))),Q144,IF(OR(G87=S137,G85=Q139,G85=Q138),0,(F93/O145)))","v":0}]
[]
[null,"Non Potable Water Demand - Building Components"]
[]
[null,null,null,null,null,null,"Greywater and/or rainwater yield\n(L/person/day)"]
[null,null,null,null,null,"Total",{"$f":"IF(ISERROR(G93+G90+G81),Q144,G93+G90+G81)","v":0}]
[]
[null,null,null,"Component","Greywater and/or rainwater utilised for component","Proportion of components using greywater and/or rainwater yield (%)","Maximum permissible demand (L/person/day)"]
[null,null,{"$f":"IF(AND(OR($G$66=$Q$136,$G$66=$Q$138,$G$66=$Q$139),OR($G$85=$Q$136,$G$85=$Q$138,$G$85=$Q$139)),\"\",IF(E101=$Q$138,\"\",IF(OR(E101=\"\",F101=\"\"),\">\",\"\")))","v":""},"WC flushing",null,null,{"$f":"IF(E101=\"no\",0,F101*SUM(G22:G23))","v":0}]
[null,null,{"$f":"IF(B22=R138,\"\",IF(AND(OR($G$66=$Q$136,$G$66=$Q$138,$G$66=$Q$139),OR($G$85=$Q$136,$G$85=$Q$138,$G$85=$Q$139)),\"\",IF(E102=$Q$138,\"\",IF(OR(E102=\"\",F102=\"\"),\">\",\"\"))))","v":""},"Urinal flushing",null,null,{"$f":"IF(OR(E102=\"no\",B22=R138),0,F102*SUM(G26:G32))","v":0}]
[null,null,null,null,null,null,"Demand met by yield\n(L/person/day)"]
[null,null,null,null,null,"Total",{"$f":"IF((SUM(G101:G102))>G98,G98,SUM(G101:G102))","v":0}]
[null,null,null,"Other permissible components"]
[null,null,{"$f":"IF(AND(OR($G$66=$Q$136,$G$66=$Q$138,$G$66=$Q$139),OR($G$85=$Q$136,$G$85=$Q$138,$G$85=$Q$139)),\"\",IF(G106=$Q$136,\">\",\"\"))","v":""},null,null,"Are there other permissible components present which demand greywater and/or rainwater yield?","Please select"]
[null,null,null,null,null,null,"Maximum permissible demand (L/day)"]
[null,null,null,null,null,null,{"$f":"IF(ISERROR(IF(AND(G106=\"yes\",G104>G98),0,(G98-G104)*O145)),Q144,IF(AND(G106=\"yes\",G104>G98),0,(G98-G104)*O145))","v":0}]
[null,null,{"$f":"IF(AND(OR($G$66=$Q$136,$G$66=$Q$138,$G$66=$Q$139),OR($G$85=$Q$136,$G$85=$Q$138,$G$85=$Q$139)),\"\",IF(AND(G106=$Q$137,G109=\"\"),\">\",\"\"))","v":""},null,null,"Proportion of maximum permissible demand utilised by other permissible components (%)"]
[null,null,null,null,null,null," Demand met by yield\n(L/person/day)"]
[null,null,null,null,null,"Total",{"$f":"IF(ISERROR((G109*G108)/O145),Q144,(G109*G108)/O145)","v":"Requires building information"}]
[]
[null,null,null,null,null,null,"Greywater and/or rainwater demand met by yield\n(L/person/day)"]
[null,null,null,null,null,"Total ",{"$f":"IF(ISERROR(G104+G111),Q144,G104+G111)","v":"Requires building information"}]
[]
[null,"Water consumption calculation results"]
[]
[null,null,null,null,null,"Litres/person/day","m3/person/yr"]
[null,null,null,null,"Water consumption - modelled baseline performance benchmark (excludes fixed uses)",{"$f":"IF(ISERROR(R55),Q144,R55)","v":"Requires building information"},{"$f":"IF(ISERROR((F119/1000)*$F$11),Q144,(F119/1000)*$F$11)","v":"Requires building information"}]
[]
[null,null,null,null,"Microcomponent water consumption - modelled performance (excludes fixed uses)",{"$f":"IF(ISERROR(G55-R65),Q144,G55-R65)","v":"Requires building information"},{"$f":"IF(ISERROR((F121/1000)*$F$11),Q144,(F121/1000)*$F$11)","v":"Requires building information"}]
[]
[null,null,null,null,"Modelled water demand met via greywater and rainwater sources",{"$f":"IF(ISERROR(G114),Q144,G114)","v":"Requires building information"},{"$f":"IF(ISERROR((F123/1000)*$F$11),Q144,(F123/1000)*$F$11)","v":"Requires building information"}]
[]
[null,null,null,null,"If greywater/rainwater systems specified has the minimum % efficiency improvement for component specifications been met",{"$f":"IF(ISERROR(IF(AND((OR(G85=Q139,G85=Q138)),((OR(G66=Q139,G66=Q138)))),Q139,IF(OR(N129=\"1 credit\",N129=\"2 credits\",N129=\"3 credits\"),Q142,IF(OR(N129=\"4 credits\",N129=\"5 credits\"),(IF((1-(F121/F119))<0.25,\"No\",\"Yes\")))))),Q144,IF(AND((OR(G85=Q139,G85=Q138)),((OR(G66=Q139,G66=Q138)))),Q139,IF(OR(N129=\"1 credit\",N129=\"2 credits\",N129=\"3 credits\"),Q142,IF(OR(N129=\"4 credits\",N129=\"5 credits\"),(IF((1-(F121/F119))<0.25,\"No\",\"Yes\"))))))","v":"Requires building information"}]
[null,null,null,null,null,null,null,null,null,null,null,null,null,"Greywater/rainwater data check"]
[null,null,null,null,"Net modelled water consumption (excludes fixed uses)",{"$f":"IF(ISERROR(IF(OR(F125=\"Yes\",F125=Q139),F121-F123,(F121-((1-(F121/F119))*F123)))),Q144,IF(OR(F125=\"Yes\",F125=Q139),F121-F123,(F121-((1-(F121/F119))*F123))))","v":"Requires building information"},{"$f":"IF(ISERROR((F127/1000)*$F$11),Q144,((F127/1000)*$F$11))","v":"Requires building information"},null,null,null,null,null,null,{"$f":"1-(F121-F123)/F119","v":{"$error":"#VALUE!"}},"% actual improvement"]
[]
[null,null,null,null,"Percentage improvement",{"$f":"IF(OR(F119=Q144,F121=Q144,F123=Q144,F125=Q144),Q144,(ROUNDDOWN(IF(OR(F125=\"yes\",F125=Q142,F125=Q139),N127,(IF(F125=\"No\",1-((F121-(F123*(1-(F121/F119))))/F119)))),4)))","v":"Requires building information"},null,null,null,null,null,null,null,{"$f":"VLOOKUP(N127,'Activity database'!BC4:BD9,2,TRUE)","v":{"$error":"#VALUE!"}},"Credits achieved"]
[]
[null,null,null,null,"Total Wat 01 BREEAM credits achieved, before checking minimum requirements according to EU taxonomy for sustainable finance.",{"$f":"IF(F129<0,'Activity database'!BD4,(IF(ISERROR(VLOOKUP(F129,'Activity database'!BC4:BD9,2,TRUE)),Q144,VLOOKUP(F129,'Activity database'!BC4:BD9,2,TRUE))))","v":"Requires building information"}]
[]
[null,null,null,null,"Total Wat 01 BREEAM credits achieved",{"$f":"IF(F131=\"Requires building information\",\"Requires building information\",IF(G62=\"Yes\",F131,IF(F131>=\"1 credit\",\"1 credit\",\"0 credits\")))","v":"Requires building information"}]
[]
[null,null,null,null,"Total Wat 01 BREEAM Exemplary credits achieved",{"$f":"IF(F129=Q144,Q144,IF(F129>='Activity database'!BC10,\"1 innovation credit achieved\",\"Exemplary level not achieved\"))","v":"Requires building information"}]
[null,null,null,null,null,null,null,null,null,null,null,null,null,null,null,"Please select","Please select","Please select","Please select",0]
[null,null,null,null,"Key performance indicator - use of freshwater resource (includes fixed uses)",{"$f":"IF(ISERROR(F121+R65-F123),Q144,F121+R65-F123)","v":"Requires building information"},{"$f":"IF(ISERROR((F137/1000)*$F$11),Q144,(F137/1000)*$F$11)","v":"Requires building information"},null,null,null,null,null,null,null,"Default occupancy rate","Waterless urinals - specified","Yes",{"$f":"'Activity database'!I3","v":"WC - male (urinals installed)"},"BS EN 16941-1 'basic approach'",0.01]
[null,null,null,null,null,null,null,null,null,null,null,null,null,{"$f":"B14","v":"Office - Office areas"},{"$f":"IF(F14=\"Yes\",VLOOKUP(B14,'Activity database'!A:BC,3,FALSE)*G14,0)","v":0},"Waterless urinals - not specified","No",{"$f":"'Activity database'!J3","v":"WC - male (no urinals installed)"},"BS EN 16941-1 'detailed approach'",0.02]
[null,null,null,null,null,null,null,null,null,null,null,null,null,null,null,null,"System not specified",null,null,0.03]
[null,null,null,null,null,null,null,null,null,null,null,null,null,{"$f":"B15","v":"Office - Small workshop / laboratory space"},{"$f":"IF(F15=\"Yes\",VLOOKUP(B15,'Activity database'!A:BC,3,FALSE)*G15,0)","v":0},null,null,null,null,0.04]
[null,null,null,null,null,null,null,null,null,null,null,null,null,null,null,null,null,null,null,0.05]
[null,null,null,null,null,null,null,null,null,null,null,null,null,{"$f":"B16","v":"Office - Staff canteen dining area"},{"$f":"IF(F16=\"Yes\",(VLOOKUP(B16,'Activity database'!A:BC,3,FALSE)*G16),0)","v":0},null,"Not applicable",null,null,0.06]
[null,null,null,null,null,null,null,null,null,null,null,null,null,null,null,null,null,null,null,7.0000000000000007E-2]
[null,null,null,null,null,null,null,null,null,null,null,null,null,{"$f":"B17","v":"Office - Fitness suite/gym (with changing facility and showers)"},{"$f":"IF(F17=\"Yes\",VLOOKUP(B17,'Activity database'!A:BC,3,FALSE)*G16,0)","v":0},null,"Requires building information",null,null,0.08]
[null,null,null,null,null,null,null,null,null,null,null,null,null,"Total default occupancy",{"$f":"SUM(O138:O144)","v":0},null,null,null,null,0.09]
[null,null,null,null,null,null,null,null,null,null,null,null,null,null,null,null,null,null,null,0.1]
[null,null,null,null,null,null,null,null,null,null,null,null,null,null,null,null,null,null,null,0.11]
[null,null,null,null,null,null,null,null,null,null,null,null,null,"Note: If greywater is collected from a component/source not accounted for above i.e. their consumption is not estimated, then the amount of greywater collected can be added here so that it may be accounted for. This can include wastewater from active hygiene flushing, i.e. a regular hygiene flushing programme to minimize poor water quality in a potable cold or hot water system.",null,null,null,null,null,0.12]
[null,null,null,null,null,null,null,null,null,null,null,null,null,"Note: This consumption total accounts for the ratio of male users for this building type i.e. the ratio of building users who will operate the flush. Where more than one type of urinal flushing control is specified in the building, this consumption figure is adjusted by a ratio of use. the ratio is determined according to the proportion of urinals bowls in the building operated using this type of control.",null,null,null,null,null,0.13]
[null,null,null,null,null,null,null,null,null,null,null,null,null,"Note: Where waterless urinals are specified in the assessed building, for the purpose of the baseline benchmark standard 1.5 litre flush urinals are assumed. Where waterless urinals and another type of urinal flushing control is specified in the building, the baseline consumption figure calculated using a 1.5 litre default flush is adjusted by a ratio of use. The ratio is determined according to the proportion of urinals bowls in the building that are waterless.",null,null,null,null,null,0.14000000000000001]
[null,null,null,null,null,null,null,null,null,null,null,null,null,"Note: Please select the relevant option for waterless urinals specification opposite.",null,null,null,null,null,0.15]
[null,null,null,null,null,null,null,null,null,null,null,null,null,null,null,null,null,null,null,0.16]
[null,null,null,null,null,null,null,null,null,null,null,null,null,null,null,null,null,null,null,0.17]
[null,null,null,null,null,null,null,null,null,null,null,null,null,null,null,null,null,null,null,0.18]
[null,null,null,null,null,null,null,null,null,null,null,null,null,null,null,null,null,null,null,0.19]
[null,null,null,null,null,null,null,null,null,null,null,null,null,null,null,null,null,null,null,0.2]
[null,null,null,null,null,null,null,null,null,null,null,null,null,null,null,null,null,null,null,0.21]
[null,null,null,null,null,null,null,null,null,null,null,null,null,null,null,null,null,null,null,0.22]
[null,null,null,null,null,null,null,null,null,null,null,null,null,null,null,null,null,null,null,0.23]
[null,null,null,null,null,null,null,null,null,null,null,null,null,null,null,null,null,null,null,0.24]
[null,null,null,null,null,null,null,null,null,null,null,null,null,null,null,null,null,null,null,0.25]
[null,null,null,null,null,null,null,null,null,null,null,null,null,null,null,null,null,null,null,0.26]
[null,null,null,null,null,null,null,null,null,null,null,null,null,null,null,null,null,null,null,0.27]
[null,null,null,null,null,null,null,null,null,null,null,null,null,null,null,null,null,null,null,0.28000000000000003]
[null,null,null,null,null,null,null,null,null,null,null,null,null,null,null,null,null,null,null,0.28999999999999998]
[null,null,null,null,null,null,null,null,null,null,null,null,null,null,null,null,null,null,null,0.3]
[null,null,null,null,null,null,null,null,null,null,null,null,null,null,null,null,null,null,null,0.31]
[null,null,null,null,null,null,null,null,null,null,null,null,null,null,null,null,null,null,null,0.32]
[null,null,null,null,null,null,null,null,null,null,null,null,null,null,null,null,null,null,null,0.33]
[null,null,null,null,null,null,null,null,null,null,null,null,null,null,null,null,null,null,null,0.34]
[null,null,null,null,null,null,null,null,null,null,null,null,null,null,null,null,null,null,null,0.35]
[null,null,null,null,null,null,null,null,null,null,null,null,null,null,null,null,null,null,null,0.36]
[null,null,null,null,null,null,null,null,null,null,null,null,null,null,null,null,null,null,null,0.37]
[null,null,null,null,null,null,null,null,null,null,null,null,null,null,null,null,null,null,null,0.38]
[null,null,null,null,null,null,null,null,null,null,null,null,null,null,null,null,null,null,null,0.39]
[null,null,null,null,null,null,null,null,null,null,null,null,null,null,null,null,null,null,null,0.4]
[null,null,null,null,null,null,null,null,null,null,null,null,null,null,null,null,null,null,null,0.41]
[null,null,null,null,null,null,null,null,null,null,null,null,null,null,null,null,null,null,null,0.42]
[null,null,null,null,null,null,null,null,null,null,null,null,null,null,null,null,null,null,null,0.43]
[null,null,null,null,null,null,null,null,null,null,null,null,null,null,null,null,null,null,null,0.44]
[null,null,null,null,null,null,null,null,null,null,null,null,null,null,null,null,null,null,null,0.45]
[null,null,null,null,null,null,null,null,null,null,null,null,null,null,null,null,null,null,null,0.46]
[null,null,null,null,null,null,null,null,null,null,null,null,null,null,null,null,null,null,null,0.47]
[null,null,null,null,null,null,null,null,null,null,null,null,null,null,null,null,null,null,null,0.48]
[null,null,null,null,null,null,null,null,null,null,null,null,null,null,null,null,null,null,null,0.49]
[null,null,null,null,null,null,null,null,null,null,null,null,null,null,null,null,null,null,null,0.5]
[null,null,null,null,null,null,null,null,null,null,null,null,null,null,null,null,null,null,null,0.51]
[null,null,null,null,null,null,null,null,null,null,null,null,null,null,null,null,null,null,null,0.52]
[null,null,null,null,null,null,null,null,null,null,null,null,null,null,null,null,null,null,null,0.53]
[null,null,null,null,null,null,null,null,null,null,null,null,null,null,null,null,null,null,null,0.54]
[null,null,null,null,null,null,null,null,null,null,null,null,null,null,null,null,null,null,null,0.55000000000000004]
[null,null,null,null,null,null,null,null,null,null,null,null,null,null,null,null,null,null,null,0.56000000000000005]
[null,null,null,null,null,null,null,null,null,null,null,null,null,null,null,null,null,null,null,0.56999999999999995]
[null,null,null,null,null,null,null,null,null,null,null,null,null,null,null,null,null,null,null,0.57999999999999996]
[null,null,null,null,null,null,null,null,null,null,null,null,null,null,null,null,null,null,null,0.59]
[null,null,null,null,null,null,null,null,null,null,null,null,null,null,null,null,null,null,null,0.6]
[null,null,null,null,null,null,null,null,null,null,null,null,null,null,null,null,null,null,null,0.61]
[null,null,null,null,null,null,null,null,null,null,null,null,null,null,null,null,null,null,null,0.62]
[null,null,null,null,null,null,null,null,null,null,null,null,null,null,null,null,null,null,null,0.63]
[null,null,null,null,null,null,null,null,null,null,null,null,null,null,null,null,null,null,null,0.64]
[null,null,null,null,null,null,null,null,null,null,null,null,null,null,null,null,null,null,null,0.65]
[null,null,null,null,null,null,null,null,null,null,null,null,null,null,null,null,null,null,null,0.66]
[null,null,null,null,null,null,null,null,null,null,null,null,null,null,null,null,null,null,null,0.67]
[null,null,null,null,null,null,null,null,null,null,null,null,null,null,null,null,null,null,null,0.68]
[null,null,null,null,null,null,null,null,null,null,null,null,null,null,null,null,null,null,null,0.69]
[null,null,null,null,null,null,null,null,null,null,null,null,null,null,null,null,null,null,null,0.7]
[null,null,null,null,null,null,null,null,null,null,null,null,null,null,null,null,null,null,null,0.71]
[null,null,null,null,null,null,null,null,null,null,null,null,null,null,null,null,null,null,null,0.72]
[null,null,null,null,null,null,null,null,null,null,null,null,null,null,null,null,null,null,null,0.73]
[null,null,null,null,null,null,null,null,null,null,null,null,null,null,null,null,null,null,null,0.74]
[null,null,null,null,null,null,null,null,null,null,null,null,null,null,null,null,null,null,null,0.75]
[null,null,null,null,null,null,null,null,null,null,null,null,null,null,null,null,null,null,null,0.76]
[null,null,null,null,null,null,null,null,null,null,null,null,null,null,null,null,null,null,null,0.77]
[null,null,null,null,null,null,null,null,null,null,null,null,null,null,null,null,null,null,null,0.78]
[null,null,null,null,null,null,null,null,null,null,null,null,null,null,null,null,null,null,null,0.79]
[null,null,null,null,null,null,null,null,null,null,null,null,null,null,null,null,null,null,null,0.8]
[null,null,null,null,null,null,null,null,null,null,null,null,null,null,null,null,null,null,null,0.81]
[null,null,null,null,null,null,null,null,null,null,null,null,null,null,null,null,null,null,null,0.82]
[null,null,null,null,null,null,null,null,null,null,null,null,null,null,null,null,null,null,null,0.83]
[null,null,null,null,null,null,null,null,null,null,null,null,null,null,null,null,null,null,null,0.84]
[null,null,null,null,null,null,null,null,null,null,null,null,null,null,null,null,null,null,null,0.85]
[null,null,null,null,null,null,null,null,null,null,null,null,null,null,null,null,null,null,null,0.86]
[null,null,null,null,null,null,null,null,null,null,null,null,null,null,null,null,null,null,null,0.87]
[null,null,null,null,null,null,null,null,null,null,null,null,null,null,null,null,null,null,null,0.88]
[null,null,null,null,null,null,null,null,null,null,null,null,null,null,null,null,null,null,null,0.89]
[null,null,null,null,null,null,null,null,null,null,null,null,null,null,null,null,null,null,null,0.9]
[null,null,null,null,null,null,null,null,null,null,null,null,null,null,null,null,null,null,null,0.91]
[null,null,null,null,null,null,null,null,null,null,null,null,null,null,null,null,null,null,null,0.92]
[null,null,null,null,null,null,null,null,null,null,null,null,null,null,null,null,null,null,null,0.93]
[null,null,null,null,null,null,null,null,null,null,null,null,null,null,null,null,null,null,null,0.94]
[null,null,null,null,null,null,null,null,null,null,null,null,null,null,null,null,null,null,null,0.95]
[null,null,null,null,null,null,null,null,null,null,null,null,null,null,null,null,null,null,null,0.96]
[null,null,null,null,null,null,null,null,null,null,null,null,null,null,null,null,null,null,null,0.97]
[null,null,null,null,null,null,null,null,null,null,null,null,null,null,null,null,null,null,null,0.98]
[null,null,null,null,null,null,null,null,null,null,null,null,null,null,null,null,null,null,null,0.99]
[null,null,null,null,null,null,null,null,null,null,null,null,null,null,null,null,null,null,null,1]

{"sheet":"Retail calculator","index":7,"n_rows":237,"n_cols":21,"rows_kept":237,"cut":false,"hidden":true,"merged":[[9,2,9,4],[10,2,10,4],[20,2,20,4],[20,7,20,15],[21,2,21,4],[7,9,9,12],[19,2,19,4],[37,1,38,1],[37,7,39,12],[47,7,48,12],[31,1,32,1],[34,1,35,1],[34,7,36,12],[59,7,69,12],[10,7,11,12],[56,7,57,12],[82,7,83,12],[11,2,11,5],[18,2,18,4],[28,7,30,12],[15,7,16,12],[16,2,16,4],[17,2,17,4],[22,2,22,4]]}
[]
[null,"BREEAM-NOR v6.1 Wat 01 Water consumption: Water efficiency calculator for new non domestic retail buildings"]
[]
[null,"Building details"]
[]
[null,"Building name",{"$f":"'User Instructions'!D8:F8","v":{"$error":"#VALUE!"}}]
[]
[null,"BRE assessment reference no.",{"$f":"'User Instructions'!D10:F10","v":{"$error":"#VALUE!"}}]
[]
[null,"Building type","Description of building type",null,null,"Default annual days/operation","Default daily hours of operation"]
[{"$f":"IF(B11=$R$135,\">\",\"\")","v":">"},"Please select",{"$f":"VLOOKUP(B11,'Activity database'!A:B,2,FALSE)","v":{"$error":"#N/A"}},null,null,{"$f":"VLOOKUP(B11,'Activity database'!A:AN,4,FALSE)","v":{"$error":"#N/A"}},{"$f":"VLOOKUP(B11,'Activity database'!A:AN,5,FALSE)","v":{"$error":"#N/A"}},{"$f":"O165","v":"Note: If this retail development contains one of or a combination of restaurants/cafes (for customer use), gym or cinema then please ensure you undertake separate water consumption calculations for such building functions using the appropriate building type calculator. You must then determine the number of BREEAM credits achieved for the development as a whole in accordance with the guidance given in the compliance note: \"Building is a mixture of different types\", contained within the Wat 01 issue in the BREEAM New Construction technical guide."}]
[{"$f":"IF(B11=R135,\"\",IF(G12=$R$135,\">\",\"\"))","v":""},null,"Does the retail development contain sanitary facilities for use by visiting customers?",null,null,null,"Please select"]
[null,null,null,null,null,"Default daily occupancy visiting customers",{"$f":"IF(G12=R137,R143,O146)","v":0},{"$f":"IF(G12=R137,O164,\"\")","v":""}]
[null,null,null,null,null,"Default daily occupancy staff",{"$f":"P146","v":0}]
[]
[null,"Main building activity areas","Description of activity area",null,null,"Activity area present in building?","Net Floor Area (m2)",{"$f":"'Office calculator'!H13","v":"Note: the  activity areas defined opposite are used to estimate the assessed building's default occupancy and therefore water consumption benchmark. These areas are chosen as they are deemed, by in large, to represent the permanently occupied spaces in the building and therefore reflect the number of building occupants/users. As a result it is not necessary to include all areas of the building that may be present, as the areas not defined are assumed to be used by the occupants of the building already accounted for by those areas that are listed."}]
[{"$f":"IF(F17=$R$135,\">\",IF(AND(F17=$R$136,G17=\"\"),\">\",\"\"))","v":">"},{"$f":"'Activity database'!A43","v":"Retail - sales areas for display of bulky items"},{"$f":"VLOOKUP(B17,'Activity database'!A:B,2,FALSE)","v":"A retail sales/display area trading predominantly in bulky items, e.g. furniture, floor coverings, cycles, prams, large domestic appliances or other bulky goods, or trading on a wholesale self-selection basis."},null,null,"Please select"]
[">",{"$f":"'Activity database'!A44","v":"Retail - sales areas for display of non bulky items and/or customer service area."},{"$f":"VLOOKUP(B18,'Activity database'!A:B,2,FALSE)","v":"A general sales/display areas in department stores, supermarkets, shops and/or customer service waiting and/or collection areas e.g. in banks, post office, bookmakers etc."},null,null,"Please select"]
[">",{"$f":"'Activity database'!A45","v":"Retail - concourse/shopping mall"},{"$f":"VLOOKUP(B19,'Activity database'!A:B,2,FALSE)","v":"The central (shared) area within a shopping centre used for access by shoppers (typically a covered area containing one or more of benches, cafes, escalators etc.)"},null,null,"Please select"]
[">",{"$f":"'Activity database'!A46","v":"Retail - Staff office area and staffroom"},{"$f":"VLOOKUP(B20,'Activity database'!A:B,2,FALSE)","v":"Staff office space and staffroom, often located in 'back of house' areas."},null,null,"Please select"]
[">",{"$f":"'Activity database'!A47","v":"Retail - Staff canteen dining area"},{"$f":"VLOOKUP(B21,'Activity database'!A:B,2,FALSE)","v":"Seated areas in a staff canteen that accompany a food preparation areas where food and drink is consumed by staff on the premises."},null,null,"Please select",null,"Note: Only select this activity if there is a permanently staffed kitchen that will prepare hot and cold meals for the building's staff. Enter the area of the seated dining area only (not kitchen/servery areas), this is used to estimate the number of covers per day and subsequently the default number of kitchen staff and water consumption from food preparation activity area."]
[">",{"$f":"'Activity database'!A48","v":"Retail - Goods-in and storage area"},{"$f":"VLOOKUP(B22,'Activity database'!A:B,2,FALSE)","v":"Internal areas for receiving and storing goods."},null,null,"Please select"]
[">",{"$f":"'Activity database'!A49","v":"Retail - Workshop"},{"$f":"VLOOKUP(B23,'Activity database'!A:B,2,FALSE)","v":"A workshop / vehicle servicing area within a car showroom or general workshop in other type of retail development."},null,null,"Please select"]
[]
[null,"Water consumption - building microcomponent"]
[]
[null,"WC component - all activity areas","units","Specification","Usage/person/day","Usage factor","Consumption (L/person/day)",null,null,null,null,null,null,null,"WC component - all activity areas","Baseline \nPerformance Specification","Usage/person/day","Usage factor","Baseline Consumption (L/person/day)"]
[{"$f":"IF(B28=$R$135,\">\",\"\")","v":">"},"Please select","Effective flush volume (Litres)",null,{"$f":"IF(OR(B11=R135,B28=R135),R145,IF(B28=S136,VLOOKUP($B$11,'Activity database'!$A:$AN,9,FALSE),IF(B28=S137,VLOOKUP($B$11,'Activity database'!$A:$BM,10,FALSE))))","v":"Requires building information"},{"$f":"IF(B11=R135,R145,VLOOKUP($B$11,'Activity database'!$A:$BM,27,FALSE))","v":"Requires building information"},{"$f":"IF(ISERROR((D28*E28*F28*(VLOOKUP(B11,'Activity database'!A:BA,7,FALSE)))),R145,(D28*E28*F28*(VLOOKUP(B11,'Activity database'!A:BA,7,FALSE))))","v":"Requires building information"},{"$f":"IF(B28=S135,\"Note: please select the relevant option for WC component opposite\",\"\")","v":"Note: please select the relevant option for WC component opposite"},null,null,null,null,null,null,{"$f":"B28","v":"Please select"},{"$f":"IF($D$28=\"\",0,VLOOKUP($O$28,'Activity database'!$AT:$BA,2,FALSE))","v":0},{"$f":"E28","v":"Requires building information"},{"$f":"F28","v":"Requires building information"},{"$f":"IF($D$28=\"\",0,P28*$Q$28*$R$28*(VLOOKUP($B$11,'Activity database'!$A:$BA,7,FALSE)))","v":0}]
[null,{"$f":"'Activity database'!K3","v":"WC - female"},"Effective flush volume (Litres)",null,{"$f":"IF(B11=R135,R145,VLOOKUP($B$11,'Activity database'!$A:$BM,11,FALSE))","v":"Requires building information"},{"$f":"IF(B11=R135,R145,VLOOKUP($B$11,'Activity database'!$A:$BM,27,FALSE))","v":"Requires building information"},{"$f":"IF(ISERROR(IF(B11=R135,R145,D29*E29*F29*(VLOOKUP(B11,'Activity database'!A:BA,8,FALSE)))),R145,IF(B11=R135,R145,D29*E29*F29*(VLOOKUP(B11,'Activity database'!A:BA,8,FALSE))))","v":"Requires building information"},"Note: Where the WC facilities are non-gender specific, please still enter the WC specification against both WC male and WC female categories i.e. if there are two WCs with a 6 litre effective flush, then enter 6 litres against both male and female categories. The calculation will not double count water consumption in this instance as the consumption figure calculated for each WC component is adjusted by the ratio of male to female users for this building type.",null,null,null,null,null,null,{"$f":"B29","v":"WC - female"},{"$f":"IF($D$29=\"\",0,VLOOKUP($O$29,'Activity database'!$AT:$BA,2,FALSE))","v":0},{"$f":"E29","v":"Requires building information"},{"$f":"F29","v":"Requires building information"},{"$f":"IF($D$29=\"\",0,P29*$Q$29*$R$29*(VLOOKUP($B$11,'Activity database'!$A:$BA,8,FALSE)))","v":0}]
[]
[null,"Urinal component - all activity areas","units","Specification","No. of cisterns","Flushing frequency (flushes/hour)","Consumption (L/person/day)",null,null,null,null,null,null,null,"Urinal component - all activity areas","Baseline \nPerformance Specification","Urinal consumption (L/bowl/day)","Urinal consumption (L/day)","Baseline Consumption (L/person/day)"]
[{"$f":"IF(AND(D32>0,OR(E32=\"\",F32=\"\")),\">\",\"\")","v":""},"Automatically operated flushing cistern","Cistern capacity (Litres)",null,null,null,{"$f":"IF(B11=R135,R145,IF(OR(D32=0,E32=0,F32=0,B28=S137),0,(D32*E32*F32*G11)/O147))","v":"Requires building information"},null,null,null,null,null,null,null,{"$f":"B32","v":"Automatically operated flushing cistern"},{"$f":"IF($D$32=0,0,IF($D$33=1,'Activity database'!$AU$11,'Activity database'!$AU$10))","v":0},{"$f":"P32*$G$11","v":{"$error":"#N/A"}},{"$f":"Q32*$D$33","v":{"$error":"#N/A"}},{"$f":"IF(B28=S137,0,$R$32/O147)","v":{"$error":"#N/A"}}]
[{"$f":"IF(AND(D32>0,D33=\"\"),\">\",\"\")","v":""},null,"No. of urinal bowls"]
[null,null,"units","Specification","Usage/person/day","Usage factor","Consumption (L/person/day)",null,null,null,null,null,null,null,"Urinal component - all activity areas","Baseline \nPerformance Specification","Usage/person/day","Usage factor","Baseline Consumption (L/person/day)"]
[null,"Manual/automatic operated pressure flushing valve (all activity areas)","Flush volume (litres)",null,{"$f":"IF(B11=R135,R145,VLOOKUP($B$11,'Activity database'!$A:$AN,12,FALSE))","v":"Requires building information"},{"$f":"IF(B11=R135,R145,VLOOKUP($B$11,'Activity database'!$A:$AN,28,FALSE))","v":"Requires building information"},{"$f":"IF(ISERROR(IF(B11=R135,R145,IF(OR(D35=0,E35=0,F35=0,B28=S137),0,(D35*E35*F35)*(VLOOKUP(B11,'Activity database'!A:BA,7,FALSE))*(D36/(D33+D36+D39))))),R145,IF(B11=R135,R145,IF(OR(D35=0,E35=0,F35=0,B28=S137),0,(D35*E35*F35)*(VLOOKUP(B11,'Activity database'!A:BA,7,FALSE))*(D36/(D33+D36+D39)))))","v":"Requires building information"},{"$f":"IF(B28=S137,\"\",O160)","v":"Note: This consumption total accounts for the ratio of male users for this building type i.e. the ratio of building users who will operate the flush. Where more than one type of urinal flushing control is specified in the building, this consumption figure is adjusted by a ratio of use. the ratio is determined according to the proportion of urinals bowls in the building operated using this type of control."},null,null,null,null,null,null,{"$f":"B35","v":"Manual/automatic operated pressure flushing valve (all activity areas)"},{"$f":"'Activity database'!$AU$12","v":1},{"$f":"E35","v":"Requires building information"},{"$f":"F35","v":"Requires building information"},{"$f":"IF(B28=S137,0,IF($D$35=\"\",0,$P$35*$Q$35*$R$35*(VLOOKUP(B11,'Activity database'!$A:$BA,7,FALSE)))*(D36/(D33+D36+D39)))","v":{"$error":"#DIV/0!"}}]
[{"$f":"IF(AND(D35>0,D36=\"\"),\">\",\"\")","v":""},null,"No. of urinal bowls"]
[null,null,"units",null,"Usage/person/day","Usage factor","Consumption (L/person/day)",null,null,null,null,null,null,null,"Urinal component - all activity areas","Baseline \nPerformance Specification","Usage/person/day","Usage factor","Baseline Consumption (L/person/day)"]
[{"$f":"IF(B28=S137,\"\",IF(D38=$R$135,\">\",\"\"))","v":">"},"Waterless urinals (all activity areas)","Flush volume (litres)","Please select",{"$f":"IF(B11=R135,R145,VLOOKUP($B$11,'Activity database'!$A:$AN,12,FALSE))","v":"Requires building information"},{"$f":"IF(B11=R135,R145,VLOOKUP($B$11,'Activity database'!$A:$AN,28,FALSE))","v":"Requires building information"},{"$f":"IF(B11=R135,R145,0)","v":"Requires building information"},{"$f":"IF(OR(B28=S137,B28=S135,D38=Q137),\"\",IF(AND(D38=Q136,D39>0),O161,IF(OR(D38=S135,D38=Q136),O162)))","v":""},null,null,null,null,null,null,{"$f":"B38","v":"Waterless urinals (all activity areas)"},{"$f":"'Activity database'!$AU$12","v":1},{"$f":"E38","v":"Requires building information"},{"$f":"F38","v":"Requires building information"},{"$f":"IF(B28=S137,0,IF(OR($D$38=\"\",$D$38=Q135,$D$38=Q137),0,$P$38*$Q$38*$R$38*(VLOOKUP(B11,'Activity database'!$A:$BA,7,FALSE)))*(D39/(D33+D36+D39)))","v":{"$error":"#DIV/0!"}}]
[{"$f":"IF(AND(D38=Q136,D39=\"\"),\">\",\"\")","v":""},null,"No. of urinal bowls"]
[]
[null,null,"units","Specification","Usage/person/day","Usage factor","Consumption (L/person/day)"]
[null,"Taps  components (personal hygiene) - all activity areas ",null,null,null,null,null,null,null,null,null,null,null,null,"Taps  components (personal hygiene) - all activity areas ","Baseline Performance Specification","Usage/person/day","Usage factor","Baseline Consumption (L/person/day)"]
[null,{"$f":"'Activity database'!M3","v":"Wash hand basin taps"},"Flow rate (litres/min)",null,{"$f":"IF(B11=R135,R145,VLOOKUP($B$11,'Activity database'!$A:$AN,13,FALSE))","v":"Requires building information"},{"$f":"IF(B11=R135,R145,VLOOKUP($B$11,'Activity database'!$A:$AN,29,FALSE))","v":"Requires building information"},{"$f":"IF(ISERROR(IF(B11=R135,R145,(D43*E43*F43)*VLOOKUP(B11,'Activity database'!A:AR,44,FALSE))),R145,IF(B11=R135,R145,(D43*E43*F43)*VLOOKUP(B11,'Activity database'!A:AR,44,FALSE)))","v":"Requires building information"},null,null,null,null,null,null,null,{"$f":"B43","v":"Wash hand basin taps"},{"$f":"IF($D$43=\"\",0,VLOOKUP($O$43,'Activity database'!$AT:$BA,2,FALSE))","v":0},{"$f":"E43","v":"Requires building information"},"Requires building information",{"$f":"IF($D$43=\"\",0,(P43*$Q$43*$R$43)*(VLOOKUP($B$11,'Activity database'!$A:$AR,44,FALSE)))","v":0}]
[null,{"$f":"'Activity database'!N3","v":"Shower use"},"Flow rate (litres/min)",null,{"$f":"IF(B11=R135,R145,VLOOKUP($B$11,'Activity database'!$A:$AN,14,FALSE))","v":"Requires building information"},{"$f":"IF(B11=R135,R145,VLOOKUP($B$11,'Activity database'!$A:$AN,30,FALSE))","v":"Requires building information"},{"$f":"IF(ISERROR(IF(B11=R135,R145,IF(B44=R135,R145,D44*E44*F44))),R145,IF(B11=R135,R145,IF(B44=R135,R145,D44*E44*F44)))","v":"Requires building information"},null,null,null,null,null,null,null,"Shower use",{"$f":"IF($D$44=\"\",0,'Activity database'!AU8)","v":0},"Requires building information","Requires building information",{"$f":"IF($D$44=\"\",0,P44*$Q$44*$R$44)","v":0}]
["Hide rows: N/A for retail",{"$f":"'Activity database'!O3","v":"Shower use (bath present)"},"Flow rate (litres/min)",null,{"$f":"VLOOKUP($B$11,'Activity database'!$A:$AN,15,FALSE)","v":{"$error":"#N/A"}},{"$f":"VLOOKUP($B$11,'Activity database'!$A:$AN,31,FALSE)","v":{"$error":"#N/A"}},{"$f":"IF(E45=\"N/A\",0,D45*E45*F45)","v":{"$error":"#N/A"}},"Hide rows: N/A for retail",null,null,null,null,null,null,"Shower use (bath present)",{"$f":"IF($D$45=\"\",0,'Activity database'!AU8)","v":0},{"$error":"#N/A"},{"$error":"#N/A"},{"$f":"IF($D$45=\"\",0,P45*$Q$45*$R$45)","v":0}]
["Hide rows: N/A for retail",{"$f":"'Activity database'!P3","v":"Bath use (no shower present) "},"Capacity to overflow (Litres)",null,{"$f":"VLOOKUP($B$11,'Activity database'!$A:$AN,16,FALSE)","v":{"$error":"#N/A"}},{"$f":"VLOOKUP($B$11,'Activity database'!$A:$AN,32,FALSE)","v":{"$error":"#N/A"}},{"$f":"IF(E46=\"n/a\",0,((D46*E46*F46)*'Activity database'!AQ4))","v":{"$error":"#N/A"}},"Hide rows: N/A for retail",null,null,null,null,null,null,"Bath use (no shower present) ",{"$f":"IF($D$46=\"\",0,'Activity database'!AU9)","v":0},{"$error":"#N/A"},{"$error":"#N/A"},{"$f":"IF($D$46=\"\",0,((P46*$Q$46*$R$46)*(VLOOKUP($B$11,'Activity database'!$A:$AR,43,FALSE))))","v":0}]
["Hide rows: N/A for retail",{"$f":"'Activity database'!Q3","v":"Bath use (shower present)"},"Capacity to overflow (Litres)",null,{"$f":"VLOOKUP($B$11,'Activity database'!$A:$AN,17,FALSE)","v":{"$error":"#N/A"}},{"$f":"VLOOKUP($B$11,'Activity database'!$A:$AN,33,FALSE)","v":{"$error":"#N/A"}},{"$f":"IF(E47=\"n/a\",0,((D47*E47*F47)*'Activity database'!AQ4))","v":{"$error":"#N/A"}},"Hide rows: N/A for retail",null,null,null,null,null,null,"Bath use (shower present)",{"$f":"IF($D$47=\"\",0,'Activity database'!AU9)","v":0},{"$error":"#N/A"},{"$error":"#N/A"},{"$f":"IF($D$47=\"\",0,((P47*$Q$47*$R$47)*(VLOOKUP($B$11,'Activity database'!$A:$AR,43,FALSE))))","v":0}]
[null,{"$f":"'Activity database'!X3","v":"Fixed use - vessel filling"},"Litres/person/day","-","-","-",{"$f":"IF(ISERROR(VLOOKUP(B11,'Activity database'!A:BA,24,FALSE)),R145,VLOOKUP(B11,'Activity database'!A:BA,24,FALSE))","v":"Requires building information"},null,null,null,null,null,null,null,"Fixed use - vessel filling","N/A","N/A","N/A",{"$f":"$G$48","v":"Requires building information"}]
[null,"Tap components (cleaning) - staff kitchenette",null,null,null,null,null,null,null,null,null,null,null,null,"Tap components (cleaning) - staff kitchenette"]
[null,{"$f":"'Activity database'!R3","v":"Kitchen taps - kitchenette"},"Flow rate (litres/min)",null,{"$f":"IF(B11=R135,R145,VLOOKUP($B$20,'Activity database'!$A:$AN,18,FALSE))","v":"Requires building information"},{"$f":"VLOOKUP($B$20,'Activity database'!$A:$AN,34,FALSE)","v":0.67},{"$f":"IF(ISERROR(IF(B11=R135,R145,(D50*E50*F50)*(VLOOKUP(B11,'Activity database'!A:AR,44,FALSE)))),R145,IF(B11=R135,R145,(D50*E50*F50)*(VLOOKUP(B11,'Activity database'!A:AR,44,FALSE))))","v":"Requires building information"},null,null,null,null,null,null,null,{"$f":"B50","v":"Kitchen taps - kitchenette"},{"$f":"IF($D$50=\"\",0,VLOOKUP($O$50,'Activity database'!$AT:$BA,2,FALSE))","v":0},{"$f":"E50","v":"Requires building information"},{"$f":"F50","v":0.67},{"$f":"IF($D$50=\"\",0,(P50*$Q$50*$R$50)*(VLOOKUP($B$11,'Activity database'!$A:$AR,44,FALSE)))","v":0}]
[null,{"$f":"'Activity database'!U3","v":"Dishwasher"},"Litres/cycle",null,{"$f":"IF(B11=R135,R145,VLOOKUP($B$20,'Activity database'!$A:$AN,21,FALSE))","v":"Requires building information"},{"$f":"VLOOKUP($B$20,'Activity database'!$A:$AN,37,FALSE)","v":1},{"$f":"IF(ISERROR(IF(B11=R135,R145,D51*E51*F51)),R145,IF(B11=R135,R145,D51*E51*F51))","v":"Requires building information"},null,null,null,null,null,null,null,{"$f":"B51","v":"Dishwasher"},{"$f":"IF($D$51=\"\",0,'Activity database'!AU16)","v":0},{"$f":"E51","v":"Requires building information"},{"$f":"F51","v":1},{"$f":"P51*$Q$51*$R$51","v":{"$error":"#VALUE!"}}]
[null,"Tap components (cleaning and food preparation) - staff canteen food preparation area",null,null,null,null,null,null,null,null,null,null,null,null,"Tap components (cleaning and food preparation) - canteen/restaurant"]
[null,{"$f":"'Activity database'!S3","v":"Kitchen taps - pre-rinse nozzle"},"Flow rate (litres/min)",null,"-",{"$f":"VLOOKUP($B$21,'Activity database'!A:BC,35,FALSE)","v":60},{"$f":"IF(ISERROR((D53*F53)/O147),R145,((D53*F53)/O147))","v":"Requires building information"},null,null,null,null,null,null,null,{"$f":"B53","v":"Kitchen taps - pre-rinse nozzle"},{"$f":"IF($D$53=\"\",0,VLOOKUP($O$53,'Activity database'!$AT:$BA,2,FALSE))","v":0},{"$f":"E53","v":"-"},60,{"$f":"IF($D$53=\"\",0,(P53*$R$53)/$O$147)","v":0}]
[null,{"$f":"'Activity database'!U3","v":"Dishwasher"},"Litres/rack",null,"-",{"$f":"VLOOKUP($B$21,'Activity database'!A:BC,37,FALSE)","v":0.248},{"$f":"IF(ISERROR((F54*G21*D54)/O147),R145,((F54*G21*D54)/O147))","v":"Requires building information"},null,null,null,null,null,null,null,"Dishwasher",{"$f":"IF($D$54=\"\",0,'Activity database'!AU19)","v":0},"-",0.248,{"$f":"IF($D$54=\"\",0,($R$54*$G$21*P54)/$O$147)","v":0}]
[null,{"$f":"'Activity database'!W3","v":"Waste disposal unit"},"Flow rate (litres/min)",null,"-",{"$f":"VLOOKUP($B$21,'Activity database'!A:BC,39,FALSE)","v":30},{"$f":"IF(ISERROR((D55*F55)/O147),R145,((D55*F55)/O147))","v":"Requires building information"},null,null,null,null,null,null,null,"Waste disposal unit",{"$f":"IF($D$55=\"\",0,VLOOKUP($O$55,'Activity database'!$AT:$BA,2,FALSE))","v":0},"-",30,{"$f":"IF($D$55=\"\",0,(P55*$R$55)/$O$147)","v":0}]
["Hide rows: N/A for retail",{"$f":"'Activity database'!V3","v":"Washing machine"},"Litres/kg dry load",null,{"$f":"VLOOKUP($B$11,'Activity database'!$A:$AN,22,FALSE)","v":{"$error":"#N/A"}},{"$f":"VLOOKUP($B$11,'Activity database'!$A:$AN,38,FALSE)","v":{"$error":"#N/A"}},{"$f":"IF(ISERROR(IF(E56=\"N/A\",0,IF(F21=\"Yes\",(D56*E56*F56),0))),R145,IF(E56=\"N/A\",0,IF(F21=\"Yes\",(D56*E56*F56),0)))","v":"Requires building information"},"Hide rows: N/A for retail",null,null,null,null,null,null,"Washing machine",{"$f":"IF($D$56=\"\",0,'Activity database'!AU20)","v":0},{"$error":"#N/A"},{"$error":"#N/A"},{"$f":"IF($D$56=\"\",0,IF($F$21=\"Yes\",(P56*$Q$56*$R$56)))","v":0}]
[null,{"$f":"'Activity database'!Y3","v":"Fixed use - food preparation"},"Litres/person/day","-","-","-",{"$f":"IF(ISERROR(IF(F21=\"Yes\",(VLOOKUP(B21,'Activity database'!A:BC,25,FALSE)/O147),0)),R145,IF(F21=\"Yes\",(VLOOKUP(B21,'Activity database'!A:BC,25,FALSE)/O147),0))","v":0},null,null,null,null,null,null,null,"Fixed use - food preparation","N/A",{"$f":"E57","v":"-"},"N/A",{"$f":"$G$57","v":0}]
[null,{"$f":"'Activity database'!Z3","v":"Fixed use - kitchen cleaning"},"Litres/person/day","-","-","-",{"$f":"IF(ISERROR(IF(F21=\"Yes\",(VLOOKUP(B21,'Activity database'!A:BC,26,FALSE)/O147),0)),R145,IF(F21=\"Yes\",(VLOOKUP(B21,'Activity database'!A:BC,26,FALSE)/O147),0))","v":0},null,null,null,null,null,null,null,"Fixed use - kitchen cleaning","N/A",{"$f":"E58","v":"-"},"N/A",{"$f":"$G$58","v":0}]
[]
[null,null,null,null,null,null,"Microcomponent Consumption \n(L/person/day)","Note: This total includes the contributions from fixed uses, including where applicable vessel filling, kitchen cleaning and food preparation. Default fixed use totals are included with the calculations to provide a more accurate reflection of the buildings total water consumption. The fixed use totals are not however included in the water consumption total used to determine the assessed buildings percentage improvement and the number of BREEAM credits achieved. The percentage improvement is based only on the consumption of water from uses that can be heavily influenced by the microcomponent specification e.g. WC flushing.",null,null,null,null,null,null,null,null,null,null,"Baseline Consumption (L/person/day)"]
[null,null,null,null,null,"Total",{"$f":"IF(OR(G28=R145,AND(F17=R137,F18=R137,F20=R137,F21=R137,F22=R137,F23=R137)),R145,(SUM(G28:G29)+G32+G35+G38+SUM(G43:G48)+SUM(G50:G51)+SUM(G53:G58)))","v":"Requires building information"},null,null,null,null,null,null,null,null,null,null,"Total ",{"$f":"SUM(S28+S29)+S32+S35+S38+SUM(S43:S48)+SUM(S50:S51)+SUM(S53:S58)-S71","v":{"$error":"#N/A"}}]
[]
[null,"Minimum requirements according to EU taxonomy for sustainable finance"]
[{"$f":"IF(G64=$R$135,\">\",\"\")","v":">"},null,null,null,null,"Do all the installed wash hand basin taps and kitchen taps have a maximum water flow of 6 litres/min?","Please select"]
[{"$f":"IF(G65=$R$135,\">\",\"\")","v":">"},null,null,null,null,"Do all the installed showers have a maximum water flow of 8 litres/min?","Please select"]
[">",null,null,null,null,"Do all WCs, including suites, bowls and flushing cisterns, have a full flush volume of a maximum of 6 litres and a maximum average flush volume of 3,5 litres?","Please select"]
[">",null,null,null,null,"Do all urinals use a maximum of 2 litres/bowl/hour and flushing urinals have a maximum full flush volume of 1 litre? ","Please select"]
[null,null,null,null,null,"Is all the  EU taxonomy requirements for sanitary equipment met?",{"$f":"IF(OR(G64=\"Please select\",G64=\"No\"),\"No\",IF(OR(G65=\"Please Select\",G65=\"No\"),\"No\",IF(OR(G66=\"Please Select\",G66=\"No\"),\"No\",IF(OR(G67=\"Please Select\",G67=\"No\"),\"No\",\"Yes\"))))","v":"No"}]
[]
[null,"Non potable water yield - greywater system",null,null,null,null,null,null,null,null,null,null,null,null,null,null,null,null,"Total from fixed uses"]
[null,null,null,null,null,null,null,null,null,null,null,null,null,null,null,null,null,"Total ",{"$f":"S48+S57+S58","v":{"$error":"#VALUE!"}}]
[{"$f":"IF(G72=$R$135,\">\",\"\")","v":">"},null,null,null,null,"Has, or will, the greywater system be specified and installed in compliance with BS8525-1:2010 Greywater Systems - Part 1 Code of Practice","Please select"]
[]
[null,null,"Greywater source (building components)",null,"Greywater collected","Proportion of components collected from (%)","Greywater yield \n(L/person/day)"]
[null,{"$f":"IF(AND($G$72=$R$136,E75=\"\"),\">\",IF(AND($G$72=$R$136,E75=$R$136,F75=\"\"),\">\",\"\"))","v":""},{"$f":"B43","v":"Wash hand basin taps"},null,null,null,{"$f":"IF(ISERROR(IF(OR(E75=$R$137,E75=\"\"),0,G43*F75)),R145,IF(OR(E75=$R$137,E75=\"\"),0,G43*F75))","v":0}]
[null,{"$f":"IF(AND($G$72=$R$136,E76=\"\"),\">\",IF(AND($G$72=$R$136,E76=$R$136,F76=\"\"),\">\",\"\"))","v":""},"Showers",null,null,null,{"$f":"IF(ISERROR(IF(OR(E76=$R$137,E76=\"\"),0,(SUM(G44:G45)*F76))),R145,IF(OR(E76=$R$137,E76=\"\"),0,(SUM(G44:G45)*F76)))","v":0}]
[null,{"$f":"IF($F$20=$R$137,\"\",IF(AND($G$72=$R$136,E77=\"\"),\">\",IF(AND($G$72=$R$136,E77=$R$136,F77=\"\"),\">\",\"\")))","v":""},{"$f":"B50","v":"Kitchen taps - kitchenette"},null,null,null,{"$f":"IF(ISERROR(IF(OR(E77=$R$137,E77=\"\"),0,G50*F77)),R145,IF(OR(E77=$R$137,E77=\"\"),0,G50*F77))","v":0}]
[null,{"$f":"IF($F$20=$R$137,\"\",IF(AND($G$72=$R$136,E78=\"\"),\">\",IF(AND($G$72=$R$136,E78=$R$136,F78=\"\"),\">\",\"\")))","v":""},"Dishwasher - staff kitchenette",null,null,null,{"$f":"IF(ISERROR(IF(OR(E78=$R$137,E78=\"\"),0,F78*G51)),R145,IF(OR(E78=$R$137,E78=\"\"),0,F78*G51))","v":0}]
[null,{"$f":"IF($F$21=$R$137,\"\",IF(AND($G$72=$R$136,E79=\"\"),\">\",IF(AND($G$72=$R$136,E79=$R$136,F79=\"\"),\">\",\"\")))","v":""},{"$f":"B53","v":"Kitchen taps - pre-rinse nozzle"},null,null,null,{"$f":"IF(ISERROR(IF(OR(E79=$R$137,E79=\"\"),0,G53*F79)),R145,IF(OR(E79=$R$137,E79=\"\"),0,G53*F79))","v":0}]
[null,{"$f":"IF($F$21=$R$137,\"\",IF(AND($G$72=$R$136,E80=\"\"),\">\",IF(AND($G$72=$R$136,E80=$R$136,F80=\"\"),\">\",\"\")))","v":""},"Dishwasher - food preparation area",null,null,null,{"$f":"IF(ISERROR(IF(OR(E80=$R$137,E80=\"\"),0,F80*G54)),R145,(IF(OR(E80=$R$137,E80=\"\"),0,F80*G54)))","v":0}]
[null,"Hide rows: N/A for offices","Bath",null,null,null,{"$f":"IF(OR(E81=R137,E81=\"\",E46=\"N/A\",E47=\"N/A\"),0,(SUM(G46:G47)*F81))","v":{"$error":"#N/A"}},"Hide rows: N/A for offices"]
[null,"Hide rows: N/A for offices",{"$f":"B56","v":"Washing machine"},null,null,null,{"$f":"IF(OR(E82=R138,E82=\"\"),0,F82*G56)","v":0},"Hide rows: N/A for offices"]
[null,null,"Greywater source (other components)","Typical greywater yield (litres)","Frequency of  yield (days)","Greywater yield (litres/day)","Greywater yield \n(L/person/day)",{"$f":"IF(G72=R136,O159,\"\")","v":""}]
[null,null,"Other source of greywater",null,null,{"$f":"IF(D84=\"\",\"\",D84/E84)","v":""},{"$f":"IF(D84=\"\",0,F84/O147)","v":0}]
[]
[null,null,null,null,null,null,"Greywater yield\n(L/person/day)"]
[null,null,null,null,null,"Total",{"$f":"IF(B11=R135,R145,IF(OR(G72=R138,G72=R137),0,SUM(G75:G82)+G84))","v":"Requires building information"}]
[]
[null,"Non potable water yield - rainwater system"]
[]
[{"$f":"IF(G91=$R$135,\">\",\"\")","v":">"},null,null,null,null,"Has, or will, the rainwater system be specified and installed in compliance with BS EN 16941-1:2018 Rainwater Harvesting Systems - Code of practice","Please select"]
[]
[{"$f":"IF(AND($G$91=$R$136,G93=$R$135),\">\",\"\")","v":""},null,null,null,null,"How has the storage capacity for the proposed system been calculated?","Please select"]
[null,"Rainwater yield if basic approach:"]
[null,"Collection area (m2)","Rainfall \n(average mm/yr)","Hydraulic filter efficiency (%)","Yield co-efficient (%)","Annual rainwater yield (Litres)","Rainwater yield\n(L/person/day)"]
[{"$f":"IF(AND($G$91=$R$136,$G$93=$T$136,OR(B96=\"\",C96=\"\",D96=\"\",E96=\"\")),\">\",\"\")","v":""},null,null,null,null,{"$f":"B96*E96*D96*C96","v":0},{"$f":"IF(ISERROR(IF(OR(G91=R138,G91=R137,G93=T137),0,(F96/365)/O147)),R145,IF(OR(G91=R138,G91=R137,G93=T137),0,(F96/365)/O147))","v":"Requires building information"}]
[null,null,null,null,null,"Rainwater yield if detailed:"]
[null,null,null,null,null,"Daily rainfall collection (litres)","Rainwater yield \n(L/person/day)"]
[null,null,null,null,{"$f":"IF(AND($G$91=$R$136,$G$93=$T$137,F99=\"\"),\">\",\"\")","v":""},null,{"$f":"IF(ISERROR(IF(OR(G93=T136,G91=R138,G91=R137),0,(F99/O147))),R145,IF(OR(G93=T136,G91=R138,G91=R137),0,(F99/O147)))","v":"Requires building information"}]
[]
[null,"Non potable water demand - building components"]
[]
[null,null,null,null,null,null,"Greywater and/or rainwater yield\n(L/person/day)"]
[null,null,null,null,null,"Total",{"$f":"IF(ISERROR(G99+G96+G87),R145,G99+G96+G87)","v":"Requires building information"}]
[]
[null,null,null,"Component","Greywater and/or rainwater utilised for component","Proportion of components using greywater and/or rainwater yield (%)","Maximum permissible demand (L/person/day)"]
[null,null,{"$f":"IF(AND(OR($G$72=$R$135,$G$72=$R$137,$G$72=$R$138),OR($G$91=$R$135,$G$91=$R$137,$G$91=$R$138)),\"\",IF(E107=$R$137,\"\",IF(OR(E107=\"\",F107=\"\"),\">\",\"\")))","v":""},"WC flushing",null,null,{"$f":"IF(E107=\"no\",0,F107*SUM(G28:G29))","v":0}]
[null,null,{"$f":"IF(B28=S137,\"\",IF(AND(OR($G$72=$R$135,$G$72=$R$137,$G$72=$R$138),OR($G$91=$R$135,$G$91=$R$137,$G$91=$R$138)),\"\",IF(E108=$R$137,\"\",IF(OR(E108=\"\",F108=\"\"),\">\",\"\"))))","v":""},"Urinal flushing",null,null,{"$f":"IF(OR(E108=\"no\",B28=S137),0,F108*SUM(G32:G38))","v":0}]
[null,null,null,null,null,null,"Demand met by yield\n(L/person/day)"]
[null,null,null,null,null,"Total",{"$f":"IF((SUM(G107:G108))>G104,G104,SUM(G107:G108))","v":0}]
[null,null,null,"Other permissible components"]
[null,null,{"$f":"IF(AND(OR($G$72=$R$135,$G$72=$R$137,$G$72=$R$138),OR($G$91=$R$135,$G$91=$R$137,$G$91=$R$138)),\"\",IF(G112=$R$135,\">\",\"\"))","v":""},null,null,"Are there other permissible components present which demand greywater and/or rainwater yield?","Please select"]
[null,null,null,null,null,null,"Maximum permissible demand (L/day)"]
[null,null,null,null,null,null,{"$f":"IF(ISERROR(IF(AND(G112=\"yes\",G110>G104),0,(G104-G110)*O147)),R145,IF(AND(G112=\"yes\",G110>G104),0,(G104-G110)*O147))","v":"Requires building information"}]
[null,null,{"$f":"IF(AND(OR($G$72=$R$135,$G$72=$R$137,$G$72=$R$138),OR($G$91=$R$135,$G$91=$R$137,$G$91=$R$138)),\"\",IF(AND(G112=$R$136,G115=\"\"),\">\",\"\"))","v":""},null,null,"Proportion of maximum permissible demand utilised by other permissible components (%)"]
[null,null,null,null,null,null," Demand met by yield\n(L/person/day)"]
[null,null,null,null,null,"Total",{"$f":"IF(ISERROR((G115*G114)/O147),R145,(G115*G114)/O147)","v":"Requires building information"}]
[]
[null,null,null,null,null,null,"Greywater and/or rainwater demand met by yield\n(L/person/day)"]
[null,null,null,null,null,"Total ",{"$f":"IF(ISERROR(G110+G117),R145,G110+G117)","v":"Requires building information"}]
[]
[null,"Water consumption calculation results"]
[]
[null,null,null,null,null,"Litres/person/day","m3/person/yr",{"$f":"IF(G12=R137,O163,\"\")","v":""}]
[null,null,null,null,"Water consumption - modelled baseline performance benchmark (excludes fixed uses)",{"$f":"IF(ISERROR(S61),R145,S61)","v":"Requires building information"},{"$f":"IF(ISERROR((F125/1000)*$F$11),R145,(F125/1000)*$F$11)","v":"Requires building information"}]
[]
[null,null,null,null,"Microcomponent water consumption - modelled performance (excludes fixed uses)",{"$f":"IF(ISERROR(G61-S71),R145,G61-S71)","v":"Requires building information"},{"$f":"IF(ISERROR((F127/1000)*$F$11),R145,(F127/1000)*$F$11)","v":"Requires building information"},null,null,null,null,null,null,null,"Greywater/rainwater data check"]
[null,null,null,null,null,null,null,null,null,null,null,null,null,null,{"$f":"1-(F127-F129)/F125","v":{"$error":"#VALUE!"}},"% actual improvement"]
[null,null,null,null,"Modelled water demand met via greywater and rainwater sources",{"$f":"IF(ISERROR(G120),R145,G120)","v":"Requires building information"},{"$f":"IF(ISERROR((F129/1000)*$F$11),R145,(F129/1000)*$F$11)","v":"Requires building information"}]
[null,null,null,null,null,null,null,null,null,null,null,null,null,null,{"$f":"VLOOKUP(O128,'Activity database'!BC4:BD9,2,TRUE)","v":{"$error":"#VALUE!"}},"Credits achieved"]
[null,null,null,null,"If greywater/rainwater systems specified has the minimum % efficiency improvement for component specifications been met",{"$f":"IF(ISERROR(IF(AND((OR(G91=R138,G91=R137)),((OR(G72=R138,G72=R137)))),R138,IF(OR(O130=\"1 credit\",O130=\"2 credits\",O130=\"3 credits\"),R143,IF(OR(O130=\"4 credits\",O130=\"5 credits\"),(IF((1-(F127/F125))<0.25,\"No\",\"Yes\")))))),R145,IF(AND((OR(G91=R138,G91=R137)),((OR(G72=R138,G72=R137)))),R138,IF(OR(O130=\"1 credit\",O130=\"2 credits\",O130=\"3 credits\"),R143,IF(OR(O130=\"4 credits\",O130=\"5 credits\"),(IF((1-(F127/F125))<0.25,\"No\",\"Yes\"))))))","v":"Requires building information"}]
[]
[null,null,null,null,"Net modelled water consumption (excludes fixed uses)",{"$f":"IF(ISERROR(IF(OR(F131=\"Yes\",F131=R138),F127-F129,(F127-((1-(F127/F125))*F129)))),R145,IF(OR(F131=\"Yes\",F131=R138),F127-F129,(F127-((1-(F127/F125))*F129))))","v":"Requires building information"},{"$f":"IF(ISERROR((F133/1000)*$F$11),R145,((F133/1000)*$F$11))","v":"Requires building information"}]
[]
[null,null,null,null,"Percentage improvement",{"$f":"IF(OR(F125=R145,F127=R145,F129=R145,F131=R145),R145,(ROUNDDOWN(IF(OR(F131=\"yes\",F131=R143,F131=R138),O128,(IF(F131=\"No\",1-((F127-(F129*(1-(F127/F125))))/F125)))),4)))","v":"Requires building information"},null,null,null,null,null,null,null,null,null,null,"Please select","Please select","Please select","Please select",0]
[null,null,null,null,null,null,null,null,null,null,null,null,null,null,"Default occupancy rate - customers","Default occupancy rate - staff","Waterless urinals - specified","Yes",{"$f":"'Activity database'!I3","v":"WC - male (urinals installed)"},"BS EN 16941-1 'basic approach'",0.01]
[null,null,null,null,"Total Wat 01 BREEAM credits achieved, before checking minimum requirements according to EU taxonomy for sustainable finance.",{"$f":"IF(F135<0,'Activity database'!BD4,(IF(ISERROR(VLOOKUP(F135,'Activity database'!BC4:BD9,2,TRUE)),R145,VLOOKUP(F135,'Activity database'!BC4:BD9,2,TRUE))))","v":"Requires building information"},null,null,null,null,null,null,null,{"$f":"B17","v":"Retail - sales areas for display of bulky items"},{"$f":"IF(G12=R137,0,IF(F17=\"Yes\",VLOOKUP(B17,'Activity database'!A:BC,3,FALSE)*G17*2*0.4*VLOOKUP($B$11,'Activity database'!$A:$AR,5,FALSE),0))","v":0},{"$f":"IF(F17=\"Yes\",0.013*G17,0)","v":0},"Waterless urinals - not specified","No",{"$f":"'Activity database'!J3","v":"WC - male (no urinals installed)"},"BS EN 16941-1 'detailed approach'",0.02]
[null,null,null,null,null,null,null,null,null,null,null,null,null,{"$f":"B18","v":"Retail - sales areas for display of non bulky items and/or customer service area."},{"$f":"IF(G12=R137,0,IF(F18=\"Yes\",VLOOKUP(B18,'Activity database'!A:BC,3,FALSE)*G18*2*0.4*VLOOKUP($B$11,'Activity database'!$A:$AR,5,FALSE),0))","v":0},{"$f":"IF(F18=\"Yes\",0.059*G18,0)","v":0},null,"System not specified",null,null,0.03]
[null,null,null,null,"Total Wat 01 BREEAM credits achieved",{"$f":"IF(F137=\"Requires building information\",\"Requires building information\",IF(G68=\"Yes\",F137,IF(F137>=\"1 credit\",\"1 credit\",\"0 credits\")))","v":"Requires building information"}]
[]
[null,null,null,null,"Total Wat 01 BREEAM Exemplary credits achieved",{"$f":"IF(F135=R145,R145,IF(F135>='Activity database'!BC10,\"1 innovation credit achieved\",\"Exemplary level not achieved\"))","v":"Requires building information"},null,null,null,null,null,null,null,{"$f":"B19","v":"Retail - concourse/shopping mall"},{"$f":"IF(G12=R137,0,IF(F19=\"Yes\",VLOOKUP(B19,'Activity database'!A:BC,3,FALSE)*G19,0))","v":0},"-",null,null,"Please select",null,0.04]
[null,null,null,null,null,null,null,null,null,null,null,null,null,{"$f":"B20","v":"Retail - Staff office area and staffroom"},"-",{"$f":"IF(F20=\"Yes\",VLOOKUP(B20,'Activity database'!A:BC,3,FALSE)*G20,0)","v":0},null,null,{"$f":"'Activity database'!A31","v":"Retail - Shop / retail unit(s) / retail warehouse"},null,0.05]
[null,null,null,null,"Key performance indicator - use of freshwater resource (includes fixed uses)",{"$f":"IF(ISERROR(F127+S71-F129),R145,F127+S71-F129)","v":"Requires building information"},{"$f":"IF(ISERROR((F143/1000)*$F$11),R145,(F143/1000)*$F$11)","v":"Requires building information"},null,null,null,null,null,null,{"$f":"B21","v":"Retail - Staff canteen dining area"},"-",{"$f":"IF(F21=\"Yes\",VLOOKUP(B21,'Activity database'!A:BC,3,FALSE)*G21,0)","v":0},null,"Not applicable",{"$f":"'Activity database'!A34","v":"Retail - Supermarket"},null,0.06]
[null,null,null,null,null,null,null,null,null,null,null,null,null,{"$f":"B22","v":"Retail - Goods-in and storage area"},"-",{"$f":"IF(F22=\"Yes\",VLOOKUP(B22,'Activity database'!A:BC,3,FALSE)*G22,0)","v":0},null,null,{"$f":"'Activity database'!A37","v":"Retail - Service provider"},null,7.0000000000000007E-2]
[null,null,null,null,null,null,null,null,null,null,null,null,null,{"$f":"B23","v":"Retail - Workshop"},"-",{"$f":"IF(F23=\"Yes\",VLOOKUP(B23,'Activity database'!A:BC,3,FALSE)*G23,0)","v":0},null,"Requires building information",{"$f":"'Activity database'!A40","v":"Retail - Shopping centre/complex"},null,0.08]
[null,null,null,null,null,null,null,null,null,null,null,null,null,"Total",{"$f":"IF(G12=R137,0,SUM(O137:O145))","v":0},{"$f":"SUM(P137:P145)","v":0},null,null,null,null,0.09]
[null,null,null,null,null,null,null,null,null,null,null,null,null,"Total default occupancy",{"$f":"SUM(O146:P146)","v":0},null,null,null,null,null,0.1]
[null,null,null,null,null,null,null,null,null,null,null,null,null,null,null,null,null,null,null,null,0.11]
[null,null,null,null,null,null,null,null,null,null,null,null,null,null,null,null,null,null,null,null,0.12]
[null,null,null,null,null,null,null,null,null,null,null,null,null,null,null,null,null,null,null,null,0.13]
[null,null,null,null,null,null,null,null,null,null,null,null,null,null,null,null,null,null,null,null,0.14000000000000001]
[null,null,null,null,null,null,null,null,null,null,null,null,null,null,null,null,null,null,null,null,0.15]
[null,null,null,null,null,null,null,null,null,null,null,null,null,null,null,null,null,null,null,null,0.16]
[null,null,null,null,null,null,null,null,null,null,null,null,null,null,null,null,null,null,null,null,0.17]
[null,null,null,null,null,null,null,null,null,null,null,null,null,null,null,null,null,null,null,null,0.18]
[null,null,null,null,null,null,null,null,null,null,null,null,null,null,null,null,null,null,null,null,0.19]
[null,null,null,null,null,null,null,null,null,null,null,null,null,null,null,null,null,null,null,null,0.2]
[null,null,null,null,null,null,null,null,null,null,null,null,null,null,null,null,null,null,null,null,0.21]
[null,null,null,null,null,null,null,null,null,null,null,null,null,null,"Note: If greywater is collected from a component/source not accounted for above i.e. their consumption is not estimated, then the amount of greywater collected can be added here so that it may be accounted for. This can include wastewater from active hygiene flushing, i.e. a regular hygiene flushing programme to minimize poor water quality in a potable cold or hot water system.",null,null,null,null,null,0.22]
[null,null,null,null,null,null,null,null,null,null,null,null,null,null,"Note: This consumption total accounts for the ratio of male users for this building type i.e. the ratio of building users who will operate the flush. Where more than one type of urinal flushing control is specified in the building, this consumption figure is adjusted by a ratio of use. the ratio is determined according to the proportion of urinals bowls in the building operated using this type of control.",null,null,null,null,null,0.23]
[null,null,null,null,null,null,null,null,null,null,null,null,null,null,"Note: Where waterless urinals are specified in the assessed building, for the purpose of the baseline benchmark standard 1.5 litre flush urinals are assumed. Where waterless urinals and another type of urinal flushing control is specified in the building, the baseline consumption figure calculated using a 1.5 litre default flush is adjusted by a ratio of use. The ratio is determined according to the proportion of urinals bowls in the building that are waterless.",null,null,null,null,null,0.24]
[null,null,null,null,null,null,null,null,null,null,null,null,null,null,"Note: Please select the relevant option for waterless urinals specification opposite.",null,null,null,null,null,0.25]
[null,null,null,null,null,null,null,null,null,null,null,null,null,null,"Note: The consumption figures calculated here are based on water consumption for staff only (as the building does not contain facilities for visiting customers).",null,null,null,null,null,0.26]
[null,null,null,null,null,null,null,null,null,null,null,null,null,null,"Note: A default occupancy total for visiting customers is not calculated if facilities are not provided for this building user.",null,null,null,null,null,0.27]
[null,null,null,null,null,null,null,null,null,null,null,null,null,null,"Note: If this retail development contains one of or a combination of restaurants/cafes (for customer use), gym or cinema then please ensure you undertake separate water consumption calculations for such building functions using the appropriate building type calculator. You must then determine the number of BREEAM credits achieved for the development as a whole in accordance with the guidance given in the compliance note: \"Building is a mixture of different types\", contained within the Wat 01 issue in the BREEAM New Construction technical guide.",null,null,null,null,null,0.28000000000000003]
[null,null,null,null,null,null,null,null,null,null,null,null,null,null,null,null,null,null,null,null,0.28999999999999998]
[null,null,null,null,null,null,null,null,null,null,null,null,null,null,null,null,null,null,null,null,0.3]
[null,null,null,null,null,null,null,null,null,null,null,null,null,null,null,null,null,null,null,null,0.31]
[null,null,null,null,null,null,null,null,null,null,null,null,null,null,null,null,null,null,null,null,0.32]
[null,null,null,null,null,null,null,null,null,null,null,null,null,null,null,null,null,null,null,null,0.33]
[null,null,null,null,null,null,null,null,null,null,null,null,null,null,null,null,null,null,null,null,0.34]
[null,null,null,null,null,null,null,null,null,null,null,null,null,null,null,null,null,null,null,null,0.35]
[null,null,null,null,null,null,null,null,null,null,null,null,null,null,null,null,null,null,null,null,0.36]
[null,null,null,null,null,null,null,null,null,null,null,null,null,null,null,null,null,null,null,null,0.37]
[null,null,null,null,null,null,null,null,null,null,null,null,null,null,null,null,null,null,null,null,0.38]
[null,null,null,null,null,null,null,null,null,null,null,null,null,null,null,null,null,null,null,null,0.39]
[null,null,null,null,null,null,null,null,null,null,null,null,null,null,null,null,null,null,null,null,0.4]
[null,null,null,null,null,null,null,null,null,null,null,null,null,null,null,null,null,null,null,null,0.41]
[null,null,null,null,null,null,null,null,null,null,null,null,null,null,null,null,null,null,null,null,0.42]
[null,null,null,null,null,null,null,null,null,null,null,null,null,null,null,null,null,null,null,null,0.43]
[null,null,null,null,null,null,null,null,null,null,null,null,null,null,null,null,null,null,null,null,0.44]
[null,null,null,null,null,null,null,null,null,null,null,null,null,null,null,null,null,null,null,null,0.45]
[null,null,null,null,null,null,null,null,null,null,null,null,null,null,null,null,null,null,null,null,0.46]
[null,null,null,null,null,null,null,null,null,null,null,null,null,null,null,null,null,null,null,null,0.47]
[null,null,null,null,null,null,null,null,null,null,null,null,null,null,null,null,null,null,null,null,0.48]
[null,null,null,null,null,null,null,null,null,null,null,null,null,null,null,null,null,null,null,null,0.49]
[null,null,null,null,null,null,null,null,null,null,null,null,null,null,null,null,null,null,null,null,0.5]
[null,null,null,null,null,null,null,null,null,null,null,null,null,null,null,null,null,null,null,null,0.51]
[null,null,null,null,null,null,null,null,null,null,null,null,null,null,null,null,null,null,null,null,0.52]
[null,null,null,null,null,null,null,null,null,null,null,null,null,null,null,null,null,null,null,null,0.53]
[null,null,null,null,null,null,null,null,null,null,null,null,null,null,null,null,null,null,null,null,0.54]
[null,null,null,null,null,null,null,null,null,null,null,null,null,null,null,null,null,null,null,null,0.55000000000000004]
[null,null,null,null,null,null,null,null,null,null,null,null,null,null,null,null,null,null,null,null,0.56000000000000005]
[null,null,null,null,null,null,null,null,null,null,null,null,null,null,null,null,null,null,null,null,0.56999999999999995]
[null,null,null,null,null,null,null,null,null,null,null,null,null,null,null,null,null,null,null,null,0.57999999999999996]
[null,null,null,null,null,null,null,null,null,null,null,null,null,null,null,null,null,null,null,null,0.59]
[null,null,null,null,null,null,null,null,null,null,null,null,null,null,null,null,null,null,null,null,0.6]
[null,null,null,null,null,null,null,null,null,null,null,null,null,null,null,null,null,null,null,null,0.61]
[null,null,null,null,null,null,null,null,null,null,null,null,null,null,null,null,null,null,null,null,0.62]
[null,null,null,null,null,null,null,null,null,null,null,null,null,null,null,null,null,null,null,null,0.63]
[null,null,null,null,null,null,null,null,null,null,null,null,null,null,null,null,null,null,null,null,0.64]
[null,null,null,null,null,null,null,null,null,null,null,null,null,null,null,null,null,null,null,null,0.65]
[null,null,null,null,null,null,null,null,null,null,null,null,null,null,null,null,null,null,null,null,0.66]
[null,null,null,null,null,null,null,null,null,null,null,null,null,null,null,null,null,null,null,null,0.67]
[null,null,null,null,null,null,null,null,null,null,null,null,null,null,null,null,null,null,null,null,0.68]
[null,null,null,null,null,null,null,null,null,null,null,null,null,null,null,null,null,null,null,null,0.69]
[null,null,null,null,null,null,null,null,null,null,null,null,null,null,null,null,null,null,null,null,0.7]
[null,null,null,null,null,null,null,null,null,null,null,null,null,null,null,null,null,null,null,null,0.71]
[null,null,null,null,null,null,null,null,null,null,null,null,null,null,null,null,null,null,null,null,0.72]
[null,null,null,null,null,null,null,null,null,null,null,null,null,null,null,null,null,null,null,null,0.73]
[null,null,null,null,null,null,null,null,null,null,null,null,null,null,null,null,null,null,null,null,0.74]
[null,null,null,null,null,null,null,null,null,null,null,null,null,null,null,null,null,null,null,null,0.75]
[null,null,null,null,null,null,null,null,null,null,null,null,null,null,null,null,null,null,null,null,0.76]
[null,null,null,null,null,null,null,null,null,null,null,null,null,null,null,null,null,null,null,null,0.77]
[null,null,null,null,null,null,null,null,null,null,null,null,null,null,null,null,null,null,null,null,0.78]
[null,null,null,null,null,null,null,null,null,null,null,null,null,null,null,null,null,null,null,null,0.79]
[null,null,null,null,null,null,null,null,null,null,null,null,null,null,null,null,null,null,null,null,0.8]
[null,null,null,null,null,null,null,null,null,null,null,null,null,null,null,null,null,null,null,null,0.81]
[null,null,null,null,null,null,null,null,null,null,null,null,null,null,null,null,null,null,null,null,0.82]
[null,null,null,null,null,null,null,null,null,null,null,null,null,null,null,null,null,null,null,null,0.83]
[null,null,null,null,null,null,null,null,null,null,null,null,null,null,null,null,null,null,null,null,0.84]
[null,null,null,null,null,null,null,null,null,null,null,null,null,null,null,null,null,null,null,null,0.85]
[null,null,null,null,null,null,null,null,null,null,null,null,null,null,null,null,null,null,null,null,0.86]
[null,null,null,null,null,null,null,null,null,null,null,null,null,null,null,null,null,null,null,null,0.87]
[null,null,null,null,null,null,null,null,null,null,null,null,null,null,null,null,null,null,null,null,0.88]
[null,null,null,null,null,null,null,null,null,null,null,null,null,null,null,null,null,null,null,null,0.89]
[null,null,null,null,null,null,null,null,null,null,null,null,null,null,null,null,null,null,null,null,0.9]
[null,null,null,null,null,null,null,null,null,null,null,null,null,null,null,null,null,null,null,null,0.91]
[null,null,null,null,null,null,null,null,null,null,null,null,null,null,null,null,null,null,null,null,0.92]
[null,null,null,null,null,null,null,null,null,null,null,null,null,null,null,null,null,null,null,null,0.93]
[null,null,null,null,null,null,null,null,null,null,null,null,null,null,null,null,null,null,null,null,0.94]
[null,null,null,null,null,null,null,null,null,null,null,null,null,null,null,null,null,null,null,null,0.95]
[null,null,null,null,null,null,null,null,null,null,null,null,null,null,null,null,null,null,null,null,0.96]
[null,null,null,null,null,null,null,null,null,null,null,null,null,null,null,null,null,null,null,null,0.97]
[null,null,null,null,null,null,null,null,null,null,null,null,null,null,null,null,null,null,null,null,0.98]
[null,null,null,null,null,null,null,null,null,null,null,null,null,null,null,null,null,null,null,null,0.99]
[null,null,null,null,null,null,null,null,null,null,null,null,null,null,null,null,null,null,null,null,1]

{"sheet":"Industrial calculator","index":8,"n_rows":236,"n_cols":20,"rows_kept":236,"cut":false,"hidden":true,"merged":[[10,2,10,3],[11,7,11,12],[34,1,35,1],[17,2,17,4],[17,7,17,14],[28,1,29,1],[34,7,36,12],[19,7,19,12],[31,1,32,1],[14,2,14,4],[15,2,15,4],[12,7,13,14],[13,2,13,4],[16,2,16,4],[44,7,45,12],[79,7,80,12],[31,7,33,12],[18,2,18,4],[18,7,18,14],[25,7,27,12],[56,7,58,12],[53,7,54,12]]}
[]
[null,"BREEAM-NOR v6.1 Wat 01 Water consumption: Water efficiency calculator for new non domestic industrial buildings"]
[]
[null,"Building details"]
[]
[null,"Building name",{"$f":"'User Instructions'!D8:F8","v":{"$error":"#VALUE!"}}]
[]
[null,"BRE assessment reference no.",{"$f":"'User Instructions'!D10:F10","v":{"$error":"#VALUE!"}}]
[]
[null,"Building type","Description of building type",null,"Default occupancy","Default annual days/operation","Default daily hours of operation"]
[{"$f":"IF(B11=$Q$136,\">\",\"\")","v":">"},"Please select",{"$f":"VLOOKUP(B11,'Activity database'!A:B,2,FALSE)","v":{"$error":"#N/A"}},null,{"$f":"IF(ISERROR(O144),Q144,IF(O144=0,Q144,O144))","v":"Requires building information"},{"$f":"VLOOKUP(B11,'Activity database'!A:AN,4,FALSE)","v":{"$error":"#N/A"}},{"$f":"VLOOKUP(B11,'Activity database'!A:AN,5,FALSE)","v":{"$error":"#N/A"}}]
[{"$f":"IF(AND(B11=R142,G12=$Q$136),\">\",\"\")","v":""},null,null,null,null,"On average how many shifts are there likely to be during a single 24 hour period of operation?","Please select",{"$f":"IF(Ind_act=R142,N157,\"\")","v":""}]
[null,"Main building activity areas","Description of activity area",null,null,"Activity area present in building?","Net Floor Area (m2)",{"$f":"'Office calculator'!H13:O14","v":"Note: the  activity areas defined opposite are used to estimate the assessed building's default occupancy and therefore water consumption benchmark. These areas are chosen as they are deemed, by in large, to represent the permanently occupied spaces in the building and therefore reflect the number of building occupants/users. As a result it is not necessary to include all areas of the building that may be present, as the areas not defined are assumed to be used by the occupants of the building already accounted for by those areas that are listed."}]
[{"$f":"IF(F14=$Q$136,\">\",IF(AND(F14=$Q$137,G14=\"\"),\">\",\"\"))","v":">"},{"$f":"'Activity database'!A11","v":"Industrial - process area"},{"$f":"VLOOKUP(B14,'Activity database'!A:B,2,FALSE)","v":"Main process based operational/manufacturing/workshop area"},null,null,"Please select"]
[{"$f":"IF(F15=$Q$136,\">\",IF(AND(F15=$Q$137,G15=\"\"),\">\",\"\"))","v":">"},{"$f":"'Activity database'!A12","v":"Industrial - Laboratory area"},{"$f":"VLOOKUP(B15,'Activity database'!A:B,2,FALSE)","v":"Large or small category 1 laboratory area."},null,null,"Please select"]
[{"$f":"IF(F16=$Q$136,\">\",IF(AND(F16=$Q$137,G16=\"\"),\">\",\"\"))","v":">"},{"$f":"'Activity database'!A13","v":"Industrial - Warehouse storage"},{"$f":"VLOOKUP(B16,'Activity database'!A:B,2,FALSE)","v":"Permanently or intermittently occupied warehouse storage areas."},null,null,"Please select"]
[{"$f":"IF(F17=$Q$136,\">\",IF(AND(F17=$Q$137,G17=\"\"),\">\",\"\"))","v":">"},{"$f":"'Activity database'!A14","v":"Industrial - Office areas"},{"$f":"VLOOKUP(B17,'Activity database'!A:B,2,FALSE)","v":"Cellular or open plan office space, including staff kitchen where present/adjacent and reception areas. Exlcude meeting rooms, visitor waiting or circulation areas."},null,null,"Please select"]
[{"$f":"IF(F18=$Q$136,\">\",IF(AND(F18=$Q$137,G18=\"\"),\">\",\"\"))","v":">"},{"$f":"'Activity database'!A15","v":"Industrial - Staff canteen dining area"},{"$f":"VLOOKUP(B18,'Activity database'!A:B,2,FALSE)","v":"Seated dining areas that accompany a permanently staffed kitchen preparing food for consumption on the premises (excludes small un-staffed kitchen's used by office staff to re-heat food, make tea etc.)"},null,null,"Please select",null,"Note: Only select this activity if there is a permanently staffed kitchen that will prepare hot and cold meals for the building's staff (and visitors). Enter the area of the seated dining area only (not kitchen/servery areas), this is used to estimate the number of covers per day for the restaurant and subsequently the number of kitchen staff and water consumption from food preparation activity area."]
[{"$f":"IF(F19=$Q$136,\">\",\"\")","v":">"},{"$f":"'Activity database'!A16","v":"Industrial - Fitness suite/gym (with changing facility and showers)"},{"$f":"VLOOKUP(B19,'Activity database'!A:B,2,FALSE)","v":"A fitness suite or gym that is part of the office building/development  and used by the building's employees only. The gym will have its own changing facility with showers."},null,null,"Please select",null,{"$f":"IF(F19=Q137,\"Note: Net floor area is not required for this activity. Its inclusion (or otherwise) simply determines the usage/person/day factor and therefore resulting water consumption from the showers.\",\"\")","v":""}]
[null,null,null,null,null,"Will the staff restaurant operate for a 24hr period?","Please select",{"$f":"IF(AND(Ind_act=R143,F18=Q137,G20=Q137),\"Warning: Please delete the contents of this cell to ensure accurate calculation.\",\"\")","v":""}]
[]
[null,"Water consumption - building microcomponent"]
[]
[null,"WC component - all activity areas","units","Specification","Usage/person/day","Usage factor","Consumption (L/person/day)",null,null,null,null,null,null,"WC component - all activity areas","Baseline \nPerformance Specification","Usage/person/day","Usage factor","Baseline Consumption (L/person/day)"]
[{"$f":"IF(B25=$Q$136,\">\",\"\")","v":">"},"Please select","Effective flush volume (Litres)",null,{"$f":"IF(Ind_act=Q136,\"\",IF(B25=R136,\"\",IF(B25=R137,VLOOKUP($B$11,'Activity database'!$A:$AN,9,FALSE),IF(B25=R138,VLOOKUP($B$11,'Activity database'!$A:$BM,10,FALSE)))))","v":""},{"$f":"IF(Ind_act=Q136,\"\",VLOOKUP($B$11,'Activity database'!$A:$BM,27,FALSE))","v":""},{"$f":"IF(ISERROR((D25*E25*F25*(VLOOKUP(B11,'Activity database'!A:BA,7,FALSE)))),Q144,(D25*E25*F25*(VLOOKUP(B11,'Activity database'!A:BA,7,FALSE))))","v":"Requires building information"},{"$f":"IF(B25=R136,\"Note: please select the relevant option for WC component opposite\",\"\")","v":"Note: please select the relevant option for WC component opposite"},null,null,null,null,null,{"$f":"B25","v":"Please select"},{"$f":"IF($D$25=\"\",0,VLOOKUP($N$25,'Activity database'!$AT:$BA,2,FALSE))","v":0},{"$f":"E25","v":""},{"$f":"F25","v":""},{"$f":"IF($D$25=\"\",0,O25*$P$25*$Q$25*(VLOOKUP($B$11,'Activity database'!$A:$BA,7,FALSE)))","v":0}]
[null,{"$f":"'Activity database'!K3","v":"WC - female"},"Effective flush volume (Litres)",null,{"$f":"IF(Ind_act=Q136,\"\",VLOOKUP($B$11,'Activity database'!$A:$BM,11,FALSE))","v":""},{"$f":"IF(Ind_act=Q136,\"\",VLOOKUP($B$11,'Activity database'!$A:$BM,27,FALSE))","v":""},{"$f":"IF(Ind_act=Q136,Q144,D26*E26*F26*(VLOOKUP(B11,'Activity database'!A:BA,8,FALSE)))","v":"Requires building information"},"Note: Where the WC facilities are non-gender specific, please still enter the WC specification against both WC male and WC female categories i.e. if there are two WCs with a 6 litre effective flush, then enter 6 litres against both male and female categories. The calculation will not double count water consumption in this instance as the consumption figure calculated for each WC component is adjusted by the ratio of male to female users for this building type.",null,null,null,null,null,{"$f":"B26","v":"WC - female"},{"$f":"IF($D$26=\"\",0,VLOOKUP($N$26,'Activity database'!$AT:$BA,2,FALSE))","v":0},{"$f":"E26","v":""},{"$f":"F26","v":""},{"$f":"IF($D$26=\"\",0,O26*$P$26*$Q$26*(VLOOKUP($B$11,'Activity database'!$A:$BA,8,FALSE)))","v":0}]
[]
[null,"Urinal component - all activity areas","units","Specification","No. of cisterns","Flushing frequency (flushes/hour)","Consumption (L/person/day)",null,null,null,null,null,null,"Urinal component - all activity areas","Baseline \nPerformance Specification","Urinal consumption (L/bowl/day)","Urinal consumption (L/day)","Baseline Consumption (L/person/day)"]
[{"$f":"IF(AND(D29>0,OR(E29=\"\",F29=\"\")),\">\",\"\")","v":""},"Automatically operated flushing cistern","Cistern capacity (Litres)",null,1,1,{"$f":"IF(Ind_act=Q136,Q144,IF(ISERROR(IF(OR(D29=0,E29=0,F29=0,B25=R138),0,(D29*E29*F29*G11)/O144)),Q144,IF(OR(D29=0,E29=0,F29=0,B25=R138),0,(D29*E29*F29*G11)/O144)))","v":"Requires building information"},null,null,null,null,null,null,{"$f":"B29","v":"Automatically operated flushing cistern"},{"$f":"IF($D$29=0,0,IF($D$30=1,'Activity database'!$AU$11,'Activity database'!$AU$10))","v":0},{"$f":"O29*$G$11","v":{"$error":"#N/A"}},{"$f":"P29*$D$30","v":{"$error":"#N/A"}},{"$f":"IF(B25=R138,0,$Q$29/O144)","v":{"$error":"#N/A"}}]
[{"$f":"IF(AND(D29>0,D30=\"\"),\">\",\"\")","v":""},null,"No. of urinal bowls"]
[null,null,"units","Specification","Usage/person/day","Usage factor","Consumption (L/person/day)",null,null,null,null,null,null,"Urinal component - all activity areas","Baseline \nPerformance Specification","Usage/person/day","Usage factor","Baseline Consumption (L/person/day)"]
[null,"Manual/automatic operated pressure flushing valve (all activity areas)","Flush volume (litres)",null,{"$f":"IF(Ind_act=Q136,\"\",VLOOKUP($B$11,'Activity database'!$A:$AN,12,FALSE))","v":""},{"$f":"IF(Ind_act=Q136,\"\",VLOOKUP($B$11,'Activity database'!$A:$AN,28,FALSE))","v":""},{"$f":"IF(Ind_act=Q136,Q144,IF(OR(D32=0,E32=0,F32=0,B25=R138),0,(D32*E32*F32)*(VLOOKUP(B11,'Activity database'!A:BA,7,FALSE))*(D33/(D30+D33+D36))))","v":"Requires building information"},{"$f":"IF(B25=R138,\"\",N156)","v":"Note: This consumption total accounts for the ratio of male users for this building type i.e. the ratio of building users who will operate the flush. Where more than one type of urinal flushing control is specified in the building, this consumption figure is adjusted by a ratio of use. the ratio is determined according to the proportion of urinals bowls in the building operated using this type of control."},null,null,null,null,null,{"$f":"B32","v":"Manual/automatic operated pressure flushing valve (all activity areas)"},{"$f":"'Activity database'!$AU$12","v":1},{"$f":"E32","v":""},{"$f":"F32","v":""},{"$f":"IF(B25=R138,0,IF($D$32=\"\",0,$O$32*$P$32*$Q$32*(VLOOKUP(B11,'Activity database'!$A:$BA,7,FALSE)))*(D33/(D30+D33+D36)))","v":{"$error":"#DIV/0!"}}]
[{"$f":"IF(AND(D32>0,D33=\"\"),\">\",\"\")","v":""},null,"No. of urinal bowls"]
[null,null,"units","Specification","Usage/person/day","Usage factor","Consumption (L/person/day)",null,null,null,null,null,null,"Urinal component - all activity areas","Baseline \nPerformance Specification","Usage/person/day","Usage factor","Baseline Consumption (L/person/day)"]
[{"$f":"IF(B25=R138,\"\",IF(D35=$Q$136,\">\",\"\"))","v":">"},"Waterless urinals (all activity areas)","Flush volume (litres)","Please select",{"$f":"IF(Ind_act=Q136,\"\",VLOOKUP($B$11,'Activity database'!$A:$AN,12,FALSE))","v":""},{"$f":"IF(Ind_act=Q136,\"\",VLOOKUP($B$11,'Activity database'!$A:$AN,28,FALSE))","v":""},{"$f":"IF(Ind_act=Q136,Q144,0)","v":"Requires building information"},{"$f":"IF(OR(B25=R138,B25=R136,D35=P138),\"\",IF(AND(D35=P137,D36>0),N158,IF(OR(D35=R136,D35=P137),N159)))","v":""},null,null,null,null,null,{"$f":"B35","v":"Waterless urinals (all activity areas)"},{"$f":"'Activity database'!$AU$12","v":1},{"$f":"E35","v":""},{"$f":"F35","v":""},{"$f":"IF(B25=R138,0,IF(OR($D$35=\"\",$D$35=P136,$D$35=P138),0,$O$35*$P$35*$Q$35*(VLOOKUP(B11,'Activity database'!$A:$BA,7,FALSE)))*(D36/(D30+D33+D36)))","v":{"$error":"#DIV/0!"}}]
[{"$f":"IF(AND(D35=P137,D36=\"\"),\">\",\"\")","v":""},null,"No. of urinal bowls"]
[]
[null,null,"Units","Specification","Usage/person/day","Usage factor","Consumption (L/person/day)"]
[null,"Taps  components (personal hygiene) - all activity areas ",null,null,null,null,null,null,null,null,null,null,null,"Taps  components (personal hygiene) - all activity areas ","Baseline Performance Specification","Usage/person/day","Usage factor","Baseline Consumption (L/person/day)"]
[null,{"$f":"'Activity database'!M3","v":"Wash hand basin taps"},"Flow rate (litres/min)",null,{"$f":"IF(Ind_act=Q136,\"\",VLOOKUP($B$11,'Activity database'!$A:$AN,13,FALSE))","v":""},{"$f":"IF(Ind_act=Q136,\"\",VLOOKUP($B$11,'Activity database'!$A:$AN,29,FALSE))","v":""},{"$f":"IF(Ind_act=Q136,Q144,(D40*E40*F40)*VLOOKUP(B11,'Activity database'!A:AR,44,FALSE))","v":"Requires building information"},null,null,null,null,null,null,{"$f":"B40","v":"Wash hand basin taps"},{"$f":"IF($D$40=\"\",0,VLOOKUP($N$40,'Activity database'!$AT:$BA,2,FALSE))","v":0},{"$f":"E40","v":""},"",{"$f":"IF($D$40=\"\",0,(O40*$P$40*$Q$40)*(VLOOKUP($B$11,'Activity database'!$A:$AR,44,FALSE)))","v":0}]
[null,{"$f":"'Activity database'!N3","v":"Shower use"},"Flow rate (litres/min)",null,{"$f":"IF(F19=\"no\",VLOOKUP($B$11,'Activity database'!$A:$AN,14,FALSE),VLOOKUP(B19,'Activity database'!A:BC,14,FALSE))","v":0.154},{"$f":"IF(Ind_act=Q136,\"\",VLOOKUP($B$11,'Activity database'!$A:$AN,30,FALSE))","v":""},{"$f":"IF(Ind_act=Q136,Q144,D41*E41*F41)","v":"Requires building information"},null,null,null,null,null,null,"Shower use",{"$f":"IF($D$41=\"\",0,'Activity database'!AU8)","v":0},0.154,"",{"$f":"IF($D$41=\"\",0,O41*$P$41*$Q$41)","v":0}]
["Hide rows: N/A for offices",{"$f":"'Activity database'!O3","v":"Shower use (bath present)"},"Flow rate (litres/min)",null,{"$f":"VLOOKUP($B$11,'Activity database'!$A:$AN,15,FALSE)","v":{"$error":"#N/A"}},{"$f":"VLOOKUP($B$11,'Activity database'!$A:$AN,31,FALSE)","v":{"$error":"#N/A"}},{"$f":"IF(E42=\"N/A\",0,D42*E42*F42)","v":{"$error":"#N/A"}},"Hide rows: N/A for offices",null,null,null,null,null,"Shower use (bath present)",{"$f":"IF($D$42=\"\",0,'Activity database'!AU8)","v":0},{"$error":"#N/A"},{"$error":"#N/A"},{"$f":"IF($D$42=\"\",0,O42*$P$42*$Q$42)","v":0}]
["Hide rows: N/A for offices",{"$f":"'Activity database'!P3","v":"Bath use (no shower present) "},"Capacity to overflow (Litres)",null,{"$f":"VLOOKUP($B$11,'Activity database'!$A:$AN,16,FALSE)","v":{"$error":"#N/A"}},{"$f":"VLOOKUP($B$11,'Activity database'!$A:$AN,32,FALSE)","v":{"$error":"#N/A"}},{"$f":"IF(E43=\"n/a\",0,((D43*E43*F43)*'Activity database'!AQ4))","v":{"$error":"#N/A"}},"Hide rows: N/A for offices",null,null,null,null,null,"Bath use (no shower present) ",{"$f":"IF($D$43=\"\",0,'Activity database'!AU9)","v":0},{"$error":"#N/A"},{"$error":"#N/A"},{"$f":"IF($D$43=\"\",0,((O43*$P$43*$Q$43)*(VLOOKUP($B$11,'Activity database'!$A:$AR,43,FALSE))))","v":0}]
["Hide rows: N/A for offices",{"$f":"'Activity database'!Q3","v":"Bath use (shower present)"},"Capacity to overflow (Litres)",null,{"$f":"VLOOKUP($B$11,'Activity database'!$A:$AN,17,FALSE)","v":{"$error":"#N/A"}},{"$f":"VLOOKUP($B$11,'Activity database'!$A:$AN,33,FALSE)","v":{"$error":"#N/A"}},{"$f":"IF(E44=\"n/a\",0,((D44*E44*F44)*'Activity database'!AQ4))","v":{"$error":"#N/A"}},"Hide rows: N/A for offices",null,null,null,null,null,"Bath use (shower present)",{"$f":"IF($D$44=\"\",0,'Activity database'!AU9)","v":0},{"$error":"#N/A"},{"$error":"#N/A"},{"$f":"IF($D$44=\"\",0,((O44*$P$44*$Q$44)*(VLOOKUP($B$11,'Activity database'!$A:$AR,43,FALSE))))","v":0}]
[null,{"$f":"'Activity database'!X3","v":"Fixed use - vessel filling"},"Litres/person/day","-","-","-",{"$f":"IF(Ind_act=Q136,Q144,IF(F19=\"yes\",VLOOKUP(B11,'Activity database'!A:BA,24,FALSE)+VLOOKUP(B19,'Activity database'!A:BA,24,FALSE),VLOOKUP(B11,'Activity database'!A:BA,24,FALSE)))","v":"Requires building information"},null,null,null,null,null,null,"Fixed use - vessel filling","N/A","N/A","N/A",{"$f":"$G$45","v":"Requires building information"}]
[null,"Tap components (cleaning) - staff kitchenette",null,null,null,null,null,null,null,null,null,null,null,"Tap components (cleaning) - staff kitchenette"]
[null,{"$f":"'Activity database'!R3","v":"Kitchen taps - kitchenette"},"Flow rate (litres/min)",null,{"$f":"VLOOKUP($B$17,'Activity database'!$A:$AN,18,FALSE)","v":1},{"$f":"VLOOKUP($B$17,'Activity database'!$A:$AN,34,FALSE)","v":0.67},{"$f":"IF(Ind_act=Q136,Q144,(D47*E47*F47)*(VLOOKUP(B11,'Activity database'!A:AR,44,FALSE)))","v":"Requires building information"},null,null,null,null,null,null,{"$f":"B47","v":"Kitchen taps - kitchenette"},{"$f":"IF($D$47=\"\",0,VLOOKUP($N$47,'Activity database'!$AT:$BA,2,FALSE))","v":0},{"$f":"E47","v":1},{"$f":"F47","v":0.67},{"$f":"IF($D$47=\"\",0,(O47*$P$47*$Q$47)*(VLOOKUP($B$11,'Activity database'!$A:$AR,44,FALSE)))","v":0}]
[null,{"$f":"'Activity database'!U3","v":"Dishwasher"},"Litres/cycle",null,{"$f":"VLOOKUP($B$17,'Activity database'!$A:$AN,21,FALSE)","v":0.04},{"$f":"VLOOKUP($B$17,'Activity database'!$A:$AN,37,FALSE)","v":1},{"$f":"IF(Ind_act=Q136,Q144,D48*E48*F48)","v":"Requires building information"},null,null,null,null,null,null,{"$f":"B48","v":"Dishwasher"},{"$f":"IF($D$48=\"\",0,'Activity database'!AU16)","v":0},{"$f":"E48","v":0.04},{"$f":"F48","v":1},{"$f":"O48*$P$48*$Q$48","v":0}]
[null,"Tap components (cleaning and food preparation) - staff canteen food preparation area",null,null,null,null,null,null,null,null,null,null,null,"Tap components (cleaning and food preparation) - canteen/restaurant"]
[null,{"$f":"'Activity database'!S3","v":"Kitchen taps - pre-rinse nozzle"},"Flow rate (litres/min)",null,"-",{"$f":"VLOOKUP($B$18,'Activity database'!A:BC,35,FALSE)","v":60},{"$f":"IF(ISERROR((D50*F50)/O144),Q144,((D50*F50)/O144))","v":"Requires building information"},null,null,null,null,null,null,{"$f":"B50","v":"Kitchen taps - pre-rinse nozzle"},{"$f":"IF($D$50=\"\",0,VLOOKUP($N$50,'Activity database'!$AT:$BA,2,FALSE))","v":0},{"$f":"E50","v":"-"},60,{"$f":"IF($D$50=\"\",0,(O50*$Q$50)/$O$144)","v":0}]
[null,{"$f":"'Activity database'!U3","v":"Dishwasher"},"Litres/rack",null,"-",{"$f":"VLOOKUP($B$18,'Activity database'!A:BC,37,FALSE)","v":0.20100000000000001},{"$f":"IF(ISERROR((F51*G18*D51)/O144),Q144,((F51*G18*D51)/O144))","v":"Requires building information"},null,null,null,null,null,null,"Dishwasher",{"$f":"IF($D$51=\"\",0,'Activity database'!AU19)","v":0},"-",0.20100000000000001,{"$f":"IF($D$51=\"\",0,($Q$51*$G$18*O51)/$O$144)","v":0}]
[null,{"$f":"'Activity database'!W3","v":"Waste disposal unit"},"Flow rate (litres/min)",null,"-",{"$f":"VLOOKUP($B$18,'Activity database'!A:BC,39,FALSE)","v":30},{"$f":"IF(ISERROR((D52*F52)/O144),Q144,((D52*F52)/O144))","v":"Requires building information"},null,null,null,null,null,null,"Waste disposal unit",{"$f":"IF($D$52=\"\",0,VLOOKUP($N$52,'Activity database'!$AT:$BA,2,FALSE))","v":0},"-",30,{"$f":"IF($D$52=\"\",0,(O52*$Q$52)/$O$144)","v":0}]
["N/A for Industrial",{"$f":"'Activity database'!V3","v":"Washing machine"},"Litres/kg dry load",null,{"$f":"VLOOKUP($B$11,'Activity database'!$A:$AN,22,FALSE)","v":{"$error":"#N/A"}},{"$f":"VLOOKUP($B$11,'Activity database'!$A:$AN,38,FALSE)","v":{"$error":"#N/A"}},{"$f":"IF(ISERROR(IF(E53=\"N/A\",0,IF(F18=\"Yes\",(D53*E53*F53),0))),Q144,IF(E53=\"N/A\",0,IF(F18=\"Yes\",(D53*E53*F53),0)))","v":"Requires building information"},"N/A for Industrial",null,null,null,null,null,"Washing machine",{"$f":"IF($D$53=\"\",0,'Activity database'!AU20)","v":0},{"$error":"#N/A"},{"$error":"#N/A"},{"$f":"IF($D$53=\"\",0,IF($F$18=\"Yes\",(O53*$P$53*$Q$53)))","v":0}]
[null,{"$f":"'Activity database'!Y3","v":"Fixed use - food preparation"},"Litres/person/day","-","-","-",{"$f":"IF(Ind_act=Q136,Q144,IF(ISERROR(IF(F18=\"Yes\",(VLOOKUP(B18,'Activity database'!A:BC,25,FALSE)/O144),0)),Q144,IF(F18=\"Yes\",(VLOOKUP(B18,'Activity database'!A:BC,25,FALSE)/O144),0)))","v":"Requires building information"},null,null,null,null,null,null,"Fixed use - food preparation","N/A",{"$f":"E54","v":"-"},"N/A",{"$f":"$G$54","v":"Requires building information"}]
[null,{"$f":"'Activity database'!Z3","v":"Fixed use - kitchen cleaning"},"Litres/person/day","-","-","-",{"$f":"IF(Ind_act=Q136,Q144,IF(ISERROR(IF(F18=\"Yes\",(VLOOKUP(B18,'Activity database'!A:BC,26,FALSE)/O144),0)),Q144,IF(F18=\"Yes\",(VLOOKUP(B18,'Activity database'!A:BC,26,FALSE)/O144),0)))","v":"Requires building information"},null,null,null,null,null,null,"Fixed use - kitchen cleaning","N/A",{"$f":"E55","v":"-"},"N/A",{"$f":"$G$55","v":"Requires building information"}]
[]
[null,null,null,null,null,null,"Microcomponent consumption \n(L/person/day)","Note: This total includes the contributions from fixed uses, including where applicable vessel filling, kitchen cleaning and food preparation. Default fixed use totals are included with the calculations to provide a more accurate reflection of the buildings total water consumption. The fixed use totals are not however included in the water consumption total used to determine the assessed buildings percentage improvement and the number of BREEAM credits achieved. The percentage improvement is based only on the consumption of water from uses that can be heavily influenced by the microcomponent specification e.g. WC flushing.",null,null,null,null,null,null,null,null,null,"Baseline Consumption (L/person/day)"]
[null,null,null,null,null,"Total",{"$f":"IF(ISERROR(IF(OR(G25=Q144,AND(F14=Q138,F15=Q138,F16=Q138,F17=Q138,F18=Q138,F19=Q138)),Q144,(SUM(G25:G26)+G29+G32+G35+SUM(G40:G45)+SUM(G47:G48)+SUM(G50:G55)))),Q144,IF(OR(G25=Q144,AND(F14=Q138,F15=Q138,F16=Q138,F17=Q138,F18=Q138,F19=Q138)),Q144,(SUM(G25:G26)+G29+G32+G35+SUM(G40:G45)+SUM(G47:G48)+SUM(G50:G55))))","v":"Requires building information"},null,null,null,null,null,null,null,null,null,"Total ",{"$f":"SUM(R25+R26)+R29+R32+R35+SUM(R40:R45)+SUM(R47:R48)+SUM(R50:R55)-R68","v":{"$error":"#N/A"}}]
[]
[null,"Minimum requirements according to EU taxonomy for sustainable finance"]
[{"$f":"IF(G61=$Q$136,\">\",\"\")","v":">"},null,null,null,null,"Do all the installed wash hand basin taps and kitchen taps have a maximum water flow of 6 litres/min?","Please select"]
[{"$f":"IF(G62=$Q$136,\">\",\"\")","v":">"},null,null,null,null,"Do all the installed showers have a maximum water flow of 8 litres/min?","Please select"]
[{"$f":"IF(G63=$Q$136,\">\",\"\")","v":">"},null,null,null,null,"Do all WCs, including suites, bowls and flushing cisterns, have a full flush volume of a maximum of 6 litres and a maximum average flush volume of 3,5 litres?","Please select"]
[{"$f":"IF(G64=$Q$136,\">\",\"\")","v":">"},null,null,null,null,"Do all urinals use a maximum of 2 litres/bowl/hour and flushing urinals have a maximum full flush volume of 1 litre? ","Please select"]
[null,null,null,null,null,"Is all the  EU taxonomy requirements for sanitary equipment met?",{"$f":"IF(OR(G61=\"Please select\",G61=\"No\"),\"No\",IF(OR(G62=\"Please Select\",G62=\"No\"),\"No\",IF(OR(G63=\"Please Select\",G63=\"No\"),\"No\",IF(OR(G64=\"Please Select\",G64=\"No\"),\"No\",\"Yes\"))))","v":"No"}]
[]
[null,"Non potable water yield - greywater system",null,null,null,null,null,null,null,null,null,null,null,null,null,null,null,"Total from fixed uses"]
[null,null,null,null,null,null,null,null,null,null,null,null,null,null,null,null,"Total ",{"$f":"R45+R54+R55","v":{"$error":"#VALUE!"}}]
[{"$f":"IF(G69=$Q$136,\">\",\"\")","v":">"},null,null,null,null,"Has, or will, the greywater system be specified and installed in compliance with BS8525-1:2010 Greywater Systems - Part 1 Code of Practice","Please select"]
[]
[null,null,"Greywater source (building components)",null,"Greywater Collected","Proportion of components collected from (%)","Greywater yield \n(L/person/day)"]
[null,{"$f":"IF(AND($G$69=$Q$137,E72=\"\"),\">\",IF(AND($G$69=$Q$137,E72=$Q$137,F72=\"\"),\">\",\"\"))","v":""},{"$f":"B40","v":"Wash hand basin taps"},null,null,null,{"$f":"IF(OR(E72=$Q$138,E72=\"\"),0,G40*F72)","v":0}]
[null,"","Showers",null,null,null,{"$f":"IF(OR(E73=$Q$138,E73=\"\"),0,(SUM(G41:G42)*F73))","v":0}]
[null,"",{"$f":"B47","v":"Kitchen taps - kitchenette"},null,null,null,{"$f":"IF(OR(E74=$Q$138,E74=\"\"),0,G47*F74)","v":0}]
[null,"","Dishwasher - staff kitchenette",null,null,null,{"$f":"IF(OR(E75=$Q$138,E75=\"\"),0,F75*G48)","v":0}]
[null,"",{"$f":"B50","v":"Kitchen taps - pre-rinse nozzle"},null,null,null,{"$f":"IF(OR(E76=$Q$138,E76=\"\"),0,G50*F76)","v":0}]
[null,"","Dishwasher - food preparation area",null,null,null,{"$f":"IF(OR(E77=$Q$138,E77=\"\"),0,F77*G51)","v":0}]
[null,"Hide rows: N/A for offices","Bath",null,null,null,{"$f":"IF(OR(E78=Q138,E78=\"\",E43=\"N/A\",E44=\"N/A\"),0,(SUM(G43:G44)*F78))","v":{"$error":"#N/A"}},"Hide rows: N/A for offices"]
[null,"Hide rows: N/A for offices",{"$f":"B53","v":"Washing machine"},null,null,null,{"$f":"IF(OR(E79=Q139,E79=\"\"),0,F79*G53)","v":0},"Hide rows: N/A for offices"]
[null,null,"Greywater source (other components)","Typical greywater yield (litres)","Frequency of  yield (days)","Greywater yield (litres/day)","Greywater yield \n(L/person/day)",{"$f":"IF(G69=Q137,N155,\"\")","v":""}]
[null,null,"Other source of greywater",null,null,{"$f":"IF(D81=\"\",\"\",D81/E81)","v":""},{"$f":"IF(D81=\"\",0,F81/$O$144)","v":0}]
[]
[null,null,null,null,null,null,"Greywater yield\n(L/person/day)"]
[null,null,null,null,null,"Total",{"$f":"IF(Ind_act=Q136,Q144,IF(OR(G69=Q139,G69=Q138),0,SUM(G72:G79)+G81))","v":"Requires building information"}]
[]
[null,"Non potable water yield - rainwater system"]
[]
[{"$f":"IF(G88=$Q$136,\">\",\"\")","v":">"},null,null,null,null,"Has, or will, the rainwater system be specified and installed in compliance with BS EN 16941-1:2018 Rainwater Harvesting Systems - Code of practice","Please select"]
[]
[{"$f":"IF(AND($G$88=$Q$137,G90=$Q$136),\">\",\"\")","v":""},null,null,null,null,"How has the storage capacity for the proposed system been calculated?","Please select"]
[null,"Rainwater yield if basic approach:"]
[null,"Collection area (m2)","Rainfall \n(average mm/yr)","Hydraulic filter efficiency (%)","Yield co-efficient (%)","Annual rainwater yield (Litres)","Rainwater yield\n(L/person/day)"]
[{"$f":"IF(AND($G$88=$Q$137,$G$90=$S$137,OR(B93=\"\",C93=\"\",D93=\"\",E93=\"\")),\">\",\"\")","v":""},null,null,null,null,{"$f":"B93*E93*D93*C93","v":0},{"$f":"IF(ISERROR(IF(OR(G88=Q139,G88=Q138,G90=S138),0,(F93/365)/O144)),Q144,IF(OR(G88=Q139,G88=Q138,G90=S138),0,(F93/365)/O144))","v":"Requires building information"}]
[null,null,null,null,null,"Rainwater yield if detailed:"]
[null,null,null,null,null,"Daily rainfall collection (litres)","Rainwater yield \n(L/person/day)"]
[null,null,null,null,{"$f":"IF(AND($G$88=$Q$137,$G$90=$S$138,F96=\"\"),\">\",\"\")","v":""},null,{"$f":"IF(ISERROR(IF(OR(G90=S137,G88=Q139,G88=Q138),0,(F96/O144))),Q144,IF(OR(G90=S137,G88=Q139,G88=Q138),0,(F96/O144)))","v":"Requires building information"}]
[]
[null,"Non potable water demand - building components"]
[]
[null,null,null,null,null,null,"Greywater and/or rainwater yield\n(L/person/day)"]
[null,null,null,null,null,"Total",{"$f":"IF(ISERROR(G96+G93+G84),Q144,G96+G93+G84)","v":"Requires building information"}]
[]
[null,null,null,"Component","Greywater and/or rainwater utilised for component","Proportion of components using greywater and/or rainwater yield (%)","Maximum permissible demand (L/person/day)"]
[null,null,{"$f":"IF(AND(OR($G$69=$Q$136,$G$69=$Q$138,$G$69=$Q$139),OR($G$88=$Q$136,$G$88=$Q$138,$G$88=$Q$139)),\"\",IF(E104=$Q$138,\"\",IF(OR(E104=\"\",F104=\"\"),\">\",\"\")))","v":""},"WC flushing",null,null,{"$f":"IF(E104=\"no\",0,F104*SUM(G25:G26))","v":0}]
[null,null,{"$f":"IF(B25=R138,\"\",IF(AND(OR($G$69=$Q$136,$G$69=$Q$138,$G$69=$Q$139),OR($G$88=$Q$136,$G$88=$Q$138,$G$88=$Q$139)),\"\",IF(E105=$Q$138,\"\",IF(OR(E105=\"\",F105=\"\"),\">\",\"\"))))","v":""},"Urinal flushing",null,null,{"$f":"IF(OR(E105=\"no\",B25=R138),0,F105*SUM(G29:G35))","v":0}]
[null,null,null,null,null,null,"Demand met by yield\n(L/person/day)"]
[null,null,null,null,null,"Total",{"$f":"IF((SUM(G104:G105))>G101,G101,SUM(G104:G105))","v":0}]
[null,null,null,"Other permissible components"]
[null,null,{"$f":"IF(AND(OR($G$69=$Q$136,$G$69=$Q$138,$G$69=$Q$139),OR($G$88=$Q$136,$G$88=$Q$138,$G$88=$Q$139)),\"\",IF(G109=$Q$136,\">\",\"\"))","v":""},null,null,"Are there other permissible components present which demand greywater and/or rainwater yield?","Please select"]
[null,null,null,null,null,null,"Maximum permissible demand (L/day)"]
[null,null,null,null,null,null,{"$f":"IF(ISERROR(IF(AND(G109=\"yes\",G107>G101),0,(G101-G107)*O144)),Q144,IF(AND(G109=\"yes\",G107>G101),0,(G101-G107)*O144))","v":"Requires building information"}]
[null,null,{"$f":"IF(AND(OR($G$69=$Q$136,$G$69=$Q$138,$G$69=$Q$139),OR($G$88=$Q$136,$G$88=$Q$138,$G$88=$Q$139)),\"\",IF(AND(G109=$Q$137,G112=\"\"),\">\",\"\"))","v":""},null,null,"Proportion of maximum permissible demand utilised by other permissible components (%)"]
[null,null,null,null,null,null," Demand met by yield\n(L/person/day)"]
[null,null,null,null,null,"Total",{"$f":"IF(ISERROR((G112*G111)/O144),Q144,(G112*G111)/O144)","v":"Requires building information"}]
[]
[null,null,null,null,null,null,"Greywater and/or rainwater demand met by yield\n(L/person/day)"]
[null,null,null,null,null,"Total ",{"$f":"IF(ISERROR(G107+G114),Q144,G107+G114)","v":"Requires building information"}]
[]
[null,"Water consumption calculation results"]
[]
[null,null,null,null,null,"Litres/person/day","m3/person/yr"]
[null,null,null,null,"Water consumption - modelled baseline performance benchmark (excludes fixed uses)",{"$f":"IF(ISERROR(R58),Q144,R58)","v":"Requires building information"},{"$f":"IF(ISERROR((F122/1000)*$F$11),Q144,(F122/1000)*$F$11)","v":"Requires building information"}]
[]
[null,null,null,null,"Microcomponent Water consumption - modelled performance (excludes fixed uses)",{"$f":"IF(ISERROR(G58-R68),Q144,G58-R68)","v":"Requires building information"},{"$f":"IF(ISERROR((F124/1000)*$F$11),Q144,(F124/1000)*$F$11)","v":"Requires building information"}]
[]
[null,null,null,null,"Modelled water demand met via greywater and rainwater sources",{"$f":"IF(ISERROR(G117),Q144,G117)","v":"Requires building information"},{"$f":"IF(ISERROR((F126/1000)*$F$11),Q144,(F126/1000)*$F$11)","v":"Requires building information"},null,null,null,null,null,null,"Greywater/rainwater data check"]
[null,null,null,null,null,null,null,null,null,null,null,null,null,{"$f":"1-(F124-F126)/F122","v":{"$error":"#VALUE!"}},"% actual improvement"]
[null,null,null,null,"If greywater/rainwater systems specified has the minimum % efficiency improvement for component specifications been met",{"$f":"IF(ISERROR(IF(AND((OR(G88=Q139,G88=Q138)),((OR(G69=Q139,G69=Q138)))),Q139,IF(OR(N129=\"1 credit\",N129=\"2 credits\",N129=\"3 credits\"),Q142,IF(OR(N129=\"4 credits\",N129=\"5 credits\"),(IF((1-(F124/F122))<0.25,\"No\",\"Yes\")))))),Q144,IF(AND((OR(G88=Q139,G88=Q138)),((OR(G69=Q139,G69=Q138)))),Q139,IF(OR(N129=\"1 credit\",N129=\"2 credits\",N129=\"3 credits\"),Q142,IF(OR(N129=\"4 credits\",N129=\"5 credits\"),(IF((1-(F124/F122))<0.25,\"No\",\"Yes\"))))))","v":"Requires building information"}]
[null,null,null,null,null,null,null,null,null,null,null,null,null,{"$f":"VLOOKUP(N127,'Activity database'!BC4:BD9,2,TRUE)","v":{"$error":"#VALUE!"}},"Credits achieved"]
[null,null,null,null,"Net modelled water consumption (excludes fixed uses)",{"$f":"IF(ISERROR(IF(OR(F128=\"Yes\",F128=Q139),F124-F126,(F124-((1-(F124/F122))*F126)))),Q144,IF(OR(F128=\"Yes\",F128=Q139),F124-F126,(F124-((1-(F124/F122))*F126))))","v":"Requires building information"},{"$f":"IF(ISERROR((F130/1000)*$F$11),Q144,((F130/1000)*$F$11))","v":"Requires building information"}]
[]
[null,null,null,null,"Percentage improvement",{"$f":"IF(OR(F122=Q144,F124=Q144,F126=Q144,F128=Q144),Q144,(ROUNDDOWN(IF(OR(F128=\"yes\",F128=Q142,F128=Q139),N127,(IF(F128=\"No\",1-((F124-(F126*(1-(F124/F122))))/F122)))),4)))","v":"Requires building information"}]
[]
[null,null,null,null,"Total Wat 01 BREEAM credits achieved, before checking minimum requirements according to EU taxonomy for sustainable finance.",{"$f":"IF(F132<0,'Activity database'!BD4,(IF(ISERROR(VLOOKUP(F132,'Activity database'!BC4:BD9,2,TRUE)),Q144,VLOOKUP(F132,'Activity database'!BC4:BD9,2,TRUE))))","v":"Requires building information"}]
[]
[null,null,null,null,"Total Wat 01 BREEAM credits achieved",{"$f":"IF(F134=\"Requires building information\",\"Requires building information\",IF(G65=\"Yes\",F134,IF(F134>=\"1 credit\",\"1 credit\",\"0 credits\")))","v":"Requires building information"},null,null,null,null,null,null,null,null,null,"Please select","Please select","Please select","Please select",0]
[null,null,null,null,null,null,null,null,null,null,null,null,null,null,"Default occupancy rate","Waterless urinals - specified","Yes",{"$f":"'Activity database'!I3","v":"WC - male (urinals installed)"},"BS EN 16941-1 'basic approach'",0.01]
[null,null,null,null,"Total Wat 01 BREEAM Exemplary credits achieved",{"$f":"IF(F132=Q144,Q144,IF(F132>='Activity database'!BC10,\"1 innovation credit achieved\",\"Exemplary level not achieved\"))","v":"Requires building information"},null,null,null,null,null,null,null,{"$f":"B14","v":"Industrial - process area"},{"$f":"IF(F14=\"Yes\",VLOOKUP(B14,'Activity database'!A:BC,3,FALSE)*G14,0)","v":0},"Waterless urinals - not specified","No",{"$f":"'Activity database'!J3","v":"WC - male (no urinals installed)"},"BS EN 16941-1 'detailed approach'",0.02]
[null,null,null,null,null,null,null,null,null,null,null,null,null,"Industrial - Laboratory area",{"$f":"IF(F15=\"Yes\",VLOOKUP(B15,'Activity database'!A:BC,3,FALSE)*G15,0)","v":0},null,"System not specified",null,null,0.03]
[null,null,null,null,"Key performance indicator - use of freshwater resource (includes fixed uses)",{"$f":"IF(ISERROR(F124+R68-F126),Q144,F124+R68-F126)","v":"Requires building information"},{"$f":"IF(ISERROR((F140/1000)*$F$11),Q144,(F140/1000)*$F$11)","v":"Requires building information"},null,null,null,null,null,null,"Industrial - Warehouse storage",{"$f":"IF(F16=\"Yes\",VLOOKUP(B16,'Activity database'!A:BC,3,FALSE)*G16,0)","v":0},null,null,null,null,0.04]
[null,null,null,null,null,null,null,null,null,null,null,null,null,"Industrial - Office areas",{"$f":"IF(F17=\"Yes\",VLOOKUP(B17,'Activity database'!A:BC,3,FALSE)*G17,0)","v":0},null,null,"Please select",null,0.05]
[null,null,null,null,null,null,null,null,null,null,null,null,null,"Industrial - Staff canteen dining area",{"$f":"IF(F18=\"Yes\",VLOOKUP(B18,'Activity database'!A:BC,3,FALSE)*G18,0)","v":0},null,"Not applicable",{"$f":"'Activity database'!A9","v":"Industrial - 24hr x 7 day operation"},null,0.06]
[null,null,null,null,null,null,null,null,null,null,null,null,null,"Industrial - Fitness suite/gym (with changing facility and showers)",{"$f":"IF(F19=\"Yes\",VLOOKUP(B19,'Activity database'!A:BC,3,FALSE)*G19,0)","v":0},null,null,{"$f":"'Activity database'!A10","v":"Industrial - typical business hours of operation"},null,7.0000000000000007E-2]
[null,null,null,null,null,null,null,null,null,null,null,null,null,"Total default occupancy",{"$f":"IF(Ind_act=R142,SUM(O138:O143)*G12,IF(Ind_act=R143,SUM(O138:O143),IF(Ind_act=R141,Q144)))","v":"Requires building information"},null,"Requires building information",null,null,0.08]
[null,null,null,null,null,null,null,null,null,null,null,null,null,null,null,null,null,null,null,0.09]
[null,null,null,null,null,null,null,null,null,null,null,null,null,null,null,null,null,"Please select",null,0.1]
[null,null,null,null,null,null,null,null,null,null,null,null,null,null,null,null,null,1,null,0.11]
[null,null,null,null,null,null,null,null,null,null,null,null,null,null,null,null,null,2,null,0.12]
[null,null,null,null,null,null,null,null,null,null,null,null,null,null,null,null,null,3,null,0.13]
[null,null,null,null,null,null,null,null,null,null,null,null,null,null,null,null,null,4,null,0.14000000000000001]
[null,null,null,null,null,null,null,null,null,null,null,null,null,null,null,null,null,5,null,0.15]
[null,null,null,null,null,null,null,null,null,null,null,null,null,null,null,null,null,null,null,0.16]
[null,null,null,null,null,null,null,null,null,null,null,null,null,null,null,null,null,null,null,0.17]
[null,null,null,null,null,null,null,null,null,null,null,null,null,null,null,null,null,null,null,0.18]
[null,null,null,null,null,null,null,null,null,null,null,null,null,"Note: If greywater is collected from a component/source not accounted for above i.e. their consumption is not estimated, then the amount of greywater collected can be added here so that it may be accounted for. This can include wastewater from active hygiene flushing, i.e. a regular hygiene flushing programme to minimize poor water quality in a potable cold or hot water system.",null,null,null,null,null,0.19]
[null,null,null,null,null,null,null,null,null,null,null,null,null,"Note: This consumption total accounts for the ratio of male users for this building type i.e. the ratio of building users who will operate the flush. Where more than one type of urinal flushing control is specified in the building, this consumption figure is adjusted by a ratio of use. the ratio is determined according to the proportion of urinals bowls in the building operated using this type of control.",null,null,null,null,null,0.2]
[null,null,null,null,null,null,null,null,null,null,null,null,null,"Note: the number of shifts is used to estimate the building's total occupancy and therefore water consumption. If unknown at the time assessment, then assume three shifts for a single 24 hour period.",null,null,null,null,null,0.21]
[null,null,null,null,null,null,null,null,null,null,null,null,null,"Note: Where waterless urinals are specified in the assessed building, for the purpose of the baseline benchmark standard 1.5 litre flush urinals are assumed. Where waterless urinals and another type of urinal flushing control is specified in the building, the baseline consumption figure calculated using a 1.5 litre default flush is adjusted by a ratio of use. The ratio is determined according to the proportion of urinals bowls in the building that are waterless.",null,null,null,null,null,0.22]
[null,null,null,null,null,null,null,null,null,null,null,null,null,"Note: Please select the relevant option for waterless urinals specification opposite.",null,null,null,null,null,0.23]
[null,null,null,null,null,null,null,null,null,null,null,null,null,null,null,null,null,null,null,0.24]
[null,null,null,null,null,null,null,null,null,null,null,null,null,null,null,null,null,null,null,0.25]
[null,null,null,null,null,null,null,null,null,null,null,null,null,null,null,null,null,null,null,0.26]
[null,null,null,null,null,null,null,null,null,null,null,null,null,null,null,null,null,null,null,0.27]
[null,null,null,null,null,null,null,null,null,null,null,null,null,null,null,null,null,null,null,0.28000000000000003]
[null,null,null,null,null,null,null,null,null,null,null,null,null,null,null,null,null,null,null,0.28999999999999998]
[null,null,null,null,null,null,null,null,null,null,null,null,null,null,null,null,null,null,null,0.3]
[null,null,null,null,null,null,null,null,null,null,null,null,null,null,null,null,null,null,null,0.31]
[null,null,null,null,null,null,null,null,null,null,null,null,null,null,null,null,null,null,null,0.32]
[null,null,null,null,null,null,null,null,null,null,null,null,null,null,null,null,null,null,null,0.33]
[null,null,null,null,null,null,null,null,null,null,null,null,null,null,null,null,null,null,null,0.34]
[null,null,null,null,null,null,null,null,null,null,null,null,null,null,null,null,null,null,null,0.35]
[null,null,null,null,null,null,null,null,null,null,null,null,null,null,null,null,null,null,null,0.36]
[null,null,null,null,null,null,null,null,null,null,null,null,null,null,null,null,null,null,null,0.37]
[null,null,null,null,null,null,null,null,null,null,null,null,null,null,null,null,null,null,null,0.38]
[null,null,null,null,null,null,null,null,null,null,null,null,null,null,null,null,null,null,null,0.39]
[null,null,null,null,null,null,null,null,null,null,null,null,null,null,null,null,null,null,null,0.4]
[null,null,null,null,null,null,null,null,null,null,null,null,null,null,null,null,null,null,null,0.41]
[null,null,null,null,null,null,null,null,null,null,null,null,null,null,null,null,null,null,null,0.42]
[null,null,null,null,null,null,null,null,null,null,null,null,null,null,null,null,null,null,null,0.43]
[null,null,null,null,null,null,null,null,null,null,null,null,null,null,null,null,null,null,null,0.44]
[null,null,null,null,null,null,null,null,null,null,null,null,null,null,null,null,null,null,null,0.45]
[null,null,null,null,null,null,null,null,null,null,null,null,null,null,null,null,null,null,null,0.46]
[null,null,null,null,null,null,null,null,null,null,null,null,null,null,null,null,null,null,null,0.47]
[null,null,null,null,null,null,null,null,null,null,null,null,null,null,null,null,null,null,null,0.48]
[null,null,null,null,null,null,null,null,null,null,null,null,null,null,null,null,null,null,null,0.49]
[null,null,null,null,null,null,null,null,null,null,null,null,null,null,null,null,null,null,null,0.5]
[null,null,null,null,null,null,null,null,null,null,null,null,null,null,null,null,null,null,null,0.51]
[null,null,null,null,null,null,null,null,null,null,null,null,null,null,null,null,null,null,null,0.52]
[null,null,null,null,null,null,null,null,null,null,null,null,null,null,null,null,null,null,null,0.53]
[null,null,null,null,null,null,null,null,null,null,null,null,null,null,null,null,null,null,null,0.54]
[null,null,null,null,null,null,null,null,null,null,null,null,null,null,null,null,null,null,null,0.55000000000000004]
[null,null,null,null,null,null,null,null,null,null,null,null,null,null,null,null,null,null,null,0.56000000000000005]
[null,null,null,null,null,null,null,null,null,null,null,null,null,null,null,null,null,null,null,0.56999999999999995]
[null,null,null,null,null,null,null,null,null,null,null,null,null,null,null,null,null,null,null,0.57999999999999996]
[null,null,null,null,null,null,null,null,null,null,null,null,null,null,null,null,null,null,null,0.59]
[null,null,null,null,null,null,null,null,null,null,null,null,null,null,null,null,null,null,null,0.6]
[null,null,null,null,null,null,null,null,null,null,null,null,null,null,null,null,null,null,null,0.61]
[null,null,null,null,null,null,null,null,null,null,null,null,null,null,null,null,null,null,null,0.62]
[null,null,null,null,null,null,null,null,null,null,null,null,null,null,null,null,null,null,null,0.63]
[null,null,null,null,null,null,null,null,null,null,null,null,null,null,null,null,null,null,null,0.64]
[null,null,null,null,null,null,null,null,null,null,null,null,null,null,null,null,null,null,null,0.65]
[null,null,null,null,null,null,null,null,null,null,null,null,null,null,null,null,null,null,null,0.66]
[null,null,null,null,null,null,null,null,null,null,null,null,null,null,null,null,null,null,null,0.67]
[null,null,null,null,null,null,null,null,null,null,null,null,null,null,null,null,null,null,null,0.68]
[null,null,null,null,null,null,null,null,null,null,null,null,null,null,null,null,null,null,null,0.69]
[null,null,null,null,null,null,null,null,null,null,null,null,null,null,null,null,null,null,null,0.7]
[null,null,null,null,null,null,null,null,null,null,null,null,null,null,null,null,null,null,null,0.71]
[null,null,null,null,null,null,null,null,null,null,null,null,null,null,null,null,null,null,null,0.72]
[null,null,null,null,null,null,null,null,null,null,null,null,null,null,null,null,null,null,null,0.73]
[null,null,null,null,null,null,null,null,null,null,null,null,null,null,null,null,null,null,null,0.74]
[null,null,null,null,null,null,null,null,null,null,null,null,null,null,null,null,null,null,null,0.75]
[null,null,null,null,null,null,null,null,null,null,null,null,null,null,null,null,null,null,null,0.76]
[null,null,null,null,null,null,null,null,null,null,null,null,null,null,null,null,null,null,null,0.77]
[null,null,null,null,null,null,null,null,null,null,null,null,null,null,null,null,null,null,null,0.78]
[null,null,null,null,null,null,null,null,null,null,null,null,null,null,null,null,null,null,null,0.79]
[null,null,null,null,null,null,null,null,null,null,null,null,null,null,null,null,null,null,null,0.8]
[null,null,null,null,null,null,null,null,null,null,null,null,null,null,null,null,null,null,null,0.81]
[null,null,null,null,null,null,null,null,null,null,null,null,null,null,null,null,null,null,null,0.82]
[null,null,null,null,null,null,null,null,null,null,null,null,null,null,null,null,null,null,null,0.83]
[null,null,null,null,null,null,null,null,null,null,null,null,null,null,null,null,null,null,null,0.84]
[null,null,null,null,null,null,null,null,null,null,null,null,null,null,null,null,null,null,null,0.85]
[null,null,null,null,null,null,null,null,null,null,null,null,null,null,null,null,null,null,null,0.86]
[null,null,null,null,null,null,null,null,null,null,null,null,null,null,null,null,null,null,null,0.87]
[null,null,null,null,null,null,null,null,null,null,null,null,null,null,null,null,null,null,null,0.88]
[null,null,null,null,null,null,null,null,null,null,null,null,null,null,null,null,null,null,null,0.89]
[null,null,null,null,null,null,null,null,null,null,null,null,null,null,null,null,null,null,null,0.9]
[null,null,null,null,null,null,null,null,null,null,null,null,null,null,null,null,null,null,null,0.91]
[null,null,null,null,null,null,null,null,null,null,null,null,null,null,null,null,null,null,null,0.92]
[null,null,null,null,null,null,null,null,null,null,null,null,null,null,null,null,null,null,null,0.93]
[null,null,null,null,null,null,null,null,null,null,null,null,null,null,null,null,null,null,null,0.94]
[null,null,null,null,null,null,null,null,null,null,null,null,null,null,null,null,null,null,null,0.95]
[null,null,null,null,null,null,null,null,null,null,null,null,null,null,null,null,null,null,null,0.96]
[null,null,null,null,null,null,null,null,null,null,null,null,null,null,null,null,null,null,null,0.97]
[null,null,null,null,null,null,null,null,null,null,null,null,null,null,null,null,null,null,null,0.98]
[null,null,null,null,null,null,null,null,null,null,null,null,null,null,null,null,null,null,null,0.99]
[null,null,null,null,null,null,null,null,null,null,null,null,null,null,null,null,null,null,null,1]

{"sheet":"Education calculator","index":9,"n_rows":237,"n_cols":20,"rows_kept":237,"cut":false,"hidden":true,"merged":[[12,7,13,12],[13,2,13,4],[16,2,16,4],[16,7,16,14],[10,2,10,3],[17,2,17,4],[37,7,39,12],[21,2,21,4],[17,7,17,14],[14,2,14,4],[15,2,15,4],[34,7,36,12],[28,7,30,12],[18,2,18,4],[37,1,38,1],[47,7,48,12],[56,7,57,12],[75,7,76,12],[19,2,19,4],[20,2,20,4],[22,2,22,4],[31,1,32,1],[34,1,35,1],[59,7,61,12]]}
[]
[null,"BREEAM-NOR v6.1 Wat 01 Water consumption: Water efficiency calculator for new non domestic education buildings"]
[]
[null,"Building details"]
[]
[null,"Building name",{"$f":"'User Instructions'!D8:F8","v":{"$error":"#VALUE!"}}]
[]
[null,"BRE assessment reference no.",{"$f":"'User Instructions'!D10:F10","v":{"$error":"#VALUE!"}}]
[]
[null,"Building type","Description of building type",null,"Default building occupancy","Default annual days/operation","Default daily hours of operation"]
[{"$f":"IF(B11=$Q$135,\">\",\"\")","v":">"},"Please select",{"$f":"VLOOKUP(B11,'Activity database'!A:B,2,FALSE)","v":{"$error":"#N/A"}},null,{"$f":"IF(O149=0,Q145,O149)","v":"Requires building information"},{"$f":"VLOOKUP(B11,'Activity database'!A:AN,4,FALSE)","v":{"$error":"#N/A"}},{"$f":"VLOOKUP(B11,'Activity database'!A:AN,5,FALSE)","v":{"$error":"#N/A"}}]
[]
[null,"Main building activity areas","Description of activity area",null,null,"Activity area present in building?","Net Floor Area (m2)",{"$f":"'Office calculator'!H13:O14","v":"Note: the  activity areas defined opposite are used to estimate the assessed building's default occupancy and therefore water consumption benchmark. These areas are chosen as they are deemed, by in large, to represent the permanently occupied spaces in the building and therefore reflect the number of building occupants/users. As a result it is not necessary to include all areas of the building that may be present, as the areas not defined are assumed to be used by the occupants of the building already accounted for by those areas that are listed."}]
[{"$f":"IF(B11=Q135,\"\",IF(F14=$Q$135,\">\",IF(AND(F14=$Q$136,G14=\"\"),\">\",\"\")))","v":""},{"$f":"'Activity database'!A21","v":"Requires building type definition in calculator"},{"$f":"VLOOKUP(B14,'Activity database'!A:B,2,FALSE)","v":false},null,null,"Please select"]
[{"$f":"IF(B11=Q135,\"\",IF(F15=$Q$135,\">\",IF(AND(F15=$Q$136,G15=\"\"),\">\",\"\")))","v":""},{"$f":"'Activity database'!A22","v":"Education - Staff office and adminstration areas"},{"$f":"VLOOKUP(B15,'Activity database'!A:B,2,FALSE)","v":"Cellular or open plan office space, including staff rooms and staff kitchen where present/adjacent and reception areas (including library reception desk areas if present). Exlcudes meeting rooms, visitor waiting or circulation areas and other such spaces not permanently occupied."},null,null,"Please select"]
[{"$f":"IF(B11=Q135,\"\",IF(F16=$Q$135,\">\",IF(AND(F16=$Q$136,G16=\"\"),\">\",\"\")))","v":""},{"$f":"'Activity database'!A23","v":"Education - Common room"},{"$f":"VLOOKUP(B16,'Activity database'!A:B,2,FALSE)","v":"Student common room."},null,null,"Please select"]
[{"$f":"IF(B11=Q135,\"\",IF(F17=$Q$135,\">\",IF(AND(F17=$Q$136,G17=\"\"),\">\",\"\")))","v":""},{"$f":"'Activity database'!A24","v":"Education - dining area"},{"$f":"VLOOKUP(B17,'Activity database'!A:B,2,FALSE)","v":"Seated dining areas that accompany a permanently staffed kitchen preparing food for consumption on the premises (excludes small un-staffed kitchen's used by staff to re-heat food, make tea etc.)"},null,null,"Please select",null,"Note: Only select this activity if there is a permanently staffed kitchen that will prepare hot and cold meals for the building's staff/students/pupils. Enter the area of the seated dining area only (not kitchen/servery areas), this is used to estimate the number of covers per day and subsequently the default number of kitchen staff and water consumption from food preparation activity area. If an assembly hall is used as a dining area, then enter the area of the assembly hall used for dining against this function."]
[{"$f":"IF(B11=Q135,\"\",IF(F18=$Q$135,\">\",\"\"))","v":""},{"$f":"'Activity database'!A25","v":"Requires building type definition in calculator"},{"$f":"VLOOKUP(B18,'Activity database'!A:B,2,FALSE)","v":false},null,null,"Please select",null,{"$f":"IF(F18=Q136,\"Note: Net floor area is not required for this activity. Its inclusion (or otherwise) simply determines the usage/person/day factor and therefore resulting water consumption from the showers.\",\"\")","v":""}]
[{"$f":"IF(B11=Q135,\"\",IF(OR(B11=R142,B11=R143),\"\",IF(F19=$Q$135,\">\",IF(AND(F19=$Q$136,G19=\"\"),\">\",\"\"))))","v":""},{"$f":"'Activity database'!A26","v":"Education - Lecture theatre"},{"$f":"VLOOKUP(B19,'Activity database'!A:B,2,FALSE)","v":"Lecture theatre with permanent seating and/or stage used by lecturers and/or for staged performances."},null,null,"Please select",null,{"$f":"IF(AND(G19>0,OR($B$11=$R$142,$B$11=$R$143)),\"< Please delete the figure from this cell\",\"\")","v":""}]
[{"$f":"IF(B11=Q135,\"\",IF(OR(B11=R142,B11=R143),\"\",IF(F20=$Q$135,\">\",IF(AND(F20=$Q$136,G20=\"\"),\">\",\"\"))))","v":""},{"$f":"'Activity database'!A27","v":"Education - Study area"},{"$f":"VLOOKUP(B20,'Activity database'!A:B,2,FALSE)","v":"Study/write-up area in sixth form, further and/or Higer Education colleges."},null,null,"Please select",null,{"$f":"IF(AND(G20>0,OR($B$11=$R$142,$B$11=$R$143)),\"< Please delete the figure from this cell\",\"\")","v":""}]
[{"$f":"IF(B11=Q135,\"\",IF(OR(B11=R142,B11=R143),\"\",IF(F21=$Q$135,\">\",IF(AND(F21=$Q$136,G21=\"\"),\">\",\"\"))))","v":""},{"$f":"'Activity database'!A28","v":"Education - Workshop"},{"$f":"VLOOKUP(B21,'Activity database'!A:B,2,FALSE)","v":"Small scale workshop type space used for practical/vocational demonstrations/learning."},null,null,"Please select",null,{"$f":"IF(AND(G21>0,OR($B$11=$R$142,$B$11=$R$143)),\"< Please delete the figure from this cell\",\"\")","v":""}]
[{"$f":"IF(B11=Q135,\"\",IF(OR(B11=R142,B11=R143),\"\",IF(F22=$Q$135,\">\",IF(AND(F22=$Q$136,G22=\"\"),\">\",\"\"))))","v":""},{"$f":"'Activity database'!A29","v":"Education - Information Technology space"},{"$f":"VLOOKUP(B22,'Activity database'!A:B,2,FALSE)","v":"Laboratory/room containing I.T equipment and used for teaching/research related to information technology"},null,null,"Please select",null,{"$f":"IF(AND(G22>0,OR($B$11=$R$142,$B$11=$R$143)),\"< Please delete the figure from this cell\",\"\")","v":""}]
[{"$f":"IF(B11=Q135,\"\",IF(OR(B11=R142,B11=R143),\"\",IF(F23=$Q$135,\">\",IF(AND(F23=$Q$136,G23=\"\"),\">\",\"\"))))","v":""},{"$f":"'Activity database'!A30","v":"Education - Laboratory"},{"$f":"VLOOKUP(B23,'Activity database'!A:B,2,FALSE)","v":"Laboratory space for teaching/learning related to science based subjects."},null,null,"Please select",null,{"$f":"IF(AND(G23>0,OR($B$11=$R$142,$B$11=$R$143)),\"< Please delete the figure from this cell\",\"\")","v":""}]
[]
[null,"Water consumption - building microcomponent"]
[]
[null,"WC component - all activity areas","units","Specification","Usage/person/day","Usage factor","Consumption (L/person/day)",null,null,null,null,null,null,"WC component - all activity areas","Baseline \nPerformance Specification","Usage/person/day","Usage factor","Baseline Consumption (L/person/day)"]
[{"$f":"IF(B28=$Q$135,\">\",\"\")","v":">"},"Please select","Effective flush volume (Litres)",null,{"$f":"IF(OR(B11=Q135,B28=Q135),Q145,IF(B28=R136,VLOOKUP($B$11,'Activity database'!$A:$AN,9,FALSE),IF(B28=R137,VLOOKUP($B$11,'Activity database'!$A:$BM,10,FALSE))))","v":"Requires building information"},{"$f":"IF(B11=Q135,Q145,VLOOKUP($B$11,'Activity database'!$A:$BM,27,FALSE))","v":"Requires building information"},{"$f":"IF(ISERROR((D28*E28*F28*(VLOOKUP(B11,'Activity database'!A:BA,7,FALSE)))),Q145,(D28*E28*F28*(VLOOKUP(B11,'Activity database'!A:BA,7,FALSE))))","v":"Requires building information"},{"$f":"IF(B28=R135,\"Note: please select the relevant option for WC component opposite\",\"\")","v":"Note: please select the relevant option for WC component opposite"},null,null,null,null,null,{"$f":"B28","v":"Please select"},{"$f":"IF($D$28=\"\",0,VLOOKUP($N$28,'Activity database'!$AT:$BA,2,FALSE))","v":0},{"$f":"E28","v":"Requires building information"},{"$f":"F28","v":"Requires building information"},{"$f":"IF($D$28=\"\",0,O28*$P$28*$Q$28*(VLOOKUP($B$11,'Activity database'!$A:$BA,7,FALSE)))","v":0}]
[null,{"$f":"'Activity database'!K3","v":"WC - female"},"Effective flush volume (Litres)",null,{"$f":"IF(B11=Q135,Q145,VLOOKUP($B$11,'Activity database'!$A:$BM,11,FALSE))","v":"Requires building information"},{"$f":"IF(B11=Q135,Q145,VLOOKUP($B$11,'Activity database'!$A:$BM,27,FALSE))","v":"Requires building information"},{"$f":"IF(B11=Q135,Q145,D29*E29*F29*(VLOOKUP(B11,'Activity database'!A:BA,8,FALSE)))","v":"Requires building information"},"Note: Where the WC facilities are non-gender specific, please still enter the WC specification against both WC male and WC female categories i.e. if there are two WCs with a 6 litre effective flush, then enter 6 litres against both male and female categories. The calculation will not double count water consumption in this instance as the consumption figure calculated for each WC component is adjusted by the ratio of male to female users for this building type.",null,null,null,null,null,{"$f":"B29","v":"WC - female"},{"$f":"IF($D$29=\"\",0,VLOOKUP($N$29,'Activity database'!$AT:$BA,2,FALSE))","v":0},{"$f":"E29","v":"Requires building information"},{"$f":"F29","v":"Requires building information"},{"$f":"IF($D$29=\"\",0,O29*$P$29*$Q$29*(VLOOKUP($B$11,'Activity database'!$A:$BA,8,FALSE)))","v":0}]
[]
[null,"Urinal component - all activity areas","units","Specification","No. of cisterns","Flushing frequency (flushes/hour)","Consumption (L/person/day)",null,null,null,null,null,null,"Urinal component - all activity areas","Baseline \nPerformance Specification","Urinal consumption (L/bowl/day)","Urinal consumption (L/day)","Baseline Consumption (L/person/day)"]
[{"$f":"IF(AND(D32>0,OR(E32=\"\",F32=\"\")),\">\",\"\")","v":""},"Automatically operated flushing cistern","Cistern capacity (Litres)",null,null,null,{"$f":"IF(B11=Q135,Q145,IF(OR(D32=0,E32=0,F32=0,B28=R137),0,(D32*E32*F32*G11)/O149))","v":"Requires building information"},null,null,null,null,null,null,{"$f":"B32","v":"Automatically operated flushing cistern"},{"$f":"IF($D$32=0,0,IF($D$33=1,'Activity database'!$AU$11,'Activity database'!$AU$10))","v":0},{"$f":"O32*$G$11","v":{"$error":"#N/A"}},{"$f":"P32*$D$33","v":{"$error":"#N/A"}},{"$f":"IF(B28=R137,0,$Q$32/O149)","v":{"$error":"#N/A"}}]
[{"$f":"IF(AND(D32>0,D33=\"\"),\">\",\"\")","v":""},null,"No. of urinal bowls"]
[null,null,"units","Specification","Usage/person/day","Usage factor","Consumption (L/person/day)",null,null,null,null,null,null,"Urinal component - all activity areas","Baseline \nPerformance Specification","Usage/person/day","Usage factor","Baseline Consumption (L/person/day)"]
[null,"Manual/automatic operated pressure flushing valve (all activity areas)","Flush volume (litres)",null,{"$f":"IF(B11=Q135,Q145,VLOOKUP($B$11,'Activity database'!$A:$AN,12,FALSE))","v":"Requires building information"},{"$f":"IF(B11=Q135,Q145,VLOOKUP($B$11,'Activity database'!$A:$AN,28,FALSE))","v":"Requires building information"},{"$f":"IF(B11=Q135,Q145,IF(OR(D35=0,E35=0,F35=0,B28=R137),0,(D35*E35*F35)*(VLOOKUP(B11,'Activity database'!A:BA,7,FALSE))*(D36/(D33+D36+D39))))","v":"Requires building information"},{"$f":"IF(B28=R137,\"\",N160)","v":"Note: This consumption total accounts for the ratio of male users for this building type i.e. the ratio of building users who will operate the flush. Where more than one type of urinal flushing control is specified in the building, this consumption figure is adjusted by a ratio of use. the ratio is determined according to the proportion of urinals bowls in the building operated using this type of control."},null,null,null,null,null,{"$f":"B35","v":"Manual/automatic operated pressure flushing valve (all activity areas)"},{"$f":"'Activity database'!$AU$12","v":1},{"$f":"E35","v":"Requires building information"},{"$f":"F35","v":"Requires building information"},{"$f":"IF(B28=R137,0,IF($D$35=\"\",0,$O$35*$P$35*$Q$35*(VLOOKUP(B11,'Activity database'!$A:$BA,7,FALSE)))*(D36/(D33+D36+D39)))","v":{"$error":"#DIV/0!"}}]
[{"$f":"IF(AND(D35>0,D36=\"\"),\">\",\"\")","v":""},null,"No. of urinal bowls"]
[null,null,"units","Specification","Usage/person/day","Usage factor","Consumption (L/person/day)",null,null,null,null,null,null,"Urinal component - all activity areas","Baseline \nPerformance Specification","Usage/person/day","Usage factor","Baseline Consumption (L/person/day)"]
[{"$f":"IF(B28=R137,\"\",IF(D38=$Q$135,\">\",\"\"))","v":">"},"Waterless urinals (all activity areas)","Flush volume (litres)","Please select",{"$f":"IF(B11=Q135,Q145,VLOOKUP($B$11,'Activity database'!$A:$AN,12,FALSE))","v":"Requires building information"},{"$f":"IF(B11=Q135,Q145,VLOOKUP($B$11,'Activity database'!$A:$AN,28,FALSE))","v":"Requires building information"},{"$f":"IF(B11=Q135,Q145,0)","v":"Requires building information"},{"$f":"IF(OR(B28=R137,B28=R135,D38=P137),\"\",IF(AND(D38=P136,D39>0),N161,IF(OR(D38=R135,D38=P136),N162)))","v":""},null,null,null,null,null,{"$f":"B38","v":"Waterless urinals (all activity areas)"},{"$f":"'Activity database'!$AU$12","v":1},{"$f":"E38","v":"Requires building information"},{"$f":"F38","v":"Requires building information"},{"$f":"IF(B28=R137,0,IF(OR($D$38=\"\",$D$38=P135,$D$38=P137),0,$O$38*$P$38*$Q$38*(VLOOKUP(B11,'Activity database'!$A:$BA,7,FALSE)))*(D39/(D33+D36+D39)))","v":{"$error":"#DIV/0!"}}]
[{"$f":"IF(AND(D38=P136,D39=\"\"),\">\",\"\")","v":""},null,"No. of urinal bowls"]
[]
[null,null,"units","Specification","Usage/person/day","Usage factor","Consumption (L/person/day)"]
[null,"Taps  components (personal hygiene) - all activity areas ",null,null,null,null,null,null,null,null,null,null,null,"Taps  components (personal hygiene) - all activity areas ","Baseline Performance Specification","Usage/person/day","Usage factor","Baseline Consumption (L/person/day)"]
[null,{"$f":"'Activity database'!M3","v":"Wash hand basin taps"},"Flow rate (litres/min)",null,{"$f":"IF(B11=Q135,Q145,VLOOKUP($B$11,'Activity database'!$A:$AN,13,FALSE))","v":"Requires building information"},{"$f":"IF(B11=Q135,Q145,VLOOKUP($B$11,'Activity database'!$A:$AN,29,FALSE))","v":"Requires building information"},{"$f":"IF(B11=Q135,Q145,(D43*E43*F43)*VLOOKUP(B11,'Activity database'!A:AR,44,FALSE))","v":"Requires building information"},null,null,null,null,null,null,{"$f":"B43","v":"Wash hand basin taps"},{"$f":"IF($D$43=\"\",0,VLOOKUP($N$43,'Activity database'!$AT:$BA,2,FALSE))","v":0},{"$f":"E43","v":"Requires building information"},"Requires building information",{"$f":"IF($D$43=\"\",0,(O43*$P$43*$Q$43)*(VLOOKUP($B$11,'Activity database'!$A:$AR,44,FALSE)))","v":0}]
[null,{"$f":"'Activity database'!N3","v":"Shower use"},"Flow rate (litres/min)",null,{"$f":"IF(B11=Q135,Q145,VLOOKUP($B$11,'Activity database'!$A:$AN,14,FALSE))","v":"Requires building information"},{"$f":"IF(B11=Q135,Q145,VLOOKUP($B$11,'Activity database'!$A:$AN,30,FALSE))","v":"Requires building information"},{"$f":"IF(B11=Q135,Q145,IF(B44=Q135,Q145,D44*E44*F44))","v":"Requires building information"},null,null,null,null,null,null,"Shower use",{"$f":"IF($D$44=\"\",0,'Activity database'!AU8)","v":0},"Requires building information","Requires building information",{"$f":"IF($D$44=\"\",0,O44*$P$44*$Q$44)","v":0}]
["Hide rows: N/A for schools",{"$f":"'Activity database'!O3","v":"Shower use (bath present)"},"Flow rate (litres/min)",null,{"$f":"VLOOKUP($B$11,'Activity database'!$A:$AN,15,FALSE)","v":{"$error":"#N/A"}},{"$f":"VLOOKUP($B$11,'Activity database'!$A:$AN,31,FALSE)","v":{"$error":"#N/A"}},{"$f":"IF(E45=\"N/A\",0,D45*E45*F45)","v":{"$error":"#N/A"}},"Hide rows: N/A for schools",null,null,null,null,null,"Shower use (bath present)",{"$f":"IF($D$45=\"\",0,'Activity database'!AU8)","v":0},{"$error":"#N/A"},{"$error":"#N/A"},{"$f":"IF($D$45=\"\",0,O45*$P$45*$Q$45)","v":0}]
["Hide rows: N/A for schools",{"$f":"'Activity database'!P3","v":"Bath use (no shower present) "},"Capacity to overflow (Litres)",null,{"$f":"VLOOKUP($B$11,'Activity database'!$A:$AN,16,FALSE)","v":{"$error":"#N/A"}},{"$f":"VLOOKUP($B$11,'Activity database'!$A:$AN,32,FALSE)","v":{"$error":"#N/A"}},{"$f":"IF(E46=\"n/a\",0,((D46*E46*F46)*'Activity database'!AQ4))","v":{"$error":"#N/A"}},"Hide rows: N/A for schools",null,null,null,null,null,"Bath use (no shower present) ",{"$f":"IF($D$46=\"\",0,'Activity database'!AU9)","v":0},{"$error":"#N/A"},{"$error":"#N/A"},{"$f":"IF($D$46=\"\",0,((O46*$P$46*$Q$46)*(VLOOKUP($B$11,'Activity database'!$A:$AR,43,FALSE))))","v":0}]
["Hide rows: N/A for schools",{"$f":"'Activity database'!Q3","v":"Bath use (shower present)"},"Capacity to overflow (Litres)",null,{"$f":"VLOOKUP($B$11,'Activity database'!$A:$AN,17,FALSE)","v":{"$error":"#N/A"}},{"$f":"VLOOKUP($B$11,'Activity database'!$A:$AN,33,FALSE)","v":{"$error":"#N/A"}},{"$f":"IF(E47=\"n/a\",0,((D47*E47*F47)*'Activity database'!AQ4))","v":{"$error":"#N/A"}},"Hide rows: N/A for schools",null,null,null,null,null,"Bath use (shower present)",{"$f":"IF($D$47=\"\",0,'Activity database'!AU9)","v":0},{"$error":"#N/A"},{"$error":"#N/A"},{"$f":"IF($D$47=\"\",0,((O47*$P$47*$Q$47)*(VLOOKUP($B$11,'Activity database'!$A:$AR,43,FALSE))))","v":0}]
[null,{"$f":"'Activity database'!X3","v":"Fixed use - vessel filling"},"Litres/person/day","-","-","-",{"$f":"IF(B11=Q135,Q145,IF(F18=Q136,'Activity database'!X25+VLOOKUP(B11,'Activity database'!A:BA,24,FALSE),IF(F18=Q137,VLOOKUP(B11,'Activity database'!A:BA,24,FALSE),Q145)))","v":"Requires building information"},null,null,null,null,null,null,"Fixed use - vessel filling","N/A","N/A","N/A",{"$f":"IF(G48=Q145,0,G48)","v":0}]
[null,"Tap components (cleaning) - staff kitchenette",null,null,null,null,null,null,null,null,null,null,null,"Tap components (cleaning) - staff kitchenette"]
[null,{"$f":"'Activity database'!R3","v":"Kitchen taps - kitchenette"},"Flow rate (litres/min)",null,{"$f":"IF(B11=Q135,Q145,VLOOKUP($B$11,'Activity database'!$A:$AN,18,FALSE))","v":"Requires building information"},{"$f":"VLOOKUP($B$15,'Activity database'!$A:$AN,34,FALSE)","v":0.67},{"$f":"IF(B11=Q135,Q145,(D50*E50*F50)*(VLOOKUP(B11,'Activity database'!A:AR,44,FALSE)))","v":"Requires building information"},null,null,null,null,null,null,{"$f":"B50","v":"Kitchen taps - kitchenette"},{"$f":"IF($D$50=\"\",0,VLOOKUP($N$50,'Activity database'!$AT:$BA,2,FALSE))","v":0},{"$f":"E50","v":"Requires building information"},{"$f":"F50","v":0.67},{"$f":"IF($D$50=\"\",0,(O50*$P$50*$Q$50)*(VLOOKUP($B$11,'Activity database'!$A:$AR,44,FALSE)))","v":0}]
[null,{"$f":"'Activity database'!U3","v":"Dishwasher"},"Litres/cycle",null,{"$f":"IF(B11=Q135,Q145,VLOOKUP($B$15,'Activity database'!$A:$AN,21,FALSE))","v":"Requires building information"},{"$f":"VLOOKUP($B$15,'Activity database'!$A:$AN,37,FALSE)","v":1},{"$f":"IF(B11=Q135,Q145,D51*E51*F51)","v":"Requires building information"},null,null,null,null,null,null,{"$f":"B51","v":"Dishwasher"},{"$f":"IF($D$51=\"\",0,'Activity database'!AU16)","v":0},{"$f":"E51","v":"Requires building information"},{"$f":"F51","v":1},{"$f":"O51*$P$51*$Q$51","v":{"$error":"#VALUE!"}}]
[null,"Tap components (cleaning and food preparation) - school canteen food preparation area",null,null,null,null,null,null,null,null,null,null,null,"Tap components (cleaning and food preparation) - canteen/restaurant"]
[null,{"$f":"'Activity database'!S3","v":"Kitchen taps - pre-rinse nozzle"},"Flow rate (litres/min)",null,"-",{"$f":"VLOOKUP($B$17,'Activity database'!A:BC,35,FALSE)","v":60},{"$f":"IF(ISERROR((D53*F53)/O149),Q145,((D53*F53)/O149))","v":"Requires building information"},null,null,null,null,null,null,{"$f":"B53","v":"Kitchen taps - pre-rinse nozzle"},{"$f":"IF($D$53=\"\",0,VLOOKUP($N$53,'Activity database'!$AT:$BA,2,FALSE))","v":0},{"$f":"E53","v":"-"},60,{"$f":"IF($D$53=\"\",0,(O53*$Q$53)/$O$149)","v":0}]
[null,{"$f":"'Activity database'!U3","v":"Dishwasher"},"Litres/rack",null,"-",{"$f":"VLOOKUP($B$17,'Activity database'!A:BC,37,FALSE)","v":0.45},{"$f":"IF(ISERROR((F54*G17*D54)/O149),Q145,((F54*G17*D54)/O149))","v":"Requires building information"},null,null,null,null,null,null,"Dishwasher",{"$f":"IF($D$54=\"\",0,'Activity database'!AU19)","v":0},"-",0.45,{"$f":"IF($D$54=\"\",0,($Q$54*$G$17*O54)/$O$149)","v":0}]
[null,{"$f":"'Activity database'!W3","v":"Waste disposal unit"},"Flow rate (litres/min)",null,"-",{"$f":"VLOOKUP($B$17,'Activity database'!A:BC,39,FALSE)","v":30},{"$f":"IF(ISERROR((D55*F55)/O149),Q145,((D55*F55)/O149))","v":"Requires building information"},null,null,null,null,null,null,"Waste disposal unit",{"$f":"IF($D$55=\"\",0,VLOOKUP($N$55,'Activity database'!$AT:$BA,2,FALSE))","v":0},"-",30,{"$f":"IF($D$55=\"\",0,(O55*$Q$55)/$O$149)","v":0}]
["Hide rows: N/A for schools",{"$f":"'Activity database'!V3","v":"Washing machine"},"Litres/kg dry load",null,{"$f":"VLOOKUP($B$11,'Activity database'!$A:$AN,22,FALSE)","v":{"$error":"#N/A"}},{"$f":"VLOOKUP($B$11,'Activity database'!$A:$AN,38,FALSE)","v":{"$error":"#N/A"}},{"$f":"IF(ISERROR(IF(E56=\"N/A\",0,IF(F17=\"Yes\",(D56*E56*F56),0))),Q145,IF(E56=\"N/A\",0,IF(F17=\"Yes\",(D56*E56*F56),0)))","v":"Requires building information"},"Hide rows: N/A for schools",null,null,null,null,null,"Washing machine",{"$f":"IF($D$56=\"\",0,'Activity database'!AU20)","v":0},{"$error":"#N/A"},{"$error":"#N/A"},{"$f":"IF($D$56=\"\",0,IF($F$17=\"Yes\",(O56*$P$56*$Q$56)))","v":0}]
[null,{"$f":"'Activity database'!Y3","v":"Fixed use - food preparation"},"Litres/person/day","-","-","-",{"$f":"IF(ISERROR(IF(F17=\"Yes\",(VLOOKUP(B17,'Activity database'!A:BC,25,FALSE)/O149),0)),Q145,IF(F17=\"Yes\",(VLOOKUP(B17,'Activity database'!A:BC,25,FALSE)/O149),0))","v":0},null,null,null,null,null,null,"Fixed use - food preparation","N/A",{"$f":"E57","v":"-"},"N/A",{"$f":"$G$57","v":0}]
[null,{"$f":"'Activity database'!Z3","v":"Fixed use - kitchen cleaning"},"Litres/person/day","-","-","-",{"$f":"IF(ISERROR(IF(F17=\"Yes\",(VLOOKUP(B17,'Activity database'!A:BC,26,FALSE)/O149),0)),Q145,(IF(F17=\"Yes\",(VLOOKUP(B17,'Activity database'!A:BC,26,FALSE)/O149),0)))","v":0},null,null,null,null,null,null,"Fixed use - kitchen cleaning","N/A",{"$f":"E58","v":"-"},"N/A",{"$f":"$G$58","v":0}]
[]
[null,null,null,null,null,null,"Microcomponent consumption \n(L/person/day)","Note: This total includes the contributions from fixed uses, including where applicable vessel filling, kitchen cleaning and food preparation. Default fixed use totals are included with the calculations to provide a more accurate reflection of the buildings total water consumption. The fixed use totals are not however included in the water consumption total used to determine the assessed buildings percentage improvement and the number of BREEAM credits achieved. The percentage improvement is based only on the consumption of water from uses that can be heavily influenced by the microcomponent specification e.g. WC flushing.",null,null,null,null,null,null,null,null,null,"Baseline Consumption (L/person/day)"]
[null,null,null,null,null,"Total",{"$f":"IF(OR(G28=Q145,AND(F14=Q137,F15=Q137,F16=Q137,F17=Q137,F18=Q137,F19=Q137,F20=Q137,F21=Q137,F22=Q137,F23=Q137)),Q145,(SUM(G28:G29)+G32+G35+G38+SUM(G43:G48)+SUM(G50:G51)+SUM(G53:G58)))","v":"Requires building information"},null,null,null,null,null,null,null,null,null,"Total ",{"$f":"SUM(R28+R29)+R32+R35+R38+SUM(R43:R48)+SUM(R50:R51)+SUM(R53:R58)-R64","v":{"$error":"#N/A"}}]
[]
[null,"Non potable water yield - greywater system",null,null,null,null,null,null,null,null,null,null,null,null,null,null,null,"Total from fixed uses"]
[null,null,null,null,null,null,null,null,null,null,null,null,null,null,null,null,"Total ",{"$f":"R48+R57+R58","v":0}]
[{"$f":"IF(G65=$Q$135,\">\",\"\")","v":">"},null,null,null,null,"Has, or will, the greywater system be specified and installed in compliance with BS8525-1:2010 Greywater Systems - Part 1 Code of Practice","Please select"]
[]
[null,null,"Greywater source (building components)",null,"Greywater Collected","Proportion of components collected from (%)","Greywater yield \n(L/person/day)"]
[null,{"$f":"IF(AND($G$65=$Q$136,E68=\"\"),\">\",IF(AND($G$65=$Q$136,E68=$Q$136,F68=\"\"),\">\",\"\"))","v":""},{"$f":"B43","v":"Wash hand basin taps"},null,null,null,{"$f":"IF(OR(E68=$Q$137,E68=\"\"),0,G43*F68)","v":0}]
[null,"","Showers",null,null,null,{"$f":"IF(OR(E69=$Q$137,E69=\"\"),0,(SUM(G44:G45)*F69))","v":0}]
[null,"",{"$f":"B50","v":"Kitchen taps - kitchenette"},null,null,null,{"$f":"IF(OR(E70=$Q$137,E70=\"\"),0,G50*F70)","v":0}]
[null,"","Dishwasher - staff kitchenette",null,null,null,{"$f":"IF(OR(E71=$Q$137,E71=\"\"),0,F71*G51)","v":0}]
[null,"",{"$f":"B53","v":"Kitchen taps - pre-rinse nozzle"},null,null,null,{"$f":"IF(OR(E72=$Q$137,E72=\"\"),0,G53*F72)","v":0}]
[null,"","Dishwasher - food preparation area",null,null,null,{"$f":"IF(OR(E73=$Q$137,E73=\"\"),0,F73*G54)","v":0}]
[null,"Hide rows: N/A for offices","Bath",null,null,null,{"$f":"IF(OR(E74=Q137,E74=\"\",E46=\"N/A\",E47=\"N/A\"),0,(SUM(G46:G47)*F74))","v":{"$error":"#N/A"}},"Hide rows: N/A for offices"]
[null,"Hide rows: N/A for offices",{"$f":"B56","v":"Washing machine"},null,null,null,{"$f":"IF(OR(E75=Q138,E75=\"\"),0,F75*G56)","v":0},"Hide rows: N/A for offices"]
[null,null,"Greywater source (other components)","Typical greywater yield (litres)","Frequency of  yield (days)","Greywater yield (litres/day)","Greywater yield \n(L/person/day)",{"$f":"IF(G65=Q136,N159,\"\")","v":""}]
[null,null,"Other source of greywater",null,null,{"$f":"IF(D77=\"\",\"\",D77/E77)","v":""},{"$f":"IF(D77=\"\",0,F77/O149)","v":0}]
[]
[null,null,null,null,null,null,"Greywater yield\n(L/person/day)"]
[null,null,null,null,null,"Total",{"$f":"IF(B11=Q135,Q145,IF(OR(G65=Q138,G65=Q137),0,SUM(G68:G75)+G77))","v":"Requires building information"}]
[]
[null,"Minimum requirements according to EU taxonomy for sustainable finance"]
[{"$f":"IF(G83=$Q$135,\">\",\"\")","v":">"},null,null,null,null,"Do all the installed wash hand basin taps and kitchen taps have a maximum water flow of 6 litres/min?","Please select"]
[">",null,null,null,null,"Do all the installed showers have a maximum water flow of 8 litres/min?","Please select"]
[">",null,null,null,null,"Do all WCs, including suites, bowls and flushing cisterns, have a full flush volume of a maximum of 6 litres and a maximum average flush volume of 3,5 litres?","Please select"]
[">",null,null,null,null,"Do all urinals use a maximum of 2 litres/bowl/hour and flushing urinals have a maximum full flush volume of 1 litre? ","Please select"]
[null,null,null,null,null,"Is all the  EU taxonomy requirements for sanitary equipment met?",{"$f":"IF(OR(G83=\"Please select\",G83=\"No\"),\"No\",IF(OR(G84=\"Please Select\",G84=\"No\"),\"No\",IF(OR(G85=\"Please Select\",G85=\"No\"),\"No\",IF(OR(G86=\"Please Select\",G86=\"No\"),\"No\",\"Yes\"))))","v":"No"}]
[]
[null,"Non potable water yield - rainwater system"]
[]
[{"$f":"IF(G91=$Q$135,\">\",\"\")","v":">"},null,null,null,null,"Has, or will, the rainwater system be specified and installed in compliance with BS EN 16941-1:2018 Rainwater Harvesting Systems - Code of practice","Please select"]
[]
[{"$f":"IF(AND($G$91=$Q$136,G93=$Q$135),\">\",\"\")","v":""},null,null,null,null,"How has the storage capacity for the proposed system been calculated?","Please select"]
[null,"Rainwater yield if basic approach:"]
[null,"Collection area (m2)","Rainfall \n(average mm/yr)","Hydraulic filter efficiency (%)","Yield co-efficient (%)","Annual rainwater yield (Litres)","Rainwater yield\n(L/person/day)"]
[{"$f":"IF(AND($G$91=$Q$136,$G$93=$S$136,OR(B96=\"\",C96=\"\",D96=\"\",E96=\"\")),\">\",\"\")","v":""},null,null,null,null,{"$f":"B96*E96*D96*C96","v":0},{"$f":"IF(ISERROR(IF(OR(G91=Q138,G91=Q137,G93=S137),0,(F96/365)/O149)),Q145,IF(OR(G91=Q138,G91=Q137,G93=S137),0,(F96/365)/O149))","v":"Requires building information"}]
[null,null,null,null,null,"Rainwater yield if detailed:"]
[null,null,null,null,null,"Daily rainfall collection (litres)","Rainwater yield \n(L/person/day)"]
[null,null,null,null,{"$f":"IF(AND($G$91=$Q$136,$G$93=$S$137,F99=\"\"),\">\",\"\")","v":""},null,{"$f":"IF(ISERROR(IF(OR(G93=S136,G91=Q138,G91=Q137),0,(F99/O149))),Q145,IF(OR(G93=S136,G91=Q138,G91=Q137),0,(F99/O149)))","v":"Requires building information"}]
[]
[null,"Non potable water demand - building components"]
[]
[null,null,null,null,null,null,"Greywater and/or rainwater yield\n(L/person/day)"]
[null,null,null,null,null,"Total",{"$f":"IF(ISERROR(G99+G96+G80),Q145,G99+G96+G80)","v":"Requires building information"}]
[]
[null,null,null,"Component","Greywater and/or rainwater utilised for component","Proportion of components using greywater and/or rainwater yield (%)","Maximum permissible demand (L/person/day)"]
[null,null,{"$f":"IF(AND(OR($G$65=$Q$135,$G$65=$Q$137,$G$65=$Q$138),OR($G$91=$Q$135,$G$91=$Q$137,$G$91=$Q$138)),\"\",IF(E107=$Q$137,\"\",IF(OR(E107=\"\",F107=\"\"),\">\",\"\")))","v":""},"WC flushing",null,null,{"$f":"IF(E107=\"no\",0,F107*SUM(G28:G29))","v":0}]
[null,null,{"$f":"IF(B28=R137,\"\",IF(AND(OR($G$65=$Q$135,$G$65=$Q$137,$G$65=$Q$138),OR($G$91=$Q$135,$G$91=$Q$137,$G$91=$Q$138)),\"\",IF(E108=$Q$137,\"\",IF(OR(E108=\"\",F108=\"\"),\">\",\"\"))))","v":""},"Urinal flushing",null,null,{"$f":"IF(OR(E108=\"no\",B28=R137),0,F108*SUM(G32:G38))","v":0}]
[null,null,null,null,null,null,"Demand met by yield\n(L/person/day)"]
[null,null,null,null,null,"Total",{"$f":"IF((SUM(G107:G108))>G104,G104,SUM(G107:G108))","v":0}]
[null,null,null,"Other permissible components"]
[null,null,{"$f":"IF(AND(OR($G$65=$Q$135,$G$65=$Q$137,$G$65=$Q$138),OR($G$91=$Q$135,$G$91=$Q$137,$G$91=$Q$138)),\"\",IF(G112=$Q$135,\">\",\"\"))","v":""},null,null,"Are there other permissible components present which demand greywater and/or rainwater yield?","Please select"]
[null,null,null,null,null,null,"Maximum permissible demand (L/day)"]
[null,null,null,null,null,null,{"$f":"IF(ISERROR(IF(AND(G112=\"yes\",G110>G104),0,(G104-G110)*O149)),Q145,IF(AND(G112=\"yes\",G110>G104),0,(G104-G110)*O149))","v":"Requires building information"}]
[null,null,{"$f":"IF(AND(OR($G$65=$Q$135,$G$65=$Q$137,$G$65=$Q$138),OR($G$91=$Q$135,$G$91=$Q$137,$G$91=$Q$138)),\"\",IF(AND(G112=$Q$136,G115=\"\"),\">\",\"\"))","v":""},null,null,"Proportion of maximum permissible demand utilised by other permissible components (%)"]
[null,null,null,null,null,null," Demand met by yield\n(L/person/day)"]
[null,null,null,null,null,"Total",{"$f":"IF(ISERROR((G115*G114)/O149),Q145,(G115*G114)/O149)","v":"Requires building information"}]
[]
[null,null,null,null,null,null,"Greywater and/or rainwater demand met by yield\n(L/person/day)"]
[null,null,null,null,null,"Total ",{"$f":"IF(ISERROR(G110+G117),Q145,G110+G117)","v":"Requires building information"}]
[]
[null,"Water consumption calculation results"]
[]
[null,null,null,null,null,"Litres/person/day","m3/person/yr"]
[null,null,null,null,"Water consumption - modelled baseline performance benchmark (excludes fixed uses)",{"$f":"IF(ISERROR(R61),Q145,R61)","v":"Requires building information"},{"$f":"IF(ISERROR((F125/1000)*$F$11),Q145,(F125/1000)*$F$11)","v":"Requires building information"}]
[]
[null,null,null,null,"Microcomponent Water consumption - modelled performance (excludes fixed uses)",{"$f":"IF(ISERROR(G61-R64),Q145,G61-R64)","v":"Requires building information"},{"$f":"IF(ISERROR((F127/1000)*$F$11),Q145,(F127/1000)*$F$11)","v":"Requires building information"},null,null,null,null,null,null,"Greywater/rainwater data check"]
[null,null,null,null,null,null,null,null,null,null,null,null,null,{"$f":"1-(F127-F129)/F125","v":{"$error":"#VALUE!"}},"% actual improvement"]
[null,null,null,null,"Modelled water demand met via greywater and rainwater sources",{"$f":"IF(ISERROR(G120),Q145,G120)","v":"Requires building information"},{"$f":"IF(ISERROR((F129/1000)*$F$11),Q145,(F129/1000)*$F$11)","v":"Requires building information"}]
[null,null,null,null,null,null,null,null,null,null,null,null,null,{"$f":"VLOOKUP(N128,'Activity database'!BC4:BD9,2,TRUE)","v":{"$error":"#VALUE!"}},"Credits achieved"]
[null,null,null,null,"If greywater/rainwater systems specified has the minimum % efficiency improvement for component specifications been met",{"$f":"IF(ISERROR(IF(AND((OR(G91=Q138,G91=Q137)),((OR(G65=Q138,G65=Q137)))),Q138,IF(OR(N130=\"1 credit\",N130=\"2 credits\",N130=\"3 credits\"),Q143,IF(OR(N130=\"4 credits\",N130=\"5 credits\"),(IF((1-(F127/F125))<0.25,\"No\",\"Yes\")))))),Q145,IF(AND((OR(G91=Q138,G91=Q137)),((OR(G65=Q138,G65=Q137)))),Q138,IF(OR(N130=\"1 credit\",N130=\"2 credits\",N130=\"3 credits\"),Q143,IF(OR(N130=\"4 credits\",N130=\"5 credits\"),(IF((1-(F127/F125))<0.25,\"No\",\"Yes\"))))))","v":"Requires building information"}]
[]
[null,null,null,null,"Net modelled water consumption (excludes fixed uses)",{"$f":"IF(ISERROR(IF(OR(F131=\"Yes\",F131=Q138),F127-F129,(F127-((1-(F127/F125))*F129)))),Q145,IF(OR(F131=\"Yes\",F131=Q138),F127-F129,(F127-((1-(F127/F125))*F129))))","v":"Requires building information"},{"$f":"IF(ISERROR((F133/1000)*$F$11),Q145,((F133/1000)*$F$11))","v":"Requires building information"}]
[]
[null,null,null,null,"Percentage improvement",{"$f":"IF(OR(F125=Q145,F127=Q145,F129=Q145,F131=Q145),Q145,(ROUNDDOWN(IF(OR(F131=\"yes\",F131=Q143,F131=Q138),N128,(IF(F131=\"No\",1-((F127-(F129*(1-(F127/F125))))/F125)))),4)))","v":"Requires building information"},null,null,null,null,null,null,null,null,null,"Please select","Please select","Please select","Please select",0]
[null,null,null,null,null,null,null,null,null,null,null,null,null,null,"Default occupancy rate","Waterless urinals - specified","Yes",{"$f":"'Activity database'!I3","v":"WC - male (urinals installed)"},"BS EN 16941-1 'basic approach'",0.01]
[null,null,null,null,"Total Wat 01 BREEAM credits achieved, before checking minimum requirements according to EU taxonomy for sustainable finance.",{"$f":"IF(F135<0,'Activity database'!BD4,(IF(ISERROR(VLOOKUP(F135,'Activity database'!BC4:BD9,2,TRUE)),Q145,VLOOKUP(F135,'Activity database'!BC4:BD9,2,TRUE))))","v":"Requires building information"},null,null,null,null,null,null,null,{"$f":"B14","v":"Requires building type definition in calculator"},{"$f":"IF(F14=\"Yes\",VLOOKUP(B14,'Activity database'!A:BC,3,FALSE)*G14,0)","v":0},"Waterless urinals - not specified","No",{"$f":"'Activity database'!J3","v":"WC - male (no urinals installed)"},"BS EN 16941-1 'detailed approach'",0.02]
[null,null,null,null,null,null,null,null,null,null,null,null,null,"Education - Staff office and adminstration areas",{"$f":"IF(F15=\"Yes\",VLOOKUP(B15,'Activity database'!A:BC,3,FALSE)*G15,0)","v":0},null,"System not specified",null,null,0.03]
[null,null,null,null,"Total Wat 01 BREEAM credits achieved",{"$f":"IF(F137=\"Requires building information\",\"Requires building information\",IF(G87=\"Yes\",F137,IF(F137>=\"1 credit\",\"1 credit\",\"0 credits\")))","v":"Requires building information"}]
[]
[null,null,null,null,"Total Wat 01 BREEAM Exemplary credits achieved",{"$f":"IF(F135=Q145,Q145,IF(F135>='Activity database'!BC10,\"1 innovation credit achieved\",\"Exemplary level not achieved\"))","v":"Requires building information"},null,null,null,null,null,null,null,{"$f":"B16","v":"Education - Common room"},{"$f":"IF(F16=\"Yes\",VLOOKUP(B16,'Activity database'!A:BC,3,FALSE)*G16,0)","v":0},null,null,"Please select",null,0.04]
[null,null,null,null,null,null,null,null,null,null,null,null,null,"Education - dining area",{"$f":"IF(OR(F17=Q137,F17=Q135),0,IF(OR(B11=R142,B11=R143),IF(O137<300,G17*0.9*2*0.025,IF(O137>=300,G17*0.9*3*0.025)),IF(OR(B11=R144,B11=R145),VLOOKUP(B17,'Activity database'!A:BC,3,FALSE)*G17)))","v":0},null,null,{"$f":"'Activity database'!A17","v":"Education - pre-school or primary school"},null,0.05]
[null,null,null,null,"Key performance indicator - use of freshwater resource (includes fixed uses)",{"$f":"IF(ISERROR(F127+R64-F129),Q145,F127+R64-F129)","v":"Requires building information"},{"$f":"IF(ISERROR((F143/1000)*$F$11),Q145,(F143/1000)*$F$11)","v":"Requires building information"},null,null,null,null,null,null,"Requires building type definition in calculator",{"$f":"IF(F18=\"Yes\",VLOOKUP(B18,'Activity database'!A:BC,3,FALSE)*G18,0)","v":0},null,"Not applicable",{"$f":"'Activity database'!A18","v":"Education - secondary school or academy"},null,0.06]
[null,null,null,null,null,null,null,null,null,null,null,null,null,"Education - Lecture theatre",{"$f":"IF(F19=\"Yes\",VLOOKUP(B19,'Activity database'!A:BC,3,FALSE)*G19,0)","v":0},null,null,{"$f":"'Activity database'!A19","v":"Education - sixth form or further education college"},null,7.0000000000000007E-2]
[null,null,null,null,null,null,null,null,null,null,null,null,null,"Education - Study area",{"$f":"IF(F20=\"Yes\",VLOOKUP(B20,'Activity database'!A:BC,3,FALSE)*G20,0)","v":0},null,"Requires building information",{"$f":"'Activity database'!A20","v":"Education - higher education college"},null,0.08]
[null,null,null,null,null,null,null,null,null,null,null,null,null,"Education - Workshop",{"$f":"IF(F21=\"Yes\",VLOOKUP(B21,'Activity database'!A:BC,3,FALSE)*G21,0)","v":0},null,null,null,null,0.09]
[null,null,null,null,null,null,null,null,null,null,null,null,null,"Education - Information Technology space",{"$f":"IF(F22=\"Yes\",VLOOKUP(B22,'Activity database'!A:BC,3,FALSE)*G22,0)","v":0},null,null,null,null,0.1]
[null,null,null,null,null,null,null,null,null,null,null,null,null,"Education - Laboratory",{"$f":"IF(F23=\"Yes\",VLOOKUP(B23,'Activity database'!A:BC,3,FALSE)*G23,0)","v":0},null,null,null,null,0.11]
[null,null,null,null,null,null,null,null,null,null,null,null,null,"Total default occupancy",{"$f":"SUM(O137:O148)","v":0},null,null,null,null,0.12]
[null,null,null,null,null,null,null,null,null,null,null,null,null,null,null,null,null,null,null,0.13]
[null,null,null,null,null,null,null,null,null,null,null,null,null,null,null,null,null,null,null,0.14000000000000001]
[null,null,null,null,null,null,null,null,null,null,null,null,null,null,null,null,null,null,null,0.15]
[null,null,null,null,null,null,null,null,null,null,null,null,null,null,null,null,null,null,null,0.16]
[null,null,null,null,null,null,null,null,null,null,null,null,null,null,null,null,null,null,null,0.17]
[null,null,null,null,null,null,null,null,null,null,null,null,null,null,null,null,null,null,null,0.18]
[null,null,null,null,null,null,null,null,null,null,null,null,null,null,null,null,null,null,null,0.19]
[null,null,null,null,null,null,null,null,null,null,null,null,null,null,null,null,null,null,null,0.2]
[null,null,null,null,null,null,null,null,null,null,null,null,null,null,null,null,null,null,null,0.21]
[null,null,null,null,null,null,null,null,null,null,null,null,null,"Note: If greywater is collected from a component/source not accounted for above i.e. their consumption is not estimated, then the amount of greywater collected can be added here so that it may be accounted for. This can include wastewater from active hygiene flushing, i.e. a regular hygiene flushing programme to minimize poor water quality in a potable cold or hot water system.",null,null,null,null,null,0.22]
[null,null,null,null,null,null,null,null,null,null,null,null,null,"Note: This consumption total accounts for the ratio of male users for this building type i.e. the ratio of building users who will operate the flush. Where more than one type of urinal flushing control is specified in the building, this consumption figure is adjusted by a ratio of use. the ratio is determined according to the proportion of urinals bowls in the building operated using this type of control.",null,null,null,null,null,0.23]
[null,null,null,null,null,null,null,null,null,null,null,null,null,"Note: Where waterless urinals are specified in the assessed building, for the purpose of the baseline benchmark standard 1.5 litre flush urinals are assumed. Where waterless urinals and another type of urinal flushing control is specified in the building, the baseline consumption figure calculated using a 1.5 litre default flush is adjusted by a ratio of use. The ratio is determined according to the proportion of urinals bowls in the building that are waterless.",null,null,null,null,null,0.24]
[null,null,null,null,null,null,null,null,null,null,null,null,null,"Note: Please select the relevant option for waterless urinals specification opposite.",null,null,null,null,null,0.25]
[null,null,null,null,null,null,null,null,null,null,null,null,null,null,null,null,null,null,null,0.26]
[null,null,null,null,null,null,null,null,null,null,null,null,null,null,null,null,null,null,null,0.27]
[null,null,null,null,null,null,null,null,null,null,null,null,null,null,null,null,null,null,null,0.28000000000000003]
[null,null,null,null,null,null,null,null,null,null,null,null,null,null,null,null,null,null,null,0.28999999999999998]
[null,null,null,null,null,null,null,null,null,null,null,null,null,null,null,null,null,null,null,0.3]
[null,null,null,null,null,null,null,null,null,null,null,null,null,null,null,null,null,null,null,0.31]
[null,null,null,null,null,null,null,null,null,null,null,null,null,null,null,null,null,null,null,0.32]
[null,null,null,null,null,null,null,null,null,null,null,null,null,null,null,null,null,null,null,0.33]
[null,null,null,null,null,null,null,null,null,null,null,null,null,null,null,null,null,null,null,0.34]
[null,null,null,null,null,null,null,null,null,null,null,null,null,null,null,null,null,null,null,0.35]
[null,null,null,null,null,null,null,null,null,null,null,null,null,null,null,null,null,null,null,0.36]
[null,null,null,null,null,null,null,null,null,null,null,null,null,null,null,null,null,null,null,0.37]
[null,null,null,null,null,null,null,null,null,null,null,null,null,null,null,null,null,null,null,0.38]
[null,null,null,null,null,null,null,null,null,null,null,null,null,null,null,null,null,null,null,0.39]
[null,null,null,null,null,null,null,null,null,null,null,null,null,null,null,null,null,null,null,0.4]
[null,null,null,null,null,null,null,null,null,null,null,null,null,null,null,null,null,null,null,0.41]
[null,null,null,null,null,null,null,null,null,null,null,null,null,null,null,null,null,null,null,0.42]
[null,null,null,null,null,null,null,null,null,null,null,null,null,null,null,null,null,null,null,0.43]
[null,null,null,null,null,null,null,null,null,null,null,null,null,null,null,null,null,null,null,0.44]
[null,null,null,null,null,null,null,null,null,null,null,null,null,null,null,null,null,null,null,0.45]
[null,null,null,null,null,null,null,null,null,null,null,null,null,null,null,null,null,null,null,0.46]
[null,null,null,null,null,null,null,null,null,null,null,null,null,null,null,null,null,null,null,0.47]
[null,null,null,null,null,null,null,null,null,null,null,null,null,null,null,null,null,null,null,0.48]
[null,null,null,null,null,null,null,null,null,null,null,null,null,null,null,null,null,null,null,0.49]
[null,null,null,null,null,null,null,null,null,null,null,null,null,null,null,null,null,null,null,0.5]
[null,null,null,null,null,null,null,null,null,null,null,null,null,null,null,null,null,null,null,0.51]
[null,null,null,null,null,null,null,null,null,null,null,null,null,null,null,null,null,null,null,0.52]
[null,null,null,null,null,null,null,null,null,null,null,null,null,null,null,null,null,null,null,0.53]
[null,null,null,null,null,null,null,null,null,null,null,null,null,null,null,null,null,null,null,0.54]
[null,null,null,null,null,null,null,null,null,null,null,null,null,null,null,null,null,null,null,0.55000000000000004]
[null,null,null,null,null,null,null,null,null,null,null,null,null,null,null,null,null,null,null,0.56000000000000005]
[null,null,null,null,null,null,null,null,null,null,null,null,null,null,null,null,null,null,null,0.56999999999999995]
[null,null,null,null,null,null,null,null,null,null,null,null,null,null,null,null,null,null,null,0.57999999999999996]
[null,null,null,null,null,null,null,null,null,null,null,null,null,null,null,null,null,null,null,0.59]
[null,null,null,null,null,null,null,null,null,null,null,null,null,null,null,null,null,null,null,0.6]
[null,null,null,null,null,null,null,null,null,null,null,null,null,null,null,null,null,null,null,0.61]
[null,null,null,null,null,null,null,null,null,null,null,null,null,null,null,null,null,null,null,0.62]
[null,null,null,null,null,null,null,null,null,null,null,null,null,null,null,null,null,null,null,0.63]
[null,null,null,null,null,null,null,null,null,null,null,null,null,null,null,null,null,null,null,0.64]
[null,null,null,null,null,null,null,null,null,null,null,null,null,null,null,null,null,null,null,0.65]
[null,null,null,null,null,null,null,null,null,null,null,null,null,null,null,null,null,null,null,0.66]
[null,null,null,null,null,null,null,null,null,null,null,null,null,null,null,null,null,null,null,0.67]
[null,null,null,null,null,null,null,null,null,null,null,null,null,null,null,null,null,null,null,0.68]
[null,null,null,null,null,null,null,null,null,null,null,null,null,null,null,null,null,null,null,0.69]
[null,null,null,null,null,null,null,null,null,null,null,null,null,null,null,null,null,null,null,0.7]
[null,null,null,null,null,null,null,null,null,null,null,null,null,null,null,null,null,null,null,0.71]
[null,null,null,null,null,null,null,null,null,null,null,null,null,null,null,null,null,null,null,0.72]
[null,null,null,null,null,null,null,null,null,null,null,null,null,null,null,null,null,null,null,0.73]
[null,null,null,null,null,null,null,null,null,null,null,null,null,null,null,null,null,null,null,0.74]
[null,null,null,null,null,null,null,null,null,null,null,null,null,null,null,null,null,null,null,0.75]
[null,null,null,null,null,null,null,null,null,null,null,null,null,null,null,null,null,null,null,0.76]
[null,null,null,null,null,null,null,null,null,null,null,null,null,null,null,null,null,null,null,0.77]
[null,null,null,null,null,null,null,null,null,null,null,null,null,null,null,null,null,null,null,0.78]
[null,null,null,null,null,null,null,null,null,null,null,null,null,null,null,null,null,null,null,0.79]
[null,null,null,null,null,null,null,null,null,null,null,null,null,null,null,null,null,null,null,0.8]
[null,null,null,null,null,null,null,null,null,null,null,null,null,null,null,null,null,null,null,0.81]
[null,null,null,null,null,null,null,null,null,null,null,null,null,null,null,null,null,null,null,0.82]
[null,null,null,null,null,null,null,null,null,null,null,null,null,null,null,null,null,null,null,0.83]
[null,null,null,null,null,null,null,null,null,null,null,null,null,null,null,null,null,null,null,0.84]
[null,null,null,null,null,null,null,null,null,null,null,null,null,null,null,null,null,null,null,0.85]
[null,null,null,null,null,null,null,null,null,null,null,null,null,null,null,null,null,null,null,0.86]
[null,null,null,null,null,null,null,null,null,null,null,null,null,null,null,null,null,null,null,0.87]
[null,null,null,null,null,null,null,null,null,null,null,null,null,null,null,null,null,null,null,0.88]
[null,null,null,null,null,null,null,null,null,null,null,null,null,null,null,null,null,null,null,0.89]
[null,null,null,null,null,null,null,null,null,null,null,null,null,null,null,null,null,null,null,0.9]
[null,null,null,null,null,null,null,null,null,null,null,null,null,null,null,null,null,null,null,0.91]
[null,null,null,null,null,null,null,null,null,null,null,null,null,null,null,null,null,null,null,0.92]
[null,null,null,null,null,null,null,null,null,null,null,null,null,null,null,null,null,null,null,0.93]
[null,null,null,null,null,null,null,null,null,null,null,null,null,null,null,null,null,null,null,0.94]
[null,null,null,null,null,null,null,null,null,null,null,null,null,null,null,null,null,null,null,0.95]
[null,null,null,null,null,null,null,null,null,null,null,null,null,null,null,null,null,null,null,0.96]
[null,null,null,null,null,null,null,null,null,null,null,null,null,null,null,null,null,null,null,0.97]
[null,null,null,null,null,null,null,null,null,null,null,null,null,null,null,null,null,null,null,0.98]
[null,null,null,null,null,null,null,null,null,null,null,null,null,null,null,null,null,null,null,0.99]
[null,null,null,null,null,null,null,null,null,null,null,null,null,null,null,null,null,null,null,1]

{"sheet":"Multi-residential calculator","index":10,"n_rows":0,"n_cols":0,"rows_kept":0,"cut":false,"hidden":true,"merged":[]}

{"sheet":"Other building type calculator","index":11,"n_rows":168,"n_cols":19,"rows_kept":168,"cut":false,"hidden":true,"merged":[[75,1,75,7],[73,7,73,15],[68,7,68,8],[72,7,72,8],[70,7,70,8],[72,1,72,6],[3,12,3,15],[3,8,3,11],[4,4,4,7],[3,1,3,2],[34,1,36,1],[14,1,16,1],[18,1,20,1],[22,1,24,1],[26,1,28,1],[30,1,32,1],[10,1,10,2],[11,1,11,2],[3,3,3,7],[12,1,12,2],[84,1,84,4],[86,1,86,4],[10,16,21,20],[52,1,52,2],[38,1,40,1],[42,1,44,1],[50,1,50,2],[48,1,48,2],[46,1,46,2],[76,1,76,6],[78,1,78,6],[54,1,54,2],[56,1,56,2],[68,1,68,6],[70,1,70,6],[73,1,73,6]]}
[]
[null,"BREEAM-NOR v6.1 Wat 01 Water consumption: Other building type calculator"]
[]
[{"$f":"IF(OR(Wat01_building_type=\"\",Wat01_building_type=C151),\"→\",\"\")","v":"→"},"Please select the option that best defines the building type being assessed",null,"Please select",null,null,null,null,"Please specify/describe the building type being assessed:",null,null,null,"g",null,null,null,{"$f":"IF(AND(M4=\"\",OR(Wat01_building_type=C163,Wat01_building_type=C162)),\"←\",\"\")","v":""}]
[null,{"$f":"IF(AND(Wat01_building_type=C163,OR(D5=$H$130,D5=\"\")),\"→\",\"\")","v":""},"Are urinals specified in this residential building type?","No","What is the proportion of urinals to WCs (%)",null,null,null,0,{"$f":"IF(AND(Wat01_building_type=C163,I5=\"\"),\"←\",\"\")","v":""}]
[null,{"$f":"IF(AND(Wat01_building_type=C163,OR(D6=$H$130,D6=\"\")),\"→\",\"\")","v":""},"Please confirm the shower/bath arrangement for this residential building type","Shower only"]
[]
[null,"Water consumption - building microcomponents"]
[]
[null,null,null,"WC ","Urinal (2 or more urinals)","Urinal (1 urinal only)","Wash hand basin taps","Showers","Baths","Kitchen taps: kitchenette","Domestic sized washing machines","Domestic sized dishwashers","Kitchen taps: restaurant (pre-rinse nozzles only)","Waste disposal unit (commercial kitchens only)","Commercial sized dishwashers","Commercial or industrial sized washing machines"]
[null,"Component assessed for building type (if specified)",null,{"$f":"IF(D117=\"Applicable\",\"Yes\",\"No\")","v":"Yes"},{"$f":"IF(E117=\"Applicable\", \"Yes\", \"No\")","v":"Yes"},{"$f":"IF(F117=\"Applicable\", \"Yes\", \"No\")","v":"Yes"},{"$f":"IF(G117=\"Applicable\",\"Yes\",\"No\")","v":"Yes"},"Yes",{"$f":"IF(I117=\"Applicable\",\"Yes\",\"No\")","v":"Yes"},"Yes","Yes",{"$f":"IF(L117=\"Applicable\",\"Yes\",\"No\")","v":"Yes"},"Yes","Yes","Yes","Yes","Note: Some water consuming microcomponents covered by BREEAM are typically not present in some building types e.g. no baths will be specified in a law court, and therefore these components do not require assessment under Wat01 using this calculation method. The components applicable are indicated opposite. As a result the credits are assessed and awarded on the basis of the performance specification for the components that could potentially be specified (if the methodology confirms the component is applicable, but that component is not specified, then the user must confirm this in the relative cell opposite).\n\nIn some instances a component may be specified and present but its contribution to overall water consumption may be low, as a result its contribution to achieving BREEAM credits will be low. Likewise, those consuming a significant majority of the water use for a given building type will contribute a greater amount toward achieving BREEAM credits (depending on the component level achieved).This contribution can be checked for each applicable and specified component by referring to the component weighting factors, below. \n\nRefer to table - 8.3 in the BREEAM Technical Guide (section 8.0 Water, Wat01 Methodology section) for the performance of the various water efficient component levels."]
[null,"Please confirm if this component type is specified in the building and will be installed",null,"Please select","Not Specified","Not Specified","Please select","Please select","Not Specified","Please select","Please select","Please select","Please select","Please select","Please select","Please select"]
[null,"Please select the number of different types of specification that you wish to enter for this component type?",null,"Please select",null,null,"Please select","Please select",null,"Please select","Please select","Please select","Please select","Please select","Please select","Please select"]
[null,null,null,{"$f":"IF(D12=$H$142,\"\",IF(AND(D11=$H$131,OR(D12=$H$130,D13=$H$130)),\"↑\",\"\"))","v":"↑"},"","","↑","↑","","↑","↑","↑","↑","↑","↑","↑"]
[null,"Type 1","Water component performance - Type 1"]
[null,null,"Units","litres","litres/bowl/hr","litres/bowl/hr","litres/min","litres/min","litres","litres/min","litres/use","litres/cycle","litres/min","litres/min","litres/rack","litres/kg"]
[null,null,"Please confirm the no. of  type 1 components specified"]
[null,null,null,{"$f":"IF(OR(D$11=$H$132,D$12=$H$142),\"\",IF(D15=$H$130,\"↑\",IF(AND(D$13>1,OR(D15=$H$130,D17=\"\")),\"↑\",\"\")))","v":"↑"},{"$f":"IF(OR(E11=$H$132,E12=$H$142),\"\",IF(E15=$H$130,\"↑\",IF(AND(E13>1,OR(E15=$H$130,E17=\"\")),\"↑\",\"\")))","v":""},"","↑","↑","","↑","↑","↑","↑","↑","↑","↑"]
[null,"Type 2","Water component performance - Type 2"]
[null,null,"Units","litres","litres/bowl/hour","litres/bowl/hour","litres/min","litres/min","litres","litres/min","litres/use","litres/cycle","litres/min","litres/min","litres/rack","litres/kg"]
[null,null,"Please confirm the no. of  type 2 components specified"]
[null,null,null,{"$f":"IF(OR(D$11=$H$132,D$12=$H$142),\"\",IF(AND(D$13>1,OR(D19=$H$130,D21=\"\")),\"↑\",\"\"))","v":"↑"},"","","↑","↑","","↑","↑","↑","↑","↑","↑","↑"]
[null,"Type 3","Water component perfomance - Type 3"]
[null,null,"Units","litres","litres/bowl/hour","litres/bowl/hour","litres/min","litres/min","litres","litres/min","litres/use","litres/cycle","litres/min","litres/min","litres/rack","litres/kg"]
[null,null,"Please confirm the no. of  type 3 components specified"]
[null,null,null,{"$f":"IF(OR(D$11=$H$132,D$12=$H$142),\"\",IF(AND(D$13>2,OR(D23=$H$130,D25=\"\")),\"↑\",\"\"))","v":"↑"},"","","↑","↑","","↑","↑","↑","↑","↑","↑","↑"]
[null,"Type 4","Water component performance - Type 4"]
[null,null,"Units","litres","litres/bowl/hour","litres/bowl/hour","litres/min","litres/min","litres","litres/min","litres/use","litres/cycle","litres/min","litres/min","litres/rack","litres/kg"]
[null,null,"Please confirm the no. of  type 4 components specified"]
[null,null,null,{"$f":"IF(OR(D$11=$H$132,D$12=$H$142),\"\",IF(AND(D$13>3,OR(D27=$H$130,D29=\"\")),\"↑\",\"\"))","v":"↑"},"","","↑","↑","","↑","↑","↑","↑","↑","↑","↑"]
[null,"Type 5","Water component performance - Type 5"]
[null,null,"Units","litres","litres/bowl/hour","litres/bowl/hour","litres/min","litres/min","litres","litres/min","litres/use","litres/cycle","litres/min","litres/min","litres/rack","litres/kg"]
[null,null,"Please confirm the no. of  type 5 components specified"]
[null,null,null,{"$f":"IF(OR(D$11=$H$132,D$12=$H$142),\"\",IF(AND(D$13>4,OR(D31=$H$130,D33=\"\")),\"↑\",\"\"))","v":"↑"},"","","↑","↑","","↑","↑","↑","↑","↑","↑","↑"]
[null,"Type 6","Water component performance - Type 6"]
[null,null,"Units","litres","litres/bowl/hour","litres/bowl/hour","litres/min","litres/min","litres","litres/min","litres/use","litres/cycle","litres/min","litres/min","litres/rack","litres/kg"]
[null,null,"Please confirm the no. of  type 6 components specified"]
[null,null,null,{"$f":"IF(OR(D$11=$H$132,D$12=$H$142),\"\",IF(AND(D$13>5,OR(D35=$H$130,D37=\"\")),\"↑\",\"\"))","v":"↑"},"","","↑","↑","","↑","↑","↑","↑","↑","↑","↑"]
[null,"Type 7","Water component performance - Type 7"]
[null,null,"Units","litres","litres/bowl/hour","litres/bowl/hour","litres/min","litres/min","litres","litres/min","litres/use","litres/cycle","litres/min","litres/min","litres/rack","litres/kg"]
[null,null,"Please confirm the no. of  type 7 components specified"]
[null,null,null,{"$f":"IF(OR(D$11=$H$132,D$12=$H$142),\"\",IF(AND(D$13>7,OR(D39=$H$130,D41=\"\")),\"↑\",\"\"))","v":"↑"},"","","↑","↑","","↑","↑","↑","↑","↑","↑","↑"]
[null,"Type 8","Water component performance - Type 8"]
[null,null,"Units","litres","litres/bowl/hour","litres/bowl/hour","litres/min","litres/min","litres","litres/min","litres/use","litres/cycle","litres/min","litres/min","litres/rack","litres/kg"]
[null,null,"Please confirm the no. of  type 8 components specified"]
[]
[null,"Total number of fittings for water component",null,{"$f":"IF(D13=1,D17,IF(D13=2,D17+D21,IF(D13=3,D17+D21+D25,IF(D13=4,D17+D21+D25+D29,IF(D13=5,D17+D21+D25+D29+D33,IF(D13=6,D17+D21+D25+D29+D33+D37,IF(D13=7,D17+D21+D25+D29+D33+D37+D41,IF(D13=8,D17+D21+D25+D29+D33+D37+D41+D45,\"-\"))))))))","v":"-"},"-","-","-","-","-","-","-","-","-","-","-","-"]
[]
[null,"Averaged water components performance",null,{"$f":"IFERROR(((D15*D17)+(D19*D21)+(D23*D25)+(D27*D29)+(D31*D33)+(D35*D37)+(D39*D41)+(D43*D45))/D47,0)","v":0},0,0,0,0,0,0,0,0,0,0,0,0]
[]
[null,"Level achieved for water component type",null,{"$f":"IF(D47=\"-\",\"-\",IF(D49>D$123,\"-\",(IF(D49>D$124,\"Baseline\",(IF(D49>D$125,$C$124,(IF(D49>D$126,$C$125,(IF(D49>D$127,$C$126,(IF(D49>D$128,$C$127,$C$128))))))))))))","v":"-"},"-","-","-","-","-","-","-","-","-","-","-","-"]
[]
[null,"Component weighting factor for building type",null,{"$f":"D120","v":"N/A"},{"$f":"E120","v":"N/A"},{"$f":"F120","v":"N/A"},{"$f":"G120","v":"N/A"},{"$f":"H120","v":"N/A"},{"$f":"I120","v":"N/A"},"N/A","N/A","N/A","N/A","N/A","N/A","N/A"]
[]
[null,"Contribution to overall component level achieved",null,{"$f":"IF(ISERROR(IF(OR(D11=$H$132,D12=$H$142),\"-\",IF(D53=\"N/A\",\"-\",D51*D53))),\"-\",IF(OR(D11=$H$132,D12=$H$142),\"-\",IF(D53=\"N/A\",\"-\",D51*D53)))","v":"-"},"-","-","-","-","-","-","-","-","-","-","-","-"]
[]
[null,"Overall component level achieved",null,{"$f":"(IF(ISERROR(IF((SUM(D55:P55))<1,$C$123,(SUM(D55:P55)))),C144,IF(ROUND(SUM(D55:P55),3)<1,$C$123,ROUND(SUM(D55:P55),3))))","v":"Baseline"},"Note: for the purpose of awarding credits this figure is rounded down to the nearest whole component level, e.g. if the total from the individual component levels is 0.7, then the component level achieved is 'Baseline', not Level 1."]
[]
[null,"Minimum requirements according to EU taxonomy for sustainable finance"]
[{"$f":"IF(OR(G60=\"\",G60=\"Please select\"),\"→\",\"\")","v":"→"},null,null,null,null,"Do all the installed wash hand basin taps and kitchen taps have a maximum water flow of 6 litres/min?","Please select"]
[{"$f":"IF(OR(G61=\"\",G61=\"Please select\"),\"→\",\"\")","v":"→"},null,null,null,null,"Do all the installed showers have a maximum water flow of 8 litres/min?","Please select"]
["→",null,null,null,null,"Do all WCs, including suites, bowls and flushing cisterns, have a full flush volume of a maximum of 6 litres and a maximum average flush volume of 3,5 litres?","Please select"]
["→",null,null,null,null,"Do all urinals use a maximum of 2 litres/bowl/hour and flushing urinals have a maximum full flush volume of 1 litre? ","Please select"]
[null,null,null,null,null,"Is all the  EU taxonomy requirements for sanitary equipment met?",{"$f":"IF(OR(G60=\"Please select\",G60=\"No\"),\"No\",IF(OR(G61=\"Please Select\",G61=\"No\"),\"No\",IF(OR(G62=\"Please Select\",G62=\"No\"),\"No\",IF(OR(G63=\"Please Select\",G63=\"No\"),\"No\",\"Yes\"))))","v":"No"}]
[]
[]
[null,"Non potable water yield - water recycling"]
[]
[{"$f":"IF(OR(H69=\"\",H69=$H$130),\"→\",\"\")","v":"→"},"Greywater system specified and installed in compliance with BS8525-1:2010 Greywater Systems - Part 1 Code of Practice",null,null,null,null,null,"Please select"]
[]
[{"$f":"IF(OR(H71=\"\",H71=$H$130),\"→\",\"\")","v":"→"},"Rainwater system specified and installed in compliance with BS EN 16941-1:2018 Rainwater Harvesting Systems - Code of practice",null,null,null,null,null,"Please select"]
[]
[{"$f":"IF(OR(H73=\"\",H73=$H$130),\"→\",\"\")","v":"→"},"Other permissible source of non potable recycled water",null,null,null,null,null,"Please select"]
[null,"Please give a brief description of source/system",null,null,null,null,null,"e.g. waste water from building process"]
[]
[null,"Please select from the drop down list below how you would like to assess performance of the specified system(s) and then enter the relevant % opposite:"]
[{"$f":"IF(AND(OR(B77=H130,H77=\"\"),OR(H69=H131,H71=H131,H73=H131)),\"→\",\"\")","v":""},"Please select",null,null,null,null,null,null,"Note: input figure to two decimal places only."]
[]
[null,"BREEAM component level achieved for water recycling ",null,null,null,null,null,{"$f":"IF(H77>=0.75,5,IF(H77>=0.5,4,IF(H77>=0.25,3,IF(OR(H77=0,H77=\"\"),J140,IF(H77<0.25,$J$146)))))","v":"Baseline"},"Note: credits only available for achieving BREEAM component level 4 or 5 in the elemental method."]
[]
[null,"Wat 01 results"]
[]
[null,null,null,null,"Total Wat 01 BREEAM credits achieved, before checking minimum requirements according to EU taxonomy for sustainable finance.",{"$f":"IF(ISERROR(J150),C144,J150)","v":0}]
[]
[null,"Total Wat 01 BREEAM credits achieved",null,null,null,{"$f":"IF(Wat01_building_type=\"Residential - for instance apartment blocks\",\"Not relevant.      See above\",IF(F83=\"Requires building information\",\"Requires building information\",IF(G64=\"Yes\",F83,IF(F83>=1,1,0))))","v":0}]
[]
[null,"Total Wat 01 BREEAM Exemplary credits achieved",null,"Total Wat 01 BREEAM Exemplary credits achieved",null,{"$f":"IF(AND(D51=5,H77>0.95),1,0)","v":0}]
[]
[]
[null,null,"Component weighting factors by building type",2,3,4,5,6,7,8,9,10,11,12,13,14]
[null,null,"Building type","WC","Urinal",null,"Basin taps","Shower","Bath","Staff/residents Kitchen taps","Domestic washing machine","Domestic dishwasher","Kitchen taps (pre-rinse nozzle","Waste disposal","Commercial Kitchen dishwasher","Commercial Washing machine","Total","Units","Information source"]
[null,null,null,36.35,3.5,null,15.42,42,36,4.7699999999999996,"N/A",0.34,4.9400000000000004,4.08,8,49.82,{"$f":"SUM(D92:P92)","v":205.22000000000003},"L/room/day","BD2683 modelled baseline for building type"]
[null,null,"Residential institution - Hotel",{"$f":"D92/$Q$92","v":0.17712698567391091},{"$f":"E92/$Q$92","v":1.7054867946593898E-2},null,{"$f":"G92/$Q$92","v":7.51388753532794E-2},{"$f":"H92/$Q$92","v":0.20465841535912677},{"$f":"I92/$Q$92","v":0.17542149887925151},{"$f":"J92/$Q$92","v":2.3243348601500822E-2},"N/A",{"$f":"L92/$Q$92","v":1.6567586005262645E-3},{"$f":"M92/$Q$92","v":2.407172790176396E-2},{"$f":"N92/$Q$92","v":1.988110320631517E-2},{"$f":"O92/$Q$92","v":3.8982555306500334E-2},{"$f":"P92/$Q$92","v":0.24276386317123083},{"$f":"SUM(D93:P93)","v":0.99999999999999978}]
[null,null,null,{"$f":"D92","v":36.35},{"$f":"E92","v":3.5},null,15.42,42,36,4.7699999999999996,"N/A",0.34,4.9400000000000004,4.08,8,49.82,{"$f":"Q92","v":205.22000000000003},"L/room/day","BD2683 modelled baseline for building type"]
[null,null,"Prisons - Houseblock",{"$f":"D93","v":0.17712698567391091},{"$f":"E93","v":1.7054867946593898E-2},null,7.51388753532794E-2,0.20465841535912677,0.17542149887925151,2.3243348601500822E-2,"N/A",1.6567586005262645E-3,2.407172790176396E-2,1.988110320631517E-2,3.8982555306500334E-2,0.24276386317123083,{"$f":"Q93","v":0.99999999999999978}]
[null,null,null,{"$f":"D92","v":36.35},{"$f":"E92","v":3.5},null,15.42,42,36,4.7699999999999996,"N/A",0.34,4.9400000000000004,4.08,8,49.82,{"$f":"Q92","v":205.22000000000003}]
[null,null,"Healthcare - hospital",{"$f":"D93","v":0.17712698567391091},{"$f":"E93","v":1.7054867946593898E-2},null,7.51388753532794E-2,0.20465841535912677,0.17542149887925151,2.3243348601500822E-2,"N/A",1.6567586005262645E-3,2.407172790176396E-2,1.988110320631517E-2,3.8982555306500334E-2,0.24276386317123083,{"$f":"Q93","v":0.99999999999999978},"See information source","No specific data found by type for healthcare, therefore for hospitals data from hotels has been used as, of all building types with data, this is assumed to reflect most closely the breakdown in consumption between the microcomponent type for hospitals"]
[null,null,null,{"$f":"D112","v":187.98306956201696},{"$f":"E112","v":28.197460434302542},null,121.56238498343762,151.26370997423632,false,68.17519322782482,"N/A",8.5218991534781026,77.449024659550986,28.197460434302542,9.649797570850204,0,{"$f":"Q112","v":681.00000000000011},"See information source"]
[null,null,"Healthcare - GP surgery or health centre/clinic",{"$f":"D113","v":0.27603974972396028},{"$f":"E113","v":4.1405962458594035E-2},null,0.17850570482149428,0.22211998527788002,"N/A",0.10011041589988959,"N/A",1.2513801987486198E-2,0.11372837688627162,4.1405962458594035E-2,1.417004048582996E-2,"N/A",{"$f":"Q113","v":0.99999999999999989},null,"No specific data found by type for healthcare, therefore the same splits in component types as that used for 'other non domestic building type' are used."]
[null,null,null,3.665,0.88500000000000001,null,2.08,"N/A","N/A","N/A","N/A","N/A",5.3999999999999999E-2,"N/A",6.7000000000000004E-2,"N/A",{"$f":"SUM(D100:P100)","v":6.7510000000000003}]
[null,null,"Assembly and leisure - cinema",{"$f":"D100/$Q$100","v":0.54288253592060431},{"$f":"E100/$Q$100","v":0.13109169011998223},null,{"$f":"G100/$Q$100","v":0.30810250333283956},"N/A","N/A","N/A","N/A","N/A",{"$f":"M100/$Q$100","v":7.9988149903717966E-3},"N/A",{"$f":"O100/$Q$100","v":9.9244556362020446E-3},"N/A",0.99999999999999989,null,"BD2683 modelled baseline for building type"]
[null,null,null,3.665,0.88500000000000001,null,2.08,"N/A","N/A","N/A","N/A","N/A",5.3999999999999999E-2,"N/A",6.7000000000000004E-2,"N/A",6.7510000000000003,"Litres/visitor/day"]
[null,null,"Assembly and leisure - theatre, music, concert hall",{"$f":"D100/$Q$100","v":0.54288253592060431},{"$f":"E100/$Q$100","v":0.13109169011998223},null,{"$f":"G100/$Q$100","v":0.30810250333283956},"N/A","N/A","N/A","N/A","N/A",{"$f":"M100/$Q$100","v":7.9988149903717966E-3},"N/A",{"$f":"O100/$Q$100","v":9.9244556362020446E-3},"N/A",0.99999999999999989,null,"BD2683 modelled baseline for building type"]
[null,null,null,44.1,11,null,7.41,74.2,"N/A",5.87,"N/A","N/A",2.4700000000000002,3.63,4,"N/A",152.68,"L/employee or visit/day"]
[null,null,"Assembly and Leisure - sports and recreation",{"$f":"D104/$Q$104","v":0.28883940267225572},{"$f":"E104/$Q$104","v":7.2046109510086456E-2},null,{"$f":"G104/$Q$104","v":4.8532879224521874E-2},{"$f":"H104/$Q$104","v":0.48598375687712864},"N/A",{"$f":"J104/$Q$104","v":3.8446423893109774E-2},"N/A","N/A",{"$f":"M104/$Q$104","v":1.617762640817396E-2},{"$f":"N104/$Q$104","v":2.3775216138328528E-2},{"$f":"O104/$Q$104","v":2.6198585276395073E-2},"N/A",1.0000000000000002,null,"BD2683 modelled baseline for building type. Data for food preparation components has been taken from restaurant data as no specific data for these components in BD2683 for leisure centres."]
[null,null,null,{"$f":"D96*0.4","v":14.540000000000001},{"$f":"E96*0.4","v":1.4000000000000001},null,{"$f":"G96*0.4","v":6.1680000000000001},"N/A","N/A","N/A","N/A","N/A","N/A","N/A",{"$f":"O96*0.4","v":3.2},"N/A",25.308,"L/employee or visitor/day"]
[null,null,"Retail - Bar/Public House only (no restaurant)",{"$f":"D106/$Q$106","v":0.57452189031136403},{"$f":"E106/$Q$106","v":5.5318476371107955E-2},null,{"$f":"G106/$Q$106","v":0.24371740161213845},"N/A","N/A","N/A","N/A","N/A","N/A","N/A",{"$f":"O106/$Q$106","v":0.1264422317053896},"N/A",1,null,"BD2683 modelled 'business as usual' approach. Figures are 40% of corresponding component figures for restaurant use (as indicated by table K3)"]
[null,null,null,{"$f":"D96*0.7","v":25.445},{"$f":"E96*0.7","v":2.4499999999999997},null,{"$f":"G96*0.7","v":10.793999999999999},"N/A","N/A","N/A","N/A","N/A",{"$f":"M96*0.7","v":3.4580000000000002},{"$f":"N96*0.7","v":2.8559999999999999},{"$f":"O96*0.7","v":5.6},"N/A",50.603000000000002,"L/employee or visitor/day"]
[null,null,"Retail - Bar/public house with restaurant",{"$f":"D108/$Q$108","v":0.5028358002489971},{"$f":"E108/$Q$108","v":4.8416101812145521E-2},null,{"$f":"G108/$Q$108","v":0.21330751141236681},"N/A","N/A","N/A","N/A","N/A",{"$f":"M108/$Q$108","v":6.8335869414856823E-2},{"$f":"N108/$Q$108","v":5.6439341541015348E-2},{"$f":"O108/$Q$108","v":0.11066537557061833},"N/A",0.99999999999999989,null,"BD2683 modelled 'business as usual' approach. Figures are 70% of corresponding component figures for restaurant use (as indicated by table K3)"]
[null,null,null,{"$f":"D112","v":187.98306956201696},{"$f":"E112","v":28.197460434302542},null,121.56238498343762,151.26370997423632,false,68.17519322782482,"N/A",8.5218991534781026,77.449024659550986,28.197460434302542,9.649797570850204,0,{"$f":"Q112","v":681.00000000000011},"See information source"]
[null,null,"Public - Law Court",{"$f":"D113","v":0.27603974972396028},{"$f":"E113","v":4.1405962458594035E-2},null,0.17850570482149428,0.22211998527788002,"N/A",0.10011041589988959,"N/A",1.2513801987486198E-2,0.11372837688627162,4.1405962458594035E-2,1.417004048582996E-2,"N/A",{"$f":"Q113","v":0.99999999999999989},null,"No specific data available/found for this building type, therefore it uses the same ratios as that for 'Other non-domestic building type'"]
[null,null,null,187.98306956201696,28.197460434302542,null,121.56238498343762,151.26370997423632,{"$f":"I114","v":false},68.17519322782482,"N/A",8.5218991534781026,77.449024659550986,28.197460434302542,9.649797570850204,0,{"$f":"SUM(D112:P112)","v":681.00000000000011},"Mega litres/day","WC, urinals, shower, basin taps and kitchen taps are sourced from BNWat22."]
[null,null,"Other Non-Domestic Building Type",{"$f":"SUM(D112/$Q$112)","v":0.27603974972396028},{"$f":"SUM(E112/$Q$112)","v":4.1405962458594035E-2},null,{"$f":"SUM(G112/$Q$112)","v":0.17850570482149428},{"$f":"SUM(H112/$Q$112)","v":0.22211998527788002},"N/A",{"$f":"SUM(J112/$Q$112)","v":0.10011041589988959},"N/A",{"$f":"SUM(L112/$Q$112)","v":1.2513801987486198E-2},{"$f":"SUM(M112/$Q$112)","v":0.11372837688627162},{"$f":"SUM(N112/$Q$112)","v":4.1405962458594035E-2},{"$f":"SUM(O112/$Q$112)","v":1.417004048582996E-2},"N/A",{"$f":"SUM(D113:P113)","v":0.99999999999999989}]
[null,null,null,{"$f":"IF(E114=C131,2103,2103-E114)","v":2103},{"$f":"IF(D5=H131,(2103*0.5/4)*3*I5,\"N/A\")","v":"N/A"},null,1818,{"$f":"IF(D6=C167,2151,IF(D6=C166,\"N/A\",IF(D6=C168,2151*0.89)))","v":false},{"$f":"IF(D6=C166,2151,IF(D6=C167,\"N/A\",IF(D6=C168,2151*0.11)))","v":false},1191,841,95,{"$f":"8199*M93","v":197.36409706656269},{"$f":"8199*N93","v":163.00516518857808},{"$f":"8199*O93","v":319.61797095799625},{"$f":"8199*P93","v":1990.4209141409217},{"$f":"SUM(D114:P114)","v":8718.4081473540591},"Mega litres/day","See comment."]
[null,null,"Residential - for instance apartment blocks",{"$f":"D114/$Q$114","v":0.24121375880277379},{"$f":"IF(E114=\"N/A\",\"N/A\",E114/$Q$114)","v":"N/A"},null,{"$f":"G114/$Q$114","v":0.20852430504205552},{"$f":"IF(D6=C166,\"N/A\",H114/$Q$114)","v":0},{"$f":"IF(D6=C167,\"N/A\",I114/$Q$114)","v":0},{"$f":"J114/$Q$114","v":0.13660750676847533},9.6462563553558145E-2,1.0896484586906091E-2,2.2637629912573034E-2,1.8696666000667606E-2,3.6660129413073735E-2,0.2283009559199167,{"$f":"SUM(D115:P115)","v":1}]
[null,null,null,null,null,null,null,null,null,null,null,null,null,null,null,null,null,null,"Note: The Baseline scenario utilises devices that comply with current building regulations."]
[null,null,null,{"$f":"IF(ISERROR(IF(OR(Wat01_building_type=\"\",Wat01_building_type=$H$130),\"Applicable\",IF(VLOOKUP(Wat01_building_type,$C$91:$P$115,2,FALSE)=\"N/A\",\"Not Applicable\",\"Applicable\"))),\"-\",IF(OR(Wat01_building_type=\"\",Wat01_building_type=$H$130),\"Applicable\",IF(VLOOKUP(Wat01_building_type,$C$91:$P$115,2,FALSE)=\"N/A\",\"Not Applicable\",\"Applicable\")))","v":"Applicable"},{"$f":"IF(ISERROR(IF(OR(Wat01_building_type=\"\",Wat01_building_type=$H$130),\"Applicable\",IF(VLOOKUP(Wat01_building_type,$C$91:$P$115,3,FALSE)=\"N/A\",\"Not Applicable\",\"Applicable\"))),\"-\",IF(OR(Wat01_building_type=\"\",Wat01_building_type=$H$130),\"Applicable\",IF(VLOOKUP(Wat01_building_type,$C$91:$P$115,3,FALSE)=\"N/A\",\"Not Applicable\",\"Applicable\")))","v":"Applicable"},{"$f":"IF(ISERROR(IF(OR(Wat01_building_type=\"\",Wat01_building_type=$H$130),\"Applicable\",IF(VLOOKUP(Wat01_building_type,$C$91:$P$115,3,FALSE)=\"N/A\",\"Not Applicable\",\"Applicable\"))),\"-\",IF(OR(Wat01_building_type=\"\",Wat01_building_type=$H$130),\"Applicable\",IF(VLOOKUP(Wat01_building_type,$C$91:$P$115,3,FALSE)=\"N/A\",\"Not Applicable\",\"Applicable\")))","v":"Applicable"},{"$f":"IF(ISERROR(IF(OR(Wat01_building_type=\"\",Wat01_building_type=$H$130),\"Applicable\",IF(VLOOKUP(Wat01_building_type,$C$91:$P$115,5,FALSE)=\"N/A\",\"Not Applicable\",\"Applicable\"))),\"-\",IF(OR(Wat01_building_type=\"\",Wat01_building_type=$H$130),\"Applicable\",IF(VLOOKUP(Wat01_building_type,$C$91:$P$115,5,FALSE)=\"N/A\",\"Not Applicable\",\"Applicable\")))","v":"Applicable"},{"$f":"IF(ISERROR(IF(OR(Wat01_building_type=\"\",Wat01_building_type=$H$130),\"Applicable\",IF(VLOOKUP(Wat01_building_type,$C$91:$P$115,6,FALSE)=\"N/A\",\"Not Applicable\",\"Applicable\"))),\"-\",IF(OR(Wat01_building_type=\"\",Wat01_building_type=$H$130),\"Applicable\",IF(VLOOKUP(Wat01_building_type,$C$91:$P$115,6,FALSE)=\"N/A\",\"Not Applicable\",\"Applicable\")))","v":"Applicable"},{"$f":"IF(ISERROR(IF(OR(Wat01_building_type=\"\",Wat01_building_type=$H$130),\"Applicable\",IF(VLOOKUP(Wat01_building_type,$C$91:$P$115,7,FALSE)=\"N/A\",\"Not Applicable\",\"Applicable\"))),\"-\",IF(OR(Wat01_building_type=\"\",Wat01_building_type=$H$130),\"Applicable\",IF(VLOOKUP(Wat01_building_type,$C$91:$P$115,7,FALSE)=\"N/A\",\"Not Applicable\",\"Applicable\")))","v":"Applicable"},{"$f":"IF(ISERROR(IF(OR(Wat01_building_type=\"\",Wat01_building_type=$H$130),\"Applicable\",IF(VLOOKUP(Wat01_building_type,$C$91:$P$115,8,FALSE)=\"N/A\",\"Not Applicable\",\"Applicable\"))),\"-\",IF(OR(Wat01_building_type=\"\",Wat01_building_type=$H$130),\"Applicable\",IF(VLOOKUP(Wat01_building_type,$C$91:$P$115,8,FALSE)=\"N/A\",\"Not Applicable\",\"Applicable\")))","v":"Applicable"},{"$f":"IF(ISERROR(IF(OR(Wat01_building_type=\"\",Wat01_building_type=$H$130),\"Applicable\",IF(VLOOKUP(Wat01_building_type,$C$91:$P$115,9,FALSE)=\"N/A\",\"Not Applicable\",\"Applicable\"))),\"-\",IF(OR(Wat01_building_type=\"\",Wat01_building_type=$H$130),\"Applicable\",IF(VLOOKUP(Wat01_building_type,$C$91:$P$115,9,FALSE)=\"N/A\",\"Not Applicable\",\"Applicable\")))","v":"Applicable"},{"$f":"IF(ISERROR(IF(OR(Wat01_building_type=\"\",Wat01_building_type=$H$130),\"Applicable\",IF(VLOOKUP(Wat01_building_type,$C$91:$P$115,10,FALSE)=\"N/A\",\"Not Applicable\",\"Applicable\"))),\"-\",IF(OR(Wat01_building_type=\"\",Wat01_building_type=$H$130),\"Applicable\",IF(VLOOKUP(Wat01_building_type,$C$91:$P$115,10,FALSE)=\"N/A\",\"Not Applicable\",\"Applicable\")))","v":"Applicable"},{"$f":"IF(ISERROR(IF(OR(Wat01_building_type=\"\",Wat01_building_type=$H$130),\"Applicable\",IF(VLOOKUP(Wat01_building_type,$C$91:$P$115,11,FALSE)=\"N/A\",\"Not Applicable\",\"Applicable\"))),\"-\",IF(OR(Wat01_building_type=\"\",Wat01_building_type=$H$130),\"Applicable\",IF(VLOOKUP(Wat01_building_type,$C$91:$P$115,11,FALSE)=\"N/A\",\"Not Applicable\",\"Applicable\")))","v":"Applicable"},{"$f":"IF(ISERROR(IF(OR(Wat01_building_type=\"\",Wat01_building_type=$H$130),\"Applicable\",IF(VLOOKUP(Wat01_building_type,$C$91:$P$115,12,FALSE)=\"N/A\",\"Not Applicable\",\"Applicable\"))),\"-\",IF(OR(Wat01_building_type=\"\",Wat01_building_type=$H$130),\"Applicable\",IF(VLOOKUP(Wat01_building_type,$C$91:$P$115,12,FALSE)=\"N/A\",\"Not Applicable\",\"Applicable\")))","v":"Applicable"},{"$f":"IF(ISERROR(IF(OR(Wat01_building_type=\"\",Wat01_building_type=$H$130),\"Applicable\",IF(VLOOKUP(Wat01_building_type,$C$91:$P$115,13,FALSE)=\"N/A\",\"Not Applicable\",\"Applicable\"))),\"-\",IF(OR(Wat01_building_type=\"\",Wat01_building_type=$H$130),\"Applicable\",IF(VLOOKUP(Wat01_building_type,$C$91:$P$115,13,FALSE)=\"N/A\",\"Not Applicable\",\"Applicable\")))","v":"Applicable"},{"$f":"IF(ISERROR(IF(OR(Wat01_building_type=\"\",Wat01_building_type=$H$130),\"Applicable\",IF(VLOOKUP(Wat01_building_type,$C$91:$P$115,14,FALSE)=\"N/A\",\"Not Applicable\",\"Applicable\"))),\"-\",IF(OR(Wat01_building_type=\"\",Wat01_building_type=$H$130),\"Applicable\",IF(VLOOKUP(Wat01_building_type,$C$91:$P$115,14,FALSE)=\"N/A\",\"Not Applicable\",\"Applicable\")))","v":"Applicable"},null,null,"Note: water consumption from ice makers in restaurants, hotels and bars not included in the data"]
[]
[null,null,"Component weightings for selected building type",{"$f":"IF(AND(D11=$H$131,D12=$H$141),VLOOKUP(Wat01_building_type,$C$91:$P$115,2,FALSE),\"N/A\")","v":"N/A"},{"$f":"IF(AND(E11=$H$131,E12=$H$141),VLOOKUP(Wat01_building_type,$C$91:$P$115,3,FALSE),\"N/A\")","v":"N/A"},{"$f":"IF(AND(F11=$H$131,F12=$H$141),VLOOKUP(Wat01_building_type,$C$91:$P$115,3,FALSE),\"N/A\")","v":"N/A"},{"$f":"IF(AND(G11=$H$131,G12=$H$141),VLOOKUP(Wat01_building_type,$C$91:$P$115,5,FALSE),\"N/A\")","v":"N/A"},{"$f":"IF(AND(H11=$H$131,H12=$H$141),VLOOKUP(Wat01_building_type,$C$91:$P$115,6,FALSE),\"N/A\")","v":"N/A"},{"$f":"IF(AND(I11=$H$131,I12=$H$141),VLOOKUP(Wat01_building_type,$C$91:$P$115,7,FALSE),\"N/A\")","v":"N/A"},{"$f":"IF(AND(J11=$H$131,J12=$H$141),VLOOKUP(Wat01_building_type,$C$91:$P$115,8,FALSE),\"N/A\")","v":"N/A"},{"$f":"IF(AND(K11=$H$131,K12=$H$141),VLOOKUP(Wat01_building_type,$C$91:$P$115,9,FALSE),\"N/A\")","v":"N/A"},{"$f":"IF(AND(L11=$H$131,L12=$H$141),VLOOKUP(Wat01_building_type,$C$91:$P$115,10,FALSE),\"N/A\")","v":"N/A"},{"$f":"IF(AND(M11=$H$131,M12=$H$141),VLOOKUP(Wat01_building_type,$C$91:$P$115,11,FALSE),\"N/A\")","v":"N/A"},{"$f":"IF(AND(N11=$H$131,N12=$H$141),VLOOKUP(Wat01_building_type,$C$91:$P$115,12,FALSE),\"N/A\")","v":"N/A"},{"$f":"IF(AND(O11=$H$131,O12=$H$141),VLOOKUP(Wat01_building_type,$C$91:$P$115,13,FALSE),\"N/A\")","v":"N/A"},{"$f":"IF(AND(P11=$H$131,P12=$H$141),VLOOKUP(Wat01_building_type,$C$91:$P$115,14,FALSE),\"N/A\")","v":"N/A"},{"$f":"SUM(D119:P119)","v":0}]
[null,null,"Component weightings adjusted for components specified",{"$f":"IF(D119=\"N/A\",\"N/A\",D119/$Q$119)","v":"N/A"},{"$f":"IF(E119=\"N/A\",\"N/A\",E119/$Q$119)","v":"N/A"},{"$f":"IF(F119=\"N/A\",\"N/A\",F119/$Q$119)","v":"N/A"},"N/A","N/A","N/A","N/A","N/A","N/A","N/A","N/A","N/A","N/A",{"$f":"SUM(D120:P120)","v":0}]
[]
[null,null,null,{"$f":"IF($D$117=\"Applicable\",\"Please select\",\"Not Applicable\")","v":"Please select"},{"$f":"IF($E$117=\"Applicable\",\"Please select\",\"Not Applicable\")","v":"Please select"},{"$f":"IF($E$117=\"Applicable\",\"Please select\",\"Not Applicable\")","v":"Please select"},{"$f":"IF($G$117=\"Applicable\",\"Please select\",\"Not Applicable\")","v":"Please select"},{"$f":"IF($H$117=\"Applicable\",\"Please select\",\"Not Applicable\")","v":"Please select"},{"$f":"IF($I$117=\"Applicable\",\"Please select\",\"Not Applicable\")","v":"Please select"},{"$f":"IF($J$117=\"Applicable\",\"Please select\",\"Not Applicable\")","v":"Please select"},{"$f":"IF($K$117=\"Applicable\",\"Please select\",\"Not Applicable\")","v":"Please select"},{"$f":"IF($L$117=\"Applicable\",\"Please select\",\"Not Applicable\")","v":"Please select"},{"$f":"IF($M$117=\"Applicable\",\"Please select\",\"Not Applicable\")","v":"Please select"},{"$f":"IF($N$117=\"Applicable\",\"Please select\",\"Not Applicable\")","v":"Please select"},{"$f":"IF($O$117=\"Applicable\",\"Please select\",\"Not Applicable\")","v":"Please select"},{"$f":"IF($P$117=\"Applicable\",\"Please select\",\"Not Applicable\")","v":"Please select"}]
[null,null,"Baseline",{"$f":"IF($D$117=\"Applicable\",6,\"\")","v":6},{"$f":"IF($E$117=\"Applicable\",7.5,\"\")","v":7.5},{"$f":"IF($E$117=\"Applicable\",10,\"\")","v":10},{"$f":"IF($G$117=\"Applicable\",10,\"\")","v":10},{"$f":"IF($H$117=\"Applicable\",12,\"\")","v":12},{"$f":"IF($I$117=\"Applicable\",200,\"\")","v":200},{"$f":"IF($J$117=\"Applicable\",10,\"\")","v":10},{"$f":"IF($K$117=\"Applicable\",90,\"\")","v":90},{"$f":"IF($L$117=\"Applicable\",17,\"\")","v":17},{"$f":"IF($M$117=\"Applicable\",10.3,\"\")","v":10.3},{"$f":"IF($N$117=\"Applicable\",17,\"\")","v":17},{"$f":"IF($O$117=\"Applicable\",8,\"\")","v":8},{"$f":"IF($P$117=\"Applicable\",14,\"\")","v":14}]
[null,null,1,{"$f":"IF($D$117=\"Applicable\",4.5,\"\")","v":4.5},{"$f":"IF($E$117=\"Applicable\",6,\"\")","v":6},{"$f":"IF($E$117=\"Applicable\",8,\"\")","v":8},{"$f":"IF($G$117=\"Applicable\",8,\"\")","v":8},{"$f":"IF($H$117=\"Applicable\",10,\"\")","v":10},{"$f":"IF($I$117=\"Applicable\",180,\"\")","v":180},{"$f":"IF($J$117=\"Applicable\",8,\"\")","v":8},{"$f":"IF($K$117=\"Applicable\",60,\"\")","v":60},{"$f":"IF($L$117=\"Applicable\",13,\"\")","v":13},{"$f":"IF($M$117=\"Applicable\",9,\"\")","v":9},{"$f":"IF($N$117=\"Applicable\",17,\"\")","v":17},{"$f":"IF($O$117=\"Applicable\",7,\"\")","v":7},{"$f":"IF($P$117=\"Applicable\",12,\"\")","v":12}]
[null,null,2,{"$f":"IF($D$117=\"Applicable\",4,\"\")","v":4},{"$f":"IF($E$117=\"Applicable\",3,\"\")","v":3},{"$f":"IF($E$117=\"Applicable\",4,\"\")","v":4},{"$f":"IF($G$117=\"Applicable\",6,\"\")","v":6},{"$f":"IF($H$117=\"Applicable\",8,\"\")","v":8},{"$f":"IF($I$117=\"Applicable\",160,\"\")","v":160},{"$f":"IF($J$117=\"Applicable\",7,\"\")","v":7},{"$f":"IF($K$117=\"Applicable\",50,\"\")","v":50},{"$f":"IF($L$117=\"Applicable\",13,\"\")","v":13},{"$f":"IF($M$117=\"Applicable\",8.3,\"\")","v":8.3000000000000007},{"$f":"IF($N$117=\"Applicable\",0,\"\")","v":0},{"$f":"IF($O$117=\"Applicable\",6,\"\")","v":6},{"$f":"IF($P$117=\"Applicable\",10,\"\")","v":10}]
[null,null,3,{"$f":"IF($D$117=\"Applicable\",3.75,\"\")","v":3.75},{"$f":"IF($E$117=\"Applicable\",1.5,\"\")","v":1.5},{"$f":"IF($E$117=\"Applicable\",2,\"\")","v":2},{"$f":"IF($G$117=\"Applicable\",5,\"\")","v":5},{"$f":"IF($H$117=\"Applicable\",6,\"\")","v":6},{"$f":"IF($I$117=\"Applicable\",140,\"\")","v":140},{"$f":"IF($J$117=\"Applicable\",6,\"\")","v":6},{"$f":"IF($K$117=\"Applicable\",40,\"\")","v":40},{"$f":"IF($L$117=\"Applicable\",12,\"\")","v":12},{"$f":"IF($M$117=\"Applicable\",7.3,\"\")","v":7.3},{"$f":"IF($N$117=\"Applicable\",0,\"\")","v":0},{"$f":"IF($O$117=\"Applicable\",5,\"\")","v":5},{"$f":"IF($P$117=\"Applicable\",7.5,\"\")","v":7.5}]
[null,null,4,{"$f":"IF($D$117=\"Applicable\",3.5,\"\")","v":3.5},{"$f":"IF($E$117=\"Applicable\",0.75,\"\")","v":0.75},{"$f":"IF($E$117=\"Applicable\",1,\"\")","v":1},{"$f":"IF($G$117=\"Applicable\",4,\"\")","v":4},{"$f":"IF($H$117=\"Applicable\",5,\"\")","v":5},{"$f":"IF($I$117=\"Applicable\",120,\"\")","v":120},{"$f":"IF($J$117=\"Applicable\",5,\"\")","v":5},{"$f":"IF($K$117=\"Applicable\",35,\"\")","v":35},{"$f":"IF($L$117=\"Applicable\",11,\"\")","v":11},{"$f":"IF($M$117=\"Applicable\",6.3,\"\")","v":6.3},{"$f":"IF($N$117=\"Applicable\",0,\"\")","v":0},{"$f":"IF($O$117=\"Applicable\",4,\"\")","v":4},{"$f":"IF($P$117=\"Applicable\",5,\"\")","v":5}]
[null,null,5,{"$f":"IF($D$117=\"Applicable\",3,\"\")","v":3},{"$f":"IF($E$117=\"Applicable\",0,\"\")","v":0},{"$f":"IF($E$117=\"Applicable\",0,\"\")","v":0},{"$f":"IF($G$117=\"Applicable\",3,\"\")","v":3},{"$f":"IF($H$117=\"Applicable\",3.5,\"\")","v":3.5},{"$f":"IF($I$117=\"Applicable\",100,\"\")","v":100},{"$f":"IF($J$117=\"Applicable\",5,\"\")","v":5},{"$f":"IF($K$117=\"Applicable\",30,\"\")","v":30},{"$f":"IF($L$117=\"Applicable\",10,\"\")","v":10},{"$f":"IF($M$117=\"Applicable\",6,\"\")","v":6},{"$f":"IF($N$117=\"Applicable\",0,\"\")","v":0},{"$f":"IF($O$117=\"Applicable\",3,\"\")","v":3},{"$f":"IF($P$117=\"Applicable\",4.5,\"\")","v":4.5}]
[]
[null,null,{"$f":"COUNTIF(D15:D69,D122)","v":0},null,null,null,null,"Please select"]
[null,null,"N/A",null,null,null,null,"Yes",null,"Overall Component level","Credits"]
[null,null,null,null,null,null,null,"No",null,"Baseline",0,1,2]
[null,null,"Please select",null,null,null,null,"System not specified",null,1,1,2,3]
[null,null,1,null,null,null,null,null,null,2,2,3,4]
[null,null,2,null,null,null,null,{"$f":"IF(Wat01_building_type=C163,\"Please select\",\"N/A\")","v":"N/A"},null,3,3,4,5]
[null,null,3,null,null,null,null,{"$f":"IF(Wat01_building_type=C163,\"Yes\",\"N/A\")","v":"N/A"},null,4,3,4,5]
[null,null,4,null,null,null,null,{"$f":"IF(Wat01_building_type=C163,\"No\",\"N/A\")","v":"N/A"},null,5,4,5,5]
[null,null,5]
[null,null,6,null,null,null,null,null,null,"Greywater/rainwater component level","Credits"]
[null,null,7,null,null,null,null,"Please select",null,"Baseline",0]
[null,null,8,null,null,null,null,"Specified",null,1,0]
[null,null,null,null,null,null,null,"Not Specified",null,2,0]
[null,null,null,null,null,null,null,null,null,3,0]
[null,null,"Requires building information",null,null,null,null,null,null,4,1]
[null,null,null,null,null,null,null,null,null,5,2]
[null,null,"Please select",null,null,null,null,null,null,"Up to level 2",0]
[null,null,"Actual/equivalent % of the building's flushing demand to be met using recycled non potable water from the above system(s)"]
[null,null,"Actual % of the total rainwater run-off from the roof catchment area collected and used to meet flushing/other permissible demand",null,null,null,null,null,"Component credits",{"$f":"VLOOKUP(D57,J132:K137,2,TRUE)","v":0}]
[null,null,"Actual % of the total waste water from taps and showers collected and recycled to meet flushing/other permissible demand",null,null,null,null,null,"Water recycling credits",{"$f":"VLOOKUP(H79,J140:K146,2,TRUE)","v":0}]
[null,null,null,null,null,null,null,null,"Total",{"$f":"IF(SUM(J148+J149)>5,5,SUM(J148+J149))","v":0},"Note: 5 credits is the maximum"]
[null,null,"Please select"]
[null,null,"Healthcare - Hospital"]
[null,null,"Healthcare - GP surgery or health centre/clinic"]
[null,null,"Prisons - Houseblock"]
[null,null,"Public - Law Court"]
[null,null,"Residential Institution - Hotel"]
[null,null,"Assembly and Leisure - Cinema"]
[null,null,"Assembly and Leisure - Theatre, Music, Concert Hall"]
[null,null,"Assembly and Leisure - Sports and Recreation"]
[null,null,"Retail - Bar/Public House only (no restaurant)"]
[null,null,"Retail - Bar/Public House with restaurant"]
[null,null,"Other Non-Domestic Building Type"]
[null,null,"Residential - for instance apartment blocks"]
[]
[null,null,{"$f":"IF(Wat01_building_type=C163,\"Please select\",\"N/A\")","v":"N/A"}]
[null,null,{"$f":"IF(Wat01_building_type=C163,\"Bath only\",\"N/A\")","v":"N/A"}]
[null,null,{"$f":"IF(Wat01_building_type=C163,\"Shower only\",\"N/A\")","v":"N/A"}]
[null,null,{"$f":"IF(Wat01_building_type=C163,\"Bath and shower\",\"N/A\")","v":"N/A"}]

{"sheet":"Average flow rate calculator","index":12,"n_rows":101,"n_cols":9,"rows_kept":101,"cut":false,"hidden":false,"merged":[[5,3,5,7],[7,3,7,7],[16,2,16,3],[23,1,23,2],[5,1,5,2],[11,1,11,3],[12,2,12,3],[13,2,13,3],[14,2,14,3],[15,2,15,3],[51,2,51,3],[52,2,52,3],[53,2,53,3],[48,1,48,3],[41,2,41,3],[49,2,49,3],[50,2,50,3],[40,2,40,3],[7,1,7,2],[36,1,36,3],[37,2,37,3],[38,2,38,3],[39,2,39,3],[95,2,95,3],[76,1,76,3],[77,2,77,3],[78,2,78,3],[79,2,79,3],[80,2,80,3],[81,2,81,3],[90,1,90,3],[91,2,91,3],[92,2,92,3],[93,2,93,3],[94,2,94,3],[62,1,62,3],[63,2,63,3],[64,2,64,3],[65,2,65,3],[67,2,67,3],[66,2,66,3]]}
[]
[null,"BREEAM-NOR 6.1 Wat 01 Water consumption: Average flow rate calculator"]
[]
[null,"Building details"]
[]
[null,"Building name",null,{"$f":"IF('User Instructions'!D8:F8=\"\",\"\",'User Instructions'!D8:F8)","v":""}]
[]
[null,"BRE assessment reference no.",null,{"$f":"IF('User Instructions'!D10:F10=\"\",\"\",'User Instructions'!D10:F10)","v":""}]
[]
[null,"WCs"]
[]
[null,"WC type",null,null,"Specification\neffective flush volume (litres)","Quantity (no.)",null,"Total per fitting type"]
[null,1,null,null,null,null,null,{"$f":"E13*F13","v":0}]
[null,2,null,null,null,null,null,{"$f":"E14*F14","v":0}]
[null,3,null,null,null,null,null,{"$f":"E15*F15","v":0}]
[null,4,null,null,null,null,null,{"$f":"E16*F16","v":0}]
[null,5,null,null,null,null,null,{"$f":"E17*F17","v":0}]
[null,null,null,null,"Total",{"$f":"SUM(F13:F17)","v":0},null,{"$f":"SUM(H13:H17)","v":0}]
[]
[null,null,null,null,null,"Average effective flushing volume (litres)",null,{"$f":"IF(ISERROR(H18/F18),\"\",H18/F18)","v":""},{"$f":"IF(F18=0,\"\",\"Enter this average component consumption figure in to the relevant component specification of the water consumption calculator\")","v":""}]
[]
[null,"Urinals"]
[null,"Urinals - automatically operated flushing cisterns"]
[null,"Urinal flushing system type",null,"Specification\ncistern capacity (litres)","Flushing frequency (flushes/hr)","Quantity (no.)",null,"Total per fitting type"]
[null,1,null,null,null,null,{"$f":"E25*F25","v":0},{"$f":"D25*F25","v":0}]
[null,2,null,null,null,null,{"$f":"E26*F26","v":0},{"$f":"D26*F26","v":0}]
[null,3,null,null,null,null,{"$f":"E27*F27","v":0},{"$f":"D27*F27","v":0}]
[null,4,null,null,null,null,{"$f":"E28*F28","v":0},{"$f":"D28*F28","v":0}]
[null,5,null,null,null,null,{"$f":"E29*F29","v":0},{"$f":"D29*F29","v":0}]
[null,null,null,null,null,null,{"$f":"SUM(G25:G29)","v":0},{"$f":"SUM(H25:H29)","v":0}]
[]
[null,null,null,null,null,"Average cistern capacity (litres)",null,{"$f":"IF(ISERROR(H30/H33),\"\",H30/H33)","v":""},{"$f":"IF(H33=0,\"\",\"Enter this average component consumption figure in to the relevant component specification of the water consumption calculator\")","v":""}]
[null,null,null,null,null,"No. of cisterns",null,{"$f":"SUM(F25:F29)","v":0},{"$f":"IF(H33=0,\"\",\"Enter this figure in to the 'No. of cisterns' cell in of the water consumption calculator\")","v":""}]
[null,null,null,null,null,"Average flushing frequency (flushes/hour)",null,{"$f":"IF(ISERROR(G30/H33),\"\",G30/H33)","v":""},{"$f":"IF(H33=0,\"\",\"Enter this figure in to the 'flushing frequency/hour' cell in of the water consumption calculator\")","v":""}]
[]
[null,"Urinals - Manual or automatically operated pressure flushing valves"]
[null,"Urinal flushing system type",null,null,"Specification\nflush volume (litres)","Quantity (no.)",null,"Total per fitting type"]
[null,1,null,null,null,null,null,{"$f":"E38*F38","v":0}]
[null,2,null,null,null,null,null,{"$f":"E39*F39","v":0}]
[null,3,null,null,null,null,null,{"$f":"E40*F40","v":0}]
[null,4,null,null,null,null,null,{"$f":"E41*F41","v":0}]
[null,5,null,null,null,null,null,{"$f":"E42*F42","v":0}]
[null,null,null,null,"Total",{"$f":"SUM(F38:F42)","v":0},null,{"$f":"SUM(H38:H42)","v":0}]
[]
[null,null,null,null,null,"Average flush volume (litres)",null,{"$f":"IF(ISERROR(H43/F43),\"\",H43/F43)","v":""},{"$f":"IF(F43=0,\"\",\"Enter this average component consumption figure in to the relevant component specification of the water consumption calculator\")","v":""}]
[]
[null,"Taps (excluding kitchen sink taps)"]
[]
[null,"Tap type",null,null,"Specification\nflow rate (litres/minute)","Quantity (no.)",null,"Total per fitting type"]
[null,1,null,null,null,null,null,{"$f":"E50*F50","v":0}]
[null,2,null,null,null,null,null,{"$f":"E51*F51","v":0}]
[null,3,null,null,null,null,null,{"$f":"E52*F52","v":0}]
[null,4,null,null,null,null,null,{"$f":"E53*F53","v":0}]
[null,5,null,null,null,null,null,{"$f":"E54*F54","v":0}]
[null,null,null,null,"Total",{"$f":"SUM(F50:F54)","v":0},null,{"$f":"SUM(H50:H54)","v":0}]
[]
[null,null,null,null,null,"Average flow rate (litres/min)",null,{"$f":"IF(ISERROR(H55/F55),\"\",H55/F55)","v":""},{"$f":"IF(F55=0,\"\",IF(H57>H59,\"Enter this average component consumption figure in to the relevant component specification of the water consumption calculator\",\"\"))","v":""}]
[]
[null,null,null,null,null,"Proportionate flow rate (litres/min)",null,{"$f":"MAX(E50:E54)*0.7","v":0},{"$f":"IF(F55=0,\"\",IF(H59>H57,\"Enter this average component consumption figure in to the relevant component specification of the water consumption calculator\",\"\"))","v":""}]
[]
[null,"Kitchen sink taps"]
[]
[null,"Tap type",null,null,"Specification\nflow rate (litres/minute)","Quantity (no.)",null,"Total per fitting type"]
[null,1,null,null,null,null,null,{"$f":"E64*F64","v":0}]
[null,2,null,null,null,null,null,{"$f":"E65*F65","v":0}]
[null,3,null,null,null,null,null,{"$f":"E66*F66","v":0}]
[null,4,null,null,null,null,null,{"$f":"E67*F67","v":0}]
[null,5,null,null,null,null,null,{"$f":"E68*F68","v":0}]
[null,null,null,null,"Total",{"$f":"SUM(F64:F68)","v":0},null,{"$f":"SUM(H64:H68)","v":0}]
[]
[null,null,null,null,null,"Average flow rate (litres/min)",null,{"$f":"IF(ISERROR(H69/F69),\"\",H69/F69)","v":""},{"$f":"IF(F69=0,\"\",IF(H71>H73,\"Enter this average component consumption figure in to the relevant component specification of the water consumption calculator\",\"\"))","v":""}]
[]
[null,null,null,null,null,"Proportionate flow rate (litres/min)",null,{"$f":"MAX(E64:E68)*0.7","v":0},{"$f":"IF(F69=0,\"\",IF(H73>H71,\"Enter this average component consumption figure in to the relevant component specification of the water consumption calculator\",\"\"))","v":""}]
[]
[null,"Showers"]
[]
[null,"Shower type",null,null,"Specification\nflow rate (litres/minute)","Quantity (no.)",null,"Total per fitting type"]
[null,1,null,null,null,null,null,{"$f":"E78*F78","v":0}]
[null,2,null,null,null,null,null,{"$f":"E79*F79","v":0}]
[null,3,null,null,null,null,null,{"$f":"E80*F80","v":0}]
[null,4,null,null,null,null,null,{"$f":"E81*F81","v":0}]
[null,5,null,null,null,null,null,{"$f":"E82*F82","v":0}]
[null,null,null,null,"Total",{"$f":"SUM(F78:F82)","v":0},null,{"$f":"SUM(H78:H82)","v":0}]
[]
[null,null,null,null,null,"Average flow rate (litres/min)",null,{"$f":"IF(ISERROR(H83/F83),\"\",H83/F83)","v":""},{"$f":"IF(F83=0,\"\",IF(H85>H87,\"Enter this average component consumption figure in to the relevant component specification of the water consumption calculator\",\"\"))","v":""}]
[]
[null,null,null,null,null,"Proportionate flow rate (litres/min)",null,{"$f":"MAX(E78:E82)*0.7","v":0},{"$f":"IF(F83=0,\"\",IF(H87>H85,\"Enter this average component consumption figure in to the relevant component specification of the water consumption calculator\",\"\"))","v":""}]
[]
[null,"Baths"]
[]
[null,"Bath type",null,null,"Specification\ncapacity to overflow (litres)","Quantity (no.)",null,"Total per fitting type"]
[null,1,null,null,null,null,null,{"$f":"E92*F92","v":0}]
[null,2,null,null,null,null,null,{"$f":"E93*F93","v":0}]
[null,3,null,null,null,null,null,{"$f":"E94*F94","v":0}]
[null,4,null,null,null,null,null,{"$f":"E95*F95","v":0}]
[null,5,null,null,null,null,null,{"$f":"E96*F96","v":0}]
[null,null,null,null,"Total",{"$f":"SUM(F92:F96)","v":0},null,{"$f":"SUM(H92:H96)","v":0}]
[]
[null,null,null,null,null,"Average capacity to overflow (litres)",null,{"$f":"IF(ISERROR(H97/F97),\"\",H97/F97)","v":""},{"$f":"IF(F97=0,\"\",IF(H99>H101,\"Enter this average component consumption figure in to the relevant component specification of the water consumption calculator\",\"\"))","v":""}]
[]
[null,null,null,null,null,"Proportionate capacity to overflow (litres)",null,{"$f":"MAX(E92:E96)*0.7","v":0},{"$f":"IF(F97=0,\"\",IF(H101>H99,\"Enter this average component consumption figure in to the relevant component specification of the water consumption calculator\",\"\"))","v":""}]

{"sheet":"Schedule of changes","index":13,"n_rows":8,"n_cols":6,"rows_kept":8,"cut":false,"hidden":false,"merged":[[5,5,5,13],[9,5,9,13]]}
[]
[null,"BREEAM-NOR v6.1 Wat 01 Water Consumption"]
[]
[null,"Current version",null,"Release date",null,"Description of changes/additions to previous version resulting in current version"]
[]
[null,"1.00",null,"2023-11-21",null,"Release version."]
[]
[null,"Previous version",null,"Release date"]